Workbook

Sheet Start
C9: Welcome
C11: You have just opened B-SAT, or the Bio-energy Sustainability Assessment Tool.
C12: The development of this tool was the main aim of a joint PhD project by VITO (The Flemish Institute for Technological Research)in cooperation with the University of Antwerp and the University of Leuven.
C14: Why use this tool?
C15: Together with the increased production of biofuels as an alternative for fossil fuels, concerns have raised about the sustainability of large scale biomass production for energy.
C16: This is the first tool that offers the possibility to perform a quick and comprehensive evaluation of the sustainability of a bio-energy system producing electricity and heat without requiring expert skills on this topic.
C17: Sustainability indicators are assessed throughout the whole life cycle of the bio-energy production system and compared to the corresponding fossil reference system.
C18: The B-SAT sustainability framework includes, among others, the requirements laid down in the European Renewable Energy Directive (2009/28/EC) and the Commission report COM(2010)11 on the use of solid
C19: and gaseous biomass for energy production.
C21: Though calculations in this tool follow the rules laid down in the RED and the COM(2010)11, it must be stressed that this tool is not officially acknowledged to perform the RED calculations. Results must thus be seen as indicative.
C23: On the next page, an overview is given of the various steps required to proceed through the evaluation.
C25: Good luck & enjoy!
C28: Author: Veerle Buytaert (veerle@buytaert.be)
C33: Nathalie Devriendt | H33: Roeland Samson | M33: Bart Muys
C34: Unit Transition, Energy & Environment | H34: Department of Bioscience Engineering | M34: Division Forest, Nature and Landscape
C35: VITO NV | H35: University of Antwerp | M35: University of Leuven
C36: Boeretang 200 | H36: Groenenborgerlaan 171 V | M36: Celestijnenlaan 200E, Box 2411
C37: BE - 2400 Mol | H37: BE - 2020 Antwerpen | M37: BE - 3001 Leuven
C38: nathalie.devriendt@vito.ac.be | H38: roeland.samson@ua.ac.be | M38: bart.muys@ees.kuleuven.be

Sheet Guidelines
C8: Guidelines
D10: User input cells are colored in green and indicated with a red INPUT arrow.
D11: Extra information about a certain section or topic, can be retrieved by clicking on the information icons:
C14: The B-SAT sustainability assessment process consists of 5 steps, explained below:
D24: * not accessible in the 'limited' B-SAT version
C26: 1. Project definition
C27: In the first step of the assessment process, the entire life cycle of the bio-energy system has to be defined with all the inputs and outputs.
C28: In the upper part of the sheet, feedstock(s), final conversion technology, final energy and functional unit must be selected from the lists with available options.
C29: The calculation structure in this tool offers the possibility to feed up to two different feedstocks (with exception for waste streams as they can also be added in secondary steps) into the bioenergy system.
C30: The life cycle of one feedstock consequently consists of a biomass production phase, a first transportation/storage phase, a first conversion phase, a second transportation/storage phase, a second conversion
C31: phase and a third transportation/storage phase. This life cycle then results in a secondary energy carrier which is used, together with the secondary energy carrier of a possible second feedstock, for the final
C32: conversion process into electricity and/or heat. The use of a second feedstock is optional.
C33: A schematical reproduction of the calculation structure is given below:
S44: OPTIONAL
C46: An example with two feedstocks is the production of palm oil from fresh palm fruit bunches (feedstock 1: production " transport 3) and the production of biogas from the fermentation of maize and organic
C47: waste (feedstock 2: production " transport 3), both fed into a dual fuel engine for production of electricity and heat (final conversion).
C49: In the second part of the sheet, all data are listed that are needed to calculate the mass balance of the system. For every feedstock option, default data are available in the tool. These are the same data that
C50: are used within the calculations of the Renewable Energy Directive. The user is therefore not obliged to fill in data and can directly proceed to the next step if desired. However, it is suggested to use personally
C51: derived data as reference data are rather conservative and tend to result in less positive conclusions. Personal data can be inserted in the user input area. In that case the personal data will be used for any further
C52: calculation. A list of standard values used in this tool is available in a separate document, together with the corresponding data sources.
C54: 2. Mass balance
C55: After defining the entire life cycle of the system, the result can be viewed and checked in the mass balance sheet. This aids the user to obtain a concise overview of the assessed system and to easily detect poten-
C56: tial errors. In case an error is found, the user can go one step back by using the green BACK arrow on at the top or bottom of the sheet and adapt the input value concerned.
C59: 3. Calculation
C60: Some general rules apply:
C61: • Sustainability impacts of the bio-energy production system are compared to those of the corresponding fossil reference system(s) as laid down in the RED (2009/28/EC) and report COM(2010)11.
C62: • Wastes, agricultural crop residues, including straw, bagasse, husks, cobs and nut shells, and residues from processing, including crude glycerine (glycerine that is not refined), are considered to have zero impacts
C63: up to the process of collection of those materials. However, the use of those materials as non-artificial fertiliser for biomass production must be taken into account (see calculation sheet 'Global Warming').
C64: • When during the entire bio-energy production process not only the desired final energy carriers are produced, but also other valuable products (co- or by-products), the impacts must be divided between the
C65: final fuel(s) and the co-products in proportion to their energy content. Or, in other words, allocation between final fuel(s) and co-products must be based on the lower heating value of the fuel(s)/products.
C66: • Waste, including waste heat, and residues leave the system without allocation to it.
C67: • Allocation takes place directly after a co-product is produced at a process step.
C68: • For bio-energy installations producing electricity as well as useful heat, impacts are allocated based on the Carnot efficiency of the energy product.
C69: • Impacts of the construction of buildings and production of machinery used for both bio-energy production and fossil reference energy production are not included in the calculations.
C71: Though calculations in this tool follow the rules laid down in the RED and the COM(2010)11, it muss be stressed that this tool is not officially acknowledged to perform the RED calculations. Results must thus be seen as indicative.
C74: 4. Uncertainty analysis
C75: As in any other assessment, the use of (default) data is inherently subject to a degree of uncertainty. A method based on Monte Carlo filtering calculates for each quantitative sustainability indicator the variation
C76: (uncertainty) in the output. This gives the user better insight in the reliability of the results.
C77: In this limited edition the uncertainty analysis is not available.
C80: 5. Results
C81: The last sheet gives an overview of the outcomes of the sustainability assessment. For each indicator, overall as well as disaggregated (for each feedstock and for each part of the bioenergy production chain)
C82: results are given. For the quantitative indicators, the results of the bio-energy system are set against those of the fossil reference system.

Sheet Input Project
C8: Project definition
C10: Feedstock pathway 1
C12: Feedstock pathway 2 (optional)
C14: Final conversion technology
C16: Functional unit | J16: ! if final conversion technology is 'CHP', please choose MJ electricity or MJ heat
J17: ! if final conversion technology is 'no final conversion',
J18: please choose MJ gas for biogas or LBM, MJ diesel for biodiesel and MJ heavy oil for bio-oil production
C19: Project input data
E21: Feedstock pathway 1
E23: Feedstock production | H23: User input | I23: Default value | J23: Unit
E24: harvested feedstock | H24: =I24 -> Fresh palm fruit bunches (FFB) | I24: =Parameters!D20 -> Fresh palm fruit bunches (FFB)
E25: crop yield | I25: =Parameters!D22 -> 19000 | J25: kgfm.ha-1.y-1
E26: moisture content of crop | I26: =Parameters!D27 -> 34 | J26: %
E27: main by-product | I27: =Parameters!D29 -> n.a.
E28: yield of main by-product | I28: =Parameters!D31 -> 0 | J28: kgfm.ha-1.y-1
E29: moisture content of main by-product | I29: =Parameters!D35 -> 0 | J29: %
E30: secondary by-product | I30: =Parameters!D30 -> n.a.
E31: yield of secondary by-product | I31: =Parameters!D32 -> 0 | J31: kgfm.ha-1.y-1
E32: moisture content of secondary by-product | I32: =Parameters!D36 -> 0 | J32: %
E33: use of seeds | I33: =Parameters!D41 -> 0 | J33: kg.ha-1.y-1
E34: use of N-fertiliser | I34: =Parameters!D42 -> 127.908 | J34: kg.ha-1.y-1
E35: use of P2O5-fertiliser | I35: =Parameters!D43 -> 143.792 | J35: kg.ha-1.y-1
E36: use of K2O-fertiliser | I36: =Parameters!D44 -> 199.804 | J36: kg.ha-1.y-1
E37: use of CaO-fertiliser | I37: =Parameters!D45 -> 0 | J37: kg.ha-1.y-1
E38: use of pesticides | I38: =Parameters!D46 -> 8.36 | J38: kg.ha-1.y-1
E39: type of fuel in farm machinery | I39: =Parameters!D54 -> Diesel
E40: amount of fuel used | I40: =Parameters!D57 -> 47.902 | J40: kg.ha-1.y-1
E42: Feedstock treatment and transport 1 | H42: User input | I42: Default value | J42: Unit
E43: Drying and storage: | I43: =Parameters!D3 -> No treatment
E44: heat source | I44: =Parameters!D60 -> n.a.
E45: heat use for drying | I45: =Parameters!D59 -> 0 | J45: MJ.kgfm-1
E46: electricity source | I46: =Parameters!D63 -> n.a.
E47: electricity use for drying | I47: =Parameters!D62 -> 0 | J47: MJ.kgfm-1
E48: Feedstock transport: | I48: =Parameters!D2 -> Transport of FFB to the mill
E49: transport mode 1 | I49: =Parameters!D462 -> Truck for FFB transport (Diesel)
E50: transport distance | I50: =Parameters!D480 -> 50 | J50: km
E51: type of fuel | I51: =Parameters!D489 -> Diesel
E52: transport mode 2 | I52: =Parameters!D463 -> n.a.
E53: transport distance | I53: =Parameters!D481 -> 0 | J53: km
E54: type of fuel | I54: =Parameters!D490 -> n.a.
E55: transport mode 3 | I55: =Parameters!D464 -> n.a.
E56: transport distance | I56: =Parameters!D482 -> 0 | J56: km
E57: type of fuel | I57: =Parameters!D491 -> n.a.
E59: Feedstock conversion 1 | H59: User input | I59: Default value | J59: Unit
E60: Process 1 | H60: =I60 -> Production of Crude Palm Oil (CPO) | I60: =Parameters!D4 -> Production of Crude Palm Oil (CPO)
E61: main output flow of process 1 | H61: =I61 -> Crude palm oil | I61: =Parameters!D666 -> Crude palm oil
E62: main by-product | I62: =Parameters!D668 -> Palm kernel meal
E63: moisture content of by-product 1,process 1 | I63: =Parameters!D669 -> 8.2 | J63: %
E64: by-product flow 1, process 1 | I64: =Parameters!D670 -> 462.83 | J64: kg.year-1
E65: energy content of by-product 1, process 1 | I65: =Parameters!D701 -> 17 | J65: MJ.kgdm-1
E66: secondary by-product | I66: =Parameters!D671 -> n.a.
E67: moisture content of by-product 2,process 1 | I67: =Parameters!D672 -> 0 | J67: %
E68: by-product flow 2, process 1 | I68: =Parameters!D673 -> 0 | J68: kg.year-1
E69: energy content of by-product 2, process 1 | I69: =Parameters!D702 -> 0 | J69: MJ.kgdm-1
E70: tertiary by-product | I70: =Parameters!D674 -> n.a.
E71: moisture content of by-product 3,process 1 | I71: =Parameters!D675 -> 0 | J71: %
E72: by-product flow 3, process 1 | I72: =Parameters!D676 -> 0 | J72: kg.year-1
E73: energy content of by-product 3, process 1 | I73: =Parameters!D703 -> 0 | J73: MJ.kgdm-1
E74: electricity by-product, process 1 | I74: =Parameters!D677 -> 0 | J74: MWh.year-1
E75: heat by-product, process 1 | I75: =Parameters!D678 -> 0 | J75: MJ.year-1
E76: type 1 of fuel/heat input | I76: =Parameters!D761 -> n.a.
E77: fuel/heat input 1 | I77: =Parameters!D820 -> 0 | J77: MJ.year-1
E78: type 2 of fuel/heat input | I78: =Parameters!D762 -> n.a.
E79: fuel/heat input 2 | I79: =Parameters!D822 -> 0 | J79: MJ.year-1
E80: type 1 of electricity input | I80: =Parameters!D805 -> n.a.
E81: electricity flow 1 | I81: =Parameters!D798 -> 0 | J81: MWh.year-1
E82: type 2 of electricity input | I82: =Parameters!D806 -> n.a.
E83: electricity flow 2 | I83: =Parameters!D800 -> 0 | J83: MWh.year-1
E84: type of main input | I84: =Parameters!D719 -> Fresh palm fruit bunches (FFB)
E85: main input, process 1 | I85: =Parameters!D731 -> 19000 | J85: kg.year-1
E86: Energy content of main input, process 1 | I86: =Parameters!D68 -> 24 | J86: MJ.kgdm-1
E87: type 1 of material input | H87: n.a. | I87: =Parameters!D720 -> n.a.
E88: material input flow 1, process 1 | I88: =Parameters!D732 -> 0 | J88: kg.year-1
E89: moisture content of material input 1, process 1 | I89: =Parameters!D735 -> 0 | J89: %
E90: energy content of input flow 1, process 1 | I90: =Parameters!D736 -> 0 | J90: MJ.kgdm-1
E91: type 2 of material input | I91: =Parameters!D721 -> n.a.
E92: material input flow 2, process 1 | I92: =Parameters!D737 -> 0 | J92: kg.year-1
E93: moisture content of material input 2, process 1 | I93: =Parameters!D739 -> 0 | J93: %
E94: energy content of input flow 2, process 1 | I94: =Parameters!D740 -> 0 | J94: MJ.kgdm-1
E95: type 3 of material input | I95: =Parameters!D722 -> n.a.
E96: material input flow 3, process 1 | I96: =Parameters!D741 -> 0 | J96: kg.year-1
E97: moisture content of material input 3, process 1 | I97: =Parameters!D743 -> 0 | J97: %
E98: energy content of input flow 3, process 1 | I98: =Parameters!D744 -> 0 | J98: MJ.kgdm-1
E99: type of material output | I99: =Parameters!D725 -> n.a.
E100: material output flow, process 1 | I100: =Parameters!D754 -> 4311 | J100: kg.year-1
E101: energy content of material output flow, process 1 | I101: =Parameters!D715 -> 37 | J101: MJ.kgdm-1
E102: type of material output (electricity) | I102: =Parameters!D726 -> n.a.
E103: type of material output (heat) | I103: =Parameters!D727 -> n.a.
E105: Feedstock treatment and transport 2 | H105: User input | I105: Default value | J105: Unit
E106: Drying and storage: | I106: =Parameters!D6 -> No treatment
E107: heat source | I107: =Parameters!D906 -> n.a.
E108: heat use for drying | I108: =Parameters!D905 -> 0 | J108: MJ.MJinput-1
E109: electricity source | I109: =Parameters!D908 -> n.a.
E110: electricity use for drying | I110: =Parameters!D907 -> 0.00084 | J110: MJ.MJinput-1
E111: Feedstock transport: | I111: =Parameters!D5 -> Transport of CPO to Belgium
E112: transport mode 4 | I112: =Parameters!D465 -> Truck for liquids (Diesel)
E113: transport distance | I113: =Parameters!D483 -> 150 | J113: km
E114: type of fuel | I114: =Parameters!D492 -> Diesel
E115: transport mode 5 | I115: =Parameters!D466 -> Ship /product tanker 50kt (HFO maritime)
E116: transport distance | I116: =Parameters!D484 -> 10186 | J116: km
E117: type of fuel | I117: =Parameters!D493 -> HFO for maritime transport
E118: transport mode 6 | I118: =Parameters!D467 -> n.a.
E119: transport distance | I119: =Parameters!D485 -> 0 | J119: km
E120: type of fuel | I120: =Parameters!D494 -> n.a.
E122: Feedstock conversion 2 | H122: User input | I122: Default value | J122: Unit
E123: Process 2 | H123: =I123 -> Refinery of Crude Palm Oil | I123: =Parameters!D7 -> Refinery of Crude Palm Oil
E124: main output flow of process 2 | H124: =I124 -> Palm stearin | I124: =Parameters!D667 -> Palm stearin
E125: main by-product | I125: =Parameters!D679 -> Palm olein
E126: moisture content of by-product 1,process 2 | I126: =Parameters!D680 -> 0 | J126: %
E127: by-product flow 1, process 2 | I127: =Parameters!D681 -> 0 | J127: kg.year-1
E128: energy content of by-product 1, process 2 | I128: =Parameters!D704 -> 37 | J128: MJ.kgdm-1
E129: secondary by-product | I129: =Parameters!D682 -> n.a.
E130: moisture content of by-product 2,process 2 | I130: =Parameters!D683 -> 0 | J130: %
E131: by-product flow 2, process 2 | I131: =Parameters!D684 -> 0 | J131: kg.year-1
E132: energy content of by-product 2, process 2 | I132: =Parameters!D705 -> 0 | J132: MJ.kgdm-1
E133: electricity by-product, process 2 | I133: =Parameters!D685 -> 0 | J133: MWh.year-1
E134: heat by-product, process 2 | I134: =Parameters!D686 -> 0 | J134: MJ.year-1
E135: type 1 of fuel/heat input | I135: =Parameters!D763 -> Heat from NG boiler
E136: fuel/heat input 1 | I136: =Parameters!D824 -> 408 | J136: MJ.year-1
E137: type 2 of fuel/heat input | I137: =Parameters!D764 -> n.a.
E138: fuel/heat input 2 | I138: =Parameters!D826 -> 0 | J138: MJ.year-1
E139: type 1 of electricity input | I139: =Parameters!D807 -> Electricity EU mix LV
E140: electricity flow 1 | I140: =Parameters!D802 -> 0.0085 | J140: MWh.year-1
E141: type 2 of electricity input | I141: =Parameters!D808 -> n.a.
E142: electricity flow 2 | I142: =Parameters!D804 -> 0 | J142: MWh.year-1
E143: type 1 of material input | I143: =Parameters!D723 -> Fuller's earth
E144: material input flow 1, process 2 | I144: =Parameters!D746 -> 0 | J144: kg.year-1
E145: moisture content of material input 1, process 2 | I145: =Parameters!D747 -> 0 | J145: %
E146: energy content of input flow 1, process 2 | I146: =Parameters!D748 -> 0 | J146: MJ.kgdm-1
E147: type 2 of material input | I147: =Parameters!D724 -> n.a.
E148: material input flow 2, process 2 | I148: =Parameters!D750 -> 0 | J148: kg.year-1
E149: moisture content of material input 2, process 2 | I149: =Parameters!D751 -> 0 | J149: %
E150: energy content of input flow 2, process 2 | I150: =Parameters!D752 -> 0 | J150: MJ.kgdm-1
E151: type of material output | I151: =Parameters!D728 -> n.a.
E152: material output flow, process 2 | I152: =Parameters!D758 -> 1379 | J152: kg.year-1
E153: energy content of material output, process 2 | I153: =Parameters!D716 -> 37 | J153: MJ.kgdm-1
E154: type of material output (electricity), process 2 | I154: =Parameters!D729 -> n.a.
E155: type of material output (heat), process 2 | I155: =Parameters!D730 -> n.a.
E157: Feedstock treatment and transport 3 | H157: User input | I157: Default value | J157: Unit
E158: Drying and storage: | I158: =Parameters!D9 -> No treatment
E159: heat source | I159: =Parameters!D913 -> n.a.
E160: heat use for drying | I160: =Parameters!D912 -> 0 | J160: MJ.MJinput-1
E161: electricity source | I161: =Parameters!D915 -> n.a.
E162: electricity use for drying | I162: =Parameters!D914 -> 0.00084 | J162: MJ.MJinput-1
E163: Feedstock transport: | I163: =Parameters!D8 -> Transport of PS to the final conversion unit
E164: transport mode 7 | I164: =Parameters!D468 -> Truck for liquids (Diesel)
E165: transport distance | I165: =Parameters!D486 -> 100 | J165: km
E166: type of fuel | I166: =Parameters!D495 -> Diesel
E167: transport mode 8 | I167: =Parameters!D469 -> n.a.
E168: transport distance | I168: =Parameters!D487 -> 0 | J168: km
E169: type of fuel | I169: =Parameters!D496 -> n.a.
E170: transport mode 9 | I170: =Parameters!D470 -> n.a.
E171: transport distance | I171: =Parameters!D488 -> 0 | J171: km
E172: type of fuel | I172: =Parameters!D497 -> n.a.
E174: Feedstock pathway 2 (optional)
E176: Feedstock production | H176: User input | I176: Default value | J176: Unit
E177: harvested feedstock | H177: =I177 -> No crop | I177: =Parameters!D241 -> No crop
E178: crop yield | I178: =Parameters!D243 -> 0 | J178: kgfm.ha-1.y-1
E179: moisture content of crop | I179: =Parameters!D248 -> 0 | J179: %
E180: main by-product | I180: =Parameters!D250 -> n.a.
E181: yield of main by-product | I181: =Parameters!D252 -> 0 | J181: kgfm.ha-1.y-1
E182: moisture content of main by-product | I182: =Parameters!D256 -> 0 | J182: %
E183: secondary by-product | I183: =Parameters!D251 -> n.a.
E184: yield of secondary by-product | I184: =Parameters!D253 -> 0 | J184: kgfm.ha-1.y-1
E185: moisture content of secondary by-product | I185: =Parameters!D257 -> 0 | J185: %
E186: use of seeds | I186: =Parameters!D262 -> 0 | J186: kg.ha-1.y-1
E187: use of N-fertiliser | I187: =Parameters!D263 -> 0 | J187: kg.ha-1.y-1
E188: use of P2O5-fertiliser | I188: =Parameters!D264 -> 0 | J188: kg.ha-1.y-1
E189: use of K2O-fertiliser | I189: =Parameters!D265 -> 0 | J189: kg.ha-1.y-1
E190: use of CaO-fertiliser | I190: =Parameters!D266 -> 0 | J190: kg.ha-1.y-1
E191: use of pesticides | I191: =Parameters!D267 -> 0 | J191: kg.ha-1.y-1
E192: type of fuel in farm machinery | I192: =Parameters!D275 -> n.a.
E193: amount of fuel used | I193: =Parameters!D278 -> 0 | J193: kg.ha-1.y-1
E195: Feedstock treatment and transport 1 | H195: User input | I195: Default value | J195: Unit
E196: Drying and storage: | I196: =Parameters!D11 -> n.a.
E197: heat source | I197: =Parameters!D281 -> n.a.
E198: heat use for drying | I198: =Parameters!D280 -> 0 | J198: MJ.kgfm-1
E199: electricity source | I199: =Parameters!D284 -> n.a.
E200: electricity use for drying | I200: =Parameters!D283 -> 0 | J200: MJ.kgfm-1
E201: Feedstock transport: | I201: =Parameters!D10 -> n.a.
E202: transport mode 1 | I202: =Parameters!D563 -> n.a.
E203: transport distance | I203: =Parameters!D581 -> 0 | J203: km
E204: type of fuel | I204: =Parameters!D590 -> n.a.
E205: transport mode 2 | I205: =Parameters!D564 -> n.a.
E206: transport distance | I206: =Parameters!D582 -> 0 | J206: km
E207: type of fuel | I207: =Parameters!D591 -> n.a.
E208: transport mode 3 | I208: =Parameters!D565 -> n.a.
E209: transport distance | I209: =Parameters!D583 -> 0 | J209: km
E210: type of fuel | I210: =Parameters!D592 -> n.a.
L211: data validation!
E212: Feedstock conversion 1 | H212: User input | I212: Default value | J212: Unit
E213: Process 1 | H213: =I213 -> n.a. | I213: =Parameters!D12 -> n.a.
E214: main output flow of process 1 | H214: =I214 -> n.a. | I214: =Parameters!D1037 -> n.a.
E215: main by-product | I215: =Parameters!D1039 -> n.a.
E216: moisture content of by-product 1,process 1 | I216: =Parameters!D1040 -> 0 | J216: %
E217: by-product flow 1, process 1 | I217: =Parameters!D1041 -> 0 | J217: kg.year-1
E218: energy content of by-product 1, process 1 | I218: =Parameters!D1071 -> 0 | J218: MJ.kgdm-1
E219: secondary by-product | I219: =Parameters!D1042 -> n.a.
E220: moisture content of by-product 2,process 1 | I220: =Parameters!D1043 -> 0 | J220: %
E221: by-product flow 2, process 1 | I221: =Parameters!D1044 -> 0 | J221: kg.year-1
... 128 more rows

Sheet Indicators (hidden)
B8: Selection of sustainability indicators
J11: SELECT | K11: RED
E13: ECONOMICAL | F13: ENERGY BALANCE | H13: fossil energy requirement
E16: ENVIRONMENTAL | F16: GLOBAL WARMING | H16: greenhouse gas balance | K16: þ
H17: carbon debt and repayment time
F18: RESOURCE USE | H18: use of water
H19: use of land
F20: ENVIRONMENTAL QUALITY | H20: acidification potential
H21: eutrophication potential
F22: BIODIVERSITY | H22: biodiversity and high carbon stocks | K22: þ
E24: SOCIAL | F24: LOCAL WELL-BEING | H24: human and property rights
H25: working conditions
C28: FOSSIL ENERGY REQUIREMENT | E28: The total requirement of fossil energy throughout the whole life cycle, including fossil energy requirement for the production of input materials
E29: It is calculated as the sum of fossil energy requirement throughout the life cycle [MJfossil/MJ]
C30: NET ENERGY REQUIREMENT | E30: The total requirement of primary energy throughout the whole life cycle, including fossil energy requirement for the production of input materials
E31: It is calculated as the total energy input over the total energy output [MJin/MJ]
C32: GREENHOUSE GAS BALANCE | E32: The sum of greenhouse gas emissions (CO2, CH4, N2O) from the production of biomass fuels throughout the whole life cycle, including direct land use change
E33: It is calculated conform the procedure in the EU Renewable Energy Directive and the report on solid biomass for electricity, heating and cooling [g CO2-eq/MJ]
C34: CARBON DEBT | E34: The sum of carbon emissions related to direct land use change necessary to set up the bioenergy system
E35: It is calculated conform the procedure in the EU Renewable Energy Directive and the report on solid biomass for electricity, heating and cooling [t CO2-eq/ha]
C36: REPAYMENT TIME | E36: The time it takes to offset this carbon debt through reduced GHG emissions as a result of the use of the bioenergy system instead of the fossil reference system
E37: It is calculated by dividing the total carbon debt by the annual emission reduction of the bioenergy system [years]
C38: USE OF WATER | E38: The use of water throughout the life cycle of the bioenergy system, also called the water footprint
E39: It is calculated as the cumulated use of water within each life cyle phase and related to local risk of water shortages [L/MJ]
C40: USE OF LAND | E40: The use of land throughout the life cycle of the bioenergy system
E41: It is calculated as the cumulated use of land within each life cyle phase [ha/MJ]
C42: ACIDIFICATION POTENTIAL | E42: Atmospheric pollution arising from anthropogenically derived sulphur (S) and nitrogen (N) as NOx or ammonia
E43: It is calculated as the sum of NH3, NOx and SOx emissions to air throughout the life cycle [g SO2-eq/MJ]
C44: EUTROPHICATION POTENTIAL | E44: The artificial addition of nutrients, especially phosphates and nitrates, to the water bodies of the ecosystem
E45: It is calculated as the sum of BOD, N and P emissions and flows to water ways and/or ground water [g PO4-eq/MJ]
C46: BIODIVERSITY | E46: The impact of bio-energy production on land with high biodiversity and high carbon stock
E47: It is checked conform the procedure in the EU Renewable Energy Directive and the report on solid biomass for electricity, heating and cooling []
C48: HUMAN AND PROPERTY RIGHTS | E48: Violation risk of local human and property rights, including child labour
E49: The outcome is a risk factor that gives an indication of the risk that one of the above issues is violated [risk factor]
C50: WORKING CONDITIONS | E50: Violation risk of local working conditions, including health and safety at work, fair wages, legal contracts and workers rights
E51: The outcome is a risk factor that gives an indication of the risk that one of the above issues is violated [risk factor]

Sheet Input EB (hidden)
B8: Energy balance
B9: The reduction of fossil energy dependence is a primary goal of the EU renewable energy strategy. It is therefore highly relevant to take this issue into account while evaluating the sustainability of energy systems. The FOSSIL ENERGY REQUIREMENT (FER) is calculated as the sum of all fossil energy requirements throughout the whole bio-energy production pathway, including the production of inputs. The same calculation rules are adopted as for the greenhouse gas balance (laid down by the European Renewable Energy Directive. The fossil energy reduction is then calculated as the difference between the fossil energy requirements of the bio-energy system en the one of the fossil reference system.
B11: Project overview
B15: =Parameters!J2 -> Palm oil (stearin) from palm fruits, refinery | F15: =Parameters!F20 -> Fresh palm fruit bunches (FFB) | I15: =Parameters!F2 -> Transport of FFB to the mill | L15: =Parameters!F4 -> Production of Crude Palm Oil (CPO) | O15: =Parameters!F5 -> Transport of CPO to Belgium | R15: =Parameters!F7 -> Refinery of Crude Palm Oil | U15: =Parameters!F8 -> Transport of PS to the final conversion unit
X17: =Parameters!F18 -> No final conversion
B18: =Parameters!J3 -> None | F18: =Parameters!F241 -> No crop | I18: =Parameters!F10 -> n.a. | L18: =Parameters!F12 -> n.a. | O18: =Parameters!F13 -> n.a. | R18: =Parameters!F15 -> n.a. | U18: =Parameters!F16 -> n.a.
B21: Project input data
B23: No additional project input data are required for this indicator.

Sheet Input Land use
B8: Land use
B11: Project overview
B15: =Parameters!J2 -> Palm oil (stearin) from palm fruits, refinery | F15: =Parameters!F20 -> Fresh palm fruit bunches (FFB) | I15: =Parameters!F2 -> Transport of FFB to the mill | L15: =Parameters!F4 -> Production of Crude Palm Oil (CPO) | O15: =Parameters!F5 -> Transport of CPO to Belgium | R15: =Parameters!F7 -> Refinery of Crude Palm Oil | U15: =Parameters!F8 -> Transport of PS to the final conversion unit
X17: =Parameters!F18 -> No final conversion
B18: =Parameters!J3 -> None | F18: =Parameters!F241 -> No crop | I18: =Parameters!F10 -> n.a. | L18: =Parameters!F12 -> n.a. | O18: =Parameters!F13 -> n.a. | R18: =Parameters!F15 -> n.a. | U18: =Parameters!F16 -> n.a.
B21: Project input data
D23: Feedstock pathway 1
D25: Feedstock production | K25: User input | Q25: Default value | W25: Unit
D26: climate | Q26: =Parameters!D103 -> Tropical Wet
D27: soil type | Q27: =Parameters!D104 -> Low activity clay soils
E28: search climate and soil type:
F29: • search coordinates through location/address:
F34: • or insert coordinates manually:
F35: longitude
F36: latitude
F40: (search takes approximately 15 seconds)
F42: climate
F43: soil type
F45: In case the retrieved answer for soil type is "Other Areas", see:
F46: In case the retrieved answer for soil type is "Organic", see:
F47: ! Do not forget to insert these results in the user input fields above.
D49: Organic soil | Q49: =IF(Parameters!D186=1,"yes","no") -> no
D50: Soil water saturation | Q50: =IF(Parameters!D183=1,"yes","no") -> yes
D51: Previously degraded land | Q51: =IF(Parameters!D150=1,"yes","no") -> no
D52: Only for organic soils:
E53: Nutrient level | Q53: =Parameters!D187 -> n.a.
J54: User input | T54: Default value
D55: Actual land use | T55: =Parameters!D99 -> Perennial cropland
E56: Management type | T56: =Parameters!D152 -> No till
E57: Input | T57: =Parameters!D154 -> High without manure
E58: Actual land use - more specific | T58: =Parameters!D101 -> Oil palm
E59: Domain | T59: =Parameters!D156 -> n.a.
E60: Climate (specific for IPCC carbon calc.) | T60: =Parameters!D105 -> Tropical wet
E61: Ecological zone | T61: =Parameters!D158 -> n.a.
E62: Continent | T62: =Parameters!D160 -> n.a.
E63: Type | T63: =Parameters!D162 -> n.a.
D64: ! If other than default: all parameters must be filled in.
D66: Previous land use (January 1st, 2008) | T66: =Parameters!D100 -> Perennial cropland
E67: Management type | T67: =Parameters!D153 -> No till
E68: Input | T68: =Parameters!D155 -> High without manure
E69: Previous land use - more specific | T69: =Parameters!D102 -> Oil palm
E70: Domain | T70: =Parameters!D157 -> n.a.
E71: Climate (specific for IPCC carbon calc.) | T71: =Parameters!D106 -> Tropical wet
E72: Ecological zone | T72: =Parameters!D159 -> n.a.
E73: Continent | T73: =Parameters!D161 -> n.a.
E74: Type | T74: =Parameters!D163 -> n.a.
D75: ! If other than default: all parameters must be filled in.
K77: User input | Q77: Default value | W77: Unit
D78: Field renewal | Q78: =Parameters!D184 -> 1 | W78: years
D79: Amount of animal manure N applied to soil | Q79: =Parameters!D189 -> 0 | W79: kgN.ha-1.y-1
E80: (other than by grazing animals)
D81: Amount of total sewage N applied to soil | Q81: =Parameters!D190 -> 0 | W81: kgN.ha-1.y-1
D82: Amount of total compost N applied to soil | Q82: =Parameters!D191 -> 0 | W82: kgN.ha-1.y-1
D83: Amount of N of other organic amendments | Q83: =Parameters!D192 -> 0 | W83: kgN.ha-1.y-1
E84: applied to soil (used as fertiliser)
D85: Amount of N-fixing crop residue applied | Q85: =Parameters!D176 -> 45 | W85: kgN.ha-1.y-1
E86: to soil
D87: Fraction of above-ground residues removed | Q87: =Parameters!D204 -> 0 | W87: %
D88: Ratio of above-ground residues to | Q88: =Parameters!D195 -> 0.3333333333 | W88: kgfm.kgfm-1
E89: harvested yield
D90: Ratio of below-ground residues to | Q90: =Parameters!D200 -> 0 | W90: kgfm.kgfm-1
E91: harvested yield
D92: Only for oil palm:
E93: Amount of residues returned to field | Q93: =Parameters!D185 -> 0.22 | W93: kgdm.kgfm-1
D94: This section should only be filled in when data are available for ALL PARAMETERS:
D95: Actual land use
E96: Weight of below ground living biomass | W96: t.ha-1.y-1
E97: OR: Ratio of below ground carbon stock | W97: tC.tC-1
F98: to above ground carbon stock
E99: Weight of above ground living biomass | W99: t.ha-1.y-1
E100: Weight of dead wood pool | W100: t.ha-1.y-1
E101: Weight of litter | W101: t.ha-1.y-1
E102: C fraction of dry matter in living biomass | W102: tC.tdm-1
E103: C fraction of dry matter in dead wood | W103: tC.tdm-1
E104: C fraction of dry matter in litter | W104: tC.tdm-1
D105: Previous land use (January 1st, 2008)
E106: Weight of below ground living biomass | W106: t.ha-1.y-1
E107: OR: Ratio of below ground carbon stock | W107: tC.tC-1
F108: to above ground carbon stock
E109: Weight of above ground living biomass | W109: t.ha-1.y-1
E110: Weight of dead wood pool | W110: t.ha-1.y-1
E111: Weight of litter | W111: t.ha-1.y-1
E112: C fraction of dry matter in living biomass | W112: tC.tdm-1
E113: C fraction of dry matter in dead wood | W113: tC.tdm-1
E114: C fraction of dry matter in litter | W114: tC.tdm-1
D118: Feedstock pathway 2
D120: Feedstock production | K120: User input | Q120: Default value | W120: Unit
D121: climate | Q121: =Parameters!D324 -> n.a.
D122: soil type | Q122: =Parameters!D325 -> n.a.
E123: search climate and soil type:
F124: • search coordinates through location/address:
F125: belgium
F129: • or insert coordinates manually:
F130: longitude
F131: latitude
F135: (search takes approximately 15 seconds)
F137: climate
F138: soil type
F140: In case the retrieved answer for soil type is "Other Areas", see:
F141: In case the retrieved answer for soil type is "Organic", see:
F142: ! Do not forget to insert these results in the user input fields above.
D144: Organic soil | Q144: =IF(Parameters!D407=1,"yes","no") -> no
D145: Soil water saturation | Q145: =IF(Parameters!D404=1,"yes","no") -> no
D146: Previously degraded land | Q146: =IF(Parameters!D371=1,"yes","no") -> no
D147: Only for organic soils:
E148: Nutrient level | Q148: =Parameters!D408 -> n.a.
J149: User input | T149: Default value
D150: Actual land use | T150: =Parameters!D320 -> n.a.
E151: Management type | T151: =Parameters!D373 -> n.a.
E152: Input | T152: =Parameters!D375 -> n.a.
E153: Actual land use - more specific | T153: =Parameters!D322 -> n.a.
E154: Domain | T154: =Parameters!D377 -> n.a.
E155: Climate (specific for IPCC carbon calc.) | T155: =Parameters!D326 -> n.a.
E156: Ecological zone | T156: =Parameters!D379 -> n.a.
E157: Continent | T157: =Parameters!D381 -> n.a.
E158: Type | T158: =Parameters!D383 -> n.a.
D159: ! If other than default: all parameters must be filled in.
D161: Previous land use (January 1st, 2008) | T161: =Parameters!D321 -> n.a.
E162: Management type | T162: =Parameters!D374 -> n.a.
E163: Input | T163: =Parameters!D376 -> n.a.
E164: Previous land use - more specific | T164: =Parameters!D323 -> n.a.
E165: Domain | T165: =Parameters!D378 -> n.a.
E166: Climate (specific for IPCC carbon calc.) | T166: =Parameters!D327 -> n.a.
E167: Ecological zone | T167: =Parameters!D380 -> n.a.
E168: Continent | T168: =Parameters!D382 -> n.a.
E169: Type | T169: =Parameters!D384 -> n.a.
D170: ! If other than default: all parameters must be filled in.
K172: User input | Q172: Default value | W172: Unit
D173: Field renewal | Q173: =Parameters!D405 -> 0 | W173: years
D174: Amount of animal manure N applied to soil | Q174: =Parameters!D410 -> 0 | W174: kgN.ha-1.y-1
E175: (other than by grazing animals)
D176: Amount of total sewage N applied to soil | Q176: =Parameters!D411 -> 0 | W176: kgN.ha-1.y-1
D177: Amount of total compost N applied to soil | Q177: =Parameters!D412 -> 0 | W177: kgN.ha-1.y-1
D178: Amount of N of other organic amendments | Q178: =Parameters!D413 -> 0 | W178: kgN.ha-1.y-1
E179: applied to soil (used as fertiliser)
D180: Amount of N-fixing crop residue applied | Q180: =Parameters!D397 -> 0 | W180: kgN.ha-1.y-1
E181: to soil
D182: Fraction of above-ground residues removed | Q182: =Parameters!D425 -> 0 | W182: %
D183: Ratio of above-ground residues to | Q183: =Parameters!D416 -> 0 | W183: kgfm.kgfm-1
E184: harvested yield
D185: Ratio of below-ground residues to | Q185: =Parameters!D421 -> 0 | W185: kgfm.kgfm-1
E186: harvested yield
D187: Only for oil palm:
E188: Amount of residues returned to field | Q188: =Parameters!D406 -> 0 | W188: kgdm.kgfm-1
D189: This section should only be filled in when data are available for ALL PARAMETERS:
D190: Actual land use
E191: Weight of below ground living biomass | W191: t.ha-1.y-1
E192: OR: Ratio of below ground carbon stock | W192: tC.tC-1
F193: to above ground carbon stock
E194: Weight of above ground living biomass | W194: t.ha-1.y-1
E195: Weight of dead wood pool | W195: t.ha-1.y-1
E196: Weight of litter | W196: t.ha-1.y-1
E197: C fraction of dry matter in living biomass | W197: tC.tdm-1
E198: C fraction of dry matter in dead wood | W198: tC.tdm-1
E199: C fraction of dry matter in litter | W199: tC.tdm-1
D200: Previous land use (January 1st, 2008)
E201: Weight of below ground living biomass | W201: t.ha-1.y-1
E202: OR: Ratio of below ground carbon stock | W202: tC.tC-1
F203: to above ground carbon stock
E204: Weight of above ground living biomass | W204: t.ha-1.y-1
E205: Weight of dead wood pool | W205: t.ha-1.y-1
E206: Weight of litter | W206: t.ha-1.y-1
E207: C fraction of dry matter in living biomass | W207: tC.tdm-1
E208: C fraction of dry matter in dead wood | W208: tC.tdm-1
E209: C fraction of dry matter in litter | W209: tC.tdm-1

Sheet Input RU (hidden)
B8: Resource use
B9: Resources are part of the backbone of an economy and unsustainable use of valuable resources can endanger the carrying capacity of the environment and limit access for future generations. The resources that
B10: are considered here are fresh water and land. The use of land is principally related to the cultivation stage of the biomass as the area of land used for storage facilities and infrastructure is very small and thus
B11: negligible. The use of water is related to both the cultivation and the processing of the biomass and is significantly influenced by climatic conditions and agricultural practices.
B12: Whether the use of these resources is sustainable or not also depends on its local availability. Resource use must therefore be checked with local situations.
B14: Project overview
B18: =Parameters!J2 -> Palm oil (stearin) from palm fruits, refinery | F18: =Parameters!F20 -> Fresh palm fruit bunches (FFB) | I18: =Parameters!F2 -> Transport of FFB to the mill | L18: =Parameters!F4 -> Production of Crude Palm Oil (CPO) | O18: =Parameters!F5 -> Transport of CPO to Belgium | R18: =Parameters!F7 -> Refinery of Crude Palm Oil | U18: =Parameters!F8 -> Transport of PS to the final conversion unit
X20: =Parameters!F18 -> No final conversion
B21: =Parameters!J3 -> None | F21: =Parameters!F241 -> No crop | I21: =Parameters!F10 -> n.a. | L21: =Parameters!F12 -> n.a. | O21: =Parameters!F13 -> n.a. | R21: =Parameters!F15 -> n.a. | U21: =Parameters!F16 -> n.a.
B24: Project input data
D26: Feedstock pathway 1
D28: Feedstock production | K28: User input | Q28: Default value | W28: Unit
D29: Country of production | Q29: =Parameters!D21 -> Malaysia | W29: -
D30: Fresh water use for feedstock production | Q30: =Parameters!D165 -> 22067.5 | W30: m³.ha-1
D32: Feedstock treatment and transport 1 | K32: User input | Q32: Default value | W32: Unit
D33: Fresh water use for storage 1 | Q33: =Parameters!D169 -> 0 | W33: m³.kgfm-1
D35: Feedstock conversion 1 | K35: User input | Q35: Default value | W35: Unit
D36: Fresh water use for conversion 1 | Q36: =Parameters!D979 -> 0 | W36: m³.MJoutput-1
D38: Feedstock treatment and transport 2 | K38: User input | Q38: Default value | W38: Unit
D39: Fresh water use for storage 2 | Q39: =Parameters!D981 -> 0 | W39: m³.MJinput-1
D41: Feedstock conversion 2 | K41: User input | Q41: Default value | W41: Unit
D42: Fresh water use for conversion 2 | Q42: =Parameters!D983 -> 0 | W42: m³.MJoutput-1
D44: Feedstock treatment and transport 3 | K44: User input | Q44: Default value | W44: Unit
D45: Fresh water use for storage 3 | Q45: =Parameters!D985 -> 0 | W45: m³.MJinput-1
D47: Feedstock pathway 2
D48: Feedstock production | K48: User input | Q48: Default value | W48: Unit
D49: Country of production | Q49: =Parameters!D242 -> n.a. | W49: -
D50: Fresh water use for feedstock production | Q50: =Parameters!D386 -> 0 | W50: m³.ha-1
D52: Feedstock treatment and transport 1 | K52: User input | Q52: Default value | W52: Unit
D53: Fresh water use for storage 1 | Q53: =Parameters!D390 -> 0 | W53: m³.kgfm-1
D55: Feedstock conversion 1 | K55: User input | Q55: Default value | W55: Unit
D56: Fresh water use for conversion 1 | Q56: =Parameters!D1349 -> 0 | W56: m³.MJoutput-1
D58: Feedstock treatment and transport 2 | K58: User input | Q58: Default value | W58: Unit
D59: Fresh water use for storage 2 | Q59: =Parameters!D1351 -> 0 | W59: m³.MJinput-1
D61: Feedstock conversion 2 | K61: User input | Q61: Default value | W61: Unit
D62: Fresh water use for conversion 2 | Q62: =Parameters!D1353 -> 0 | W62: m³.MJoutput-1
D64: Feedstock treatment and transport 3 | K64: User input | Q64: Default value | W64: Unit
D65: Fresh water use for storage 3 | Q65: =Parameters!D1355 -> 0 | W65: m³.MJinput-1
D67: Final conversion
D68: Conversion into final energy source | K68: User input | Q68: Default value | W68: Unit
D69: Fresh water use for final conversion | Q69: =Parameters!D1555 -> 0 | W69: m³.MJinput-1

Sheet Input EQ (hidden)
B8: Environmental quality
B9: The impact of a system on environmental quality is expressed in terms of acidification and eutrophication potential. Acidifying pollutants have a wide variety of impacts on soil, groundwater, surface waters,
B10: biological organisms and ecosystems and can cause species mortality and ecosystem decline. Eutrophication covers all potential impacts of increased environmental levels of macronutrients which can cause
B11: an undesirable alteration in species composition and excessive biomass growth in both aquatic and terrestrial ecosystems.
B12: The acidification potential (AP) of a bioenergy production system is defined as the sum of the APs of the ammonia (NH3), nitrogen oxide (NOx) and sulphur oxide (SOx) emissions to air throughout the entire
B13: production chain. The AP is expressed in g SO2 equivalents. In the same way as for global warming, the AP of a certain mass of a substance is expressed against the AP of a similar mass of SO2. The eutrophication
B14: potential (EP) is the sum of COD (chemical oxygen demand), nitrogen (N) and phosphorus (P) emissions and flows to water ways and/or ground water. The EP is expressed in g PO43- equivalents.
B16: Project overview
B20: =Parameters!J2 -> Palm oil (stearin) from palm fruits, refinery | F20: =Parameters!F20 -> Fresh palm fruit bunches (FFB) | I20: =Parameters!F2 -> Transport of FFB to the mill | L20: =Parameters!F4 -> Production of Crude Palm Oil (CPO) | O20: =Parameters!F5 -> Transport of CPO to Belgium | R20: =Parameters!F7 -> Refinery of Crude Palm Oil | U20: =Parameters!F8 -> Transport of PS to the final conversion unit
X22: =Parameters!F18 -> No final conversion
B23: =Parameters!J3 -> None | F23: =Parameters!F241 -> No crop | I23: =Parameters!F10 -> n.a. | L23: =Parameters!F12 -> n.a. | O23: =Parameters!F13 -> n.a. | R23: =Parameters!F15 -> n.a. | U23: =Parameters!F16 -> n.a.
B26: Project input data
D27: Feedstock pathway 1
D29: Feedstock conversion 1 | K29: User input | Q29: Default value | W29: Unit
D30: NOx emissions to air | Q30: =Parameters!D773 -> 0 | W30: gNOX . MJoutput-1
D31: SOx emissions to air | Q31: =Parameters!D774 -> 0 | W31: gSOX . MJoutput-1
D32: NH3 emissions to air | Q32: =Parameters!D775 -> 0 | W32: gNH3 . MJoutput-1
D33: NO3- emissions to water | Q33: =Parameters!D776 -> 0 | W33: gNO3- . MJoutput-1
D34: NH4+ emissions to water | Q34: =Parameters!D777 -> 0 | W34: gNH4+ . MJoutput-1
D35: PO43- emissions to water | Q35: =Parameters!D778 -> 0 | W35: gPO43- . MJoutput-1
D36: COD emissions to water | Q36: =Parameters!D779 -> 20 | W36: gCOD . MJoutput-1
D38: Feedstock conversion 2 | K38: User input | Q38: Default value | W38: Unit
D39: NOx emissions to air | Q39: =Parameters!D780 -> 0 | W39: gNOX . MJoutput-1
D40: SOx emissions to air | Q40: =Parameters!D781 -> 0 | W40: gSOX . MJoutput-1
D41: NH3 emissions to air | Q41: =Parameters!D782 -> 0 | W41: gNH3 . MJoutput-1
D42: NO3- emissions to water | Q42: =Parameters!D783 -> 0 | W42: gNO3- . MJoutput-1
D43: NH4+ emissions to water | Q43: =Parameters!D784 -> 0 | W43: gNH4+ . MJoutput-1
D44: PO43- emissions to water | Q44: =Parameters!D785 -> 0 | W44: gPO43- . MJoutput-1
D45: COD emissions to water | Q45: =Parameters!D786 -> 0 | W45: gCOD . MJoutput-1
D47: Feedstock pathway 2
D49: Feedstock conversion 1 | K49: User input | Q49: Default value | W49: Unit
D50: NOx emissions to air | Q50: =Parameters!D1143 -> 0 | W50: gNOX . MJoutput-1
D51: SOx emissions to air | Q51: =Parameters!D1144 -> 0 | W51: gSOX . MJoutput-1
D52: NH3 emissions to air | Q52: =Parameters!D1145 -> 0 | W52: gNH3 . MJoutput-1
D53: NO3- emissions to water | Q53: =Parameters!D1146 -> 0 | W53: gNO3- . MJoutput-1
D54: NH4+ emissions to water | Q54: =Parameters!D1147 -> 0 | W54: gNH4+ . MJoutput-1
D55: PO43- emissions to water | Q55: =Parameters!D1148 -> 0 | W55: gPO43- . MJoutput-1
D56: COD emissions to water | Q56: =Parameters!D1149 -> 0 | W56: gCOD . MJoutput-1
D58: Feedstock conversion 2 | K58: User input | Q58: Default value | W58: Unit
D59: NOx emissions to air | Q59: =Parameters!D1150 -> 0 | W59: gNOX . MJoutput-1
D60: SOx emissions to air | Q60: =Parameters!D1151 -> 0 | W60: gSOX . MJoutput-1
D61: NH3 emissions to air | Q61: =Parameters!D1152 -> 0 | W61: gNH3 . MJoutput-1
D62: NO3- emissions to water | Q62: =Parameters!D1153 -> 0 | W62: gNO3- . MJoutput-1
D63: NH4+ emissions to water | Q63: =Parameters!D1154 -> 0 | W63: gNH4+ . MJoutput-1
D64: PO43- emissions to water | Q64: =Parameters!D1155 -> 0 | W64: gPO43- . MJoutput-1
D65: COD emissions to water | Q65: =Parameters!D1156 -> 0 | W65: gCOD . MJoutput-1
D67: Final conversion
D68: Conversion into final energy source | K68: User input | Q68: Default value | W68: Unit
D69: NOx emissions to air | Q69: =Parameters!D1467 -> 0 | W69: gNOX . MJoutput-1
D70: SOx emissions to air | Q70: =Parameters!D1468 -> 0 | W70: gSOX . MJoutput-1
D71: NH3 emissions to air | Q71: =Parameters!D1469 -> 0 | W71: gNH3 . MJoutput-1
D72: NO3- emissions to water | Q72: =Parameters!D1470 -> 0 | W72: gNO3- . MJoutput-1
D73: NH4+ emissions to water | Q73: =Parameters!D1471 -> 0 | W73: gNH4+ . MJoutput-1
D74: PO43- emissions to water | Q74: =Parameters!D1472 -> 0 | W74: gPO43- . MJoutput-1
D75: COD emissions to water | Q75: =Parameters!D1473 -> 0 | W75: gCOD . MJoutput-1

Sheet Input Bio
B8: Biodiversity and high carbon stocks
B9: The term biodiversity covers every form of life on the planet (plants, animals, fungi and micro-organisms), the diversity of communities that they form and the habitats in which they live (TEEB, 2011). The loss of biodiversity can destabilize ecosystems and ultimately cause changes in the services they provide, involving direct impacts and costs for human society. If land with high carbon stocks in soil or vegetation is converted for the cultivation of biomass for energy, the stored carbon will partially be released into the atmosphere, leading to the formation of CO2. To assess the impact of bio-energy production on biodiversity and high carbon stocks, sustainability requirements of the Renewable Energy Directive (2009/28/EC) are followed. These requirements comprise: • biomass should not be obtained from undisturbed forests, highly biodiverse grassland or nature protection areas (LAND WITH HIGH BIODIVERSITY VALUE) • biomass should not be obtained from the conversion of wetlands, peatland and continuously forested areas beyond 2008 (LAND WITH HIGH CARBON STOCK) The Renewable Energy Directive provides sustainability requirements but does not offer any means to ascertain them. In first instance the user should try to obtain specific data from the biomass supplier. What kind of land is used for biomass production and what was its status on 1 January 2008?
B11: Project overview
B15: =Parameters!J2 -> Palm oil (stearin) from palm fruits, refinery | F15: =Parameters!F20 -> Fresh palm fruit bunches (FFB) | I15: =Parameters!F2 -> Transport of FFB to the mill | L15: =Parameters!F4 -> Production of Crude Palm Oil (CPO) | O15: =Parameters!F5 -> Transport of CPO to Belgium | R15: =Parameters!F7 -> Refinery of Crude Palm Oil | U15: =Parameters!F8 -> Transport of PS to the final conversion unit
X17: =Parameters!F18 -> No final conversion
B18: =Parameters!J3 -> None | F18: =Parameters!F241 -> No crop | I18: =Parameters!F10 -> n.a. | L18: =Parameters!F12 -> n.a. | O18: =Parameters!F13 -> n.a. | R18: =Parameters!F15 -> n.a. | U18: =Parameters!F16 -> n.a.
B21: Project input data
D23: Feedstock pathway 1
D25: Feedstock production | K25: User input | Q25: Default value | W25: Unit
D26: Land with high biodiversity value
D27: Is the biomass obtained from land that had one of the following statusses in or after January 2008, whether or not the land continues to have that status:
D28: Undisturbed forest | Q28: =IF(Parameters!D217=1,"yes","no") -> yes
D29: Nature protection area | Q29: =IF(Parameters!D218=1,"yes","no") -> yes
D30: Highly biodiverse grassland | Q30: =IF(Parameters!D219=1,"yes","no") -> no
D31: Search data:
E32: In case no specific or reliable data can be obtained from the biomass supplier itself, this section offers online or linked databases that can be useful to assess the fulfilment of the particular requirements for land with high biodiversity value.
F34: • search coordinates through location/address:
F39: • or insert coordinates manually:
F40: longitude
F41: latitude
D43: Undisturbed forests
F44: linked GIS database:
F45: response: | J45: FALSE
D47: Nature protection areas
F48: online database EU:
F49: online databases World:
D52: Highly biodiverse grasslands
F53: since there is not yet an official European definition of highly
F54: biodiverse grasslands, no database could be proposed.
F55: GIS data on grassland in general can be found online (click button) but are not (yet) linked to this tool:
D57: Land with high carbon stock
D58: Is the biomass obtained from land that had one of the following statusses in January 2008 and no longer has that status:
D59: Wetlands | Q59: =IF(Parameters!D220=1,"yes","no") -> no
D60: Continuously forested areas | Q60: =IF(Parameters!D221=1,"yes","no") -> yes
D61: Peatland | Q61: =IF(Parameters!D222=1,"yes","no") -> no
D62: Search data:
E63: In case no specific or reliable data can be obtained from the biomass supplier itself, this section offers some online or linked databases that can be useful to assess the fulfilment of the particular requirements for land with high carbon stock.
D65: Wetlands
F66: online databases World:
D69: Continuously forested areas
F70: linked GIS database for land use 2005-06: | Q70: response: | R70: Rainfed croplands
F71: linked GIS database for land use 2009: | Q71: response: | R71: Rainfed croplands
D73: Peatland
F74: search soil type: | Q74: response:
D78: Feedstock pathway 2
D80: Feedstock production | K80: User input | Q80: Default value | W80: Unit
D81: Land with high biodiversity value
D82: Is the biomass obtained from land that had one of the following statusses in or after January 2008, whether or not the land continues to have that status:
D83: Undisturbed forest | Q83: =IF(Parameters!D438=1,"yes","no") -> no
D84: Nature protection area | Q84: =IF(Parameters!D439=1,"yes","no") -> no
D85: Highly biodiverse grassland | Q85: =IF(Parameters!D440=1,"yes","no") -> no
D86: Search data:
E87: In case no specific or reliable data can be obtained from the biomass supplier itself, this section offers online or linked databases that can be useful to assess the fulfilment of the particular requirements for land with high biodiversity value.
F89: • search coordinates through location/address:
F94: • or insert coordinates manually:
F95: longitude
F96: latitude
D98: Undisturbed forests
F99: linked GIS database:
F100: response:
D102: Nature protection areas
F103: online database EU:
F104: online databases World:
D107: Highly biodiverse grasslands
F108: since there is not yet an official European definition of highly
F109: biodiverse grasslands, no database could be proposed.
F110: GIS data on grassland in general can be found online (click button) but are not (yet) linked to this tool:
D112: Land with high carbon stock
D113: Is the biomass obtained from land that had one of the following statusses in January 2008 and no longer has that status:
D114: Wetlands | Q114: =IF(Parameters!D441=1,"yes","no") -> no
D115: Continuously forested areas | Q115: =IF(Parameters!D442=1,"yes","no") -> no
D116: Peatland | Q116: =IF(Parameters!D443=1,"yes","no") -> no
D117: Search data:
E118: In case no specific or reliable data can be obtained from the biomass supplier itself, this section offers some online or linked databases that can be useful to assess the fulfilment of the particular requirements for land with high carbon stock.
D120: Wetlands
F121: online databases World:
D124: Continuously forested areas
F125: linked GIS database for land use 2005-06: | Q125: response:
F126: linked GIS database for land use 2009: | Q126: response:
D128: Peatland
F129: search soil type: | Q129: response:

Sheet Input LW
B8: Local Well-being
B9: Although various attempts have been made to integrate social aspects into sustainability assessments, a generally accepted methodology to assess the impact of a product or a process on local well-being is not
B10: yet existing and therefore often omitted in assessment frameworks or tools. Furthermore, most of the social indicators that are used today are qualitative and therefore difficult to integrate. It was chosen to
B11: create for the purpose of this tool a risk factor based on a set of social requirements with respect to human and property rights, and labour rights and conditions. These social requirements are commonly used
B12: in existing certification schemes such as the Roundtable for Sustainable Palm Oil (RSPO) and the Basel criteria. In case the biomass stream used within the bio-energy system is certified, the requirements can be
B13: considered to be fulfilled. Also for biomass cultivated in Western Europe the requirements can be considered to be fulfilled.
B15: Project overview
B19: =Parameters!J2 -> Palm oil (stearin) from palm fruits, refinery | F19: =Parameters!F20 -> Fresh palm fruit bunches (FFB) | I19: =Parameters!F2 -> Transport of FFB to the mill | L19: =Parameters!F4 -> Production of Crude Palm Oil (CPO) | O19: =Parameters!F5 -> Transport of CPO to Belgium | R19: =Parameters!F7 -> Refinery of Crude Palm Oil | U19: =Parameters!F8 -> Transport of PS to the final conversion unit
X21: =Parameters!F18 -> No final conversion
B22: =Parameters!J3 -> None | F22: =Parameters!F241 -> No crop | I22: =Parameters!F10 -> n.a. | L22: =Parameters!F12 -> n.a. | O22: =Parameters!F13 -> n.a. | R22: =Parameters!F15 -> n.a. | U22: =Parameters!F16 -> n.a.
B25: Project input data
D27: Feedstock pathway 1
D29: Feedstock production | T29: User input | X29: Default value
D30: Are the following conditions fulfilled?
D31: Human and property rights
D32: There is no forced labour at the farm/factory | X32: =Parameters!D224 -> Not fulfilled
D33: There is no child labour at the farm/factory | X33: =Parameters!D225 -> Not fulfilled
D34: A self-declaration on good social practices regarding human rights has been communicated | X34: =Parameters!D226 -> Not fulfilled
D35: There is no discrimination practiced that denies or impairs equality of opportunity, conditions or treatment | X35: =Parameters!D227 -> Not fulfilled
D36: The producer can proof that the land is used legitimately and that traditional land rights have been secured | X36: =Parameters!D228 -> Not fulfilled
D37: There is open and transparent communication with local communities and stakeholders | X37: =Parameters!D229 -> Not fulfilled
D38: The biomass production does not impair food security | X38: =Parameters!D230 -> Not fulfilled
D39: Labour rights and conditions
D40: Employees are provided with fair legal contracts | X40: =Parameters!D231 -> Not fulfilled
D41: Workers are informed about their rights | X41: =Parameters!D232 -> Not fulfilled
D42: Workers have the freedom to join labour organizations or organize themselves | X42: =Parameters!D233 -> Not fulfilled
D43: Payslips document the conformity of payment with at least legal regulations and/or collective agreements | X43: =Parameters!D234 -> Not fulfilled
D44: The farm/factory has a written health, safety and hygiene policy and corresponding procedures | X44: =Parameters!D235 -> Not fulfilled
D45: The farm/factory has a written risk assessment for safe and healthy working conditions | X45: =Parameters!D236 -> Not fulfilled
D46: All workers received adequate health and safety training and are instructed according to the risk assessment | X46: =Parameters!D237 -> Not fulfilled
D48: Feedstock conversion 1 | T48: User input | X48: Default value
D49: Are the following conditions fulfilled?
D50: Human and property rights
D51: There is no forced labour at the farm/factory | X51: =Parameters!D987 -> Not fulfilled
D52: There is no child labour at the farm/factory | X52: =Parameters!D988 -> Not fulfilled
D53: A self-declaration on good social practices regarding human rights has been communicated | X53: =Parameters!D989 -> Not fulfilled
D54: There is no discrimination practiced that denies or impairs equality of opportunity, conditions or treatment | X54: =Parameters!D990 -> Not fulfilled
D55: There is open and transparent communication with local communities and stakeholders | X55: =Parameters!D992 -> Not fulfilled
D56: Labour rights and conditions
D57: Employees are provided with fair legal contracts | X57: =Parameters!D994 -> Not fulfilled
D58: Workers are informed about their rights | X58: =Parameters!D995 -> Not fulfilled
D59: Workers have the freedom to join labour organizations or organize themselves | X59: =Parameters!D996 -> Not fulfilled
D60: Payslips document the conformity of payment with at least legal regulations and/or collective agreements | X60: =Parameters!D997 -> Not fulfilled
D61: The farm/factory has a written health, safety and hygiene policy and corresponding procedures | X61: =Parameters!D998 -> Not fulfilled
D62: The farm/factory has a written risk assessment for safe and healthy working conditions | X62: =Parameters!D999 -> Not fulfilled
D63: All workers received adequate health and safety training and are instructed according to the risk assessment | X63: =Parameters!D1000 -> Not fulfilled
D65: Feedstock conversion 2 | T65: User input | X65: Default value
D66: Are the following conditions fulfilled?
D67: Human and property rights
D68: There is no forced labour at the farm/factory | X68: =Parameters!D1001 -> Not fulfilled
D69: There is no child labour at the farm/factory | X69: =Parameters!D1002 -> Not fulfilled
D70: A self-declaration on good social practices regarding human rights has been communicated | X70: =Parameters!D1003 -> Not fulfilled
D71: There is no discrimination practiced that denies or impairs equality of opportunity, conditions or treatment | X71: =Parameters!D1004 -> Not fulfilled
D72: There is open and transparent communication with local communities and stakeholders | X72: =Parameters!D1006 -> Not fulfilled
D73: Labour rights and conditions
D74: Employees are provided with fair legal contracts | X74: =Parameters!D1008 -> Not fulfilled
D75: Workers are informed about their rights | X75: =Parameters!D1009 -> Not fulfilled
D76: Workers have the freedom to join labour organizations or organize themselves | X76: =Parameters!D1010 -> Not fulfilled
D77: Payslips document the conformity of payment with at least legal regulations and/or collective agreements | X77: =Parameters!D1011 -> Not fulfilled
D78: The farm/factory has a written health, safety and hygiene policy and corresponding procedures | X78: =Parameters!D1012 -> Not fulfilled
D79: The farm/factory has a written risk assessment for safe and healthy working conditions | X79: =Parameters!D1013 -> Not fulfilled
D80: All workers received adequate health and safety training and are instructed according to the risk assessment | X80: =Parameters!D1014 -> Not fulfilled
D82: Feedstock pathway 2
D84: Feedstock production | T84: User input | X84: Default value
D85: Are the following conditions fulfilled?
D86: Human and property rights
D87: There is no forced labour at the farm/factory | X87: =Parameters!D445 -> n.a.
D88: There is no child labour at the farm/factory | X88: =Parameters!D446 -> n.a.
D89: A self-declaration on good social practices regarding human rights has been communicated | X89: =Parameters!D447 -> n.a.
D90: There is no discrimination practiced that denies or impairs equality of opportunity, conditions or treatment | X90: =Parameters!D448 -> n.a.
D91: The producer can proof that the land is used legitimately and that traditional land rights have been secured | X91: =Parameters!D449 -> n.a.
D92: There is open and transparent communication with local communities and stakeholders | X92: =Parameters!D450 -> n.a.
D93: The biomass production does not impair food security | X93: =Parameters!D451 -> n.a.
D94: Labour rights and conditions
D95: Employees are provided with fair legal contracts | X95: =Parameters!D452 -> n.a.
D96: Workers are informed about their rights | X96: =Parameters!D453 -> n.a.
D97: Workers have the freedom to join labour organizations or organize themselves | X97: =Parameters!D454 -> n.a.
D98: Payslips document the conformity of payment with at least legal regulations and/or collective agreements | X98: =Parameters!D455 -> n.a.
D99: The farm/factory has a written health, safety and hygiene policy and corresponding procedures | X99: =Parameters!D456 -> n.a.
D100: The farm/factory has a written risk assessment for safe and healthy working conditions | X100: =Parameters!D457 -> n.a.
D101: All workers received adequate health and safety training and are instructed according to the risk assessment | X101: =Parameters!D458 -> n.a.
D103: Feedstock conversion 1 | T103: User input | X103: Default value
D104: Are the following conditions fulfilled?
D105: Human and property rights
D106: There is no forced labour at the farm/factory | X106: =Parameters!D1357 -> n.a.
D107: There is no child labour at the farm/factory | X107: =Parameters!D1358 -> n.a.
D108: A self-declaration on good social practices regarding human rights has been communicated | X108: =Parameters!D1359 -> n.a.
D109: There is no discrimination practiced that denies or impairs equality of opportunity, conditions or treatment | X109: =Parameters!D1360 -> n.a.
D110: There is open and transparent communication with local communities and stakeholders | X110: =Parameters!D1362 -> n.a.
D111: Labour rights and conditions
D112: Employees are provided with fair legal contracts | X112: =Parameters!D1364 -> n.a.
D113: Workers are informed about their rights | X113: =Parameters!D1365 -> n.a.
D114: Workers have the freedom to join labour organizations or organize themselves | X114: =Parameters!D1366 -> n.a.
D115: Payslips document the conformity of payment with at least legal regulations and/or collective agreements | X115: =Parameters!D1367 -> n.a.
D116: The farm/factory has a written health, safety and hygiene policy and corresponding procedures | X116: =Parameters!D1368 -> n.a.
D117: The farm/factory has a written risk assessment for safe and healthy working conditions | X117: =Parameters!D1369 -> n.a.
D118: All workers received adequate health and safety training and are instructed according to the risk assessment | X118: =Parameters!D1370 -> n.a.
D120: Feedstock conversion 2 | T120: User input | X120: Default value
D121: Are the following conditions fulfilled?
D122: Human and property rights
D123: There is no forced labour at the farm/factory | X123: =Parameters!D1371 -> n.a.
D124: There is no child labour at the farm/factory | X124: =Parameters!D1372 -> n.a.
D125: A self-declaration on good social practices regarding human rights has been communicated | X125: =Parameters!D1373 -> n.a.
D126: There is no discrimination practiced that denies or impairs equality of opportunity, conditions or treatment | X126: =Parameters!D1374 -> n.a.
D127: There is open and transparent communication with local communities and stakeholders | X127: =Parameters!D1376 -> n.a.
D128: Labour rights and conditions
D129: Employees are provided with fair legal contracts | X129: =Parameters!D1378 -> n.a.
D130: Workers are informed about their rights | X130: =Parameters!D1379 -> n.a.
D131: Workers have the freedom to join labour organizations or organize themselves | X131: =Parameters!D1380 -> n.a.
D132: Payslips document the conformity of payment with at least legal regulations and/or collective agreements | X132: =Parameters!D1381 -> n.a.
D133: The farm/factory has a written health, safety and hygiene policy and corresponding procedures | X133: =Parameters!D1382 -> n.a.
D134: The farm/factory has a written risk assessment for safe and healthy working conditions | X134: =Parameters!D1383 -> n.a.
D135: All workers received adequate health and safety training and are instructed according to the risk assessment | X135: =Parameters!D1384 -> n.a.
D137: Final conversion
D138: Conversion into final energy source | T138: User input | X138: Default value
D139: Are the following conditions fulfilled?
D140: Human and property rights
D141: There is no forced labour at the farm/factory | X141: =Parameters!D1556 -> Fulfilled
D142: There is no child labour at the farm/factory | X142: =Parameters!D1557 -> Fulfilled
D143: A self-declaration on good social practices regarding human rights has been communicated | X143: =Parameters!D1558 -> Fulfilled
D144: There is no discrimination practiced that denies or impairs equality of opportunity, conditions or treatment | X144: =Parameters!D1559 -> Fulfilled
D145: There is open and transparent communication with local communities and stakeholders | X145: =Parameters!D1561 -> Fulfilled
D146: Labour rights and conditions
D147: Employees are provided with fair legal contracts | X147: =Parameters!D1563 -> Fulfilled
D148: Workers are informed about their rights | X148: =Parameters!D1564 -> Fulfilled
D149: Workers have the freedom to join labour organizations or organize themselves | X149: =Parameters!D1565 -> Fulfilled
D150: Payslips document the conformity of payment with at least legal regulations and/or collective agreements | X150: =Parameters!D1566 -> Fulfilled
D151: The farm/factory has a written health, safety and hygiene policy and corresponding procedures | X151: =Parameters!D1567 -> Fulfilled
D152: The farm/factory has a written risk assessment for safe and healthy working conditions | X152: =Parameters!D1568 -> Fulfilled
D153: All workers received adequate health and safety training and are instructed according to the risk assessment | X153: =Parameters!D1569 -> Fulfilled

Sheet Output Mass
B8: Mass balance (year)
B9: Feedstock pathway 1: | D9: =Parameters!J2 -> Palm oil (stearin) from palm fruits, refinery
B10: Feedstock pathway 2: | D10: =Parameters!J3 -> None
B11: Final conversion: | D11: =Parameters!J4 -> No final conversion, only biofuel production
E13: FEEDSTOCK 1 | O13: FEEDSTOCK 2
B14: inputs: | H14: by-products: | L14: inputs: | R14: by-products:
B15: seeds | C15: =Parameters!F41 -> 0 | D15: kg/ha | L15: seeds | M15: =Parameters!$F262 -> 0 | N15: kg/ha
B16: N-fertilizer | C16: =Parameters!F42 -> 127.908 | D16: kg/ha | L16: N-fertilizer | M16: =Parameters!$F263 -> 0 | N16: kg/ha
B17: P2O5-fertilizer | C17: =Parameters!F43 -> 143.792 | D17: kg/ha | E17: Biomass production | H17: =Parameters!F29 -> n.a. | I17: =Parameters!F31 -> 0 | J17: kg/ha | L17: P2O5-fertilizer | M17: =Parameters!$F264 -> 0 | N17: kg/ha | O17: Biomass production | R17: =Parameters!F250 -> n.a. | S17: =Parameters!F252 -> 0 | T17: kg/ha
B18: K2O-fertilizer | C18: =Parameters!F44 -> 199.804 | D18: kg/ha | E18: =Parameters!F20 -> Fresh palm fruit bunches (FFB) | H18: =Parameters!F30 -> n.a. | I18: =Parameters!F32 -> 0 | J18: kg/ha | L18: K2O-fertilizer | M18: =Parameters!$F265 -> 0 | N18: kg/ha | O18: =Parameters!F241 -> No crop | R18: =Parameters!F251 -> n.a. | S18: =Parameters!F253 -> 0 | T18: kg/ha
B19: CaO-fertilizer | C19: =Parameters!F45 -> 0 | D19: kg/ha | L19: CaO-fertilizer | M19: =Parameters!$F266 -> 0 | N19: kg/ha
B20: pesticides | C20: =Parameters!F46 -> 8.36 | D20: kg/ha | L20: pesticides | M20: =Parameters!$F267 -> 0 | N20: kg/ha
B21: =Parameters!F54 -> Diesel | C21: =Parameters!F57 -> 47.902 | D21: kg/ha | L21: =Parameters!F275 -> n.a. | M21: =Parameters!$F278 -> 0 | N21: MJ/ha
F22: =Parameters!F20 -> Fresh palm fruit bunches (FFB) | I22: =Parameters!F22 -> 19000 | J22: kg/ha | P22: =Parameters!F241 -> No crop | S22: =Parameters!F243 -> 0 | T22: kg/ha
I23: =Parameters!F27 -> 34 | J23: % moisture | S23: =Parameters!F248 -> 0 | T23: % moisture
B24: electricity | C24: =Parameters!F62 -> 0 | D24: MJ/kgfm | E24: Treatment & transport | I24: =Parameters!G23 -> 12540 | J24: kgdm/ha | L24: electricity | M24: =Parameters!F283 -> 0 | N24: MJ/kgfm | O24: Treatment & transport | S24: =Parameters!G244 -> 0 | T24: kgdm/ha
B25: heat | C25: =Parameters!F59 -> 0 | D25: MJ/kgfm | E25: =Parameters!F2 -> Transport of FFB to the mill | L25: heat | M25: =Parameters!F280 -> 0 | N25: MJ/kgfm | O25: =Parameters!F10 -> n.a.
B26: transport fuel | C26: =Parameters!G471+Parameters!G472+Parameters!G473 -> 950 | D26: ton km/ha | E26: =Parameters!F3 -> No treatment | H26: losses | I26: =Parameters!F78 -> 2 | J26: % | L26: transport fuel | M26: =Parameters!G572+Parameters!G573+Parameters!G574 -> 0 | N26: ton km/ha | O26: =Parameters!F11 -> n.a. | R26: losses | S26: =Parameters!F299 -> 0 | T26: %
I28: =Parameters!G80 -> 12289.2 | J28: kgdm/ha | S28: =Parameters!G301 -> 0 | T28: kgdm/ha
I29: =Parameters!G81 -> 294940.8 | J29: MJ/ha | S29: =Parameters!G302 -> 0 | T29: MJ/ha
B30: electricity | C30: =Parameters!F797 -> 0 | D30: MJ/MJoutput | E30: Conversion - process 1 | L30: electricity | M30: =Parameters!F1167 -> 0 | N30: MJ/MJoutput | O30: Conversion - process 1
B31: fuel/heat | C31: =Parameters!F819+Parameters!F821 -> 0 | D31: MJ/MJoutput | E31: =Parameters!F4 -> Production of Crude Palm Oil (CPO) | H31: =Parameters!F668 -> Palm kernel meal | I31: =Parameters!F692 -> 0.02399961774 | J31: MJ/MJinput | L31: fuel/heat | M31: =Parameters!F1189+Parameters!F1191 -> 0 | N31: MJ/MJoutput | O31: =Parameters!F12 -> n.a. | R31: =Parameters!F1039 -> n.a. | S31: =Parameters!F1062 -> 0 | T31: MJ/MJinput
B32: =Parameters!F720 -> n.a. | C32: =Parameters!F734 -> 0 | D32: kg/MJoutput | H32: =Parameters!F671 -> n.a. | I32: =Parameters!F693 -> 0 | J32: MJ/MJinput | L32: =Parameters!F1090 -> n.a. | M32: =Parameters!F1104 -> 0 | N32: kg/MJoutput | R32: =Parameters!F1042 -> n.a. | S32: =Parameters!F1063 -> 0 | T32: MJ/MJinput
B33: =Parameters!F721 -> n.a. | C33: =Parameters!F738 -> 0 | D33: kg/MJoutput | L33: =Parameters!F1091 -> n.a. | M33: =Parameters!F1108 -> 0 | N33: kg/MJoutput
F34: =Parameters!F666 -> Crude palm oil | I34: =Parameters!G768 -> 4224.779986 | J34: kgdm/ha | P34: =Parameters!F1037 -> n.a. | S34: =Parameters!G1138 -> 0 | T34: kgdm/ha
I35: =Parameters!G769 -> 156316.8595 | J35: MJ/ha | S35: =Parameters!G1139 -> 0 | T35: MJ/ha
B36: electricity | C36: =Parameters!F907 -> 0.00084 | D36: MJ/MJinput | E36: Treatment & transport | L36: electricity | M36: =Parameters!F1277 -> 0 | N36: MJ/MJinput | O36: Treatment & transport
B37: heat | C37: =Parameters!F905 -> 0 | D37: MJ/MJinput | E37: =Parameters!F5 -> Transport of CPO to Belgium | L37: heat | M37: =Parameters!F1275 -> 0 | N37: MJ/MJinput | O37: =Parameters!F13 -> n.a.
B38: transport fuel | C38: =Parameters!G474+Parameters!G475+Parameters!G476 -> 43667.32593 | D38: ton km/ha | E38: =Parameters!F6 -> No treatment | L38: transport fuel | M38: =Parameters!G573+Parameters!G574+Parameters!G575 -> 0 | N38: ton km/ha | O38: =Parameters!F14 -> n.a.
F40: =Parameters!F666 -> Crude palm oil | I40: =Parameters!G768 -> 4224.779986 | J40: kgdm/ha | P40: =Parameters!F1037 -> n.a. | S40: =Parameters!G1138 -> 0 | T40: kgdm/ha
I41: =Parameters!G769 -> 156316.8595 | J41: MJ/ha | S41: =Parameters!G1139 -> 0 | T41: MJ/ha
B42: electricity | C42: =Parameters!F801 -> 0.000599729522 | D42: MJ/MJoutput | E42: Conversion - process 2 | L42: electricity | M42: =Parameters!F1171 -> 0 | N42: MJ/MJoutput | O42: Conversion - process 2
B43: fuel/heat | C43: =Parameters!F823+Parameters!F825 -> 0.007996393626 | D43: MJ/MJoutput | E43: =Parameters!D7 -> Refinery of Crude Palm Oil | H43: =Parameters!F679 -> Palm olein | I43: =Parameters!F697 -> 0 | J43: MJ/MJinput | L43: fuel/heat | M43: =Parameters!F1193+Parameters!F1195 -> 0 | N43: MJ/MJoutput | O43: =Parameters!F15 -> n.a. | R43: =Parameters!F1050 -> n.a. | S43: =Parameters!F1067 -> 0 | T43: MJ/MJinput
B44: =Parameters!F723 -> Fuller's earth | C44: =Parameters!F745 -> 0 | D44: kg/MJoutput | H44: =Parameters!F682 -> n.a. | I44: =Parameters!F698 -> 0 | J44: MJ/MJinput | L44: =Parameters!F1093 -> n.a. | M44: =Parameters!F1115 -> 0 | N44: kg/MJoutput | R44: =Parameters!F1053 -> n.a. | S44: =Parameters!F1068 -> 0 | T44: MJ/MJinput
B45: =Parameters!F724 -> n.a. | C45: =Parameters!F749 -> 0 | D45: kg/MJoutput | L45: =Parameters!F1094 -> n.a. | M45: =Parameters!F1119 -> 0 | N45: kg/MJoutput
F46: =Parameters!F667 -> Palm stearin | I46: =Parameters!G771 -> 1351.419987 | J46: kgdm/ha | P46: =Parameters!F1038 -> n.a. | S46: =Parameters!G1141 -> 0 | T46: kgdm/ha
I47: =Parameters!G772 -> 50002.53952 | J47: MJ/ha | S47: =Parameters!G1142 -> 0 | T47: MJ/ha
B48: electricity | C48: =Parameters!F914 -> 0.00084 | D48: MJ/MJinput | E48: Treatment & transport | L48: electricity | M48: =Parameters!F1284 -> 0 | N48: MJ/MJinput | O48: Treatment & transport
B49: heat | C49: =Parameters!F912 -> 0 | D49: MJ/MJinput | E49: =Parameters!F8 -> Transport of PS to the final conversion unit | L49: heat | M49: =Parameters!F1282 -> 0 | N49: MJ/MJinput | O49: =Parameters!F16 -> n.a.
B50: transport fuel | C50: =Parameters!G477+Parameters!G478+Parameters!G479 -> 135.1419987 | D50: ton km/ha | E50: =Parameters!F9 -> No treatment | L50: transport fuel | M50: =Parameters!G576+Parameters!G577+Parameters!G578 -> 0 | N50: ton km/ha | O50: =Parameters!F17 -> n.a.
F52: =Parameters!F667 -> Palm stearin | I52: =Parameters!G771 -> 1351.419987 | J52: kgdm/ha | P52: =Parameters!F1038 -> n.a. | S52: =Parameters!G1141 -> 0 | T52: kgdm/ha
I53: =Parameters!G772 -> 50002.53952 | J53: MJ/ha | S53: =Parameters!G1142 -> 0 | T53: MJ/ha
C56: =Parameters!F667 -> Palm stearin | D56: =Parameters!F1409 -> 100 | E56: %
D57: =Parameters!G1478 -> 1 | E57: MJ
C58: =Parameters!F1038 -> n.a. | D58: =Parameters!F1410 -> 0 | E58: %
D59: =Parameters!G1479 -> 0 | E59: MJ
B61: inputs: | H61: by-products:
B63: electricity | C63: =Parameters!F1430 -> 0 | D63: MJ/MJFU | E63: Final conversion | H63: =Parameters!F1414 -> n.a. | I63: =Parameters!F1418 -> 0 | J63: MJ/MJinput
B64: fuel/heat | C64: =Parameters!F1428+Parameters!F1429 -> 0 | D64: MJ/MJFU | E64: =Parameters!F18 -> No final conversion | H64: =Parameters!F1415 -> n.a. | I64: =Parameters!F1419 -> 0 | J64: MJ/MJinput
B65: =Parameters!F1422 -> n.a. | C65: =Parameters!F1424 -> 0 | D65: kg/MJFU | E65: ηel (%) | F65: =Parameters!F1411 -> 0
B66: =Parameters!F1423 -> n.a. | C66: =Parameters!F1425 -> 0 | D66: kg/MJFU | E66: ηh (%) | F66: =Parameters!F1412 -> 0
E69: =Parameters!G1476 -> 0 | F69: MJh | H69: FINAL OUTPUT
E70: =Parameters!G1477 -> 0 | F70: MJe

Sheet Uncertainty (hidden)
B8: Uncertainty of data
B10: Project overview
B14: =Parameters!J2 -> Palm oil (stearin) from palm fruits, refinery | F14: =Parameters!F20 -> Fresh palm fruit bunches (FFB) | I14: =Parameters!F2 -> Transport of FFB to the mill | L14: =Parameters!F4 -> Production of Crude Palm Oil (CPO) | O14: =Parameters!F5 -> Transport of CPO to Belgium | R14: =Parameters!F7 -> Refinery of Crude Palm Oil | U14: =Parameters!F8 -> Transport of PS to the final conversion unit
X16: =Parameters!F18 -> No final conversion
B17: =Parameters!J3 -> None | F17: =Parameters!F241 -> No crop | I17: =Parameters!F10 -> n.a. | L17: =Parameters!F12 -> n.a. | O17: =Parameters!F13 -> n.a. | R17: =Parameters!F15 -> n.a. | U17: =Parameters!F16 -> n.a.
B20: Project input data
B21: Only the uncertainty of personal data must be defined by the user (input cells colored in green):
D22: Feedstock pathway 1
D24: Feedstock production | P24: User input | S24: Unit | V24: User defined uncertainty
D25: Crop yield | P25: =Parameters!C22 ->  | S25: kgfm.ha-1.y-1 | V25: Min: | Y25: Max:
D26: Moisture content of crop | P26: =Parameters!C27 ->  | S26: % | V26: Min: | Y26: Max:
D27: Yield of main by-product | P27: =Parameters!C31 ->  | S27: kgfm.ha-1.y-1 | V27: Min: | Y27: Max:
D28: Moisture content of main by-product | P28: =Parameters!C35 ->  | S28: % | V28: Min: | Y28: Max:
D29: Yield of secondary by-product | P29: =Parameters!C32 ->  | S29: kgfm.ha-1.y-1 | V29: Min: | Y29: Max:
D30: Moisture content of secondary by-product | P30: =Parameters!C36 ->  | S30: % | V30: Min: | Y30: Max:
D31: Use of seeds | P31: =Parameters!C41 ->  | S31: kg.ha-1.y-1 | V31: Min: | Y31: Max:
D32: Use of N-fertiliser | P32: =Parameters!C42 ->  | S32: kg.ha-1.y-1 | V32: Min: | Y32: Max:
D33: Use of P2O5-fertiliser | P33: =Parameters!C43 ->  | S33: kg.ha-1.y-1 | V33: Min: | Y33: Max:
D34: Use of K2O-fertiliser | P34: =Parameters!C44 ->  | S34: kg.ha-1.y-1 | V34: Min: | Y34: Max:
D35: Use of CaO-fertiliser | P35: =Parameters!C45 ->  | S35: kg.ha-1.y-1 | V35: Min: | Y35: Max:
D36: Use of pesticides | P36: =Parameters!C46 ->  | S36: kg.ha-1.y-1 | V36: Min: | Y36: Max:
D37: Amount of fuel used in farm machinery | P37: =Parameters!C57 ->  | S37: kg.ha-1.y-1 | V37: Min: | Y37: Max:
D38: Fresh water use for feedstock production | P38: =Parameters!C165 ->  | S38: m³.ha-1 | V38: Min: | Y38: Max:
D39: Amount of animal manure N applied to soil | P39: =Parameters!C189 ->  | S39: kgN.ha-1.y-1 | V39: Min: | Y39: Max:
D40: Amount of total sewage N applied to soil | P40: =Parameters!C190 ->  | S40: kgN.ha-1.y-1 | V40: Min: | Y40: Max:
D41: Amount of total compost N applied to soil | P41: =Parameters!C191 ->  | S41: kgN.ha-1.y-1 | V41: Min: | Y41: Max:
D42: Amount of N of other organic amendments applied to soil (used as fertiliser) | P42: =Parameters!C192 ->  | S42: kgN.ha-1.y-1 | V42: Min: | Y42: Max:
D43: Amount of N-fixing crop residue applied to soil | P43: =Parameters!C176 ->  | S43: kgN.ha-1.y-1 | V43: Min: | Y43: Max:
D44: Fraction of above-ground residues removed | P44: =Parameters!C204 ->  | S44: % | V44: Min: | Y44: Max:
D45: Only for oil palm: Amount of residues returned to field | P45: =Parameters!C185 ->  | S45: kgdm.kgfm-1 | V45: Min: | Y45: Max:
D47: Feedstock treatment and transport 1 | P47: User input | S47: Unit | V47: User defined uncertainty
D48: Drying and storage:
D49: Heat use for drying | P49: =Parameters!C59 ->  | S49: MJ.kgfm-1 | V49: Min: | Y49: Max:
D50: Electricity use for drying | P50: =Parameters!C62 ->  | S50: MJ.kgfm-2 | V50: Min: | Y50: Max:
D51: Fresh water use for storage 1 | P51: =Parameters!C169 ->  | S51: m³.kgfm-1 | V51: Min: | Y51: Max:
D52: Feedstock transport:
D53: Transport distance mode 1 | P53: =Parameters!C480 ->  | S53: km | V53: Min: | Y53: Max:
D54: Transport distance mode 2 | P54: =Parameters!C481 ->  | S54: km | V54: Min: | Y54: Max:
D55: Transport distance mode 3 | P55: =Parameters!C482 ->  | S55: km | V55: Min: | Y55: Max:
D57: Feedstock conversion 1 | P57: User input | S57: Unit | V57: User defined uncertainty
D58: Process 1
D59: Yield (output/input) | P59: =Parameters!C717 -> 0 | S59: MJoutput.MJinput-1 | V59: Min: | Y59: Max:
D60: Yield of main by-product | P60: =Parameters!C692 -> 0 | S60: MJbyproduct.MJinput-1 | V60: Min: | Y60: Max:
D61: Yield of secondary by-product | P61: =Parameters!C693 -> 0 | S61: MJbyproduct.MJinput-1 | V61: Min: | Y61: Max:
D62: Amount of fuel/heat input 1 | P62: =Parameters!C819 -> 0 | S62: MJ.MJoutput-1 | V62: Min: | Y62: Max:
D63: Amount of fuel/heat input 2 | P63: =Parameters!C821 -> 0 | S63: MJ.MJoutput-1 | V63: Min: | Y63: Max:
D64: Net electricity input | P64: =Parameters!C797 -> 0 | S64: MJ.MJoutput-1 | V64: Min: | Y64: Max:
D65: Amount of material input 1 | P65: =Parameters!C734 -> 0 | S65: kg.MJoutput-1 | V65: Min: | Y65: Max:
D66: Amount of material input 2 | P66: =Parameters!C738 -> 0 | S66: kg.MJoutput-1 | V66: Min: | Y66: Max:
D67: NOx emissions to air | P67: =Parameters!C773 ->  | S67: gNOX . MJoutput-1 | V67: Min: | Y67: Max:
D68: SOx emissions to air | P68: =Parameters!C774 ->  | S68: gSOX . MJoutput-1 | V68: Min: | Y68: Max:
D69: NH3 emissions to air | P69: =Parameters!C775 ->  | S69: gNH3 . MJoutput-1 | V69: Min: | Y69: Max:
D70: NO3- emissions to water | P70: =Parameters!C776 ->  | S70: gNO3- . MJoutput-1 | V70: Min: | Y70: Max:
D71: NH4+ emissions to water | P71: =Parameters!C777 ->  | S71: gNH4+ . MJoutput-1 | V71: Min: | Y71: Max:
D72: PO43- emissions to water | P72: =Parameters!C778 ->  | S72: gPO43- . MJoutput-1 | V72: Min: | Y72: Max:
D73: COD emissions to water | P73: =Parameters!C779 ->  | S73: gCOD . MJoutput-1 | V73: Min: | Y73: Max:
D74: Fresh water use for conversion 1 | P74: =Parameters!C979 ->  | S74: m³.MJoutput-1 | V74: Min: | Y74: Max:
D76: Feedstock treatment and transport 2 | P76: User input | S76: Unit | V76: User defined uncertainty
D77: Drying and storage:
D78: Heat use for drying | P78: =Parameters!C905 ->  | S78: MJ.MJinput-1 | V78: Min: | Y78: Max:
D79: Electricity use for drying | P79: =Parameters!C907 ->  | S79: MJ.MJinput-1 | V79: Min: | Y79: Max:
D80: Fresh water use for storage 2 | P80: =Parameters!C981 ->  | S80: m³.MJinput-1 | V80: Min: | Y80: Max:
D81: Feedstock transport:
D82: Transport distance mode 4 | P82: =Parameters!C483 ->  | S82: km | V82: Min: | Y82: Max:
D83: Transport distance mode 5 | P83: =Parameters!C484 ->  | S83: km | V83: Min: | Y83: Max:
D84: Transport distance mode 6 | P84: =Parameters!C485 ->  | S84: km | V84: Min: | Y84: Max:
D86: Feedstock conversion 2 | P86: User input | S86: Unit | V86: User defined uncertainty
D87: Process 2
D88: Yield (output/input) | P88: =Parameters!C718 -> 0 | S88: MJoutput.MJinput-1 | V88: Min: | Y88: Max:
D89: Yield of main by-product | P89: =Parameters!C697 -> 0 | S89: MJbyproduct.MJinput-1 | V89: Min: | Y89: Max:
D90: Yield of secondary by-product | P90: =Parameters!C698 -> 0 | S90: MJbyproduct.MJinput-1 | V90: Min: | Y90: Max:
D91: Amount of fuel/heat input 1 | P91: =Parameters!C823 -> 0 | S91: MJ.MJoutput-1 | V91: Min: | Y91: Max:
D92: Amount of fuel/heat input 2 | P92: =Parameters!C825 -> 0 | S92: MJ.MJoutput-1 | V92: Min: | Y92: Max:
D93: Net electricity input | P93: =Parameters!C801 -> 0 | S93: MJ.MJoutput-1 | V93: Min: | Y93: Max:
D94: Amount of material input 1 | P94: =Parameters!C745 -> 0 | S94: kg.MJoutput-1 | V94: Min: | Y94: Max:
D95: Amount of material input 2 | P95: =Parameters!C749 -> 0 | S95: kg.MJoutput-1 | V95: Min: | Y95: Max:
D96: NOx emissions to air | P96: =Parameters!C780 ->  | S96: gNOX . MJoutput-1 | V96: Min: | Y96: Max:
D97: SOx emissions to air | P97: =Parameters!C781 ->  | S97: gSOX . MJoutput-1 | V97: Min: | Y97: Max:
D98: NH3 emissions to air | P98: =Parameters!C782 ->  | S98: gNH3 . MJoutput-1 | V98: Min: | Y98: Max:
D99: NO3- emissions to water | P99: =Parameters!C783 ->  | S99: gNO3- . MJoutput-1 | V99: Min: | Y99: Max:
D100: NH4+ emissions to water | P100: =Parameters!C784 ->  | S100: gNH4+ . MJoutput-1 | V100: Min: | Y100: Max:
D101: PO43- emissions to water | P101: =Parameters!C785 ->  | S101: gPO43- . MJoutput-1 | V101: Min: | Y101: Max:
D102: COD emissions to water | P102: =Parameters!C786 ->  | S102: gCOD . MJoutput-1 | V102: Min: | Y102: Max:
D103: Fresh water use for conversion 2 | P103: =Parameters!C983 ->  | S103: m³.MJoutput-1 | V103: Min: | Y103: Max:
D105: Feedstock treatment and transport 3 | P105: User input | S105: Unit | V105: User defined uncertainty
D106: Drying and storage:
D107: Heat use for drying | P107: =Parameters!C912 ->  | S107: MJ.MJinput-1 | V107: Min: | Y107: Max:
D108: Electricity use for drying | P108: =Parameters!C914 ->  | S108: MJ.MJinput-1 | V108: Min: | Y108: Max:
D109: Fresh water use for storage 3 | P109: =Parameters!C985 ->  | S109: m³.MJinput-1 | V109: Min: | Y109: Max:
D110: Feedstock transport:
D111: Transport distance mode 7 | P111: =Parameters!C486 ->  | S111: km | V111: Min: | Y111: Max:
D112: Transport distance mode 8 | P112: =Parameters!C487 ->  | S112: km | V112: Min: | Y112: Max:
D113: Transport distance mode 9 | P113: =Parameters!C488 ->  | S113: km | V113: Min: | Y113: Max:
D115: Feedstock pathway 2 (optional)
D117: Feedstock production | P117: User input | S117: Unit | V117: User defined uncertainty
D118: Crop yield | P118: =Parameters!C243 ->  | S118: kgfm.ha-1.y-1 | V118: Min: | Y118: Max:
D119: Moisture content of crop | P119: =Parameters!C248 ->  | S119: % | V119: Min: | Y119: Max:
D120: Yield of main by-product | P120: =Parameters!C252 ->  | S120: kgfm.ha-1.y-1 | V120: Min: | Y120: Max:
D121: Moisture content of main by-product | P121: =Parameters!C256 ->  | S121: % | V121: Min: | Y121: Max:
D122: Yield of secondary by-product | P122: =Parameters!C253 ->  | S122: kgfm.ha-1.y-1 | V122: Min: | Y122: Max:
D123: Moisture content of secondary by-product | P123: =Parameters!C257 ->  | S123: % | V123: Min: | Y123: Max:
D124: Use of seeds | P124: =Parameters!C262 ->  | S124: kg.ha-1.y-1 | V124: Min: | Y124: Max:
D125: Use of N-fertiliser | P125: =Parameters!C263 ->  | S125: kg.ha-1.y-1 | V125: Min: | Y125: Max:
D126: Use of P2O5-fertiliser | P126: =Parameters!C264 ->  | S126: kg.ha-1.y-1 | V126: Min: | Y126: Max:
D127: Use of K2O-fertiliser | P127: =Parameters!C265 ->  | S127: kg.ha-1.y-1 | V127: Min: | Y127: Max:
D128: Use of CaO-fertiliser | P128: =Parameters!C266 ->  | S128: kg.ha-1.y-1 | V128: Min: | Y128: Max:
D129: Use of pesticides | P129: =Parameters!C267 ->  | S129: kg.ha-1.y-1 | V129: Min: | Y129: Max:
D130: Amount of fuel used in farm machinery | P130: =Parameters!C278 ->  | S130: kg.ha-1.y-1 | V130: Min: | Y130: Max:
D131: Fresh water use for feedstock production | P131: =Parameters!C386 ->  | S131: m³.ha-1 | V131: Min: | Y131: Max:
D132: Amount of animal manure N applied to soil | P132: =Parameters!C410 ->  | S132: kgN.ha-1.y-1 | V132: Min: | Y132: Max:
D133: Amount of total sewage N applied to soil | P133: =Parameters!C411 ->  | S133: kgN.ha-1.y-1 | V133: Min: | Y133: Max:
D134: Amount of total compost N applied to soil | P134: =Parameters!C412 ->  | S134: kgN.ha-1.y-1 | V134: Min: | Y134: Max:
D135: Amount of N of other organic amendments applied to soil (used as fertiliser) | P135: =Parameters!C413 ->  | S135: kgN.ha-1.y-1 | V135: Min: | Y135: Max:
D136: Amount of N-fixing crop residue applied to soil | P136: =Parameters!C397 ->  | S136: kgN.ha-1.y-1 | V136: Min: | Y136: Max:
D137: Fraction of above-ground residues removed | P137: =Parameters!C425 ->  | S137: % | V137: Min: | Y137: Max:
D138: Only for oil palm: Amount of residues returned to field | P138: =Parameters!C406 ->  | S138: kgdm.kgfm-1 | V138: Min: | Y138: Max:
D140: Feedstock treatment and transport 1 | P140: User input | S140: Unit | V140: User defined uncertainty
D141: Drying and storage:
D142: Heat use for drying | P142: =Parameters!C280 ->  | S142: MJ.kgfm-1 | V142: Min: | Y142: Max:
D143: Electricity use for drying | P143: =Parameters!C283 ->  | S143: MJ.kgfm-2 | V143: Min: | Y143: Max:
D144: Fresh water use for storage 1 | P144: =Parameters!C390 ->  | S144: m³.kgfm-1 | V144: Min: | Y144: Max:
D145: Feedstock transport:
D146: Transport distance mode 1 | P146: =Parameters!C581 ->  | S146: km | V146: Min: | Y146: Max:
D147: Transport distance mode 2 | P147: =Parameters!C582 ->  | S147: km | V147: Min: | Y147: Max:
D148: Transport distance mode 3 | P148: =Parameters!C583 ->  | S148: km | V148: Min: | Y148: Max:
D150: Feedstock conversion 1 | P150: User input | S150: Unit | V150: User defined uncertainty
D151: Process 1
D152: Yield (output/input) | P152: =Parameters!C1087 -> 0 | S152: MJoutput.MJinput-1 | V152: Min: | Y152: Max:
D153: Yield of main by-product | P153: =Parameters!C1062 -> 0 | S153: MJbyproduct.MJinput-1 | V153: Min: | Y153: Max:
D154: Yield of secondary by-product | P154: =Parameters!C1063 -> 0 | S154: MJbyproduct.MJinput-1 | V154: Min: | Y154: Max:
D155: Amount of fuel/heat input 1 | P155: =Parameters!C1189 -> 0 | S155: MJ.MJoutput-1 | V155: Min: | Y155: Max:
D156: Amount of fuel/heat input 2 | P156: =Parameters!C1191 -> 0 | S156: MJ.MJoutput-1 | V156: Min: | Y156: Max:
D157: Net electricity input | P157: =Parameters!C1167 -> 0 | S157: MJ.MJoutput-1 | V157: Min: | Y157: Max:
D158: Amount of material input 1 | P158: =Parameters!C1104 -> 0 | S158: kg.MJoutput-1 | V158: Min: | Y158: Max:
D159: Amount of material input 2 | P159: =Parameters!C1108 -> 0 | S159: kg.MJoutput-1 | V159: Min: | Y159: Max:
D160: NOx emissions to air | P160: =Parameters!C1143 ->  | S160: gNOX . MJoutput-1 | V160: Min: | Y160: Max:
D161: SOx emissions to air | P161: =Parameters!C1144 ->  | S161: gSOX . MJoutput-1 | V161: Min: | Y161: Max:
D162: NH3 emissions to air | P162: =Parameters!C1145 ->  | S162: gNH3 . MJoutput-1 | V162: Min: | Y162: Max:
D163: NO3- emissions to water | P163: =Parameters!C1146 ->  | S163: gNO3- . MJoutput-1 | V163: Min: | Y163: Max:
D164: NH4+ emissions to water | P164: =Parameters!C1147 ->  | S164: gNH4+ . MJoutput-1 | V164: Min: | Y164: Max:
D165: PO43- emissions to water | P165: =Parameters!C1148 ->  | S165: gPO43- . MJoutput-1 | V165: Min: | Y165: Max:
D166: COD emissions to water | P166: =Parameters!C1149 ->  | S166: gCOD . MJoutput-1 | V166: Min: | Y166: Max:
D167: Fresh water use for conversion 1 | P167: =Parameters!C1349 ->  | S167: m³.MJoutput-1 | V167: Min: | Y167: Max:
D169: Feedstock treatment and transport 2 | P169: User input | S169: Unit | V169: User defined uncertainty
D170: Drying and storage:
D171: Heat use for drying | P171: =Parameters!C1275 ->  | S171: MJ.MJinput-1 | V171: Min: | Y171: Max:
D172: Electricity use for drying | P172: =Parameters!C1277 ->  | S172: MJ.MJinput-1 | V172: Min: | Y172: Max:
D173: Fresh water use for storage 2 | P173: =Parameters!C1351 ->  | S173: m³.MJinput-1 | V173: Min: | Y173: Max:
D174: Feedstock transport:
D175: Transport distance mode 4 | P175: =Parameters!C584 ->  | S175: km | V175: Min: | Y175: Max:
D176: Transport distance mode 5 | P176: =Parameters!C585 ->  | S176: km | V176: Min: | Y176: Max:
D177: Transport distance mode 6 | P177: =Parameters!C586 ->  | S177: km | V177: Min: | Y177: Max:
D179: Feedstock conversion 2 | P179: User input | S179: Unit | V179: User defined uncertainty
D180: Process 2
D181: Yield (output/input) | P181: =Parameters!C1088 -> 0 | S181: MJoutput.MJinput-1 | V181: Min: | Y181: Max:
D182: Yield of main by-product | P182: =Parameters!C1067 -> 0 | S182: MJbyproduct.MJinput-1 | V182: Min: | Y182: Max:
D183: Yield of secondary by-product | P183: =Parameters!C1068 -> 0 | S183: MJbyproduct.MJinput-1 | V183: Min: | Y183: Max:
D184: Amount of fuel/heat input 1 | P184: =Parameters!C1193 -> 0 | S184: MJ.MJoutput-1 | V184: Min: | Y184: Max:
D185: Amount of fuel/heat input 2 | P185: =Parameters!C1195 -> 0 | S185: MJ.MJoutput-1 | V185: Min: | Y185: Max:
D186: Net electricity input | P186: =Parameters!C1171 -> 0 | S186: MJ.MJoutput-1 | V186: Min: | Y186: Max:
D187: Amount of material input 1 | P187: =Parameters!C1115 -> 0 | S187: kg.MJoutput-1 | V187: Min: | Y187: Max:
D188: Amount of material input 2 | P188: =Parameters!C1119 -> 0 | S188: kg.MJoutput-1 | V188: Min: | Y188: Max:
D189: NOx emissions to air | P189: =Parameters!C1150 ->  | S189: gNOX . MJoutput-1 | V189: Min: | Y189: Max:
D190: SOx emissions to air | P190: =Parameters!C1151 ->  | S190: gSOX . MJoutput-1 | V190: Min: | Y190: Max:
D191: NH3 emissions to air | P191: =Parameters!C1152 ->  | S191: gNH3 . MJoutput-1 | V191: Min: | Y191: Max:
D192: NO3- emissions to water | P192: =Parameters!C1153 ->  | S192: gNO3- . MJoutput-1 | V192: Min: | Y192: Max:
D193: NH4+ emissions to water | P193: =Parameters!C1154 ->  | S193: gNH4+ . MJoutput-1 | V193: Min: | Y193: Max:
D194: PO43- emissions to water | P194: =Parameters!C1155 ->  | S194: gPO43- . MJoutput-1 | V194: Min: | Y194: Max:
D195: COD emissions to water | P195: =Parameters!C1156 ->  | S195: gCOD . MJoutput-1 | V195: Min: | Y195: Max:
D196: Fresh water use for conversion 2 | P196: =Parameters!C1353 ->  | S196: m³.MJoutput-1 | V196: Min: | Y196: Max:
D198: Feedstock treatment and transport 3 | P198: User input | S198: Unit | V198: User defined uncertainty
D199: Drying and storage:
D200: Heat use for drying | P200: =Parameters!C1282 ->  | V200: Min: | Y200: Max:
D201: Electricity use for drying | P201: =Parameters!C1284 ->  | V201: Min: | Y201: Max:
D202: Fresh water use for storage 3 | P202: =Parameters!C1355 ->  | V202: Min: | Y202: Max:
D203: Feedstock transport:
D204: Transport distance mode 7 | P204: =Parameters!C587 ->  | S204: km | V204: Min: | Y204: Max:
D205: Transport distance mode 8 | P205: =Parameters!C588 ->  | S205: km | V205: Min: | Y205: Max:
D206: Transport distance mode 9 | P206: =Parameters!C589 ->  | S206: km | V206: Min: | Y206: Max:
D208: Final conversion
D210: Conversion into final energy source | P210: User input | S210: Unit | V210: User defined uncertainty
D211: Final conversion process
D212: Electrical efficiency of final conversion | P212: =Parameters!C1411 ->  | S212: % | V212: Min: | Y212: Max:
D213: Thermal efficiency of final conversion | P213: =Parameters!C1412 ->  | S213: % | V213: Min: | Y213: Max:
D214: Yield of main by-product | P214: =Parameters!C1418 ->  | S214: MJbyproduct.MJinput-1 | V214: Min: | Y214: Max:
D215: Yield of secondary by-product | P215: =Parameters!C1419 ->  | S215: MJbyproduct.MJinput-1 | V215: Min: | Y215: Max:
D216: Amount of fuel/heat input 1 | P216: =Parameters!C1428 ->  | S216: MJ.MJinput-1 | V216: Min: | Y216: Max:
D217: Amount of fuel/heat input 2 | P217: =Parameters!C1429 ->  | S217: MJ.MJinput-1 | V217: Min: | Y217: Max:
D218: Net electricity input | P218: =Parameters!C1430 ->  | S218: MJ.MJinput-1 | V218: Min: | Y218: Max:
D219: Amount of material input 1 | P219: =Parameters!C1424 ->  | S219: kg.MJinput-1 | V219: Min: | Y219: Max:
D220: Amount of material input 2 | P220: =Parameters!C1425 ->  | S220: kg.MJinput-1 | V220: Min: | Y220: Max:
D221: NOx emissions to air | P221: =Parameters!C1467 ->  | S221: gNOX . MJoutput-1 | V221: Min: | Y221: Max:
D222: SOx emissions to air | P222: =Parameters!C1468 ->  | S222: gSOX . MJoutput-1 | V222: Min: | Y222: Max:
D223: NH3 emissions to air | P223: =Parameters!C1469 ->  | S223: gNH3 . MJoutput-1 | V223: Min: | Y223: Max:
D224: NO3- emissions to water | P224: =Parameters!C1470 ->  | S224: gNO3- . MJoutput-1 | V224: Min: | Y224: Max:
D225: NH4+ emissions to water | P225: =Parameters!C1471 ->  | S225: gNH4+ . MJoutput-1 | V225: Min: | Y225: Max:
D226: PO43- emissions to water | P226: =Parameters!C1472 ->  | S226: gPO43- . MJoutput-1 | V226: Min: | Y226: Max:
D227: COD emissions to water | P227: =Parameters!C1473 ->  | S227: gCOD . MJoutput-1 | V227: Min: | Y227: Max:
D228: Fresh water use for final conversion | P228: =Parameters!C1555 ->  | S228: m³.MJinput-1 | V228: Min: | Y228: Max:
R230: The uncertainty calculation will take approximately 50 seconds. A message box will appear when ready.

Sheet Results
B8: Overview of results
B19: Energy balance - fossil energy requirement (FER)
G21: Feedstock pathway 1 | H21: MJ/MJFS1 | I21: MJ/MJFU | K21: Feedstock pathway 2 | L21: MJ/MJFS2 | M21: MJ/MJFU | P21: Final conversion | S21: MJ/MJFU
G22: Cultivation (eec) | H22: =VLOOKUP("FP024a",Parameters!$1:$5663,7,FALSE) -> 0 | I22: =VLOOKUP("FP025a",Parameters!$1:$5663,7,FALSE) -> 0 | K22: Cultivation (eec) | L22: =VLOOKUP("FP524a",Parameters!$1:$5434,7,FALSE) -> 0 | M22: =VLOOKUP("FP525a",Parameters!$1:$5434,7,FALSE) -> 0 | P22: Processing (ep) | S22: =VLOOKUP("FC045a",Parameters!$1:$5663,7,FALSE) -> 0
G23: Processing (ep) | H23: =VLOOKUP("BC094a",Parameters!$1:$5663,7,FALSE) -> 0.001635762271 | I23: =VLOOKUP("BC095a",Parameters!$1:$5663,7,FALSE) -> 0.001635762271 | K23: Processing (ep) | L23: =VLOOKUP("BC594a",Parameters!$1:$5434,7,FALSE) -> 0 | M23: =VLOOKUP("BC595a",Parameters!$1:$5434,7,FALSE) -> 0 | P23: =VLOOKUP("LC010",Parameters!$1:$1958,6,FALSE) -> No final conversion | S23: =VLOOKUP("FC045a",Parameters!$1:$5663,7,FALSE) -> 0
G24: =VLOOKUP("LC003",Parameters!$1:$1958,6,FALSE) -> Production of Crude Palm Oil (CPO) | H24: =VLOOKUP("BC090a",Parameters!$1:$5663,7,FALSE) -> 0 | I24: =VLOOKUP("BC091a",Parameters!$1:$5663,7,FALSE) -> 0 | K24: =VLOOKUP("LC503",Parameters!$1:$1729,6,FALSE) -> n.a. | L24: =VLOOKUP("BC590a",Parameters!$1:$5434,7,FALSE) -> 0 | M24: =VLOOKUP("BC591a",Parameters!$1:$5434,7,FALSE) -> 0
G25: purification | H25: =VLOOKUP("BC092a",Parameters!$1:$5663,7,FALSE) -> 0.001635762271 | I25: =VLOOKUP("BC093a",Parameters!$1:$5663,7,FALSE) -> 0.001635762271 | K25: =VLOOKUP("LC506",Parameters!$1:$1729,6,FALSE) -> n.a. | L25: =VLOOKUP("BC592a",Parameters!$1:$5434,7,FALSE) -> 0 | M25: =VLOOKUP("BC593a",Parameters!$1:$5434,7,FALSE) -> 0 | P25: TOTAL | R25: MJ/MJFU | S25: =VLOOKUP("FC046a",Parameters!$1:$5663,7,FALSE) -> 0.1780016651
G26: Transport (etd) | H26: =VLOOKUP("FT026a",Parameters!$1:$5663,7,FALSE) -> 0.1763659028 | I26: =VLOOKUP("FT027a",Parameters!$1:$5663,7,FALSE) -> 0.1763659028 | K26: Transport (etd) | L26: =VLOOKUP("FT526a",Parameters!$1:$5434,7,FALSE) -> 0 | M26: =VLOOKUP("FT527a",Parameters!$1:$5434,7,FALSE) -> 0
G27: =VLOOKUP("LC001",Parameters!$1:$1958,6,FALSE) -> Transport of FFB to the mill | H27: =VLOOKUP("FT020a",Parameters!$1:$5663,7,FALSE) -> 0.04242729747 | I27: =VLOOKUP("FT021a",Parameters!$1:$5663,7,FALSE) -> 0.04242729747 | K27: =VLOOKUP("LC501",Parameters!$1:$1729,6,FALSE) -> n.a. | L27: =VLOOKUP("FT520a",Parameters!$1:$5434,7,FALSE) -> 0 | M27: =VLOOKUP("FT521a",Parameters!$1:$5434,7,FALSE) -> 0
G28: =VLOOKUP("LC004",Parameters!$1:$1958,6,FALSE) -> Transport of CPO to Belgium | H28: =VLOOKUP("FT022a",Parameters!$1:$5663,7,FALSE) -> 0.1307783891 | I28: =VLOOKUP("FT023a",Parameters!$1:$5663,7,FALSE) -> 0.1307783891 | K28: =VLOOKUP("LC504",Parameters!$1:$1729,6,FALSE) -> n.a. | L28: =VLOOKUP("FT522a",Parameters!$1:$5434,7,FALSE) -> 0 | M28: =VLOOKUP("FT523a",Parameters!$1:$5434,7,FALSE) -> 0 | P28: REDUCTION COMPARED TO REFERENCE | R28: % | S28: =VLOOKUP("FC052a",Parameters!$1:$5663,7,FALSE) -> 84.65502887
G29: =VLOOKUP("LC007",Parameters!$1:$1958,6,FALSE) -> Transport of PS to the final conversion unit | H29: =VLOOKUP("FT024a",Parameters!$1:$5663,7,FALSE) -> 0.003160216216 | I29: =VLOOKUP("FT025a",Parameters!$1:$5663,7,FALSE) -> 0.003160216216 | K29: =VLOOKUP("LC507",Parameters!$1:$1729,6,FALSE) -> n.a. | L29: =VLOOKUP("FT524a",Parameters!$1:$5434,7,FALSE) -> 0 | M29: =VLOOKUP("FT525a",Parameters!$1:$5434,7,FALSE) -> 0
G30: Total feedstock pathway 1 | H30: =VLOOKUP("BC082a",Parameters!$1:$5663,7,FALSE) -> 0.1780016651 | I30: =VLOOKUP("BC083a",Parameters!$1:$5663,7,FALSE) -> 0.1780016651 | K30: Total feedstock pathway 2 | L30: =VLOOKUP("BC582a",Parameters!$1:$5434,7,FALSE) -> 0 | M30: =VLOOKUP("BC583a",Parameters!$1:$5434,7,FALSE) -> 0
G32: Interpretation of results:
G33: The results for the FER indicate how much fossil energy is needed for the production of one MJ functional unit (= electricity and/or heat) and which part(s) of the production chain contribute most. The result for "reduction" implies how much fossil fuel can be saved by the use of the particular bio-energy system. When this is a negative result, more fossil energy is needed to produce 1 MJ bio-energy than 1 MJ of the fossil reference energy.
B38: Energy balance - net energy requirement (NER)
G40: Feedstock pathway 1 | H40: MJ/MJFS1 | I40: MJ/MJFU | K40: Feedstock pathway 2 | L40: MJ/MJFS2 | M40: MJ/MJFU | P40: Final conversion | S40: MJ/MJFU
G41: Cultivation (eec) | H41: =VLOOKUP("FP024b",Parameters!$1:$5663,7,FALSE) -> 0.2875507552 | I41: =VLOOKUP("FP025b",Parameters!$1:$5663,7,FALSE) -> 0.2875507552 | K41: Cultivation (eec) | L41: =VLOOKUP("FP524b",Parameters!$1:$5465,7,FALSE) -> 0 | M41: =VLOOKUP("FP525b",Parameters!$1:$5465,7,FALSE) -> 0 | P41: Processing (ep) | S41: =VLOOKUP("FC045b",Parameters!$1:$5663,7,FALSE) -> 0
G42: Processing (ep) | H42: =VLOOKUP("BC094b",Parameters!$1:$5663,7,FALSE) -> 0.002453643407 | I42: =VLOOKUP("BC095b",Parameters!$1:$5663,7,FALSE) -> 0.002453643407 | K42: Processing (ep) | L42: =VLOOKUP("BC594b",Parameters!$1:$5465,7,FALSE) -> 0 | M42: =VLOOKUP("BC595b",Parameters!$1:$5465,7,FALSE) -> 0 | P42: =VLOOKUP("LC010",Parameters!$1:$1958,6,FALSE) -> No final conversion | S42: =VLOOKUP("FC045b",Parameters!$1:$5663,7,FALSE) -> 0
G43: =VLOOKUP("LC003",Parameters!$1:$1958,6,FALSE) -> Production of Crude Palm Oil (CPO) | H43: =VLOOKUP("BC090b",Parameters!$1:$5663,7,FALSE) -> 0 | I43: =VLOOKUP("BC091b",Parameters!$1:$5663,7,FALSE) -> 0 | K43: =VLOOKUP("LC503",Parameters!$1:$1760,6,FALSE) -> n.a. | L43: =VLOOKUP("BC590b",Parameters!$1:$5465,7,FALSE) -> 0 | M43: =VLOOKUP("BC591b",Parameters!$1:$5465,7,FALSE) -> 0
G44: =VLOOKUP("LC006",Parameters!$1:$1958,6,FALSE) -> Refinery of Crude Palm Oil | H44: =VLOOKUP("BC092b",Parameters!$1:$5663,7,FALSE) -> 0.002453643407 | I44: =VLOOKUP("BC093b",Parameters!$1:$5663,7,FALSE) -> 0.002453643407 | K44: =VLOOKUP("LC506",Parameters!$1:$1760,6,FALSE) -> n.a. | L44: =VLOOKUP("BC592b",Parameters!$1:$5465,7,FALSE) -> 0 | M44: =VLOOKUP("BC593b",Parameters!$1:$5465,7,FALSE) -> 0 | P44: TOTAL | R44: MJ/MJFU | S44: =VLOOKUP("FC046b",Parameters!$1:$5663,7,FALSE) -> 0.5545532528
G45: Transport (etd) | H45: =VLOOKUP("FT026b",Parameters!$1:$5663,7,FALSE) -> 0.2645488542 | I45: =VLOOKUP("FT027b",Parameters!$1:$5663,7,FALSE) -> 0.2645488542 | K45: Transport (etd) | L45: =VLOOKUP("FT526b",Parameters!$1:$5465,7,FALSE) -> 0 | M45: =VLOOKUP("FT527b",Parameters!$1:$5465,7,FALSE) -> 0
G46: =VLOOKUP("LC001",Parameters!$1:$1958,6,FALSE) -> Transport of FFB to the mill | H46: =VLOOKUP("FT020b",Parameters!$1:$5663,7,FALSE) -> 0.0636409462 | I46: =VLOOKUP("FT021b",Parameters!$1:$5663,7,FALSE) -> 0.0636409462 | K46: =VLOOKUP("LC501",Parameters!$1:$1760,6,FALSE) -> n.a. | L46: =VLOOKUP("FT520b",Parameters!$1:$5465,7,FALSE) -> 0 | M46: =VLOOKUP("FT521b",Parameters!$1:$5465,7,FALSE) -> 0
G47: =VLOOKUP("LC004",Parameters!$1:$1958,6,FALSE) -> Transport of CPO to Belgium | H47: =VLOOKUP("FT022b",Parameters!$1:$5663,7,FALSE) -> 0.1961675837 | I47: =VLOOKUP("FT023b",Parameters!$1:$5663,7,FALSE) -> 0.1961675837 | K47: =VLOOKUP("LC504",Parameters!$1:$1760,6,FALSE) -> n.a. | L47: =VLOOKUP("FT522b",Parameters!$1:$5465,7,FALSE) -> 0 | M47: =VLOOKUP("FT523b",Parameters!$1:$5465,7,FALSE) -> 0 | P47: REDUCTION COMPARED TO REFERENCE | R47: % | S47: =VLOOKUP("FC052b",Parameters!$1:$5663,7,FALSE) -> 68.1291234
G48: =VLOOKUP("LC007",Parameters!$1:$1958,6,FALSE) -> Transport of PS to the final conversion unit | H48: =VLOOKUP("FT024b",Parameters!$1:$5663,7,FALSE) -> 0.004740324324 | I48: =VLOOKUP("FT025b",Parameters!$1:$5663,7,FALSE) -> 0.004740324324 | K48: =VLOOKUP("LC507",Parameters!$1:$1760,6,FALSE) -> n.a. | L48: =VLOOKUP("FT524b",Parameters!$1:$5465,7,FALSE) -> 0 | M48: =VLOOKUP("FT525b",Parameters!$1:$5465,7,FALSE) -> 0
G49: Total feedstock pathway 1 | H49: =VLOOKUP("BC082b",Parameters!$1:$5663,7,FALSE) -> 0.5545532528 | I49: =VLOOKUP("BC083b",Parameters!$1:$5663,7,FALSE) -> 0.5545532528 | K49: Total feedstock pathway 2 | L49: =VLOOKUP("BC582b",Parameters!$1:$5465,7,FALSE) -> 0 | M49: =VLOOKUP("BC583b",Parameters!$1:$5465,7,FALSE) -> 0
G51: Interpretation of results:
G52: Similar as explanation of FER.
B57: Global warming - greenhouse gas balance
G59: Feedstock pathway 1 | H59: gCO2_eq/MJFS1 | I59: gCO2_eq/MJFU | K59: Feedstock pathway 2 | L59: gCO2_eq/MJFS1 | M59: gCO2_eq/MJFU | P59: Final conversion | S59: gCO2_eq/MJFU
G60: Cultivation (eec) | H60: =VLOOKUP("FP061a",Parameters!$1:$5663,7,FALSE) -> 44.68576333 | I60: =VLOOKUP("FP061b",Parameters!$1:$5663,7,FALSE) -> 44.68576333 | K60: Cultivation (eec) | L60: =VLOOKUP("FP561a",Parameters!$1:$5434,7,FALSE) -> 0 | M60: =VLOOKUP("FP561b",Parameters!$1:$5434,7,FALSE) -> 0 | P60: Processing (ep) | S60: =VLOOKUP("FC045c",Parameters!$1:$5663,7,FALSE) -> 0
G61: Processing (ep) | H61: =VLOOKUP("BC094c",Parameters!$1:$5663,7,FALSE) -> 0.6530015352 | I61: =VLOOKUP("BC095c",Parameters!$1:$5663,7,FALSE) -> 0.6530015352 | K61: Processing (ep) | L61: =VLOOKUP("BC594c",Parameters!$1:$5434,7,FALSE) -> 0 | M61: =VLOOKUP("BC595c",Parameters!$1:$5434,7,FALSE) -> 0 | P61: =VLOOKUP("LC010",Parameters!$1:$1958,6,FALSE) -> No final conversion | S61: =VLOOKUP("FC045c",Parameters!$1:$5663,7,FALSE) -> 0
G62: =VLOOKUP("LC003",Parameters!$1:$1958,6,FALSE) -> Production of Crude Palm Oil (CPO) | H62: =VLOOKUP("BC090c",Parameters!$1:$5663,7,FALSE) -> 0 | I62: =VLOOKUP("BC091c",Parameters!$1:$5663,7,FALSE) -> 0 | K62: =VLOOKUP("LC503",Parameters!$1:$1729,6,FALSE) -> n.a. | L62: =VLOOKUP("BC590c",Parameters!$1:$5434,7,FALSE) -> 0 | M62: =VLOOKUP("BC591c",Parameters!$1:$5434,7,FALSE) -> 0
G63: =VLOOKUP("LC006",Parameters!$1:$1958,6,FALSE) -> Refinery of Crude Palm Oil | H63: =VLOOKUP("BC092c",Parameters!$1:$5663,7,FALSE) -> 0.6530015352 | I63: =VLOOKUP("BC093c",Parameters!$1:$5663,7,FALSE) -> 0.6530015352 | K63: =VLOOKUP("LC506",Parameters!$1:$1729,6,FALSE) -> n.a. | L63: =VLOOKUP("BC592c",Parameters!$1:$5434,7,FALSE) -> 0 | M63: =VLOOKUP("BC593c",Parameters!$1:$5434,7,FALSE) -> 0 | P63: TOTAL | R63: gCO2_eq/MJFU | S63: =VLOOKUP("FC046c",Parameters!$1:$5663,7,FALSE) -> 59.19632678
G64: Transport (etd) | H64: =VLOOKUP("FT033a",Parameters!$1:$5663,7,FALSE) -> 13.85756192 | I64: =VLOOKUP("FT033b",Parameters!$1:$5663,7,FALSE) -> 13.85756192 | K64: Transport (etd) | L64: =VLOOKUP("FT533a",Parameters!$1:$5434,7,FALSE) -> 0 | M64: =VLOOKUP("FT533b",Parameters!$1:$5434,7,FALSE) -> 0
G65: =VLOOKUP("LC001",Parameters!$1:$1958,6,FALSE) -> Transport of FFB to the mill | H65: =VLOOKUP("FT030a",Parameters!$1:$5663,7,FALSE) -> 3.205414835 | I65: =VLOOKUP("FT030b",Parameters!$1:$5663,7,FALSE) -> 3.205414835 | K65: =VLOOKUP("LC501",Parameters!$1:$1729,6,FALSE) -> n.a. | L65: =VLOOKUP("FT530a",Parameters!$1:$5434,7,FALSE) -> 0 | M65: =VLOOKUP("FT530b",Parameters!$1:$5434,7,FALSE) -> 0
G66: =VLOOKUP("LC004",Parameters!$1:$1958,6,FALSE) -> Transport of CPO to Belgium | H66: =VLOOKUP("FT031a",Parameters!$1:$5663,7,FALSE) -> 10.41339033 | I66: =VLOOKUP("FT031b",Parameters!$1:$5663,7,FALSE) -> 10.41339033 | K66: =VLOOKUP("LC504",Parameters!$1:$1729,6,FALSE) -> n.a. | L66: =VLOOKUP("FT531a",Parameters!$1:$5434,7,FALSE) -> 0 | M66: =VLOOKUP("FT531b",Parameters!$1:$5434,7,FALSE) -> 0 | P66: REDUCTION | R66: % | S66: =VLOOKUP("FC052c",Parameters!$1:$5663,7,FALSE) -> 32.45427055
G67: =VLOOKUP("LC007",Parameters!$1:$1958,6,FALSE) -> Transport of PS to the final conversion unit | H67: =VLOOKUP("FT032a",Parameters!$1:$5663,7,FALSE) -> 0.2387567568 | I67: =VLOOKUP("FT032b",Parameters!$1:$5663,7,FALSE) -> 0.2387567568 | K67: =VLOOKUP("LC507",Parameters!$1:$1729,6,FALSE) -> n.a. | L67: =VLOOKUP("FT532a",Parameters!$1:$5434,7,FALSE) -> 0 | M67: =VLOOKUP("FT532b",Parameters!$1:$5434,7,FALSE) -> 0
G68: Total feedstock pathway 1 | H68: =VLOOKUP("BC082c",Parameters!$1:$5663,7,FALSE) -> 59.19632678 | I68: =VLOOKUP("BC083c",Parameters!$1:$5663,7,FALSE) -> 59.19632678 | K68: Total feedstock pathway 2 | L68: =VLOOKUP("BC582c",Parameters!$1:$5434,7,FALSE) -> 0 | M68: =VLOOKUP("BC583c",Parameters!$1:$5434,7,FALSE) -> 0
P69: COMPLIANCE WITH RED REQUIREMENT | S69: =VLOOKUP("FC029",Parameters!$1:$5663,7,FALSE) -> no
G70: Interpretation of results:
G71: For bio-energy systems based on energy crops, the cultivation step contributes most to the total emissions of greenhouse gases. This is mainly due to the use of fertilizers and pesticides, and soil carbon emissions in case of land use change prior to cultivation. Therefore, the GHG balance can be positively influenced (i.e. less GHG emissions) by the use of biomass sources without cultivation step (e.g. organic residues). Note that impacts of indirect land use change are not included in this tool as there is not yet an agreement on this topic on EU level. It is highly recommended to include these impacts as soon as possible.
B76: Global warming - carbon debt and repayment time
H78: Previous land use | K78: Actual land use | R78: Carbon Debt (tCO2_eq/ha)
G79: Feedstock pathway 1 | H79: =VLOOKUP("FP069b",Parameters!$1:$5663,6,FALSE) -> Perennial cropland | K79: =VLOOKUP("FP069a",Parameters!$1:$5434,6,FALSE) -> Perennial cropland | R79: =VLOOKUP("FP107a",Parameters!$1:$5663,7,FALSE)/1000000 -> 0
G80: Feedstock pathway 2 | H80: =VLOOKUP("FP569b",Parameters!$1:$5663,6,FALSE) -> Annual cropland | K80: =VLOOKUP("FP569a",Parameters!$1:$5434,6,FALSE) -> n.a. | R80: =VLOOKUP("FP607a",Parameters!$1:$5663,7,FALSE)/1000000 -> 0
P82: gCO2_eq/MJFU | R82: =VLOOKUP("FC055",Parameters!$1:$5288,7,FALSE) -> 0
P83: years | R83: =IF(VLOOKUP("FC056",Parameters!$1:$5663,7,FALSE)<0,0,VLOOKUP("FC056",Parameters!$1:$5663,7,FALSE)) -> 0
G85: Interpretation of results:
G86: The carbon debt indicates how much carbon was lost during the (direct) conversion of the land prior to cultivation of the biomass feedstock. This includes the carbon stock changes in the soil as well as in above and below ground vegetation. In case no land use change is carried out prior to cultivation, the carbon debt is zero. The risk of carbon debt can therefore be omitted by the use of biomass resources that require no additional land (e.g. organic residues). As is the case for the greenhouse gas balance, the impacts of indirect land use changes are not considered for the calculation of the carbon debt. The repayment time indicates how many years are needed to repay the initial carbon debt by the reduced GHG emissions of the bio-energy system. "No repayment possible" means repayment time would be endless, or in other words the bio-energy system does not cause any emission reduction compared to the reference system making repayment impossible.
B95: Resource use - water
G97: Feedstock pathway 1 | H97: m³/GJFS1 | I97: m³/GJFU | K97: Feedstock pathway 2 | L97: m³/GJFS2 | M97: m³/GJFU | P97: Final conversion | S97: m³/GJFU
G98: Cultivation (eec) | H98: =VLOOKUP("FP102a",Parameters!$1:$5663,7,FALSE) -> 422.2087851 | I98: =VLOOKUP("FP102b",Parameters!$1:$5663,7,FALSE) -> 422.2087851 | K98: Cultivation (eec) | L98: =VLOOKUP("FP602a",Parameters!$1:$5434,7,FALSE) -> 0 | M98: =VLOOKUP("FP602b",Parameters!$1:$5434,7,FALSE) -> 0 | P98: Processing (ep) | S98: =VLOOKUP("FC045d",Parameters!$1:$5663,7,FALSE) -> 0
G99: Processing (ep) | H99: =VLOOKUP("BC094d",Parameters!$1:$5663,7,FALSE) -> 0 | I99: =VLOOKUP("BC095d",Parameters!$1:$5663,7,FALSE) -> 0 | K99: Processing (ep) | L99: =VLOOKUP("BC594d",Parameters!$1:$5434,7,FALSE) -> 0 | M99: =VLOOKUP("BC595d",Parameters!$1:$5434,7,FALSE) -> 0 | P99: =VLOOKUP("LC010",Parameters!$1:$1958,6,FALSE) -> No final conversion | S99: =VLOOKUP("FC045d",Parameters!$1:$5663,7,FALSE) -> 0
G100: =VLOOKUP("LC003",Parameters!$1:$1958,6,FALSE) -> Production of Crude Palm Oil (CPO) | H100: =VLOOKUP("BC090d",Parameters!$1:$5663,7,FALSE) -> 0 | I100: =VLOOKUP("BC091d",Parameters!$1:$5663,7,FALSE) -> 0 | K100: =VLOOKUP("LC503",Parameters!$1:$1729,6,FALSE) -> n.a. | L100: =VLOOKUP("BC590d",Parameters!$1:$5434,7,FALSE) -> 0 | M100: =VLOOKUP("BC591d",Parameters!$1:$5434,7,FALSE) -> 0 | P100: TOTAL | R100: m³/GJFU | S100: =VLOOKUP("FC046d",Parameters!$1:$5663,7,FALSE) -> 422.2087851
G101: =VLOOKUP("LC006",Parameters!$1:$1958,6,FALSE) -> Refinery of Crude Palm Oil | H101: =VLOOKUP("BC092d",Parameters!$1:$5663,7,FALSE) -> 0 | I101: =VLOOKUP("BC093d",Parameters!$1:$5663,7,FALSE) -> 0 | K101: =VLOOKUP("LC506",Parameters!$1:$1729,6,FALSE) -> n.a. | L101: =VLOOKUP("BC592d",Parameters!$1:$5434,7,FALSE) -> 0 | M101: =VLOOKUP("BC593d",Parameters!$1:$5434,7,FALSE) -> 0 | R101: electricity | S101: =VLOOKUP("FC044d",Parameters!$1:$5663,7,FALSE) -> 0
G102: Transport (etd) | H102: 0 | I102: 0 | K102: Transport (etd) | L102: 0 | M102: 0 | R102: heat | S102: =VLOOKUP("FC042d",Parameters!$1:$5663,7,FALSE) -> 0
G103: =VLOOKUP("LC001",Parameters!$1:$1958,6,FALSE) -> Transport of FFB to the mill | H103: 0 | I103: 0 | K103: =VLOOKUP("LC501",Parameters!$1:$1729,6,FALSE) -> n.a. | L103: 0 | M103: 0 | P103: REDUCTION COMPARED TO REFERENCE | R103: m³/GJFU | S103: =VLOOKUP("FC052d",Parameters!$1:$5663,7,FALSE) -> 0
G104: =VLOOKUP("LC004",Parameters!$1:$1958,6,FALSE) -> Transport of CPO to Belgium | H104: 0 | I104: 0 | K104: =VLOOKUP("LC504",Parameters!$1:$1729,6,FALSE) -> n.a. | L104: 0 | M104: 0 | R104: electricity | S104: =VLOOKUP("FC049d",Parameters!$1:$5663,7,FALSE) -> 0
G105: =VLOOKUP("LC007",Parameters!$1:$1958,6,FALSE) -> Transport of PS to the final conversion unit | H105: 0 | I105: 0 | K105: =VLOOKUP("LC507",Parameters!$1:$1729,6,FALSE) -> n.a. | L105: 0 | M105: 0 | R105: heat | S105: =VLOOKUP("FC050d",Parameters!$1:$5663,7,FALSE) -> 0
G106: Total feedstock pathway 1 | H106: =VLOOKUP("BC082d",Parameters!$1:$5663,7,FALSE) -> 422.2087851 | I106: =VLOOKUP("BC083d",Parameters!$1:$5663,7,FALSE) -> 422.2087851 | K106: Total feedstock pathway 2 | L106: =VLOOKUP("BC582d",Parameters!$1:$5434,7,FALSE) -> 0 | M106: =VLOOKUP("BC583d",Parameters!$1:$5434,7,FALSE) -> 0 | P106: WATER AVAILABILITY | R106: m³/capita.yr | S106: level
P107: Feedstock 1 | Q107: =VLOOKUP("FP002",Parameters!$1:$5663,6,FALSE) -> Malaysia | R107: =VLOOKUP("FP104a",Parameters!$1:$5663,7,FALSE) -> 23320 | S107: =VLOOKUP("FP104b",Parameters!$1:$5663,7,FALSE) -> high
G108: Interpretation of results: | P108: Feedstock 2 | Q108: =VLOOKUP("FP502",Parameters!$1:$5663,6,FALSE) -> n.a. | R108: =VLOOKUP("FP604a",Parameters!$1:$5663,7,FALSE) -> 0 | S108: =VLOOKUP("FP604b",Parameters!$1:$5663,7,FALSE) -> 0
G109: Although fresh water is becoming an increasingly scarce resource worldwide, the impact of the use of water very much depend on local circumstances. The calculation of water use in this tool includes the fresh water used for irrigation and evapotranspiration during the production phase as well as for processing. Some crops have much higher water demands than others. Their cultivation should therefore be avoided in water scarce regions. Although this tool gives an indication of the water condition in the country of cultivation, local circumstances can be very different and should be considered as much as possible.
B114: Resource use - land
G116: Feedstock pathway 1 | H116: ha/GJFS1 | I116: ha/GJFU | K116: Feedstock pathway 2 | L116: ha/GJFS2 | M116: ha/GJFU | P116: Final conversion | S116: ha/GJFU
G117: Cultivation (eec) | H117: =VLOOKUP("FP106a",Parameters!$1:$5663,7,FALSE) -> 0.0191326061 | I117: =VLOOKUP("FP106b",Parameters!$1:$5663,7,FALSE) -> 0.0191326061 | K117: Cultivation (eec) | L117: =VLOOKUP("FP606a",Parameters!$1:$5434,7,FALSE) -> 0 | M117: =VLOOKUP("FP606b",Parameters!$1:$5434,7,FALSE) -> 0 | P117: Processing (ep) | S117: 0
G118: Processing (ep) | H118: 0 | I118: 0 | K118: Processing (ep) | L118: 0 | M118: 0 | P118: =VLOOKUP("LC010",Parameters!$1:$1958,6,FALSE) -> No final conversion | S118: 0
G119: =VLOOKUP("LC003",Parameters!$1:$1958,6,FALSE) -> Production of Crude Palm Oil (CPO) | H119: 0 | I119: 0 | K119: =VLOOKUP("LC503",Parameters!$1:$1729,6,FALSE) -> n.a. | L119: 0 | M119: 0
G120: =VLOOKUP("LC006",Parameters!$1:$1958,6,FALSE) -> Refinery of Crude Palm Oil | H120: 0 | I120: 0 | K120: =VLOOKUP("LC506",Parameters!$1:$1729,6,FALSE) -> n.a. | L120: 0 | M120: 0 | P120: TOTAL | R120: ha/GJFU | S120: =VLOOKUP("FC046e",Parameters!$1:$5663,7,FALSE) -> 0.0191326061
G121: Transport (etd) | H121: 0 | I121: 0 | K121: Transport (etd) | L121: 0 | M121: 0 | R121: electricity | S121: =VLOOKUP("FC044e",Parameters!$1:$5663,7,FALSE) -> 0
G122: =VLOOKUP("LC001",Parameters!$1:$1958,6,FALSE) -> Transport of FFB to the mill | H122: 0 | I122: 0 | K122: =VLOOKUP("LC501",Parameters!$1:$1729,6,FALSE) -> n.a. | L122: 0 | M122: 0 | R122: heat | S122: =VLOOKUP("FC042e",Parameters!$1:$5663,7,FALSE) -> 0
G123: =VLOOKUP("LC004",Parameters!$1:$1958,6,FALSE) -> Transport of CPO to Belgium | H123: 0 | I123: 0 | K123: =VLOOKUP("LC504",Parameters!$1:$1729,6,FALSE) -> n.a. | L123: 0 | M123: 0
G124: =VLOOKUP("LC007",Parameters!$1:$1958,6,FALSE) -> Transport of PS to the final conversion unit | H124: 0 | I124: 0 | K124: =VLOOKUP("LC507",Parameters!$1:$1729,6,FALSE) -> n.a. | L124: 0 | M124: 0
G125: Total feedstock pathway 1 | H125: =VLOOKUP("FP106a",Parameters!$1:$5663,7,FALSE) -> 0.0191326061 | I125: =VLOOKUP("FP106b",Parameters!$1:$5663,7,FALSE) -> 0.0191326061 | K125: Total feedstock pathway 2 | L125: =VLOOKUP("FP606a",Parameters!$1:$5434,7,FALSE) -> 0 | M125: =VLOOKUP("FP606b",Parameters!$1:$5434,7,FALSE) -> 0
G127: Interpretation of results:
G128: Increasing amounts of land are needed to feed the growing world population and it does not seem as this will change soon. Although various reasons lay behind the latest trends of increasing food prices, the impact of bio-energy production on food security due to land use competition cannot be denied. As with water use, the impact of the use of land depends on local circumstances. Yet, it can be generally stated that risks can be minimised by the use of biomass feestocks that require the smallest amount of land for its production.
B133: Environmental quality - acidification potential
G135: Feedstock pathway 1 | H135: gSO2_eq/MJFS1 | I135: gSO2_eq/MJFU | K135: Feedstock pathway 2 | L135: gSO2_eq/MJFS1 | M135: gSO2_eq/MJFU | P135: Final conversion | S135: gSO2_eq/MJFU
G136: Cultivation (eec) | H136: =VLOOKUP("FP115a",Parameters!$1:$5663,7,FALSE) -> 0.7845069549 | I136: =VLOOKUP("FP115b",Parameters!$1:$5663,7,FALSE) -> 0.7845069549 | K136: Cultivation (eec) | L136: =VLOOKUP("FP615a",Parameters!$1:$5434,7,FALSE) -> 0 | M136: =VLOOKUP("FP615b",Parameters!$1:$5434,7,FALSE) -> 0 | P136: Processing (ep) | S136: =VLOOKUP("FC045f",Parameters!$1:$5663,7,FALSE) -> 0
G137: Processing (ep) | H137: =VLOOKUP("BC094f",Parameters!$1:$5663,7,FALSE) -> 0 | I137: =VLOOKUP("BC095f",Parameters!$1:$5663,7,FALSE) -> 0 | K137: Processing (ep) | L137: =VLOOKUP("BC594f",Parameters!$1:$5434,7,FALSE) -> 0 | M137: =VLOOKUP("BC595f",Parameters!$1:$5434,7,FALSE) -> 0 | P137: =VLOOKUP("LC010",Parameters!$1:$1958,6,FALSE) -> No final conversion | S137: =VLOOKUP("FC045f",Parameters!$1:$5663,7,FALSE) -> 0
G138: =VLOOKUP("LC003",Parameters!$1:$1958,6,FALSE) -> Production of Crude Palm Oil (CPO) | H138: =VLOOKUP("BC090f",Parameters!$1:$5663,7,FALSE) -> 0 | I138: =VLOOKUP("BC091f",Parameters!$1:$5663,7,FALSE) -> 0 | K138: =VLOOKUP("LC503",Parameters!$1:$1729,6,FALSE) -> n.a. | L138: =VLOOKUP("BC590f",Parameters!$1:$5434,7,FALSE) -> 0 | M138: =VLOOKUP("BC591f",Parameters!$1:$5434,7,FALSE) -> 0
G139: =VLOOKUP("LC006",Parameters!$1:$1958,6,FALSE) -> Refinery of Crude Palm Oil | H139: =VLOOKUP("BC092f",Parameters!$1:$5663,7,FALSE) -> 0 | I139: =VLOOKUP("BC093f",Parameters!$1:$5663,7,FALSE) -> 0 | K139: =VLOOKUP("LC506",Parameters!$1:$1729,6,FALSE) -> n.a. | L139: =VLOOKUP("BC592f",Parameters!$1:$5434,7,FALSE) -> 0 | M139: =VLOOKUP("BC593f",Parameters!$1:$5434,7,FALSE) -> 0 | P139: TOTAL | R139: gSO2_eq/MJFU | S139: =VLOOKUP("FC046f",Parameters!$1:$5663,7,FALSE) -> 0.9378627774
G140: Transport (etd) | H140: =VLOOKUP("FT043a",Parameters!$1:$5663,7,FALSE) -> 0.1533558224 | I140: =VLOOKUP("FT043b",Parameters!$1:$5663,7,FALSE) -> 0.1533558224 | K140: Transport (etd) | L140: =VLOOKUP("FT543a",Parameters!$1:$5434,7,FALSE) -> 0 | M140: =VLOOKUP("FT543b",Parameters!$1:$5434,7,FALSE) -> 0 | R140: electricity | S140: =VLOOKUP("FC044f",Parameters!$1:$5663,7,FALSE) -> 0
G141: =VLOOKUP("LC001",Parameters!$1:$1958,6,FALSE) -> Transport of FFB to the mill | H141: =VLOOKUP("FT040a",Parameters!$1:$5663,7,FALSE) -> 0.03535364287 | I141: =VLOOKUP("FT040b",Parameters!$1:$5663,7,FALSE) -> 0.03535364287 | K141: =VLOOKUP("LC501",Parameters!$1:$1729,6,FALSE) -> n.a. | L141: =VLOOKUP("FT540a",Parameters!$1:$5434,7,FALSE) -> 0 | M141: =VLOOKUP("FT540b",Parameters!$1:$5434,7,FALSE) -> 0 | R141: heat | S141: =VLOOKUP("FC042f",Parameters!$1:$5663,7,FALSE) -> 0
G142: =VLOOKUP("LC004",Parameters!$1:$1958,6,FALSE) -> Transport of CPO to Belgium | H142: =VLOOKUP("FT041a",Parameters!$1:$5663,7,FALSE) -> 0.1153688477 | I142: =VLOOKUP("FT041b",Parameters!$1:$5663,7,FALSE) -> 0.1153688477 | K142: =VLOOKUP("LC504",Parameters!$1:$1729,6,FALSE) -> n.a. | L142: =VLOOKUP("FT541a",Parameters!$1:$5434,7,FALSE) -> 0 | M142: =VLOOKUP("FT541b",Parameters!$1:$5434,7,FALSE) -> 0 | P142: REDUCTION COMPARED TO REFERENCE | R142: % | S142: =VLOOKUP("FC052f",Parameters!$1:$5663,7,FALSE) -> 0
G143: =VLOOKUP("LC007",Parameters!$1:$1958,6,FALSE) -> Transport of PS to the final conversion unit | H143: =VLOOKUP("FT042a",Parameters!$1:$5663,7,FALSE) -> 0.002633331892 | I143: =VLOOKUP("FT042b",Parameters!$1:$5663,7,FALSE) -> 0.002633331892 | K143: =VLOOKUP("LC507",Parameters!$1:$1729,6,FALSE) -> n.a. | L143: =VLOOKUP("FT542a",Parameters!$1:$5434,7,FALSE) -> 0 | M143: =VLOOKUP("FT542b",Parameters!$1:$5434,7,FALSE) -> 0 | R143: electricity | S143: =VLOOKUP("FC049f",Parameters!$1:$5663,7,FALSE) -> 0
G144: Total feedstock pathway 1 | H144: =VLOOKUP("BC082f",Parameters!$1:$5663,7,FALSE) -> 0.9378627774 | I144: =VLOOKUP("BC083f",Parameters!$1:$5663,7,FALSE) -> 0.9378627774 | K144: Total feedstock pathway 2 | L144: =VLOOKUP("BC582f",Parameters!$1:$5434,7,FALSE) -> 0 | M144: =VLOOKUP("BC583f",Parameters!$1:$5434,7,FALSE) -> 0 | R144: heat | S144: =VLOOKUP("FC050f",Parameters!$1:$5663,7,FALSE) -> 0
G146: Interpretation of results:
G147: The acidification potential as it is calculated in this tool gives an indication of the risk of reduced environmental quality caused by a variety of air polutants. Main causes of acidification within a bio-energy production system are NH3 volatilization due to N fertilizer application during cultivation, and NOX and SOX emissions from fuel use during transport and processing.
B152: Environmental quality - eutrophication potential
G154: Feedstock pathway 1 | H154: gPO4_eq/MJFS1 | I154: gPO4_eq/MJFU | K154: Feedstock pathway 2 | L154: gPO4_eq/MJFS1 | M154: gPO4_eq/MJFU | P154: Final conversion | S154: gPO4_eq/MJFU
G155: Cultivation (eec) | H155: =VLOOKUP("FP125a",Parameters!$1:$5663,7,FALSE) -> 1.991464699 | I155: =VLOOKUP("FP125b",Parameters!$1:$5663,7,FALSE) -> 1.991464699 | K155: Cultivation (eec) | L155: =VLOOKUP("FP625a",Parameters!$1:$5434,7,FALSE) -> 0 | M155: =VLOOKUP("FP625b",Parameters!$1:$5434,7,FALSE) -> 0 | P155: Processing (ep) | S155: =VLOOKUP("FC045g",Parameters!$1:$5663,7,FALSE) -> 0
G156: Processing (ep) | H156: =VLOOKUP("BC094g",Parameters!$1:$5663,7,FALSE) -> 1.315929516 | I156: =VLOOKUP("BC095g",Parameters!$1:$5663,7,FALSE) -> 1.315929516 | K156: Processing (ep) | L156: =VLOOKUP("BC594g",Parameters!$1:$5434,7,FALSE) -> 0 | M156: =VLOOKUP("BC595g",Parameters!$1:$5434,7,FALSE) -> 0 | P156: =VLOOKUP("LC010",Parameters!$1:$1958,6,FALSE) -> No final conversion | S156: =VLOOKUP("FC045g",Parameters!$1:$5663,7,FALSE) -> 0
G157: =VLOOKUP("LC003",Parameters!$1:$1958,6,FALSE) -> Production of Crude Palm Oil (CPO) | H157: =VLOOKUP("BC090g",Parameters!$1:$5663,7,FALSE) -> 1.315929516 | I157: =VLOOKUP("BC091g",Parameters!$1:$5663,7,FALSE) -> 1.315929516 | K157: =VLOOKUP("LC503",Parameters!$1:$1729,6,FALSE) -> n.a. | L157: =VLOOKUP("BC590g",Parameters!$1:$5434,7,FALSE) -> 0 | M157: =VLOOKUP("BC591g",Parameters!$1:$5434,7,FALSE) -> 0
G158: =VLOOKUP("LC006",Parameters!$1:$1958,6,FALSE) -> Refinery of Crude Palm Oil | H158: =VLOOKUP("BC092g",Parameters!$1:$5663,7,FALSE) -> 0 | I158: =VLOOKUP("BC093g",Parameters!$1:$5663,7,FALSE) -> 0 | K158: =VLOOKUP("LC506",Parameters!$1:$1729,6,FALSE) -> n.a. | L158: =VLOOKUP("BC592g",Parameters!$1:$5434,7,FALSE) -> 0 | M158: =VLOOKUP("BC593g",Parameters!$1:$5434,7,FALSE) -> 0 | P158: TOTAL | R158: gPO4_eq/MJFU | S158: =VLOOKUP("FC046g",Parameters!$1:$5663,7,FALSE) -> 3.325709336
G159: Transport (etd) | H159: =VLOOKUP("FT047a",Parameters!$1:$5663,7,FALSE) -> 0.01831512119 | I159: =VLOOKUP("FT047b",Parameters!$1:$5663,7,FALSE) -> 0.01831512119 | K159: Transport (etd) | L159: =VLOOKUP("FT547a",Parameters!$1:$5434,7,FALSE) -> 0 | M159: =VLOOKUP("FT547b",Parameters!$1:$5434,7,FALSE) -> 0 | R159: electricity | S159: =VLOOKUP("FC044g",Parameters!$1:$5663,7,FALSE) -> 0
G160: =VLOOKUP("LC001",Parameters!$1:$1958,6,FALSE) -> Transport of FFB to the mill | H160: =VLOOKUP("FT044a",Parameters!$1:$5663,7,FALSE) -> 0.004222247603 | I160: =VLOOKUP("FT044b",Parameters!$1:$5663,7,FALSE) -> 0.004222247603 | K160: =VLOOKUP("LC501",Parameters!$1:$1729,6,FALSE) -> n.a. | L160: =VLOOKUP("FT544a",Parameters!$1:$5434,7,FALSE) -> 0 | M160: =VLOOKUP("FT544b",Parameters!$1:$5434,7,FALSE) -> 0 | R160: heat | S160: =VLOOKUP("FC042g",Parameters!$1:$5663,7,FALSE) -> 0
G161: =VLOOKUP("LC004",Parameters!$1:$1958,6,FALSE) -> Transport of CPO to Belgium | H161: =VLOOKUP("FT045a",Parameters!$1:$5663,7,FALSE) -> 0.01377837759 | I161: =VLOOKUP("FT045b",Parameters!$1:$5663,7,FALSE) -> 0.01377837759 | K161: =VLOOKUP("LC504",Parameters!$1:$1729,6,FALSE) -> n.a. | L161: =VLOOKUP("FT545a",Parameters!$1:$5434,7,FALSE) -> 0 | M161: =VLOOKUP("FT545b",Parameters!$1:$5434,7,FALSE) -> 0 | P161: REDUCTION COMPARED TO REFERENCE | R161: % | S161: =VLOOKUP("FC052g",Parameters!$1:$5663,7,FALSE) -> 0
G162: =VLOOKUP("LC007",Parameters!$1:$1958,6,FALSE) -> Transport of PS to the final conversion unit | H162: =VLOOKUP("FT046a",Parameters!$1:$5663,7,FALSE) -> 0.000314496 | I162: =VLOOKUP("FT046b",Parameters!$1:$5663,7,FALSE) -> 0.000314496 | K162: =VLOOKUP("LC507",Parameters!$1:$1729,6,FALSE) -> n.a. | L162: =VLOOKUP("FT546a",Parameters!$1:$5434,7,FALSE) -> 0 | M162: =VLOOKUP("FT546b",Parameters!$1:$5434,7,FALSE) -> 0 | R162: electricity | S162: =VLOOKUP("FC049g",Parameters!$1:$5663,7,FALSE) -> 0
G163: Total feedstock pathway 1 | H163: =VLOOKUP("BC082g",Parameters!$1:$5663,7,FALSE) -> 3.325709336 | I163: =VLOOKUP("BC083g",Parameters!$1:$5663,7,FALSE) -> 3.325709336 | K163: Total feedstock pathway 2 | L163: =VLOOKUP("BC582g",Parameters!$1:$5434,7,FALSE) -> 0 | M163: =VLOOKUP("BC583g",Parameters!$1:$5434,7,FALSE) -> 0 | R163: heat | S163: =VLOOKUP("FC050g",Parameters!$1:$5663,7,FALSE) -> 0
G165: Interpretation of results:
G166: The eutrophication potential as it is calculated in this tool gives an indication of the risk of reduced environmental quality caused by a variety of air and water polutants. Main causes of eutrophication within a bio-energy production system are leaching and volatilization of N due to fertilizer application during cultivation, NOX emissions from fuel use during transport and processing, and leaching of untreated wastewater (typically in palm oil production).
B171: Biodiversity - biodiversity & high carbon stocks
L173: Feedstock pathway 1 | R173: Feedstock pathway 2
L174: Cultivation | R174: Cultivation
F175: Land with high biodiversity value
E176: 1 | F176: Undisturbed forest | L176: =IF(VLOOKUP("FP161",Parameters!$1:$5067,6,FALSE)=0,"√","x") -> x | R176: =IF(VLOOKUP("FP661",Parameters!$1:$5296,6,FALSE)=0,"√","x") -> √
E177: 2 | F177: Nature protection area | L177: =IF(VLOOKUP("FP162",Parameters!$1:$5067,6,FALSE)=0,"√","x") -> x | R177: =IF(VLOOKUP("FP662",Parameters!$1:$5296,6,FALSE)=0,"√","x") -> √
E178: 3 | F178: Highly biodiverse grassland | L178: =IF(VLOOKUP("FP163",Parameters!$1:$5067,6,FALSE)=0,"√","x") -> √ | R178: =IF(VLOOKUP("FP663",Parameters!$1:$5296,6,FALSE)=0,"√","x") -> √
F179: Land with high carbon stock
E180: 4 | F180: Wetlands | L180: =IF(VLOOKUP("FP164",Parameters!$1:$5067,6,FALSE)=0,"√","x") -> √ | R180: =IF(VLOOKUP("FP664",Parameters!$1:$5296,6,FALSE)=0,"√","x") -> √
E181: 5 | F181: Continuously forested areas | L181: =IF(VLOOKUP("FP165",Parameters!$1:$5067,6,FALSE)=0,"√","x") -> x | R181: =IF(VLOOKUP("FP665",Parameters!$1:$5296,6,FALSE)=0,"√","x") -> √
E182: 6 | F182: Peatland | L182: =IF(VLOOKUP("FP166",Parameters!$1:$5067,6,FALSE)=0,"√","x") -> √ | R182: =IF(VLOOKUP("FP666",Parameters!$1:$5296,6,FALSE)=0,"√","x") -> √
F183: Compliance with RED requirements | L183: =IF(VLOOKUP("FP167",Parameters!$1:$5067,7,FALSE)=1,"√","x") -> √ | R183: =IF(VLOOKUP("FP667",Parameters!$1:$5296,7,FALSE)=1,"√","x") -> √
F185: Interpretation of results:
F186: As could be noticed in the biodiversity calculation sheet, the impacts of bio-energy production on biodiversity/carbon stocks are not easily measurable. The sustainability requirements in this tool are adopted from and restricted to those laid down in the Renewable Energy Directive. Reliable data on biodiversity are still scarce and possible impacts depend on many different factors. The results must therefore be seen as an indication and a more profound assessment of this topic is highly recommended.
B190: Local Well-being - human and property rights
L192: Feedstock pathway 1 | Q192: Feedstock pathway 2 | S192: Final conv.
L193: Cultivation | N193: Processing | Q193: Cultivation | R193: Processing | S193: Processing
F194: There is no forced labour at the farm/factory | L194: =IF(VLOOKUP("FP170a",Parameters!$1:$5067,7,FALSE)=0,"√","x") -> x | N194: =IF(VLOOKUP("BC154a",Parameters!$1:$5067,7,FALSE)=0,"√","x") -> x | Q194: =IF(VLOOKUP("FP670a",Parameters!$1:$5296,7,FALSE)=0,"√","x") -> √ | R194: =IF(VLOOKUP("BC654a",Parameters!$1:$5296,7,FALSE)=0,"√","x") -> √ | S194: =IF(VLOOKUP("FC080a",Parameters!$1:$5296,6,FALSE)="Fulfilled","√","x") -> √
F195: There is no child labour at the farm/factory | L195: =IF(VLOOKUP("FP170b",Parameters!$1:$5067,7,FALSE)=0,"√","x") -> x | N195: =IF(VLOOKUP("BC154b",Parameters!$1:$5067,7,FALSE)=0,"√","x") -> x | Q195: =IF(VLOOKUP("FP670b",Parameters!$1:$5296,7,FALSE)=0,"√","x") -> √ | R195: =IF(VLOOKUP("BC654b",Parameters!$1:$5296,7,FALSE)=0,"√","x") -> √ | S195: =IF(VLOOKUP("FC080b",Parameters!$1:$5296,6,FALSE)="Fulfilled","√","x") -> √
F196: A self-declaration on good social practices regarding human rights has been communicated | L196: =IF(VLOOKUP("FP170c",Parameters!$1:$5067,7,FALSE)=0,"√","x") -> x | N196: =IF(VLOOKUP("BC154c",Parameters!$1:$5067,7,FALSE)=0,"√","x") -> x | Q196: =IF(VLOOKUP("FP670c",Parameters!$1:$5296,7,FALSE)=0,"√","x") -> √ | R196: =IF(VLOOKUP("BC654c",Parameters!$1:$5296,7,FALSE)=0,"√","x") -> √ | S196: =IF(VLOOKUP("FC080c",Parameters!$1:$5296,6,FALSE)="Fulfilled","√","x") -> √
F197: There is no discrimination practiced that denies or impairs equality of opportunity, conditions or treatment | L197: =IF(VLOOKUP("FP170d",Parameters!$1:$5067,7,FALSE)=0,"√","x") -> x | N197: =IF(VLOOKUP("BC154d",Parameters!$1:$5067,7,FALSE)=0,"√","x") -> x | Q197: =IF(VLOOKUP("FP670d",Parameters!$1:$5296,7,FALSE)=0,"√","x") -> √ | R197: =IF(VLOOKUP("BC654d",Parameters!$1:$5296,7,FALSE)=0,"√","x") -> √ | S197: =IF(VLOOKUP("FC080d",Parameters!$1:$5296,6,FALSE)="Fulfilled","√","x") -> √
F198: The producer can proof that the land is used legitimately and that traditional land rights have been secured | L198: =IF(VLOOKUP("FP170e",Parameters!$1:$5067,7,FALSE)=0,"√","x") -> x | N198: √ | Q198: =IF(VLOOKUP("FP670e",Parameters!$1:$5296,7,FALSE)=0,"√","x") -> √ | R198: √ | S198: √
F199: There is open and transparent communication with local communities and stakeholders | L199: =IF(VLOOKUP("FP170f",Parameters!$1:$5067,7,FALSE)=0,"√","x") -> x | N199: =IF(VLOOKUP("BC154f",Parameters!$1:$5067,7,FALSE)=0,"√","x") -> x | Q199: =IF(VLOOKUP("FP670f",Parameters!$1:$5296,7,FALSE)=0,"√","x") -> √ | R199: =IF(VLOOKUP("BC654f",Parameters!$1:$5296,7,FALSE)=0,"√","x") -> √ | S199: =IF(VLOOKUP("FC080f",Parameters!$1:$5296,6,FALSE)="Fulfilled","√","x") -> √
F200: The biomass production does not impair food security | L200: =IF(VLOOKUP("FP170g",Parameters!$1:$5067,7,FALSE)=0,"√","x") -> x | N200: √ | Q200: =IF(VLOOKUP("FP670g",Parameters!$1:$5296,7,FALSE)=0,"√","x") -> √ | R200: √ | S200: √
F202: Interpretation of results:
F203: In many sustainability assessments, social criteria are omitted due to a lack of qualitative indicators and widespread accessible data. Moreover, socio-economic and cultural differences throughout the world complicate the use of a defined set of indicators and standards. Therefore, the approach adopted in this tool rather aims at giving the user an idea of which issues play an important role in the social dimension of the sustainability of bio-energy systems, than providing a straight forward answer. The reporting requirements on social issues in the RED and the development of certification systems such as RSPO, RSB and FSC among others can bring more clarity on these topics. The criteria in this tool on human and property rights are the same that can be found in these systems.
B209: Local Well-being - working conditions
M211: Feedstock pathway 1 | Q211: Feedstock pathway 2 | S211: Final conv.
M212: Cultivation | O212: Processing | P212: Processing | Q212: Cultivation | R212: Processing | S212: Processing
F213: Employees are provided with fair legal contracts | M213: =IF(VLOOKUP("FP171a",Parameters!$1:$5067,7,FALSE)=0,"√","x") -> x | O213: =IF(VLOOKUP("BC155a",Parameters!$1:$5067,7,FALSE)=0,"√","x") -> x | P213: =IF(VLOOKUP("BC155a",Parameters!$1:$5067,7,FALSE)=0,"√","x") -> x | Q213: =IF(VLOOKUP("FP671a",Parameters!$1:$5296,7,FALSE)=0,"√","x") -> √ | R213: =IF(VLOOKUP("BC655a",Parameters!$1:$5296,7,FALSE)=0,"√","x") -> √ | S213: =IF(VLOOKUP("FC081a",Parameters!$1:$5296,6,FALSE)="Fulfilled","√","x") -> √
F214: Workers are informed about their rights | M214: =IF(VLOOKUP("FP171b",Parameters!$1:$5067,7,FALSE)=0,"√","x") -> x | O214: =IF(VLOOKUP("BC155b",Parameters!$1:$5067,7,FALSE)=0,"√","x") -> x | P214: =IF(VLOOKUP("BC155b",Parameters!$1:$5067,7,FALSE)=0,"√","x") -> x | Q214: =IF(VLOOKUP("FP671b",Parameters!$1:$5296,7,FALSE)=0,"√","x") -> √ | R214: =IF(VLOOKUP("BC655b",Parameters!$1:$5296,7,FALSE)=0,"√","x") -> √ | S214: =IF(VLOOKUP("FC081b",Parameters!$1:$5296,6,FALSE)="Fulfilled","√","x") -> √
F215: Workers have the freedom to join labour organizations or organize themselves | M215: =IF(VLOOKUP("FP171c",Parameters!$1:$5067,7,FALSE)=0,"√","x") -> x | O215: =IF(VLOOKUP("BC155c",Parameters!$1:$5067,7,FALSE)=0,"√","x") -> x | P215: =IF(VLOOKUP("BC155c",Parameters!$1:$5067,7,FALSE)=0,"√","x") -> x | Q215: =IF(VLOOKUP("FP671c",Parameters!$1:$5296,7,FALSE)=0,"√","x") -> √ | R215: =IF(VLOOKUP("BC655c",Parameters!$1:$5296,7,FALSE)=0,"√","x") -> √ | S215: =IF(VLOOKUP("FC081c",Parameters!$1:$5296,6,FALSE)="Fulfilled","√","x") -> √
F216: Payslips document the conformity of payment with at least legal regulations and/or collective agreements | M216: =IF(VLOOKUP("FP171d",Parameters!$1:$5067,7,FALSE)=0,"√","x") -> x | O216: =IF(VLOOKUP("BC155d",Parameters!$1:$5067,7,FALSE)=0,"√","x") -> x | P216: =IF(VLOOKUP("BC155d",Parameters!$1:$5067,7,FALSE)=0,"√","x") -> x | Q216: =IF(VLOOKUP("FP671d",Parameters!$1:$5296,7,FALSE)=0,"√","x") -> √ | R216: =IF(VLOOKUP("BC655d",Parameters!$1:$5296,7,FALSE)=0,"√","x") -> √ | S216: =IF(VLOOKUP("FC081d",Parameters!$1:$5296,6,FALSE)="Fulfilled","√","x") -> √
F217: The farm/factory has a written health, safety and hygiene policy and corresponding procedures | M217: =IF(VLOOKUP("FP171e",Parameters!$1:$5067,7,FALSE)=0,"√","x") -> x | O217: √ | P217: √ | Q217: =IF(VLOOKUP("FP671e",Parameters!$1:$5296,7,FALSE)=0,"√","x") -> √ | R217: √ | S217: √
F218: The farm/factory has a written risk assessment for safe and healthy working conditions | M218: =IF(VLOOKUP("FP171f",Parameters!$1:$5067,7,FALSE)=0,"√","x") -> x | O218: =IF(VLOOKUP("BC155f",Parameters!$1:$5067,7,FALSE)=0,"√","x") -> x | P218: =IF(VLOOKUP("BC155f",Parameters!$1:$5067,7,FALSE)=0,"√","x") -> x | Q218: =IF(VLOOKUP("FP670f",Parameters!$1:$5296,7,FALSE)=0,"√","x") -> √ | R218: =IF(VLOOKUP("BC655f",Parameters!$1:$5296,7,FALSE)=0,"√","x") -> √ | S218: =IF(VLOOKUP("FC081f",Parameters!$1:$5296,6,FALSE)="Fulfilled","√","x") -> √
F219: All workers received adequate health and safety training and are instructed according to the risk assessment | M219: =IF(VLOOKUP("FP171g",Parameters!$1:$5067,7,FALSE)=0,"√","x") -> x | O219: √ | P219: √ | Q219: =IF(VLOOKUP("FP671g",Parameters!$1:$5296,7,FALSE)=0,"√","x") -> √ | R219: √ | S219: √
F221: Interpretation of results:
F222: Same as explanation of human and property rights.
B228: Global warming - carbon debt and repayment time
H230: Previous land use | L230: Actual land use | Q230: Carbon Debt (tCO2_eq/ha)
G231: Feedstock pathway 1 | H231: =VLOOKUP("FP069b",Parameters!$1:$5434,6,FALSE) -> Perennial cropland | L231: =VLOOKUP("FP069a",Parameters!$1:$5434,6,FALSE) -> Perennial cropland | Q231: =VLOOKUP("FP107a",Parameters!$1:$5434,7,FALSE)/1000000 -> 0
G232: Feedstock pathway 2 | H232: =VLOOKUP("FP569b",Parameters!$1:$5434,6,FALSE) -> Annual cropland | L232: =VLOOKUP("FP569a",Parameters!$1:$5434,6,FALSE) -> n.a. | Q232: =VLOOKUP("FP607a",Parameters!$1:$5434,7,FALSE)/1000000 -> 0
K234: TOTAL CARBON DEBT DUE TO LAND USE CHANGE | O234: gCO2_eq/MJFU | Q234: =VLOOKUP("FC055",Parameters!$1:$5059,7,FALSE) -> 0
K235: REPAYMENT TIME | O235: years | Q235: =IF(VLOOKUP("FC056",Parameters!$1:$5434,7,FALSE)<0,0,VLOOKUP("FC056",Parameters!$1:$5434,7,FALSE)) -> 0
G237: Interpretation of results:
G238: The carbon debt indicates how much carbon was lost during the (direct) conversion of the land prior to cultivation of the biomass feedstock. This includes the carbon stock changes in the soil as well as in above and below ground vegetation. In case no land use change is carried out prior to cultivation, the carbon debt is zero. The risk of carbon debt can therefore be omitted by the use of biomass resources that require no additional land (e.g. organic residues). As is the case for the greenhouse gas balance, the impacts of indirect land use changes are not considered for the calculation of the carbon debt. The repayment time indicates how many years are needed to repay the initial carbon debt by the reduced GHG emissions of the bio-energy system. "No repayment possible" means repayment time would be endless, or in other words the bio-energy system does not cause any emission reduction compared to the reference system making repayment impossible.
B247: Biodiversity - biodiversity & high carbon stocks
M249: Feedstock pathway 1 | Q249: Feedstock pathway 2
M250: Cultivation | Q250: Cultivation
F251: Land with high biodiversity value
E252: 1 | F252: Undisturbed forest | M252: =IF(VLOOKUP("FP161",Parameters!$1:$5067,6,FALSE)=0,"√","x") -> x | Q252: =IF(VLOOKUP("FP661",Parameters!$1:$5067,6,FALSE)=0,"√","x") -> √
E253: 2 | F253: Nature protection area | M253: =IF(VLOOKUP("FP162",Parameters!$1:$5067,6,FALSE)=0,"√","x") -> x | Q253: =IF(VLOOKUP("FP662",Parameters!$1:$5067,6,FALSE)=0,"√","x") -> √
E254: 3 | F254: Highly biodiverse grassland | M254: =IF(VLOOKUP("FP163",Parameters!$1:$5067,6,FALSE)=0,"√","x") -> √ | Q254: =IF(VLOOKUP("FP663",Parameters!$1:$5067,6,FALSE)=0,"√","x") -> √
F255: Land with high carbon stock
E256: 4 | F256: Wetlands | M256: =IF(VLOOKUP("FP164",Parameters!$1:$5067,6,FALSE)=0,"√","x") -> √ | Q256: =IF(VLOOKUP("FP664",Parameters!$1:$5067,6,FALSE)=0,"√","x") -> √
E257: 5 | F257: Continuously forested areas | M257: =IF(VLOOKUP("FP165",Parameters!$1:$5067,6,FALSE)=0,"√","x") -> x | Q257: =IF(VLOOKUP("FP665",Parameters!$1:$5067,6,FALSE)=0,"√","x") -> √
E258: 6 | F258: Peatland | M258: =IF(VLOOKUP("FP166",Parameters!$1:$5067,6,FALSE)=0,"√","x") -> √ | Q258: =IF(VLOOKUP("FP666",Parameters!$1:$5067,6,FALSE)=0,"√","x") -> √
F259: Compliance with RED requirements | M259: =IF(VLOOKUP("FP167",Parameters!$1:$5067,7,FALSE)=1,"√","x") -> √ | Q259: =IF(VLOOKUP("FP667",Parameters!$1:$5067,7,FALSE)=1,"√","x") -> √
F261: Interpretation of results:
F262: As could be noticed in the biodiversity calculation sheet, the impacts of bio-energy production on biodiversity/carbon stocks are not easily measurable. The sustainability requirements in this tool are adopted from and restricted to those laid down in the Renewable Energy Directive. Reliable data on biodiversity are still scarce and possible impacts depend on many different factors. The results must therefore be seen as an indication and a more profound assessment of this topic is highly recommended.
B266: Local Well-being - human and property rights
M268: Feedstock pathway 1 | P268: Feedstock pathway 2 | R268: Final conv.
M269: Cultivation | O269: Processing | P269: Cultivation | Q269: Processing | R269: Processing
F270: There is no forced labour at the farm/factory | M270: =IF(VLOOKUP("FP170a",Parameters!$1:$5067,7,FALSE)=0,"√","x") -> x | O270: =IF(VLOOKUP("BC154a",Parameters!$1:$5067,7,FALSE)=0,"√","x") -> x | P270: =IF(VLOOKUP("FP670a",Parameters!$1:$5067,7,FALSE)=0,"√","x") -> √ | Q270: =IF(VLOOKUP("BC654a",Parameters!$1:$5067,7,FALSE)=0,"√","x") -> √ | R270: =IF(VLOOKUP("FC080a",Parameters!$1:$5067,6,FALSE)="Fulfilled","√","x") -> √
F271: There is no child labour at the farm/factory | M271: =IF(VLOOKUP("FP170b",Parameters!$1:$5067,7,FALSE)=0,"√","x") -> x | O271: =IF(VLOOKUP("BC154b",Parameters!$1:$5067,7,FALSE)=0,"√","x") -> x | P271: =IF(VLOOKUP("FP670b",Parameters!$1:$5067,7,FALSE)=0,"√","x") -> √ | Q271: =IF(VLOOKUP("BC654b",Parameters!$1:$5067,7,FALSE)=0,"√","x") -> √ | R271: =IF(VLOOKUP("FC080b",Parameters!$1:$5067,6,FALSE)="Fulfilled","√","x") -> √
F272: A self-declaration on good social practices regarding human rights has been communicated | M272: =IF(VLOOKUP("FP170c",Parameters!$1:$5067,7,FALSE)=0,"√","x") -> x | O272: =IF(VLOOKUP("BC154c",Parameters!$1:$5067,7,FALSE)=0,"√","x") -> x | P272: =IF(VLOOKUP("FP670c",Parameters!$1:$5067,7,FALSE)=0,"√","x") -> √ | Q272: =IF(VLOOKUP("BC654c",Parameters!$1:$5067,7,FALSE)=0,"√","x") -> √ | R272: =IF(VLOOKUP("FC080c",Parameters!$1:$5067,6,FALSE)="Fulfilled","√","x") -> √
F273: There is no discrimination practiced that denies or impairs equality of opportunity, conditions or treatment | M273: =IF(VLOOKUP("FP170d",Parameters!$1:$5067,7,FALSE)=0,"√","x") -> x | O273: =IF(VLOOKUP("BC154d",Parameters!$1:$5067,7,FALSE)=0,"√","x") -> x | P273: =IF(VLOOKUP("FP670d",Parameters!$1:$5067,7,FALSE)=0,"√","x") -> √ | Q273: =IF(VLOOKUP("BC654d",Parameters!$1:$5067,7,FALSE)=0,"√","x") -> √ | R273: =IF(VLOOKUP("FC080d",Parameters!$1:$5067,6,FALSE)="Fulfilled","√","x") -> √
F274: The producer can proof that the land is used legitimately and that traditional land rights have been secured | M274: =IF(VLOOKUP("FP170e",Parameters!$1:$5067,7,FALSE)=0,"√","x") -> x | O274: √ | P274: =IF(VLOOKUP("FP670e",Parameters!$1:$5067,7,FALSE)=0,"√","x") -> √ | Q274: √ | R274: √
F275: There is open and transparent communication with local communities and stakeholders | M275: =IF(VLOOKUP("FP170f",Parameters!$1:$5067,7,FALSE)=0,"√","x") -> x | O275: =IF(VLOOKUP("BC154f",Parameters!$1:$5067,7,FALSE)=0,"√","x") -> x | P275: =IF(VLOOKUP("FP670f",Parameters!$1:$5067,7,FALSE)=0,"√","x") -> √ | Q275: =IF(VLOOKUP("BC654f",Parameters!$1:$5067,7,FALSE)=0,"√","x") -> √ | R275: =IF(VLOOKUP("FC080f",Parameters!$1:$5067,6,FALSE)="Fulfilled","√","x") -> √
F276: The biomass production does not impair food security | M276: =IF(VLOOKUP("FP170g",Parameters!$1:$5067,7,FALSE)=0,"√","x") -> x | O276: √ | P276: =IF(VLOOKUP("FP670g",Parameters!$1:$5067,7,FALSE)=0,"√","x") -> √ | Q276: √ | R276: √
F278: Interpretation of results:
F279: In many sustainability assessments, social criteria are omitted due to a lack of qualitative indicators and widespread accessible data. Moreover, socio-economic and cultural differences throughout the world complicate the use of a defined set of indicators and standards. Therefore, the approach adopted in this tool rather aims at giving the user an idea of which issues play an important role in the social dimension of the sustainability of bio-energy systems, than providing a straight forward answer. The reporting requirements on social issues in the RED and the development of certification systems such as RSPO, RSB and FSC among others can bring more clarity on these topics. The criteria in this tool on human and property rights are the same that can be found in these systems.
B285: Local Well-being - working conditions
M287: Feedstock pathway 1 | P287: Feedstock pathway 2 | R287: Final conv.
M288: Cultivation | O288: Processing | P288: Cultivation | Q288: Processing | R288: Processing
F289: Employees are provided with fair legal contracts | M289: =IF(VLOOKUP("FP171a",Parameters!$1:$5067,7,FALSE)=0,"√","x") -> x | O289: =IF(VLOOKUP("BC155a",Parameters!$1:$5067,7,FALSE)=0,"√","x") -> x | P289: =IF(VLOOKUP("FP671a",Parameters!$1:$5067,7,FALSE)=0,"√","x") -> √ | Q289: =IF(VLOOKUP("BC655a",Parameters!$1:$5067,7,FALSE)=0,"√","x") -> √ | R289: =IF(VLOOKUP("FC081a",Parameters!$1:$5067,6,FALSE)="Fulfilled","√","x") -> √
F290: Workers are informed about their rights | M290: =IF(VLOOKUP("FP171b",Parameters!$1:$5067,7,FALSE)=0,"√","x") -> x | O290: =IF(VLOOKUP("BC155b",Parameters!$1:$5067,7,FALSE)=0,"√","x") -> x | P290: =IF(VLOOKUP("FP671b",Parameters!$1:$5067,7,FALSE)=0,"√","x") -> √ | Q290: =IF(VLOOKUP("BC655b",Parameters!$1:$5067,7,FALSE)=0,"√","x") -> √ | R290: =IF(VLOOKUP("FC081b",Parameters!$1:$5067,6,FALSE)="Fulfilled","√","x") -> √
F291: Workers have the freedom to join labour organizations or organize themselves | M291: =IF(VLOOKUP("FP171c",Parameters!$1:$5067,7,FALSE)=0,"√","x") -> x | O291: =IF(VLOOKUP("BC155c",Parameters!$1:$5067,7,FALSE)=0,"√","x") -> x | P291: =IF(VLOOKUP("FP671c",Parameters!$1:$5067,7,FALSE)=0,"√","x") -> √ | Q291: =IF(VLOOKUP("BC655c",Parameters!$1:$5067,7,FALSE)=0,"√","x") -> √ | R291: =IF(VLOOKUP("FC081c",Parameters!$1:$5067,6,FALSE)="Fulfilled","√","x") -> √
F292: Payslips document the conformity of payment with at least legal regulations and/or collective agreements | M292: =IF(VLOOKUP("FP171d",Parameters!$1:$5067,7,FALSE)=0,"√","x") -> x | O292: =IF(VLOOKUP("BC155d",Parameters!$1:$5067,7,FALSE)=0,"√","x") -> x | P292: =IF(VLOOKUP("FP671d",Parameters!$1:$5067,7,FALSE)=0,"√","x") -> √ | Q292: =IF(VLOOKUP("BC655d",Parameters!$1:$5067,7,FALSE)=0,"√","x") -> √ | R292: =IF(VLOOKUP("FC081d",Parameters!$1:$5067,6,FALSE)="Fulfilled","√","x") -> √
F293: The farm/factory has a written health, safety and hygiene policy and corresponding procedures | M293: =IF(VLOOKUP("FP171e",Parameters!$1:$5067,7,FALSE)=0,"√","x") -> x | O293: √ | P293: =IF(VLOOKUP("FP671e",Parameters!$1:$5067,7,FALSE)=0,"√","x") -> √ | Q293: √ | R293: √
F294: The farm/factory has a written risk assessment for safe and healthy working conditions | M294: =IF(VLOOKUP("FP171f",Parameters!$1:$5067,7,FALSE)=0,"√","x") -> x | O294: =IF(VLOOKUP("BC155f",Parameters!$1:$5067,7,FALSE)=0,"√","x") -> x | P294: =IF(VLOOKUP("FP670f",Parameters!$1:$5067,7,FALSE)=0,"√","x") -> √ | Q294: =IF(VLOOKUP("BC655f",Parameters!$1:$5067,7,FALSE)=0,"√","x") -> √ | R294: =IF(VLOOKUP("FC081f",Parameters!$1:$5067,6,FALSE)="Fulfilled","√","x") -> √
F295: All workers received adequate health and safety training and are instructed according to the risk assessment | M295: =IF(VLOOKUP("FP171g",Parameters!$1:$5067,7,FALSE)=0,"√","x") -> x | O295: √ | P295: =IF(VLOOKUP("FP671g",Parameters!$1:$5067,7,FALSE)=0,"√","x") -> √ | Q295: √ | R295: √
F297: Interpretation of results:
F298: Same as explanation of human and property rights.

Sheet Parameters (hidden)
A1: ID-nr | B1: Description | C1: Manual Input | D1: Auto Input | E1: Monte Carlo Input | F1: Final Input | G1: Output
A2: ='ID-numbers'!$A11 -> LC001 | B2: =VLOOKUP(A2,'ID-numbers'!$1:$1048576,2,FALSE) -> FT_Process description transport 1 (mode 1-2-3) | C2: =IF('Input Project'!H48="","",'Input Project'!H48) ->  | D2: =VLOOKUP($A2,list_database1,$I$8,FALSE) -> Transport of FFB to the mill | F2: =IF($C2="",$D2,$C2) -> Transport of FFB to the mill | H2: Selected feedstock pathway 1 | I2: 1 | J2: =INDEX(list_pathways_I,I2) -> Palm oil (stearin) from palm fruits, refinery | M2: Energy balance | N2: TRUE
A3: ='ID-numbers'!$A12 -> LC002 | B3: =VLOOKUP(A3,'ID-numbers'!$1:$1048576,2,FALSE) -> FT_Process description treatment 1 | C3: =IF('Input Project'!H43="","",'Input Project'!H43) ->  | D3: No treatment | F3: No treatment | H3: Selected feedstock pathway 2 | I3: 9 | J3: =INDEX(list_pathways_II,I3) -> None | M3: Global warming | N3: TRUE
A4: ='ID-numbers'!$A13 -> LC003 | B4: =VLOOKUP(A4,'ID-numbers'!$1:$1048576,2,FALSE) -> BC_Process description conversion process 1 | C4: =IF('Input Project'!H60="","",'Input Project'!H60) -> Production of Crude Palm Oil (CPO) | D4: =VLOOKUP($A4,list_database1,$I$8,FALSE) -> Production of Crude Palm Oil (CPO) | F4: Production of Crude Palm Oil (CPO) | H4: Selected final conversion | I4: 4 | J4: =INDEX(lijst_conversion,I4) -> No final conversion, only biofuel production | M4: Resource use | N4: TRUE
A5: ='ID-numbers'!$A14 -> LC004 | B5: =VLOOKUP(A5,'ID-numbers'!$1:$1048576,2,FALSE) -> FT_Process description transport 2 (mode 4-5-6) | C5: =IF('Input Project'!H111="","",'Input Project'!H111) ->  | D5: Transport of CPO to Belgium | F5: Transport of CPO to Belgium | H5: Selected functional unit | I5: 4 | J5: =INDEX(list_functionalunit,I5) -> MJ diesel | M5: Environmental quality | N5: TRUE
A6: ='ID-numbers'!$A15 -> LC005 | B6: =VLOOKUP(A6,'ID-numbers'!$1:$1048576,2,FALSE) -> FT_Process description treatment 2 | C6: =IF('Input Project'!H106="","",'Input Project'!H106) ->  | D6: No treatment | F6: No treatment | M6: Biodiversity | N6: TRUE
A7: ='ID-numbers'!$A16 -> LC006 | B7: =VLOOKUP(A7,'ID-numbers'!$1:$1048576,2,FALSE) -> BC_Process description conversion process 2 | C7: =IF('Input Project'!H123="","",'Input Project'!H123) -> Refinery of Crude Palm Oil | D7: Refinery of Crude Palm Oil | F7: Refinery of Crude Palm Oil | M7: Local well-being | N7: TRUE
A8: ='ID-numbers'!$A17 -> LC007 | B8: =VLOOKUP(A8,'ID-numbers'!$1:$1048576,2,FALSE) -> FT_Process description transport 3 (mode 7-8-9) | C8: =IF('Input Project'!H163="","",'Input Project'!H163) ->  | D8: Transport of PS to the final conversion unit | F8: Transport of PS to the final conversion unit | H8: Column nr for 'Data' feedstock 1: | I8: =MATCH(J2,list_databasesystems,0) -> 6 | J8: =I8-1 -> 5
A9: ='ID-numbers'!$A18 -> LC008 | B9: =VLOOKUP(A9,'ID-numbers'!$1:$1048576,2,FALSE) -> FT_Process description treatment 3 | C9: =IF('Input Project'!H158="","",'Input Project'!H158) ->  | D9: No treatment | F9: No treatment | H9: Column nr for 'Data' feedstock 2: | I9: =MATCH(J3,list_databasesystems,0)-1 -> 30 | J9: =I9-1 -> 29
A10: ='ID-numbers'!$A19 -> LC501 | B10: =VLOOKUP(A10,'ID-numbers'!$1:$1048576,2,FALSE) -> FT_Process description transport 1 (mode 1-2-3) | C10: =IF('Input Project'!H201="","",'Input Project'!H201) ->  | D10: =VLOOKUP($A10,list_database2,$I$9,FALSE) -> n.a. | F10: n.a. | H10: Column nr for 'Data' final conversion: | I10: =MATCH(J4,list_databasesystems,0) -> 56 | J10: =I10-1 -> 55
A11: ='ID-numbers'!$A20 -> LC502 | B11: =VLOOKUP(A11,'ID-numbers'!$1:$1048576,2,FALSE) -> FT_Process description treatment 1 | C11: =IF('Input Project'!H196="","",'Input Project'!H196) ->  | D11: =VLOOKUP($A11,list_database2,$I$9,FALSE) -> n.a. | F11: n.a.
A12: ='ID-numbers'!$A21 -> LC503 | B12: =VLOOKUP(A12,'ID-numbers'!$1:$1048576,2,FALSE) -> BC_Process description conversion process 1 | C12: =IF('Input Project'!H213="","",'Input Project'!H213) -> n.a. | D12: n.a. | F12: n.a. | H12: Monte Carlo | I12: 0
A13: ='ID-numbers'!$A22 -> LC504 | B13: =VLOOKUP(A13,'ID-numbers'!$1:$1048576,2,FALSE) -> FT_Process description transport 2 (mode 4-5-6) | C13: =IF('Input Project'!H264="","",'Input Project'!H264) ->  | D13: n.a. | F13: n.a.
A14: ='ID-numbers'!$A23 -> LC505 | B14: =VLOOKUP(A14,'ID-numbers'!$1:$1048576,2,FALSE) -> FT_Process description treatment 2 | C14: =IF('Input Project'!H259="","",'Input Project'!H259) ->  | D14: n.a. | F14: n.a.
A15: ='ID-numbers'!$A24 -> LC506 | B15: =VLOOKUP(A15,'ID-numbers'!$1:$1048576,2,FALSE) -> BC_Process description conversion process 2 | C15: =IF('Input Project'!H276="","",'Input Project'!H276) -> n.a. | D15: n.a. | F15: n.a.
A16: ='ID-numbers'!$A25 -> LC507 | B16: =VLOOKUP(A16,'ID-numbers'!$1:$1048576,2,FALSE) -> FT_Process description transport 3 (mode 7-8-9) | C16: =IF('Input Project'!H316="","",'Input Project'!H316) ->  | D16: n.a. | F16: n.a.
A17: ='ID-numbers'!$A26 -> LC508 | B17: =VLOOKUP(A17,'ID-numbers'!$1:$1048576,2,FALSE) -> FT_Process description treatment 3 | C17: =IF('Input Project'!H311="","",'Input Project'!H311) ->  | D17: n.a. | F17: n.a.
A18: ='ID-numbers'!$A27 -> LC010 | B18: =VLOOKUP(A18,'ID-numbers'!$1:$1048576,2,FALSE) -> FC_Process description final conversion | C18: =IF('Input Project'!H330="","",'Input Project'!H330) -> No final conversion | D18: =VLOOKUP($A18,list_database1,$I$10,FALSE) -> No final conversion | F18: No final conversion | H18: Uncertainty: | M18: Manual input | O18: Auto input
H19: Mean | I19: Min | J19: Max | K19: σ | L19: Input parameter | M19: Min | N19: Max | O19: Min | P19: Max
A20: ='ID-numbers'!$A30 -> FP001 | B20: =VLOOKUP(A20,'ID-numbers'!$1:$1048576,2,FALSE) -> Feedstock type 1 | D20: =VLOOKUP($A20,list_database1,$I$8,FALSE) -> Fresh palm fruit bunches (FFB) | E20: =IF(MonteCarlo=1,IF($L20=1,IF($H20="n.a.",0,IF($H20<0.009,0,MIN(MAX(NORMINV(RAND(),$H20,$K20),$I20),$J20))),""),"") ->  | F20: =IF($L20=1,IF(MonteCarlo=1,$E20,IF($C20="",$D20,$C20)),IF($C20="",$D20,$C20)) -> Fresh palm fruit bunches (FFB) | H20: =IF($L20=1,IF($C20="",$D20,$C20),"") ->  | I20: =IF($L20=1,IF($M20="",$O20,$M20),"") ->  | J20: =IF($L20=1,IF($N20="",$P20,$N20),"") ->  | K20: =IF($L20=1,($J20-$I20)/6,"") ->  | L20: 0 | O20: =IF($L20=1,VLOOKUP($A20,list_database1,$I$8+1,FALSE),"") ->  | P20: =IF($L20=1,VLOOKUP($A20,list_database1,$I$8+2,FALSE),"") -> 
A21: ='ID-numbers'!$A31 -> FP002 | B21: =VLOOKUP(A21,'ID-numbers'!$1:$1048576,2,FALSE) -> Origin of the feedstock | C21: =IF('Input RU'!K29="","",'Input RU'!K29) ->  | D21: =VLOOKUP($A21,list_database1,$I$8,FALSE) -> Malaysia | F21: =IF($L21=1,IF(MonteCarlo=1,$E21,IF($C21="",$D21,$C21)),IF($C21="",$D21,$C21)) -> Malaysia | I21: =IF($L21=1,IF($M21="",$O21,$M21),"") ->  | J21: =IF($L21=1,IF($N21="",$P21,$N21),"") ->  | K21: =IF($L21=1,($J21-$I21)/6,"") ->  | L21: 0
A22: ='ID-numbers'!$A32 -> FP003a | B22: =VLOOKUP(A22,'ID-numbers'!$1:$1048576,2,FALSE) -> Yield rate (moist/wet) of feedstock 1 per ha | C22: =IF('Input Project'!H25="","",'Input Project'!H25) ->  | D22: =VLOOKUP($A22,list_database1,$I$8,FALSE) -> 19000 | F22: =IF($L22=1,IF(MonteCarlo=1,$E22,IF($C22="",$D22,$C22)),IF($C22="",$D22,$C22)) -> 19000 | H22: 19000 | I22: 11450 | J22: 21000 | K22: 1591.666667 | L22: 1 | M22: =IF(Uncertainty!W25="","",Uncertainty!W25) ->  | N22: =IF(Uncertainty!Z25="","",Uncertainty!Z25) ->  | O22: 11450 | P22: 21000
A23: ='ID-numbers'!$A33 -> FP003b | B23: =VLOOKUP(A23,'ID-numbers'!$1:$1048576,2,FALSE) -> Yield rate (dry) of feedstock 1 per ha | G23: =VLOOKUP(A23,'Production feedstock1'!$D$9:$G$5037,4,FALSE) -> 12540 | L23: 0
A24: ='ID-numbers'!$A34 -> FP003c | B24: =VLOOKUP(A24,'ID-numbers'!$1:$1048576,2,FALSE) -> Yield rate (energy) of feedstock 1 per ha | G24: =VLOOKUP(A24,'Production feedstock1'!$D$9:$G$5037,4,FALSE) -> 300960 | L24: 0
A25: ='ID-numbers'!$A35 -> FP005 | B25: =VLOOKUP(A25,'ID-numbers'!$1:$1048576,2,FALSE) -> Number of harvests per year | D25: =VLOOKUP($A25,list_database1,$I$8,FALSE) -> 1 | F25: =IF($L25=1,IF(MonteCarlo=1,$E25,IF($C25="",$D25,$C25)),IF($C25="",$D25,$C25)) -> 1 | L25: 0
A26: ='ID-numbers'!$A36 -> FP006 | B26: =VLOOKUP(A26,'ID-numbers'!$1:$1048576,2,FALSE) -> Rotation system | L26: 0
A27: ='ID-numbers'!$A37 -> FP009 | B27: =VLOOKUP(A27,'ID-numbers'!$1:$1048576,2,FALSE) -> Moisture content of the harvested crop | C27: =IF('Input Project'!H26="","",'Input Project'!H26) ->  | D27: =VLOOKUP($A27,list_database1,$I$8,FALSE) -> 34 | F27: =IF($L27=1,IF(MonteCarlo=1,$E27,IF($C27="",$D27,$C27)),IF($C27="",$D27,$C27)) -> 34 | H27: 34 | I27: 30 | J27: 36 | K27: 1 | L27: 1 | M27: =IF(Uncertainty!W26="","",Uncertainty!W26) ->  | N27: =IF(Uncertainty!Z26="","",Uncertainty!Z26) ->  | O27: 30 | P27: 36
A28: ='ID-numbers'!$A38 -> FP010 | B28: =VLOOKUP(A28,'ID-numbers'!$1:$1048576,2,FALSE) -> Energy content of the dry energy crop (LHV) | G28: =VLOOKUP(A28,'Production feedstock1'!$D$9:$G$5037,4,FALSE) -> 24 | L28: 0
A29: ='ID-numbers'!$A39 -> FP016a | B29: =VLOOKUP(A29,'ID-numbers'!$1:$1048576,2,FALSE) -> Type of by-product 1 | C29: =IF('Input Project'!H27="","",'Input Project'!H27) ->  | D29: =VLOOKUP($A29,list_database1,$I$8,FALSE) -> n.a. | F29: =IF($L29=1,IF(MonteCarlo=1,$E29,IF($C29="",$D29,$C29)),IF($C29="",$D29,$C29)) -> n.a. | L29: 0
A30: ='ID-numbers'!$A40 -> FP016b | B30: =VLOOKUP(A30,'ID-numbers'!$1:$1048576,2,FALSE) -> Type of by-product 2 | C30: =IF('Input Project'!H30="","",'Input Project'!H30) ->  | D30: =VLOOKUP($A30,list_database1,$I$8,FALSE) -> n.a. | F30: =IF($L30=1,IF(MonteCarlo=1,$E30,IF($C30="",$D30,$C30)),IF($C30="",$D30,$C30)) -> n.a. | L30: 0
A31: ='ID-numbers'!$A41 -> FP017a | B31: =VLOOKUP(A31,'ID-numbers'!$1:$1048576,2,FALSE) -> Yield rate (moist/wet) of by-product 1 per ha | C31: =IF('Input Project'!H28="","",'Input Project'!H28) ->  | D31: =VLOOKUP($A31,list_database1,$I$8,FALSE) -> 0 | F31: =IF($L31=1,IF(MonteCarlo=1,$E31,IF($C31="",$D31,$C31)),IF($C31="",$D31,$C31)) -> 0 | H31: 0 | I31: 0 | J31: 0 | K31: 0 | L31: 1 | M31: =IF(Uncertainty!W27="","",Uncertainty!W27) ->  | N31: =IF(Uncertainty!Z27="","",Uncertainty!Z27) ->  | O31: 0 | P31: 0
A32: ='ID-numbers'!$A42 -> FP017b | B32: =VLOOKUP(A32,'ID-numbers'!$1:$1048576,2,FALSE) -> Yield rate (moist/wet) of by-product 2 per ha | C32: =IF('Input Project'!H31="","",'Input Project'!H31) ->  | D32: =VLOOKUP($A32,list_database1,$I$8,FALSE) -> 0 | F32: =IF($L32=1,IF(MonteCarlo=1,$E32,IF($C32="",$D32,$C32)),IF($C32="",$D32,$C32)) -> 0 | H32: 0 | I32: 0 | J32: 0 | K32: 0 | L32: 1 | M32: =IF(Uncertainty!W29="","",Uncertainty!W29) ->  | N32: =IF(Uncertainty!Z29="","",Uncertainty!Z29) ->  | O32: 0 | P32: 0
A33: ='ID-numbers'!$A43 -> FP018a | B33: =VLOOKUP(A33,'ID-numbers'!$1:$1048576,2,FALSE) -> Yield rate (energy) of by-product 1 per ha | G33: =VLOOKUP(A33,'Production feedstock1'!$D$9:$G$5037,4,FALSE) -> 0 | L33: 0
A34: ='ID-numbers'!$A44 -> FP018b | B34: =VLOOKUP(A34,'ID-numbers'!$1:$1048576,2,FALSE) -> Yield rate (energy) of by-product 2 per ha | G34: =VLOOKUP(A34,'Production feedstock1'!$D$9:$G$5037,4,FALSE) -> 0 | L34: 0
A35: ='ID-numbers'!$A45 -> FP019a | B35: =VLOOKUP(A35,'ID-numbers'!$1:$1048576,2,FALSE) -> Moisture content of by-product 1 | C35: =IF('Input Project'!H29="","",'Input Project'!H29) ->  | D35: =VLOOKUP($A35,list_database1,$I$8,FALSE) -> 0 | F35: =IF($L35=1,IF(MonteCarlo=1,$E35,IF($C35="",$D35,$C35)),IF($C35="",$D35,$C35)) -> 0 | H35: 0 | I35: 0 | J35: 0 | K35: 0 | L35: 1 | M35: =IF(Uncertainty!W28="","",Uncertainty!W28) ->  | N35: =IF(Uncertainty!Z28="","",Uncertainty!Z28) ->  | O35: 0 | P35: 0
A36: ='ID-numbers'!$A46 -> FP019b | B36: =VLOOKUP(A36,'ID-numbers'!$1:$1048576,2,FALSE) -> Moisture content of by-product 2 | C36: =IF('Input Project'!H32="","",'Input Project'!H32) ->  | D36: =VLOOKUP($A36,list_database1,$I$8,FALSE) -> 0 | F36: =IF($L36=1,IF(MonteCarlo=1,$E36,IF($C36="",$D36,$C36)),IF($C36="",$D36,$C36)) -> 0 | H36: 0 | I36: 0 | J36: 0 | K36: 0 | L36: 1 | M36: =IF(Uncertainty!W30="","",Uncertainty!W30) ->  | N36: =IF(Uncertainty!Z30="","",Uncertainty!Z30) ->  | O36: 0 | P36: 0
A37: ='ID-numbers'!$A47 -> FP020a | B37: =VLOOKUP(A37,'ID-numbers'!$1:$1048576,2,FALSE) -> Energy content of the dry by-product 1 (LHV) | G37: =VLOOKUP(A37,'Production feedstock1'!$D$9:$G$5037,4,FALSE) -> 0 | L37: 0
A38: ='ID-numbers'!$A48 -> FP020b | B38: =VLOOKUP(A38,'ID-numbers'!$1:$1048576,2,FALSE) -> Energy content of the dry by-product 2 (LHV) | G38: =VLOOKUP(A38,'Production feedstock1'!$D$9:$G$5037,4,FALSE) -> 0 | L38: 0
A39: ='ID-numbers'!$A49 -> FP021a | B39: =VLOOKUP(A39,'ID-numbers'!$1:$1048576,2,FALSE) -> Valorisation of by-product 1 | L39: 0
A40: ='ID-numbers'!$A50 -> FP021b | B40: =VLOOKUP(A40,'ID-numbers'!$1:$1048576,2,FALSE) -> Valorisation of by-product 2 | L40: 0
A41: ='ID-numbers'!$A51 -> FP022 | B41: =VLOOKUP(A41,'ID-numbers'!$1:$1048576,2,FALSE) -> Use of seeds | C41: =IF('Input Project'!H33="","",'Input Project'!H33) ->  | D41: =VLOOKUP($A41,list_database1,$I$8,FALSE) -> 0 | F41: =IF($L41=1,IF(MonteCarlo=1,$E41,IF($C41="",$D41,$C41)),IF($C41="",$D41,$C41)) -> 0 | H41: 0 | I41: 0 | J41: 200 | K41: 33.33333333 | L41: 1 | M41: =IF(Uncertainty!W31="","",Uncertainty!W31) ->  | N41: =IF(Uncertainty!Z31="","",Uncertainty!Z31) ->  | O41: 0 | P41: 200
A42: ='ID-numbers'!$A52 -> FP023a | B42: =VLOOKUP(A42,'ID-numbers'!$1:$1048576,2,FALSE) -> Use of N fertiliser (synthetic) | C42: =IF('Input Project'!H34="","",'Input Project'!H34) ->  | D42: 127.908 | F42: 127.908 | H42: 127.908 | I42: 0 | J42: 185 | K42: 30.83333333 | L42: 1 | M42: =IF(Uncertainty!W32="","",Uncertainty!W32) ->  | N42: =IF(Uncertainty!Z32="","",Uncertainty!Z32) ->  | O42: 0 | P42: 185
A43: ='ID-numbers'!$A53 -> FP023b | B43: =VLOOKUP(A43,'ID-numbers'!$1:$1048576,2,FALSE) -> Use of P2O5 fertiliser | C43: =IF('Input Project'!H35="","",'Input Project'!H35) ->  | D43: 143.792 | F43: 143.792 | H43: 143.792 | I43: 0 | J43: 160 | K43: 26.66666667 | L43: 1 | M43: =IF(Uncertainty!W33="","",Uncertainty!W33) ->  | N43: =IF(Uncertainty!Z33="","",Uncertainty!Z33) ->  | O43: 0 | P43: 160
A44: ='ID-numbers'!$A54 -> FP023c | B44: =VLOOKUP(A44,'ID-numbers'!$1:$1048576,2,FALSE) -> Use of K2O fertiliser | C44: =IF('Input Project'!H36="","",'Input Project'!H36) ->  | D44: 199.804 | F44: 199.804 | H44: 199.804 | I44: 0 | J44: 250 | K44: 41.66666667 | L44: 1 | M44: =IF(Uncertainty!W34="","",Uncertainty!W34) ->  | N44: =IF(Uncertainty!Z34="","",Uncertainty!Z34) ->  | O44: 0 | P44: 250
A45: ='ID-numbers'!$A55 -> FP023d | B45: =VLOOKUP(A45,'ID-numbers'!$1:$1048576,2,FALSE) -> Use of CaO fertiliser | C45: =IF('Input Project'!H37="","",'Input Project'!H37) ->  | D45: 0 | F45: 0 | H45: 0 | I45: 0 | J45: 100 | K45: 16.66666667 | L45: 1 | M45: =IF(Uncertainty!W35="","",Uncertainty!W35) ->  | N45: =IF(Uncertainty!Z35="","",Uncertainty!Z35) ->  | O45: 0 | P45: 100
A46: ='ID-numbers'!$A56 -> FP023e | B46: =VLOOKUP(A46,'ID-numbers'!$1:$1048576,2,FALSE) -> Use of pesticides | C46: =IF('Input Project'!H38="","",'Input Project'!H38) ->  | D46: 8.36 | F46: 8.36 | H46: 8.36 | I46: 0 | J46: 15 | K46: 2.5 | L46: 1 | M46: =IF(Uncertainty!W36="","",Uncertainty!W36) ->  | N46: =IF(Uncertainty!Z36="","",Uncertainty!Z36) ->  | O46: 0 | P46: 15
A47: ='ID-numbers'!$A57 -> FP024a | B47: =VLOOKUP(A47,'ID-numbers'!$1:$1048576,2,FALSE) -> Totally allocated fossil energy requirement for feedstock production | G47: =VLOOKUP(A47,'Production feedstock1'!$D$9:$G$5037,4,FALSE) -> 0 | L47: 0
A48: ='ID-numbers'!$A58 -> FP024b | B48: =VLOOKUP(A48,'ID-numbers'!$1:$1048576,2,FALSE) -> Totally allocated primary energy requirement for feedstock production | G48: =VLOOKUP(A48,'Production feedstock1'!$D$9:$G$5037,4,FALSE) -> 0.2875507552 | L48: 0
A49: ='ID-numbers'!$A59 -> FP025a | B49: =VLOOKUP(A49,'ID-numbers'!$1:$1048576,2,FALSE) -> Totally allocated fossil energy requirement for feedstock production | G49: =VLOOKUP(A49,'Production feedstock1'!$D$9:$G$5037,4,FALSE) -> 0 | L49: 0
A50: ='ID-numbers'!$A60 -> FP025b | B50: =VLOOKUP(A50,'ID-numbers'!$1:$1048576,2,FALSE) -> Totally allocated primary energy requirement for feedstock production | G50: =VLOOKUP(A50,'Production feedstock1'!$D$9:$G$5037,4,FALSE) -> 0.2875507552 | L50: 0
A51: ='ID-numbers'!$A63 -> FP029a | B51: =VLOOKUP(A51,'ID-numbers'!$1:$1048576,2,FALSE) -> Primary energy used for feedstock production | G51: =VLOOKUP(A51,'Production feedstock1'!$D$9:$G$5037,4,FALSE) -> 1.198513266 | L51: 0
A52: ='ID-numbers'!$A65 -> FP030 | B52: =VLOOKUP(A52,'ID-numbers'!$1:$1048576,2,FALSE) -> Allocation to energy crop | G52: =VLOOKUP(A52,'Production feedstock1'!$D$9:$G$5037,4,FALSE) -> 100 | L52: 0
A53: ='ID-numbers'!$A66 -> FP031 | B53: =VLOOKUP(A53,'ID-numbers'!$1:$1048576,2,FALSE) -> Allocation to by-products | G53: =VLOOKUP(A53,'Production feedstock1'!$D$9:$G$5037,4,FALSE) -> 0 | L53: 0
A54: ='ID-numbers'!$A71 -> FP034 | B54: =VLOOKUP(A54,'ID-numbers'!$1:$1048576,2,FALSE) -> Type of fuel used for agricultural machinery | C54: =IF('Input Project'!H39="","",'Input Project'!H39) ->  | D54: =VLOOKUP($A54,list_database1,$I$8,FALSE) -> Diesel | F54: =IF($L54=1,IF(MonteCarlo=1,$E54,IF($C54="",$D54,$C54)),IF($C54="",$D54,$C54)) -> Diesel | L54: 0
A55: ='ID-numbers'!$A72 -> FP035a | B55: =VLOOKUP(A55,'ID-numbers'!$1:$1048576,2,FALSE) -> Fossil energy use related to agrifuel use | G55: =VLOOKUP(A55,'Production feedstock1'!$D$9:$G$5037,4,FALSE) -> 2394.908392 | L55: 0
A56: ='ID-numbers'!$A74 -> FP036 | B56: =VLOOKUP(A56,'ID-numbers'!$1:$1048576,2,FALSE) -> Fossil energy coefficient of fuel used in agricultural machinery | G56: =VLOOKUP(A56,'Production feedstock1'!$D$9:$G$5037,4,FALSE) -> 49.996 | L56: 0
A57: ='ID-numbers'!$A75 -> FP037 | B57: =VLOOKUP(A57,'ID-numbers'!$1:$1048576,2,FALSE) -> Amount of fuel used in agricultural machinery | C57: =IF('Input Project'!H40="","",'Input Project'!H40) ->  | D57: =VLOOKUP($A57,list_database1,$I$8,FALSE) -> 47.902 | F57: =IF($L57=1,IF(MonteCarlo=1,$E57,IF($C57="",$D57,$C57)),IF($C57="",$D57,$C57)) -> 47.902 | H57: 47.902 | I57: 40 | J57: 75 | K57: 5.833333333 | L57: 1 | M57: =IF(Uncertainty!W37="","",Uncertainty!W37) ->  | N57: =IF(Uncertainty!Z37="","",Uncertainty!Z37) ->  | O57: 40 | P57: 75
A58: ='ID-numbers'!$A78 -> FP039a | B58: =VLOOKUP(A58,'ID-numbers'!$1:$1048576,2,FALSE) -> Fossil energy used for heat and electricity for drying and storage per MJ endfuel | G58: =VLOOKUP(A58,'Production feedstock1'!$D$10:$G$659,4,FALSE) -> 0 | L58: 0
A59: ='ID-numbers'!$A80 -> FP040 | B59: =VLOOKUP(A59,'ID-numbers'!$1:$1048576,2,FALSE) -> Heat energy use for drying and storage of the crop | C59: =IF('Input Project'!H45="","",'Input Project'!H45) ->  | D59: =VLOOKUP($A59,list_database1,$I$8,FALSE) -> 0 | F59: =IF($L59=1,IF(MonteCarlo=1,$E59,IF($C59="",$D59,$C59)),IF($C59="",$D59,$C59)) -> 0 | H59: 0 | I59: 0 | J59: 0 | K59: 0 | L59: 1 | M59: =IF(Uncertainty!W49="","",Uncertainty!W49) ->  | N59: =IF(Uncertainty!Z49="","",Uncertainty!Z49) ->  | O59: 0 | P59: 0
A60: ='ID-numbers'!$A81 -> FP041 | B60: =VLOOKUP(A60,'ID-numbers'!$1:$1048576,2,FALSE) -> Heat source | C60: =IF('Input Project'!H44="","",'Input Project'!H44) ->  | D60: =VLOOKUP($A60,list_database1,$I$8,FALSE) -> n.a. | F60: =IF($L60=1,IF(MonteCarlo=1,$E60,IF($C60="",$D60,$C60)),IF($C60="",$D60,$C60)) -> n.a. | L60: 0
A61: ='ID-numbers'!$A82 -> FP042a | B61: =VLOOKUP(A61,'ID-numbers'!$1:$1048576,2,FALSE) -> Fossil energy coefficient of heat production for crop drying and storage | L61: 0
A62: ='ID-numbers'!$A87 -> FP043 | B62: =VLOOKUP(A62,'ID-numbers'!$1:$1048576,2,FALSE) -> Electricity energy use for drying and storage of the crop | C62: =IF('Input Project'!H47="","",'Input Project'!H47) ->  | D62: =VLOOKUP($A62,list_database1,$I$8,FALSE) -> 0 | F62: =IF($L62=1,IF(MonteCarlo=1,$E62,IF($C62="",$D62,$C62)),IF($C62="",$D62,$C62)) -> 0 | H62: 0 | I62: 0 | J62: 0 | K62: 0 | L62: 1 | M62: =IF(Uncertainty!W50="","",Uncertainty!W50) ->  | N62: =IF(Uncertainty!Z50="","",Uncertainty!Z50) ->  | O62: 0 | P62: 0
A63: ='ID-numbers'!$A88 -> FP044 | B63: =VLOOKUP(A63,'ID-numbers'!$1:$1048576,2,FALSE) -> Electricity source | C63: =IF('Input Project'!H46="","",'Input Project'!H46) ->  | D63: =VLOOKUP($A63,list_database1,$I$8,FALSE) -> n.a. | F63: =IF($L63=1,IF(MonteCarlo=1,$E63,IF($C63="",$D63,$C63)),IF($C63="",$D63,$C63)) -> n.a. | L63: 0
A64: ='ID-numbers'!$A89 -> FP045a | B64: =VLOOKUP(A64,'ID-numbers'!$1:$1048576,2,FALSE) -> Fossil energy coefficient of electricity for crop drying and storage | L64: 0
A65: ='ID-numbers'!$A94 -> FP046a | B65: =VLOOKUP(A65,'ID-numbers'!$1:$1048576,2,FALSE) -> Fossil energy use of seeds, fertilisers and pesticides | L65: 0
A66: ='ID-numbers'!$A96 -> FP047 | B66: =VLOOKUP(A66,'ID-numbers'!$1:$1048576,2,FALSE) -> Pretreated feedstock | D66: =VLOOKUP($A66,list_database1,$I$8,FALSE) -> Fresh palm fruit bunches (FFB) | F66: =IF($L66=1,IF(MonteCarlo=1,$E66,IF($C66="",$D66,$C66)),IF($C66="",$D66,$C66)) -> Fresh palm fruit bunches (FFB)
A67: ='ID-numbers'!$A97 -> FP048 | B67: =VLOOKUP(A67,'ID-numbers'!$1:$1048576,2,FALSE) -> Moisture content pretreated feedstock | L67: 0
A68: ='ID-numbers'!$A98 -> FP049 | B68: =VLOOKUP(A68,'ID-numbers'!$1:$1048576,2,FALSE) -> Energy content pretreated feedstock (LHV) | C68: =IF('Input Project'!H86="","",'Input Project'!H86) ->  | D68: =VLOOKUP($A68,list_database1,$I$8,FALSE) -> 24 | F68: =IF($L68=1,IF(MonteCarlo=1,$E68,IF($C68="",$D68,$C68)),IF($C68="",$D68,$C68)) -> 24 | L68: 0
A69: ='ID-numbers'!$A99 -> FP050a | B69: =VLOOKUP(A69,'ID-numbers'!$1:$1048576,2,FALSE) -> Fossil energy coefficient of N fertiliser | G69: =VLOOKUP(A69,'Production feedstock1'!$D$9:$G$5037,4,FALSE) -> 48.9906 | L69: 0
A70: ='ID-numbers'!$A100 -> FP050b | B70: =VLOOKUP(A70,'ID-numbers'!$1:$1048576,2,FALSE) -> Fossil energy coefficient of P fertiliser | G70: =VLOOKUP(A70,'Production feedstock1'!$D$9:$G$5037,4,FALSE) -> 15.2334 | L70: 0
A71: ='ID-numbers'!$A101 -> FP050c | B71: =VLOOKUP(A71,'ID-numbers'!$1:$1048576,2,FALSE) -> Fossil energy coefficient of K fertiliser | G71: =VLOOKUP(A71,'Production feedstock1'!$D$9:$G$5037,4,FALSE) -> 9.67896 | L71: 0
A72: ='ID-numbers'!$A102 -> FP050d | B72: =VLOOKUP(A72,'ID-numbers'!$1:$1048576,2,FALSE) -> Fossil energy coefficient of Ca fertiliser | G72: =VLOOKUP(A72,'Production feedstock1'!$D$9:$G$5037,4,FALSE) -> 1.97352 | L72: 0
A73: ='ID-numbers'!$A103 -> FP050e | B73: =VLOOKUP(A73,'ID-numbers'!$1:$1048576,2,FALSE) -> Fossil energy coefficient of pesticides | G73: =VLOOKUP(A73,'Production feedstock1'!$D$9:$G$5037,4,FALSE) -> 268.3998 | L73: 0
A74: ='ID-numbers'!$A104 -> FP050f | B74: =VLOOKUP(A74,'ID-numbers'!$1:$1048576,2,FALSE) -> Fossil energy coefficient of seeds | G74: =VLOOKUP(A74,'Production feedstock1'!$D$9:$G$5037,4,FALSE) -> 0 | L74: 0
A75: ='ID-numbers'!$A105 -> FP051 | B75: =VLOOKUP(A75,'ID-numbers'!$1:$1048576,2,FALSE) -> Yield rate (moist/wet) of pretreated feedstock 1 per ha | L75: 0
A76: ='ID-numbers'!$A106 -> FP052 | B76: =VLOOKUP(A76,'ID-numbers'!$1:$1048576,2,FALSE) -> Yield rate (dry) of pretreated feedstock 1 per ha | L76: 0
A77: ='ID-numbers'!$A107 -> FP053 | B77: =VLOOKUP(A77,'ID-numbers'!$1:$1048576,2,FALSE) -> Yield rate (energy) of pretreated feedstock 1 per ha | L77: 0
A78: ='ID-numbers'!$A108 -> FP054 | B78: =VLOOKUP(A78,'ID-numbers'!$1:$1048576,2,FALSE) -> Yield loss through treatment and transport of feedstock 1 | D78: =VLOOKUP($A78,list_database1,$I$8,FALSE) -> 2 | F78: =IF($L78=1,IF(MonteCarlo=1,$E78,IF($C78="",$D78,$C78)),IF($C78="",$D78,$C78)) -> 2 | H78: 2 | I78: 0 | J78: 5 | K78: 0.8333333333 | L78: 1 | O78: 0 | P78: 5
A79: ='ID-numbers'!$A109 -> FP055a | B79: =VLOOKUP(A79,'ID-numbers'!$1:$1048576,2,FALSE) -> Yield rate (moist/wet) of pretreated feedstock 1 before conversion | G79: =VLOOKUP(A79,'Production feedstock1'!$D$9:$G$5037,4,FALSE) -> 18620 | L79: 0
A80: ='ID-numbers'!$A110 -> FP055b | B80: =VLOOKUP(A80,'ID-numbers'!$1:$1048576,2,FALSE) -> Yield rate (dry) of pretreated feedstock 1 before conversion | G80: =VLOOKUP(A80,'Production feedstock1'!$D$9:$G$5037,4,FALSE) -> 12289.2 | L80: 0
A81: ='ID-numbers'!$A111 -> FP055c | B81: =VLOOKUP(A81,'ID-numbers'!$1:$1048576,2,FALSE) -> Yield rate (energy) of pretreated feedstock 1 before conversion | G81: =VLOOKUP(A81,'Production feedstock1'!$D$9:$G$5037,4,FALSE) -> 294940.8 | L81: 0
A82: ='ID-numbers'!$A112 -> FP056a | B82: =VLOOKUP(A82,'ID-numbers'!$1:$1048576,2,FALSE) -> GHG emissions associated with inputs for feedstock production | G82: =VLOOKUP(A82,'Production feedstock1'!$D$9:$G$5037,4,FALSE) -> 102.4938048 | L82: 0
A83: ='ID-numbers'!$A114 -> FP057 | B83: =VLOOKUP(A83,'ID-numbers'!$1:$1048576,2,FALSE) -> Allocated GHG emissions from feedstock production | G83: =VLOOKUP(A83,'Production feedstock1'!$D$9:$G$5037,4,FALSE) -> 46.7092602 | L83: 0
A84: ='ID-numbers'!$A115 -> FP058 | B84: =VLOOKUP(A84,'ID-numbers'!$1:$1048576,2,FALSE) -> GHG emissions associated with fuel used in agricultural machinery | G84: =VLOOKUP(A84,'Production feedstock1'!$D$9:$G$5037,4,FALSE) -> 180937.1642 | L84: 0
A85: ='ID-numbers'!$A116 -> FP059 | B85: =VLOOKUP(A85,'ID-numbers'!$1:$1048576,2,FALSE) -> Specific GHG emissions of the fuel used in agricultural machinery | E85: =IF(MonteCarlo=1,IF($L85=1,IF($H85="n.a.",0,IF($H85<0.009,0,MIN(MAX(NORMINV(RAND(),$H85,$K85),$I85),$J85))),""),"") ->  | G85: =VLOOKUP(A85,'Production feedstock1'!$D$9:$G$5037,4,FALSE) -> 3777.236111 | H85: =IF($L85=1,IF($C85="",$D85,$C85),"") ->  | L85: 0 | O85: =IF($L85=1,VLOOKUP($A85,list_database1,$I$8+1,FALSE),"") ->  | P85: =IF($L85=1,VLOOKUP($A85,list_database1,$I$8+2,FALSE),"") -> 
A86: ='ID-numbers'!$A117 -> FP061a | B86: =VLOOKUP(A86,'ID-numbers'!$1:$1048576,2,FALSE) -> Totally allocated GHG emissions from feedstock production | G86: =VLOOKUP(A86,'Production feedstock1'!$D$9:$G$5037,4,FALSE) -> 44.68576333 | I86: =IF($L86=1,IF($M86="",$O86,$M86),"") ->  | J86: =IF($L86=1,IF($N86="",$P86,$N86),"") ->  | K86: =IF($L86=1,($J86-$I86)/6,"") ->  | L86: 0
A87: ='ID-numbers'!$A118 -> FP061b | B87: =VLOOKUP(A87,'ID-numbers'!$1:$1048576,2,FALSE) -> Totally allocated GHG emissions from feedstock production | G87: =VLOOKUP(A87,'Production feedstock1'!$D$9:$G$5037,4,FALSE) -> 44.68576333 | L87: 0
A88: ='ID-numbers'!$A119 -> FP062a | B88: =VLOOKUP(A88,'ID-numbers'!$1:$1048576,2,FALSE) -> GHG emissions associated with heat and electricity for drying and storage per kg | G88: =VLOOKUP(A88,'Production feedstock1'!$D$9:$G$5037,4,FALSE) -> 0 | L88: 0
A89: ='ID-numbers'!$A120 -> FP062b | B89: =VLOOKUP(A89,'ID-numbers'!$1:$1048576,2,FALSE) -> GHG emissions associated with heat and electricity for drying and storage per MJ endfuel | G89: =VLOOKUP(A89,'Production feedstock1'!$D$9:$G$5037,4,FALSE) -> 0 | L89: 0
A90: ='ID-numbers'!$A121 -> FP064 | B90: =VLOOKUP(A90,'ID-numbers'!$1:$1048576,2,FALSE) -> GHG emissions associated with production of seeds, fertilisers and pesticides | G90: =VLOOKUP(A90,'Production feedstock1'!$D$9:$G$5037,4,FALSE) -> 1104335.148 | L90: 0
A91: ='ID-numbers'!$A122 -> FP067a | B91: =VLOOKUP(A91,'ID-numbers'!$1:$1048576,2,FALSE) -> N: specific GHG emissions | G91: =VLOOKUP(A91,'Production feedstock1'!$D$9:$G$5037,4,FALSE) -> 5880.5901 | L91: 0
A92: ='ID-numbers'!$A123 -> FP067b | B92: =VLOOKUP(A92,'ID-numbers'!$1:$1048576,2,FALSE) -> P2O5: specific GHG emissions | G92: =VLOOKUP(A92,'Production feedstock1'!$D$9:$G$5037,4,FALSE) -> 1010.7435 | L92: 0
A93: ='ID-numbers'!$A124 -> FP067c | B93: =VLOOKUP(A93,'ID-numbers'!$1:$1048576,2,FALSE) -> K2O: specific GHG emissions | G93: =VLOOKUP(A93,'Production feedstock1'!$D$9:$G$5037,4,FALSE) -> 576.0824 | L93: 0
A94: ='ID-numbers'!$A125 -> FP067d | B94: =VLOOKUP(A94,'ID-numbers'!$1:$1048576,2,FALSE) -> CaO: specific GHG emissions | G94: =VLOOKUP(A94,'Production feedstock1'!$D$9:$G$5037,4,FALSE) -> 129.4985 | L94: 0
A95: ='ID-numbers'!$A126 -> FP067e | B95: =VLOOKUP(A95,'ID-numbers'!$1:$1048576,2,FALSE) -> Pesticides: specific GHG emissions | G95: =VLOOKUP(A95,'Production feedstock1'!$D$9:$G$5037,4,FALSE) -> 10971.3197 | L95: 0
A96: ='ID-numbers'!$A127 -> FP067f | B96: =VLOOKUP(A96,'ID-numbers'!$1:$1048576,2,FALSE) -> Seeds: specific GHG emissions | G96: =VLOOKUP(A96,'Production feedstock1'!$D$9:$G$5037,4,FALSE) -> 0 | L96: 0
A97: ='ID-numbers'!$A128 -> FP068a | B97: =VLOOKUP(A97,'ID-numbers'!$1:$1048576,2,FALSE) -> GHG emissions associated with land use change (carbon stock changes) per MJ | G97: =VLOOKUP(A97,'Production feedstock1'!$D$9:$G$5037,4,FALSE) -> 0 | L97: 0
A98: ='ID-numbers'!$A129 -> FP068b | B98: =VLOOKUP(A98,'ID-numbers'!$1:$1048576,2,FALSE) -> GHG emissions associated with land use change (carbon stock changes) per ha | G98: =VLOOKUP(A98,'Production feedstock1'!$D$9:$G$5037,4,FALSE) -> 0 | L98: 0
A99: ='ID-numbers'!$A130 -> FP069a | B99: =VLOOKUP(A99,'ID-numbers'!$1:$1048576,2,FALSE) -> Actual land use | D99: =VLOOKUP($A99,list_database1,$I$8,FALSE) -> Perennial cropland | F99: =IF($L99=1,IF(MonteCarlo=1,$E99,IF($C99="",$D99,$C99)),IF($C99="",$D99,$C99)) -> Perennial cropland | L99: 0
A100: ='ID-numbers'!$A131 -> FP069b | B100: =VLOOKUP(A100,'ID-numbers'!$1:$1048576,2,FALSE) -> Previous land use (January 1st, 2008) | D100: Perennial cropland | F100: Perennial cropland | L100: 0
A101: ='ID-numbers'!$A132 -> FP069c | B101: =VLOOKUP(A101,'ID-numbers'!$1:$1048576,2,FALSE) -> Actual land use_specific for carbon stock veg | D101: Oil palm | F101: Oil palm | L101: 0
A102: ='ID-numbers'!$A133 -> FP069d | B102: =VLOOKUP(A102,'ID-numbers'!$1:$1048576,2,FALSE) -> Previous land use (January 1st, 2008)_specific for carbon stock veg | D102: Oil palm | F102: Oil palm | L102: 0
A103: ='ID-numbers'!$A134 -> FP070a | B103: =VLOOKUP(A103,'ID-numbers'!$1:$1048576,2,FALSE) -> Climate region | C103: =IF('Input Land use'!K26="","",'Input Land use'!K26) ->  | D103: Tropical Wet | F103: Tropical Wet | L103: 0
A104: ='ID-numbers'!$A135 -> FP070b | B104: =VLOOKUP(A104,'ID-numbers'!$1:$1048576,2,FALSE) -> Soil type | C104: =IF('Input Land use'!K27="","",'Input Land use'!K27) ->  | D104: Low activity clay soils | F104: Low activity clay soils | L104: 0
A105: ='ID-numbers'!$A136 -> FP070c | B105: =VLOOKUP(A105,'ID-numbers'!$1:$1048576,2,FALSE) -> Climate region_specific for carbon stock_actual land use | D105: Tropical wet | F105: Tropical wet | L105: 0
A106: ='ID-numbers'!$A137 -> FP070d | B106: =VLOOKUP(A106,'ID-numbers'!$1:$1048576,2,FALSE) -> Climate region_specific for carbon stock_previous land use | D106: Tropical wet | F106: Tropical wet | L106: 0
A107: ='ID-numbers'!$A138 -> FP071 | B107: =VLOOKUP(A107,'ID-numbers'!$1:$1048576,2,FALSE) -> Carbon stock actual land use | L107: 0
A108: ='ID-numbers'!$A139 -> FP072 | B108: =VLOOKUP(A108,'ID-numbers'!$1:$1048576,2,FALSE) -> Carbon stock previous land use | L108: 0
A109: ='ID-numbers'!$A140 -> FP073a | B109: =VLOOKUP(A109,'ID-numbers'!$1:$1048576,2,FALSE) -> Soil organic carbon actual land use | L109: 0
A110: ='ID-numbers'!$A141 -> FP073b | B110: =VLOOKUP(A110,'ID-numbers'!$1:$1048576,2,FALSE) -> Soil organic carbon previous land use | L110: 0
A111: ='ID-numbers'!$A142 -> FP074 | B111: =VLOOKUP(A111,'ID-numbers'!$1:$1048576,2,FALSE) -> Standard soil organic carbon_feedstock 1 | L111: 0
A112: ='ID-numbers'!$A143 -> FP075a | B112: =VLOOKUP(A112,'ID-numbers'!$1:$1048576,2,FALSE) -> Land use factor actual land use | L112: 0
A113: ='ID-numbers'!$A144 -> FP075b | B113: =VLOOKUP(A113,'ID-numbers'!$1:$1048576,2,FALSE) -> Land use factor previous land use | L113: 0
A114: ='ID-numbers'!$A145 -> FP076a | B114: =VLOOKUP(A114,'ID-numbers'!$1:$1048576,2,FALSE) -> Management factor actual land use | L114: 0
A115: ='ID-numbers'!$A146 -> FP076b | B115: =VLOOKUP(A115,'ID-numbers'!$1:$1048576,2,FALSE) -> Management factor previous land use | L115: 0
A116: ='ID-numbers'!$A147 -> FP077a | B116: =VLOOKUP(A116,'ID-numbers'!$1:$1048576,2,FALSE) -> Input factor actual land use | L116: 0
A117: ='ID-numbers'!$A148 -> FP077b | B117: =VLOOKUP(A117,'ID-numbers'!$1:$1048576,2,FALSE) -> Input factor previous land use | L117: 0
A118: ='ID-numbers'!$A149 -> FP078a | B118: =VLOOKUP(A118,'ID-numbers'!$1:$1048576,2,FALSE) -> Above and below vegetation carbon stock actual land use | L118: 0
A119: ='ID-numbers'!$A150 -> FP078b | B119: =VLOOKUP(A119,'ID-numbers'!$1:$1048576,2,FALSE) -> Above and below vegetation carbon stock previous land use | L119: 0
A120: ='ID-numbers'!$A151 -> FP079a | B120: =VLOOKUP(A120,'ID-numbers'!$1:$1048576,2,FALSE) -> Above and below vegetation carbon stock in living biomass actual land use | L120: 0
A121: ='ID-numbers'!$A152 -> FP079b | B121: =VLOOKUP(A121,'ID-numbers'!$1:$1048576,2,FALSE) -> Above and below vegetation carbon stock in living biomass previous land use | L121: 0
A122: ='ID-numbers'!$A153 -> FP080a | B122: =VLOOKUP(A122,'ID-numbers'!$1:$1048576,2,FALSE) -> Above ground vegetation carbon stock in living biomass actual land use | L122: 0
A123: ='ID-numbers'!$A154 -> FP080b | B123: =VLOOKUP(A123,'ID-numbers'!$1:$1048576,2,FALSE) -> Above ground vegetation carbon stock in living biomass previous land use | L123: 0
A124: ='ID-numbers'!$A155 -> FP081a | B124: =VLOOKUP(A124,'ID-numbers'!$1:$1048576,2,FALSE) -> Weight of above ground living biomass actual land use | C124: =IF('Input Land use'!K99="","",'Input Land use'!K99) ->  | L124: 0
A125: ='ID-numbers'!$A156 -> FP081b | B125: =VLOOKUP(A125,'ID-numbers'!$1:$1048576,2,FALSE) -> Weight of above ground living biomass previous land use | C125: =IF('Input Land use'!K109="","",'Input Land use'!K109) ->  | L125: 0
A126: ='ID-numbers'!$A157 -> FP082aa | B126: =VLOOKUP(A126,'ID-numbers'!$1:$1048576,2,FALSE) -> Carbon fraction of dry matter in living biomass actual land use | C126: =IF('Input Land use'!K102="","",'Input Land use'!K102) ->  | L126: 0
A127: ='ID-numbers'!$A158 -> FP082ab | B127: =VLOOKUP(A127,'ID-numbers'!$1:$1048576,2,FALSE) -> Carbon fraction of dry matter in living biomass previous land use | C127: =IF('Input Land use'!K112="","",'Input Land use'!K112) ->  | L127: 0
A128: ='ID-numbers'!$A159 -> FP082ba | B128: =VLOOKUP(A128,'ID-numbers'!$1:$1048576,2,FALSE) -> Carbon fraction of dry matter in dead wood actual land use | C128: =IF('Input Land use'!K103="","",'Input Land use'!K103) ->  | L128: 0
A129: ='ID-numbers'!$A160 -> FP082bb | B129: =VLOOKUP(A129,'ID-numbers'!$1:$1048576,2,FALSE) -> Carbon fraction of dry matter in dead wood previous land use | C129: =IF('Input Land use'!K113="","",'Input Land use'!K113) ->  | L129: 0
A130: ='ID-numbers'!$A161 -> FP082ca | B130: =VLOOKUP(A130,'ID-numbers'!$1:$1048576,2,FALSE) -> Carbon fraction of dry matter in litter actual land use | C130: =IF('Input Land use'!K104="","",'Input Land use'!K104) ->  | L130: 0
A131: ='ID-numbers'!$A162 -> FP082cb | B131: =VLOOKUP(A131,'ID-numbers'!$1:$1048576,2,FALSE) -> Carbon fraction of dry matter in litter previous land use | C131: =IF('Input Land use'!K114="","",'Input Land use'!K114) ->  | L131: 0
A132: ='ID-numbers'!$A163 -> FP083a | B132: =VLOOKUP(A132,'ID-numbers'!$1:$1048576,2,FALSE) -> Ratio of below ground carbon stock to above ground carbon stock in living biomass actual land use | C132: =IF('Input Land use'!K97="","",'Input Land use'!K97) ->  | L132: 0
A133: ='ID-numbers'!$A164 -> FP083b | B133: =VLOOKUP(A133,'ID-numbers'!$1:$1048576,2,FALSE) -> Ratio of below ground carbon stock to above ground carbon stock in living biomass previous land use | C133: =IF('Input Land use'!K107="","",'Input Land use'!K107) ->  | L133: 0
A134: ='ID-numbers'!$A165 -> FP084a | B134: =VLOOKUP(A134,'ID-numbers'!$1:$1048576,2,FALSE) -> Below ground vegetation carbon stock in living biomass actual land use | L134: 0
A135: ='ID-numbers'!$A166 -> FP084b | B135: =VLOOKUP(A135,'ID-numbers'!$1:$1048576,2,FALSE) -> Below ground vegetation carbon stock in living biomass previous land use | L135: 0
A136: ='ID-numbers'!$A167 -> FP085a | B136: =VLOOKUP(A136,'ID-numbers'!$1:$1048576,2,FALSE) -> Weight of below ground living biomass actual land use | C136: =IF('Input Land use'!K96="","",'Input Land use'!K96) ->  | L136: 0
A137: ='ID-numbers'!$A168 -> FP085b | B137: =VLOOKUP(A137,'ID-numbers'!$1:$1048576,2,FALSE) -> Weight of below ground living biomass previous land use | C137: =IF('Input Land use'!K106="","",'Input Land use'!K106) ->  | L137: 0
A138: ='ID-numbers'!$A169 -> FP086a | B138: =VLOOKUP(A138,'ID-numbers'!$1:$1048576,2,FALSE) -> Above and below vegetation carbon stock in dead organic matter actual land use | L138: 0
A139: ='ID-numbers'!$A170 -> FP086b | B139: =VLOOKUP(A139,'ID-numbers'!$1:$1048576,2,FALSE) -> Above and below vegetation carbon stock in dead organic matter previous land use | L139: 0
A140: ='ID-numbers'!$A171 -> FP087a | B140: =VLOOKUP(A140,'ID-numbers'!$1:$1048576,2,FALSE) -> Carbon stock in dead wood pool actual land use | L140: 0
A141: ='ID-numbers'!$A172 -> FP087b | B141: =VLOOKUP(A141,'ID-numbers'!$1:$1048576,2,FALSE) -> Carbon stock in dead wood pool previous land use | L141: 0
A142: ='ID-numbers'!$A173 -> FP088a | B142: =VLOOKUP(A142,'ID-numbers'!$1:$1048576,2,FALSE) -> Weight of dead wood pool actual land use | C142: =IF('Input Land use'!K100="","",'Input Land use'!K100) ->  | L142: 0
A143: ='ID-numbers'!$A174 -> FP088b | B143: =VLOOKUP(A143,'ID-numbers'!$1:$1048576,2,FALSE) -> Weight of dead wood pool previous land use | C143: =IF('Input Land use'!K110="","",'Input Land use'!K110) ->  | L143: 0
A144: ='ID-numbers'!$A175 -> FP089a | B144: =VLOOKUP(A144,'ID-numbers'!$1:$1048576,2,FALSE) -> Carbon stock in litter actual land use | L144: 0
A145: ='ID-numbers'!$A176 -> FP089b | B145: =VLOOKUP(A145,'ID-numbers'!$1:$1048576,2,FALSE) -> Carbon stock in litter previous land use | L145: 0
A146: ='ID-numbers'!$A177 -> FP090a | B146: =VLOOKUP(A146,'ID-numbers'!$1:$1048576,2,FALSE) -> Weight of litter actual land use | C146: =IF('Input Land use'!K101="","",'Input Land use'!K101) ->  | L146: 0
A147: ='ID-numbers'!$A178 -> FP090b | B147: =VLOOKUP(A147,'ID-numbers'!$1:$1048576,2,FALSE) -> Weight of litter previous land use | C147: =IF('Input Land use'!K111="","",'Input Land use'!K111) ->  | L147: 0
A148: ='ID-numbers'!$A179 -> FP091a | B148: =VLOOKUP(A148,'ID-numbers'!$1:$1048576,2,FALSE) -> Peatland | D148: =VLOOKUP($A148,list_database1,$I$8,FALSE) ->  | F148: =IF($L148=1,IF(MonteCarlo=1,$E148,IF($C148="",$D148,$C148)),IF($C148="",$D148,$C148)) ->  | L148: 0
A149: ='ID-numbers'!$A180 -> FP091b | B149: =VLOOKUP(A149,'ID-numbers'!$1:$1048576,2,FALSE) -> Emission factor soil organic carbon_peatland | E149: =IF(MonteCarlo=1,IF($L149=1,IF($H149="n.a.",0,IF($H149<0.009,0,MIN(MAX(NORMINV(RAND(),$H149,$K149),$I149),$J149))),""),"") ->  | G149: =VLOOKUP(A149,'Production feedstock1'!$D$9:$G$5037,4,FALSE) -> 20 | H149: =IF($L149=1,IF($C149="",$D149,$C149),"") ->  | L149: 0 | O149: =IF($L149=1,VLOOKUP($A149,list_database1,$I$8+1,FALSE),"") ->  | P149: =IF($L149=1,VLOOKUP($A149,list_database1,$I$8+2,FALSE),"") -> 
A150: ='ID-numbers'!$A181 -> FP092a | B150: =VLOOKUP(A150,'ID-numbers'!$1:$1048576,2,FALSE) -> Previously degraded land | D150: =VLOOKUP($A150,list_database1,$I$8,FALSE) -> 0 | F150: =IF($L150=1,IF(MonteCarlo=1,$E150,IF($C150="",$D150,$C150)),IF($C150="",$D150,$C150)) -> 0 | I150: =IF($L150=1,IF($M150="",$O150,$M150),"") ->  | J150: =IF($L150=1,IF($N150="",$P150,$N150),"") ->  | K150: =IF($L150=1,($J150-$I150)/6,"") ->  | L150: 0
A151: ='ID-numbers'!$A182 -> FP092b | B151: =VLOOKUP(A151,'ID-numbers'!$1:$1048576,2,FALSE) -> Bonus restored degraded land | L151: 0
A152: ='ID-numbers'!$A183 -> FP093a | B152: =VLOOKUP(A152,'ID-numbers'!$1:$1048576,2,FALSE) -> Land management actual land use | D152: =VLOOKUP($A152,list_database1,$I$8,FALSE) -> No till | F152: =IF($L152=1,IF(MonteCarlo=1,$E152,IF($C152="",$D152,$C152)),IF($C152="",$D152,$C152)) -> No till | L152: 0
A153: ='ID-numbers'!$A184 -> FP093b | B153: =VLOOKUP(A153,'ID-numbers'!$1:$1048576,2,FALSE) -> Land management previous land use | D153: No till | F153: No till | L153: 0
A154: ='ID-numbers'!$A185 -> FP094a | B154: =VLOOKUP(A154,'ID-numbers'!$1:$1048576,2,FALSE) -> Input actual land use | D154: High without manure | F154: High without manure | L154: 0
A155: ='ID-numbers'!$A186 -> FP094b | B155: =VLOOKUP(A155,'ID-numbers'!$1:$1048576,2,FALSE) -> Input previous land use | D155: High without manure | F155: High without manure | L155: 0
A156: ='ID-numbers'!$A187 -> FP095a | B156: =VLOOKUP(A156,'ID-numbers'!$1:$1048576,2,FALSE) -> Domain actual land use | D156: n.a. | F156: n.a. | L156: 0
A157: ='ID-numbers'!$A188 -> FP095b | B157: =VLOOKUP(A157,'ID-numbers'!$1:$1048576,2,FALSE) -> Domain previous land use | D157: n.a. | F157: n.a. | L157: 0
A158: ='ID-numbers'!$A189 -> FP096a | B158: =VLOOKUP(A158,'ID-numbers'!$1:$1048576,2,FALSE) -> Ecological zone actual land use | D158: n.a. | F158: n.a. | L158: 0
A159: ='ID-numbers'!$A190 -> FP096b | B159: =VLOOKUP(A159,'ID-numbers'!$1:$1048576,2,FALSE) -> Ecological zone previous land use | D159: n.a. | F159: n.a. | L159: 0
A160: ='ID-numbers'!$A191 -> FP097a | B160: =VLOOKUP(A160,'ID-numbers'!$1:$1048576,2,FALSE) -> Continent actual land use | D160: n.a. | F160: n.a. | L160: 0
A161: ='ID-numbers'!$A192 -> FP097b | B161: =VLOOKUP(A161,'ID-numbers'!$1:$1048576,2,FALSE) -> Continent previous land use | D161: n.a. | F161: n.a. | L161: 0
A162: ='ID-numbers'!$A193 -> FP098a | B162: =VLOOKUP(A162,'ID-numbers'!$1:$1048576,2,FALSE) -> Type actual land use | D162: n.a. | F162: n.a. | L162: 0
A163: ='ID-numbers'!$A194 -> FP098b | B163: =VLOOKUP(A163,'ID-numbers'!$1:$1048576,2,FALSE) -> Type previous land use | D163: n.a. | F163: n.a. | L163: 0
A164: ='ID-numbers'!$A195 -> FP099 | B164: =VLOOKUP(A164,'ID-numbers'!$1:$1048576,2,FALSE) -> GHG emissions associated with indirect land use change (soil carbon release) | L164: 0
A165: ='ID-numbers'!$A196 -> FP100 | B165: =VLOOKUP(A165,'ID-numbers'!$1:$1048576,2,FALSE) -> Water use for feedstock production | C165: =IF('Input RU'!K30="","",'Input RU'!K30) ->  | D165: 22067.5 | F165: =IF($L165=1,IF(MonteCarlo=1,$E165,IF($C165="",$D165,$C165)),IF($C165="",$D165,$C165)) -> 22067.5 | H165: 22067.5 | I165: 6858.8 | J165: 37276.25 | K165: 5069.575 | L165: 1 | M165: =IF(Uncertainty!W38="","",Uncertainty!W38) ->  | N165: =IF(Uncertainty!Z38="","",Uncertainty!Z38) ->  | O165: 6858.8 | P165: 37276.25
A166: ='ID-numbers'!$A197 -> FP101 | B166: =VLOOKUP(A166,'ID-numbers'!$1:$1048576,2,FALSE) -> Allocated water use for feedstock production | L166: 0
A167: ='ID-numbers'!$A198 -> FP102a | B167: =VLOOKUP(A167,'ID-numbers'!$1:$1048576,2,FALSE) -> Totally allocated water use for feedstock production | G167: =VLOOKUP(A167,'Production feedstock1'!$D$9:$G$5037,4,FALSE) -> 422.2087851 | L167: 0
A168: ='ID-numbers'!$A199 -> FP102b | B168: =VLOOKUP(A168,'ID-numbers'!$1:$1048576,2,FALSE) -> Totally allocated water use for feedstock production | G168: =VLOOKUP(A168,'Production feedstock1'!$D$9:$G$5037,4,FALSE) -> 422.2087851 | L168: 0
A169: ='ID-numbers'!$A200 -> FP103a | B169: =VLOOKUP(A169,'ID-numbers'!$1:$1048576,2,FALSE) -> Water use for feedstock treatment 1 (drying and storage) | C169: =IF('Input RU'!K33="","",'Input RU'!K33) ->  | D169: =VLOOKUP($A169,list_database1,$I$8,FALSE) -> 0 | F169: =IF($L169=1,IF(MonteCarlo=1,$E169,IF($C169="",$D169,$C169)),IF($C169="",$D169,$C169)) -> 0 | H169: 0 | I169: 0 | J169: 0 | K169: 0 | L169: 1 | M169: =IF(Uncertainty!W51="","",Uncertainty!W51) ->  | N169: =IF(Uncertainty!Z51="","",Uncertainty!Z51) ->  | O169: 0 | P169: 0
A170: ='ID-numbers'!$A201 -> FP103b | B170: =VLOOKUP(A170,'ID-numbers'!$1:$1048576,2,FALSE) -> Water use for feedstock treatment 1 (drying and storage) | L170: 0
A171: ='ID-numbers'!$A202 -> FP104a | B171: =VLOOKUP(A171,'ID-numbers'!$1:$1048576,2,FALSE) -> Country freshwater availability | G171: =VLOOKUP(A171,'Production feedstock1'!$D$9:$G$5037,4,FALSE) -> 23320
A172: ='ID-numbers'!$A203 -> FP104b | B172: =VLOOKUP(A172,'ID-numbers'!$1:$1048576,2,FALSE) -> Country freshwater level | G172: =VLOOKUP(A172,'Production feedstock1'!$D$9:$G$5037,4,FALSE) -> high
A173: ='ID-numbers'!$A205 -> FP106a | B173: =VLOOKUP(A173,'ID-numbers'!$1:$1048576,2,FALSE) -> Totally allocated land use for feedstock production | G173: =VLOOKUP(A173,'Production feedstock1'!$D$9:$G$5037,4,FALSE) -> 0.0191326061 | L173: 0
A174: ='ID-numbers'!$A206 -> FP106b | B174: =VLOOKUP(A174,'ID-numbers'!$1:$1048576,2,FALSE) -> Totally allocated land use for feedstock production | G174: =VLOOKUP(A174,'Production feedstock1'!$D$9:$G$5037,4,FALSE) -> 0.0191326061 | L174: 0
A175: ='ID-numbers'!$A207 -> FP107a | B175: =VLOOKUP(A175,'ID-numbers'!$1:$1048576,2,FALSE) -> Carbon debt due to land use change | G175: =VLOOKUP(A175,'Production feedstock1'!$D$9:$G$5037,4,FALSE) -> 0 | L175: 0
A176: ='ID-numbers'!$A211 -> FP109 | B176: =VLOOKUP(A176,'ID-numbers'!$1:$1048576,2,FALSE) -> Input of N-fixing crop residue to the soil | C176: =IF('Input Land use'!K85="","",'Input Land use'!K85) ->  | D176: =VLOOKUP($A176,list_database1,$I$8,FALSE) -> 45 | F176: =IF($L176=1,IF(MonteCarlo=1,$E176,IF($C176="",$D176,$C176)),IF($C176="",$D176,$C176)) -> 45 | H176: 45 | I176: 0 | J176: 45 | K176: 7.5 | L176: 1 | M176: =IF(Uncertainty!W43="","",Uncertainty!W43) ->  | N176: =IF(Uncertainty!Z43="","",Uncertainty!Z43) ->  | O176: 0 | P176: 45
A177: ='ID-numbers'!$A220 -> FP115a | B177: =VLOOKUP(A177,'ID-numbers'!$1:$1048576,2,FALSE) -> Totally allocated acidification potential from feedstock production | G177: =VLOOKUP(A177,'Production feedstock1'!$D$9:$G$5037,4,FALSE) -> 0.7845069549 | L177: 0
A178: ='ID-numbers'!$A221 -> FP115b | B178: =VLOOKUP(A178,'ID-numbers'!$1:$1048576,2,FALSE) -> Totally allocated acidification potential from feedstock production | G178: =VLOOKUP(A178,'Production feedstock1'!$D$9:$G$5037,4,FALSE) -> 0.7845069549 | L178: 0
A179: ='ID-numbers'!$A238 -> FP125a | B179: =VLOOKUP(A179,'ID-numbers'!$1:$1048576,2,FALSE) -> Totally allocated eutrophication potential from feedstock production | G179: =VLOOKUP(A179,'Production feedstock1'!$D$9:$G$5037,4,FALSE) -> 1.991464699 | L179: 0
A180: ='ID-numbers'!$A239 -> FP125b | B180: =VLOOKUP(A180,'ID-numbers'!$1:$1048576,2,FALSE) -> Totally allocated eutrophication potential from feedstock production | G180: =VLOOKUP(A180,'Production feedstock1'!$D$9:$G$5037,4,FALSE) -> 1.991464699 | L180: 0
A181: ='ID-numbers'!$A242 -> FP130a | B181: =VLOOKUP(A181,'ID-numbers'!$1:$1048576,2,FALSE) -> Total (direct + indirect) N2O emissions from managed soils | L181: 0
A182: ='ID-numbers'!$A243 -> FP130b | B182: =VLOOKUP(A182,'ID-numbers'!$1:$1048576,2,FALSE) -> Total (direct + indirect) N2O emissions from managed soils | L182: 0
A183: ='ID-numbers'!$A244 -> FP131 | B183: =VLOOKUP(A183,'ID-numbers'!$1:$1048576,2,FALSE) -> Soil water saturation (yes=1,no=0) | C183: =IF('Input Land use'!K50="yes","1",IF('Input Land use'!K50="no","0","")) ->  | D183: 1 | F183: =IF($L183=1,IF(MonteCarlo=1,$E183,IF($C183="",$D183,$C183)),IF($C183="",$D183,$C183)) -> 1 | L183: 0
A184: ='ID-numbers'!$A245 -> FP132 | B184: =VLOOKUP(A184,'ID-numbers'!$1:$1048576,2,FALSE) -> Field renewal (annual crops = 1) | C184: =IF('Input Land use'!K78="","",'Input Land use'!K78) ->  | D184: 1 | F184: =IF($L184=1,IF(MonteCarlo=1,$E184,IF($C184="",$D184,$C184)),IF($C184="",$D184,$C184)) -> 1 | L184: 0
A185: ='ID-numbers'!$A246 -> FP133 | B185: =VLOOKUP(A185,'ID-numbers'!$1:$1048576,2,FALSE) -> Amount of crop residue returned to the field (only for palm) | C185: =IF('Input Land use'!K93="","",'Input Land use'!K93) ->  | D185: 0.22 | F185: =IF($L185=1,IF(MonteCarlo=1,$E185,IF($C185="",$D185,$C185)),IF($C185="",$D185,$C185)) -> 0.22 | H185: 0.22 | I185: 0 | J185: 0.5 | K185: 0.08333333333 | L185: 1 | M185: =IF(Uncertainty!W45="","",Uncertainty!W45) ->  | N185: =IF(Uncertainty!Z45="","",Uncertainty!Z45) ->  | O185: 0 | P185: 0.5
A186: ='ID-numbers'!$A247 -> FP134 | B186: =VLOOKUP(A186,'ID-numbers'!$1:$1048576,2,FALSE) -> Organic soil (yes=1,no=0) | C186: =IF('Input Land use'!K49="yes","1",IF('Input Land use'!K49="no","0","")) ->  | D186: 0 | F186: =IF($L186=1,IF(MonteCarlo=1,$E186,IF($C186="",$D186,$C186)),IF($C186="",$D186,$C186)) -> 0 | L186: 0
A187: ='ID-numbers'!$A248 -> FP135 | B187: =VLOOKUP(A187,'ID-numbers'!$1:$1048576,2,FALSE) -> Nutrient level (only for ORGANIC soils + temperate/boreal climate + forest (native and managed)) | C187: =IF('Input Land use'!K53="","",'Input Land use'!K53) ->  | D187: n.a. | F187: =IF($L187=1,IF(MonteCarlo=1,$E187,IF($C187="",$D187,$C187)),IF($C187="",$D187,$C187)) -> n.a. | L187: 0
A188: ='ID-numbers'!$A257 -> FP140 | B188: =VLOOKUP(A188,'ID-numbers'!$1:$1048576,2,FALSE) -> Total amount of organic N fertiliser applied to soil (other than by grazing animals) | L188: 0
A189: ='ID-numbers'!$A258 -> FP141a | B189: =VLOOKUP(A189,'ID-numbers'!$1:$1048576,2,FALSE) -> Amount of animal manure N applied to soil (other than by grazing animals) | C189: =IF('Input Land use'!K79="","",'Input Land use'!K79) ->  | D189: =VLOOKUP($A189,list_database1,$I$8,FALSE) -> 0 | F189: =IF($L189=1,IF(MonteCarlo=1,$E189,IF($C189="",$D189,$C189)),IF($C189="",$D189,$C189)) -> 0 | H189: 0 | I189: 0 | J189: 185 | K189: 30.83333333 | L189: 1 | M189: =IF(Uncertainty!W39="","",Uncertainty!W39) ->  | N189: =IF(Uncertainty!Z39="","",Uncertainty!Z39) ->  | O189: 0 | P189: 185
A190: ='ID-numbers'!$A259 -> FP141b | B190: =VLOOKUP(A190,'ID-numbers'!$1:$1048576,2,FALSE) -> Amount of total sewage N applied to soil | C190: =IF('Input Land use'!K81="","",'Input Land use'!K81) ->  | D190: =VLOOKUP($A190,list_database1,$I$8,FALSE) -> 0 | F190: =IF($L190=1,IF(MonteCarlo=1,$E190,IF($C190="",$D190,$C190)),IF($C190="",$D190,$C190)) -> 0 | H190: 0 | I190: 0 | J190: 0 | K190: 0 | L190: 1 | M190: =IF(Uncertainty!W40="","",Uncertainty!W40) ->  | N190: =IF(Uncertainty!Z40="","",Uncertainty!Z40) ->  | O190: 0 | P190: 0
A191: ='ID-numbers'!$A260 -> FP141c | B191: =VLOOKUP(A191,'ID-numbers'!$1:$1048576,2,FALSE) -> Amount of total compost N applied to soil | C191: =IF('Input Land use'!K82="","",'Input Land use'!K82) ->  | D191: =VLOOKUP($A191,list_database1,$I$8,FALSE) -> 0 | F191: =IF($L191=1,IF(MonteCarlo=1,$E191,IF($C191="",$D191,$C191)),IF($C191="",$D191,$C191)) -> 0 | H191: 0 | I191: 0 | J191: 0 | K191: 0 | L191: 1 | M191: =IF(Uncertainty!W41="","",Uncertainty!W41) ->  | N191: =IF(Uncertainty!Z41="","",Uncertainty!Z41) ->  | O191: 0 | P191: 0
A192: ='ID-numbers'!$A261 -> FP141d | B192: =VLOOKUP(A192,'ID-numbers'!$1:$1048576,2,FALSE) -> Amount of N of other organic amendments applied to soil (used as fertiliser) | C192: =IF('Input Land use'!K83="","",'Input Land use'!K83) ->  | D192: =VLOOKUP($A192,list_database1,$I$8,FALSE) -> 0 | F192: =IF($L192=1,IF(MonteCarlo=1,$E192,IF($C192="",$D192,$C192)),IF($C192="",$D192,$C192)) -> 0 | H192: 0 | I192: 0 | J192: 0 | K192: 0 | L192: 1 | M192: =IF(Uncertainty!W42="","",Uncertainty!W42) ->  | N192: =IF(Uncertainty!Z42="","",Uncertainty!Z42) ->  | O192: 0 | P192: 0
A193: ='ID-numbers'!$A262 -> FP142 | B193: =VLOOKUP(A193,'ID-numbers'!$1:$1048576,2,FALSE) -> Total amount of N in crop residues (including N-fixing crops and renewal) returned to soil | L193: 0
A194: ='ID-numbers'!$A263 -> FP143a | B194: =VLOOKUP(A194,'ID-numbers'!$1:$1048576,2,FALSE) -> Ratio of above-ground residues to harvested yield_calculated | G194: =VLOOKUP(A194,'Production feedstock1'!$D$9:$G$5037,4,FALSE) -> 0.3333333333 | L194: 0
A195: ='ID-numbers'!$A264 -> FP143b | B195: =VLOOKUP(A195,'ID-numbers'!$1:$1048576,2,FALSE) -> Ratio of above-ground residues to harvested yield_final | C195: =IF('Input Land use'!K88="","",'Input Land use'!K88) ->  | D195: =G194 -> 0.3333333333 | F195: =IF($L195=1,IF(MonteCarlo=1,$E195,IF($C195="",$D195,$C195)),IF($C195="",$D195,$C195)) -> 0.3333333333 | L195: 0
A196: ='ID-numbers'!$A265 -> FP144 | B196: =VLOOKUP(A196,'ID-numbers'!$1:$1048576,2,FALSE) -> Above-ground residue (dry) (=AGDM(T)) | L196: 0
A197: ='ID-numbers'!$A266 -> FP145a | B197: =VLOOKUP(A197,'ID-numbers'!$1:$1048576,2,FALSE) -> Slope to calculate above-ground residue | L197: 0
A198: ='ID-numbers'!$A267 -> FP145b | B198: =VLOOKUP(A198,'ID-numbers'!$1:$1048576,2,FALSE) -> Intercept to calculate above-ground residue | L198: 0
A199: ='ID-numbers'!$A268 -> FP146a | B199: =VLOOKUP(A199,'ID-numbers'!$1:$1048576,2,FALSE) -> Ratio of below-ground residues to harvested yield_calculated | G199: =VLOOKUP(A199,'Production feedstock1'!$D$9:$G$5037,4,FALSE) -> 0 | L199: 0
A200: ='ID-numbers'!$A269 -> FP146b | B200: =VLOOKUP(A200,'ID-numbers'!$1:$1048576,2,FALSE) -> Ratio of below-ground residues to harvested yield_final | C200: =IF('Input Land use'!K90="","",'Input Land use'!K90) ->  | D200: =G199 -> 0 | F200: =IF($L200=1,IF(MonteCarlo=1,$E200,IF($C200="",$D200,$C200)),IF($C200="",$D200,$C200)) -> 0 | L200: 0
... 1447 more rows

Sheet Data (hidden)
A1: Database variables (feedstocks & conversion)
A2: ID-numbers | D2: Description | E2: Unit | F2: Palm oil (stearin) from palm fruits, refinery | K2: Palm oil (olein) from palm fruits, refinery | U2: Biogas from organic residues, anaerobic digestion | Z2: Biogas from maize + organic residues, anaerobic digestion + purification | AE2: None | AJ2: CHP - gas | AO2: CHP - pure plant oil | AT2: CHP - dual fuel (gas + ppo) | AY2: LBM from GFT, anaerobic digestion + upgrading | BD2: No final conversion, only biofuel production | CC2: LBM from harvested grass, anaerobic digestion + upgrading | CH2: Biodiesel from fatty residues, esterification | CM2: Bio-oil from wood waste, fast pyrolysis | CR2: LBM from GFT, anaerobic digestion + upgrading
A3: Data Source | F3: DS003 (Column AA), DS002 | G3: Uncertainty | K3: DS003 (Column AA), DS002 | L3: Uncertainty | U3: DS001, DS005, DS006 | V3: Uncertainty | Z3: DS001, DS005, DS006 | AA3: Uncertainty | AF3: Uncertainty | AJ3: DS005 | AK3: Uncertainty | AO3: DS005 | AP3: Uncertainty | AT3: DS005 | AU3: Uncertainty | AY3: DS001, DS005, DS006 | AZ3: Uncertainty | BE3: Uncertainty | CC3: DS001, DS005, DS006 | CD3: Uncertainty | CH3: DS001, DS005, DS006 | CI3: Uncertainty | CM3: DS001, DS005, DS006 | CN3: Uncertainty | CR3: DS001, DS005, DS006 | CS3: Uncertainty
A4: Remarks | F4: FP - FT - BC | G4: Min | H4: Max | I4: σ | J4: distr. | K4: FP - FT - BC | L4: Min | M4: Max | N4: σ | O4: distr. | U4: FP - FT - BC | V4: Min | W4: Max | X4: σ | Y4: distr. | Z4: FP - FT - BC | AA4: Min | AB4: Max | AC4: σ | AD4: distr. | AE4: FP - FT - BC | AF4: Min | AG4: Max | AH4: σ | AI4: distr. | AJ4: FC | AK4: Min | AL4: Max | AM4: σ | AN4: distr. | AO4: FC | AP4: Min | AQ4: Max | AR4: σ | AS4: distr. | AT4: FC | AU4: Min | AV4: Max | AW4: σ | AX4: distr. | AY4: FP - FT - BC | AZ4: Min | BA4: Max | BB4: σ | BC4: distr. | BD4: FC | BE4: Min | BF4: Max | BG4: σ | BH4: distr. | CC4: FP - FT - BC | CD4: Min | CE4: Max | CF4: σ | CG4: distr. | CH4: FP - FT - BC | CI4: Min | CJ4: Max | CK4: σ | CL4: distr. | CM4: FP - FT - BC | CN4: Min | CO4: Max | CP4: σ | CQ4: distr. | CR4: FP - FT - BC | CS4: Min | CT4: Max | CU4: σ | CV4: distr.
A5: LC001 | B5: LC501 | D5: =VLOOKUP(Data!A5,'ID-numbers'!A$2:B$2373,2,FALSE) -> FT_Process description transport 1 (mode 1-2-3) | F5: Transport of FFB to the mill | K5: Transport of FFB to the mill | U5: No transport | Z5: Transport to the conversion plant | AE5: n.a. | AY5: Transport | CC5: Transport | CH5: Transport | CM5: Transport | CR5: Transport
A6: LC002 | B6: LC502 | D6: =VLOOKUP(Data!A6,'ID-numbers'!A$2:B$2373,2,FALSE) -> FT_Process description treatment 1 | F6: No treatment | K6: No treatment | U6: Storage in cellar/silage | Z6: Storage in cellar/silage | AE6: n.a. | AY6: Storage in cellar/silage | CC6: Storage in cellar/silage | CH6: Storage in cellar/silage | CM6: Storage in cellar/silage | CR6: Storage in cellar/silage
A7: LC003 | B7: LC503 | D7: =VLOOKUP(Data!A7,'ID-numbers'!A$2:B$2373,2,FALSE) -> BC_Process description conversion process 1 | F7: Production of Crude Palm Oil (CPO) | K7: Production of Crude Palm Oil (CPO) | U7: Anaerobic co-digestion | Z7: Anaerobic co-digestion | AE7: n.a. | AY7: Anaerobic digestion+post-composting | CC7: Anaerobic digestion+post-composting | CH7: Esterification | CM7: Pyrolysis | CR7: Anaerobic digestion+post-composting
A8: LC004 | B8: LC504 | D8: =VLOOKUP(Data!A8,'ID-numbers'!A$2:B$2373,2,FALSE) -> FT_Process description transport 2 (mode 4-5-6) | F8: Transport of CPO to Belgium | K8: Transport of CPO to Belgium | U8: No transport | Z8: No transport | AE8: n.a. | AY8: No transport | CC8: No transport | CH8: No transport | CM8: No transport | CR8: No transport
A9: LC005 | B9: LC505 | D9: =VLOOKUP(Data!A9,'ID-numbers'!A$2:B$2373,2,FALSE) -> FT_Process description treatment 2 | F9: No treatment | K9: No treatment | U9: Biogas storage | Z9: Biogas storage | AE9: n.a. | AY9: Biogas storage | CC9: Biogas storage | CR9: Biogas storage
A10: LC006 | B10: LC506 | D10: =VLOOKUP(Data!A10,'ID-numbers'!A$2:B$2373,2,FALSE) -> BC_Process description conversion process 2 | F10: Refinery of Crude Palm Oil | K10: Refinery of Crude Palm Oil | U10: Composting | Z10: Biogas purification | AE10: n.a. | AY10: Purification | CC10: Purification | CR10: Purification
A11: LC007 | B11: LC507 | D11: =VLOOKUP(Data!A11,'ID-numbers'!A$2:B$2373,2,FALSE) -> FT_Process description transport 3 (mode 7-8-9) | F11: Transport of PS to the final conversion unit | K11: Transport of PS to the final conversion unit | U11: No transport | Z11: No transport | AE11: n.a. | AY11: No transport | CC11: No transport | CR11: No transport
A12: LC008 | B12: LC508 | D12: =VLOOKUP(Data!A12,'ID-numbers'!A$2:B$2373,2,FALSE) -> FT_Process description treatment 3 | F12: No treatment | K12: No treatment | U12: No treatment | Z12: No treatment | AE12: n.a. | AY12: No treatment | CC12: No treatment | CR12: No treatment
A13: LC010 | D13: =VLOOKUP(Data!A13,'ID-numbers'!A$2:B$2373,2,FALSE) -> FC_Process description final conversion | AJ13: Combustion at CHP plant | AO13: Combustion at CHP plant | AT13: Combustion at CHP plant | BD13: No final conversion
A15: FP001 | B15: FP501 | D15: =VLOOKUP(Data!A15,'ID-numbers'!A$2:B$2373,2,FALSE) -> Feedstock type 1 | E15: =VLOOKUP(Data!A15,'ID-numbers'!A$2:C$1640,3,FALSE) -> - | F15: Fresh palm fruit bunches (FFB) | I15: n.a. | J15: n.a. | K15: Fresh palm fruit bunches (FFB) | N15: n.a. | O15: n.a. | U15: No crop | X15: n.a. | Y15: n.a. | Z15: Maize (corn) | AC15: n.a. | AD15: n.a. | AE15: No crop | AH15: n.a. | AI15: n.a. | AM15: n.a. | AN15: n.a. | AR15: n.a. | AS15: n.a. | AW15: n.a. | AX15: n.a. | AY15: No crop | BB15: n.a. | BC15: n.a. | BG15: n.a. | BH15: n.a. | CC15: No crop | CF15: n.a. | CG15: n.a. | CH15: No crop | CK15: n.a. | CL15: n.a. | CM15: No crop | CP15: n.a. | CQ15: n.a. | CR15: No crop | CU15: n.a. | CV15: n.a.
A16: FP002 | B16: FP502 | D16: =VLOOKUP(Data!A16,'ID-numbers'!A$2:B$1640,2,FALSE) -> Origin of the feedstock | E16: =VLOOKUP(Data!A16,'ID-numbers'!A$2:C$1640,3,FALSE) -> - | F16: Malaysia | I16: n.a. | J16: n.a. | K16: Malaysia | N16: n.a. | O16: n.a. | U16: Netherlands | X16: n.a. | Y16: n.a. | Z16: Belgium | AC16: n.a. | AD16: n.a. | AE16: n.a. | AH16: n.a. | AI16: n.a. | AM16: n.a. | AN16: n.a. | AR16: n.a. | AS16: n.a. | AW16: n.a. | AX16: n.a. | AY16: Netherlands | BB16: n.a. | BC16: n.a. | BG16: n.a. | BH16: n.a. | CC16: Netherlands | CF16: n.a. | CG16: n.a. | CH16: Netherlands | CK16: n.a. | CL16: n.a. | CM16: Netherlands | CP16: n.a. | CQ16: n.a. | CR16: Belgium | CU16: n.a. | CV16: n.a.
A17: FP003a | B17: FP503a | D17: =VLOOKUP(Data!A17,'ID-numbers'!A$2:B$1640,2,FALSE) -> Yield rate (moist/wet) of feedstock 1 per ha | E17: =VLOOKUP(Data!A17,'ID-numbers'!A$2:C$1640,3,FALSE) -> kg/ha | F17: 19000 | G17: 11450 | H17: 21000 | I17: =(H17-G17)/6 -> 1591.666667 | J17: normal | K17: 19000 | L17: 11450 | M17: 21000 | N17: =(M17-L17)/6 -> 1591.666667 | O17: normal | U17: 32000000 | V17: 400000 | W17: 600000 | X17: =(W17-V17)/6 -> 33333.33333 | Y17: normal | Z17: 44000 | AA17: 41000 | AB17: 47000 | AC17: =(AB17-AA17)/6 -> 1000 | AD17: normal | AE17: 0 | AF17: 0 | AG17: 0 | AH17: =(AG17-AF17)/6 -> 0 | AI17: normal | AM17: =(AL17-AK17)/6 -> 0 | AN17: normal | AR17: =(AQ17-AP17)/6 -> 0 | AS17: normal | AW17: =(AV17-AU17)/6 -> 0 | AX17: normal | AY17: 32000000 | BB17: =(BA17-AZ17)/6 -> 0 | BC17: normal | BG17: =(BF17-BE17)/6 -> 0 | BH17: normal | CC17: 7770000 | CF17: =(CE17-CD17)/6 -> 0 | CG17: normal | CH17: 8000000 | CK17: =(CJ17-CI17)/6 -> 0 | CL17: normal | CM17: 44737000 | CP17: =(CO17-CN17)/6 -> 0 | CQ17: normal | CR17: 32000000 | CU17: =(CT17-CS17)/6 -> 0 | CV17: normal
A18: FP005 | B18: FP505 | D18: =VLOOKUP(Data!A18,'ID-numbers'!A$2:B$1640,2,FALSE) -> Number of harvests per year | E18: =VLOOKUP(Data!A18,'ID-numbers'!A$2:C$1640,3,FALSE) -> 1/yr | F18: 1 | I18: n.a. | J18: n.a. | K18: 1 | N18: n.a. | O18: n.a. | U18: 0 | X18: n.a. | Y18: n.a. | Z18: 1 | AC18: n.a. | AD18: n.a. | AE18: 0 | AH18: n.a. | AI18: n.a. | AM18: n.a. | AN18: n.a. | AR18: n.a. | AS18: n.a. | AW18: n.a. | AX18: n.a. | AY18: 0 | BB18: n.a. | BC18: n.a. | BG18: n.a. | BH18: n.a. | CC18: 0 | CF18: n.a. | CG18: n.a. | CH18: 0 | CK18: n.a. | CL18: n.a. | CM18: 0 | CP18: n.a. | CQ18: n.a. | CR18: 0 | CU18: n.a. | CV18: n.a.
A19: FP009 | B19: FP509 | D19: =VLOOKUP(Data!A19,'ID-numbers'!A$2:B$1640,2,FALSE) -> Moisture content of the harvested crop | E19: =VLOOKUP(Data!A19,'ID-numbers'!A$2:C$1640,3,FALSE) -> % | F19: 34 | G19: 30 | H19: 36 | I19: =(H19-G19)/6 -> 1 | J19: normal | K19: 34 | L19: 30 | M19: 36 | N19: =(M19-L19)/6 -> 1 | O19: normal | U19: 55 | V19: 40 | W19: 60 | X19: =(W19-V19)/6 -> 3.333333333 | Y19: normal | Z19: 70 | AA19: 65 | AB19: 73 | AC19: =(AB19-AA19)/6 -> 1.333333333 | AD19: normal | AE19: 0 | AF19: 0 | AG19: 0 | AH19: =(AG19-AF19)/6 -> 0 | AI19: normal | AM19: =(AL19-AK19)/6 -> 0 | AN19: normal | AR19: =(AQ19-AP19)/6 -> 0 | AS19: normal | AW19: =(AV19-AU19)/6 -> 0 | AX19: normal | AY19: 55 | BB19: =(BA19-AZ19)/6 -> 0 | BC19: normal | BG19: =(BF19-BE19)/6 -> 0 | BH19: normal | CC19: 62 | CF19: =(CE19-CD19)/6 -> 0 | CG19: normal | CH19: 1.21 | CK19: =(CJ19-CI19)/6 -> 0 | CL19: normal | CM19: 5 | CP19: =(CO19-CN19)/6 -> 0 | CQ19: normal | CR19: 55 | CU19: =(CT19-CS19)/6 -> 0 | CV19: normal
A20: FP016a | B20: FP516a | D20: =VLOOKUP(Data!A20,'ID-numbers'!A$2:B$1640,2,FALSE) -> Type of by-product 1 | E20: =VLOOKUP(Data!A20,'ID-numbers'!A$2:C$1640,3,FALSE) -> - | F20: n.a. | I20: n.a. | J20: n.a. | K20: n.a. | N20: n.a. | O20: n.a. | U20: n.a. | X20: n.a. | Y20: n.a. | Z20: n.a. | AC20: n.a. | AD20: n.a. | AE20: n.a. | AH20: n.a. | AI20: n.a. | AM20: n.a. | AN20: n.a. | AR20: n.a. | AS20: n.a. | AW20: n.a. | AX20: n.a. | AY20: n.a. | BB20: n.a. | BC20: n.a. | BG20: n.a. | BH20: n.a. | CC20: n.a. | CF20: n.a. | CG20: n.a. | CH20: n.a. | CK20: n.a. | CL20: n.a. | CM20: n.a. | CP20: n.a. | CQ20: n.a. | CR20: n.a. | CU20: n.a. | CV20: n.a.
A21: FP016b | B21: FP516b | D21: =VLOOKUP(Data!A21,'ID-numbers'!A$2:B$1640,2,FALSE) -> Type of by-product 2 | E21: =VLOOKUP(Data!A21,'ID-numbers'!A$2:C$1640,3,FALSE) -> - | F21: n.a. | I21: n.a. | J21: n.a. | K21: n.a. | N21: n.a. | O21: n.a. | U21: n.a. | X21: n.a. | Y21: n.a. | Z21: n.a. | AC21: n.a. | AD21: n.a. | AE21: n.a. | AH21: n.a. | AI21: n.a. | AM21: n.a. | AN21: n.a. | AR21: n.a. | AS21: n.a. | AW21: n.a. | AX21: n.a. | AY21: n.a. | BB21: n.a. | BC21: n.a. | BG21: n.a. | BH21: n.a. | CC21: n.a. | CF21: n.a. | CG21: n.a. | CH21: n.a. | CK21: n.a. | CL21: n.a. | CM21: n.a. | CP21: n.a. | CQ21: n.a. | CR21: n.a. | CU21: n.a. | CV21: n.a.
A22: FP017a | B22: FP517a | D22: =VLOOKUP(Data!A22,'ID-numbers'!A$2:B$1640,2,FALSE) -> Yield rate (moist/wet) of by-product 1 per ha | E22: =VLOOKUP(Data!A22,'ID-numbers'!A$2:C$1640,3,FALSE) -> kg/ha | F22: 0 | G22: 0 | H22: 0 | I22: =(H22-G22)/6 -> 0 | J22: normal | K22: 0 | L22: 0 | M22: 0 | N22: =(M22-L22)/6 -> 0 | O22: normal | U22: 0 | V22: 0 | W22: 0 | X22: =(W22-V22)/6 -> 0 | Y22: normal | Z22: 0 | AA22: 0 | AB22: 0 | AC22: =(AB22-AA22)/6 -> 0 | AD22: normal | AE22: 0 | AF22: 0 | AG22: 0 | AH22: =(AG22-AF22)/6 -> 0 | AI22: normal | AM22: =(AL22-AK22)/6 -> 0 | AN22: normal | AR22: =(AQ22-AP22)/6 -> 0 | AS22: normal | AW22: =(AV22-AU22)/6 -> 0 | AX22: normal | AY22: 0 | BB22: =(BA22-AZ22)/6 -> 0 | BC22: normal | BG22: =(BF22-BE22)/6 -> 0 | BH22: normal | CC22: 0 | CF22: =(CE22-CD22)/6 -> 0 | CG22: normal | CH22: 0 | CK22: =(CJ22-CI22)/6 -> 0 | CL22: normal | CM22: 0 | CP22: =(CO22-CN22)/6 -> 0 | CQ22: normal | CR22: 0 | CU22: =(CT22-CS22)/6 -> 0 | CV22: normal
A23: FP017b | B23: FP517b | D23: =VLOOKUP(Data!A23,'ID-numbers'!A$2:B$1640,2,FALSE) -> Yield rate (moist/wet) of by-product 2 per ha | E23: =VLOOKUP(Data!A23,'ID-numbers'!A$2:C$1640,3,FALSE) -> kg/ha | F23: 0 | G23: 0 | H23: 0 | I23: =(H23-G23)/6 -> 0 | J23: normal | K23: 0 | L23: 0 | M23: 0 | N23: =(M23-L23)/6 -> 0 | O23: normal | U23: 0 | V23: 0 | W23: 0 | X23: =(W23-V23)/6 -> 0 | Y23: normal | Z23: 0 | AA23: 0 | AB23: 0 | AC23: =(AB23-AA23)/6 -> 0 | AD23: normal | AE23: 0 | AF23: 0 | AG23: 0 | AH23: =(AG23-AF23)/6 -> 0 | AI23: normal | AM23: =(AL23-AK23)/6 -> 0 | AN23: normal | AR23: =(AQ23-AP23)/6 -> 0 | AS23: normal | AW23: =(AV23-AU23)/6 -> 0 | AX23: normal | AY23: 0 | BB23: =(BA23-AZ23)/6 -> 0 | BC23: normal | BG23: =(BF23-BE23)/6 -> 0 | BH23: normal | CC23: 0 | CF23: =(CE23-CD23)/6 -> 0 | CG23: normal | CH23: 0 | CK23: =(CJ23-CI23)/6 -> 0 | CL23: normal | CM23: 0 | CP23: =(CO23-CN23)/6 -> 0 | CQ23: normal | CR23: 0 | CU23: =(CT23-CS23)/6 -> 0 | CV23: normal
A24: FP019a | B24: FP519a | D24: =VLOOKUP(Data!A24,'ID-numbers'!A$2:B$1640,2,FALSE) -> Moisture content of by-product 1 | E24: =VLOOKUP(Data!A24,'ID-numbers'!A$2:C$1640,3,FALSE) -> % | F24: 0 | G24: 0 | H24: 0 | I24: 0 | J24: normal | K24: 0 | L24: 0 | M24: 0 | N24: 0 | O24: normal | U24: 0 | V24: 0 | W24: 0 | X24: 0 | Y24: normal | Z24: 0 | AA24: 0 | AB24: 0 | AC24: 0 | AD24: normal | AE24: 0 | AF24: 0 | AG24: 0 | AH24: 0 | AI24: normal | AM24: 0 | AN24: normal | AR24: 0 | AS24: normal | AW24: 0 | AX24: normal | AY24: 0 | BB24: 0 | BC24: normal | BG24: 0 | BH24: normal | CC24: 0 | CF24: 0 | CG24: normal | CH24: 0 | CK24: 0 | CL24: normal | CM24: 0 | CP24: 0 | CQ24: normal | CR24: 0 | CU24: 0 | CV24: normal
A25: FP019b | B25: FP519b | D25: =VLOOKUP(Data!A25,'ID-numbers'!A$2:B$1640,2,FALSE) -> Moisture content of by-product 2 | E25: =VLOOKUP(Data!A25,'ID-numbers'!A$2:C$1640,3,FALSE) -> % | F25: 0 | G25: 0 | H25: 0 | I25: 0 | J25: normal | K25: 0 | L25: 0 | M25: 0 | N25: 0 | O25: normal | U25: 0 | V25: 0 | W25: 0 | X25: 0 | Y25: normal | Z25: 0 | AA25: 0 | AB25: 0 | AC25: 0 | AD25: normal | AE25: 0 | AF25: 0 | AG25: 0 | AH25: 0 | AI25: normal | AM25: 0 | AN25: normal | AR25: 0 | AS25: normal | AW25: 0 | AX25: normal | AY25: 0 | BB25: 0 | BC25: normal | BG25: 0 | BH25: normal | CC25: 0 | CF25: 0 | CG25: normal | CH25: 0 | CK25: 0 | CL25: normal | CM25: 0 | CP25: 0 | CQ25: normal | CR25: 0 | CU25: 0 | CV25: normal
A26: FP021a | B26: FP521a | D26: =VLOOKUP(Data!A26,'ID-numbers'!A$2:B$1640,2,FALSE) -> Valorisation of by-product 1 | E26: =VLOOKUP(Data!A26,'ID-numbers'!A$2:C$1640,3,FALSE) -> binary | F26: 0 | I26: n.a. | J26: n.a. | K26: 0 | N26: n.a. | O26: n.a. | U26: 0 | X26: n.a. | Y26: n.a. | Z26: 0 | AC26: n.a. | AD26: n.a. | AE26: 0 | AH26: n.a. | AI26: n.a. | AM26: n.a. | AN26: n.a. | AR26: n.a. | AS26: n.a. | AW26: n.a. | AX26: n.a. | AY26: 0 | BB26: n.a. | BC26: n.a. | BG26: n.a. | BH26: n.a. | CC26: 0 | CF26: n.a. | CG26: n.a. | CH26: 0 | CK26: n.a. | CL26: n.a. | CM26: 0 | CP26: n.a. | CQ26: n.a. | CR26: 0 | CU26: n.a. | CV26: n.a.
A27: FP021b | B27: FP521b | D27: =VLOOKUP(Data!A27,'ID-numbers'!A$2:B$1640,2,FALSE) -> Valorisation of by-product 2 | E27: =VLOOKUP(Data!A27,'ID-numbers'!A$2:C$1640,3,FALSE) -> binary | F27: 0 | I27: n.a. | J27: n.a. | K27: 0 | N27: n.a. | O27: n.a. | U27: 0 | X27: n.a. | Y27: n.a. | Z27: 0 | AC27: n.a. | AD27: n.a. | AE27: 0 | AH27: n.a. | AI27: n.a. | AM27: n.a. | AN27: n.a. | AR27: n.a. | AS27: n.a. | AW27: n.a. | AX27: n.a. | AY27: 0 | BB27: n.a. | BC27: n.a. | BG27: n.a. | BH27: n.a. | CC27: 0 | CF27: n.a. | CG27: n.a. | CH27: 0 | CK27: n.a. | CL27: n.a. | CM27: 0 | CP27: n.a. | CQ27: n.a. | CR27: 0 | CU27: n.a. | CV27: n.a.
A28: FP022 | B28: FP522 | D28: =VLOOKUP(Data!A28,'ID-numbers'!A$2:B$1640,2,FALSE) -> Use of seeds | E28: =VLOOKUP(Data!A28,'ID-numbers'!A$2:C$1640,3,FALSE) -> kg/ha | F28: 0 | G28: 0 | H28: 200 | I28: =(H28-G28)/6 -> 33.33333333 | J28: normal | K28: 0 | L28: 0 | M28: 200 | N28: =(M28-L28)/6 -> 33.33333333 | O28: normal | U28: 0 | V28: 0 | W28: 0 | X28: =(W28-V28)/6 -> 0 | Y28: normal | Z28: 0 | AA28: 0 | AB28: 0 | AC28: =(AB28-AA28)/6 -> 0 | AD28: normal | AE28: 0 | AF28: 0 | AG28: 0 | AH28: =(AG28-AF28)/6 -> 0 | AI28: normal | AM28: =(AL28-AK28)/6 -> 0 | AN28: normal | AR28: =(AQ28-AP28)/6 -> 0 | AS28: normal | AW28: =(AV28-AU28)/6 -> 0 | AX28: normal | AY28: 0 | BB28: =(BA28-AZ28)/6 -> 0 | BC28: normal | BG28: =(BF28-BE28)/6 -> 0 | BH28: normal | CC28: 0 | CF28: =(CE28-CD28)/6 -> 0 | CG28: normal | CH28: 0 | CK28: =(CJ28-CI28)/6 -> 0 | CL28: normal | CM28: 0 | CP28: =(CO28-CN28)/6 -> 0 | CQ28: normal | CR28: 0 | CU28: =(CT28-CS28)/6 -> 0 | CV28: normal
A29: FP023a | B29: FP523a | D29: =VLOOKUP(Data!A29,'ID-numbers'!A$2:B$1640,2,FALSE) -> Use of N fertiliser (synthetic) | E29: =VLOOKUP(Data!A29,'ID-numbers'!A$2:C$1640,3,FALSE) -> kg/ha | F29: 127.908 | G29: 0 | H29: 185 | I29: 30.83333333 | J29: normal | K29: 127.908 | L29: 0 | M29: 185 | N29: 30.83333333 | O29: normal | U29: 0 | V29: 0 | W29: 0 | X29: 0 | Y29: normal | Z29: 185 | AA29: 0 | AB29: 250 | AC29: 41.66666667 | AD29: normal | AE29: 0 | AF29: 0 | AG29: 0 | AH29: 0 | AI29: normal | AM29: 0 | AN29: normal | AR29: 0 | AS29: normal | AW29: 0 | AX29: normal | AY29: 0 | BB29: 0 | BC29: normal | BG29: 0 | BH29: normal | CC29: 0 | CF29: 0 | CG29: normal | CH29: 0 | CK29: 0 | CL29: normal | CM29: 0 | CP29: 0 | CQ29: normal | CR29: 0 | CU29: 0 | CV29: normal
A30: FP023b | B30: FP523b | D30: =VLOOKUP(Data!A30,'ID-numbers'!A$2:B$1640,2,FALSE) -> Use of P2O5 fertiliser | E30: =VLOOKUP(Data!A30,'ID-numbers'!A$2:C$1640,3,FALSE) -> kg/ha | F30: 143.792 | G30: 0 | H30: 160 | I30: 26.66666667 | J30: normal | K30: 143.792 | L30: 0 | M30: 160 | N30: 26.66666667 | O30: normal | U30: 0 | V30: 0 | W30: 0 | X30: 0 | Y30: normal | Z30: 0 | AA30: 0 | AB30: 0 | AC30: 0 | AD30: normal | AE30: 0 | AF30: 0 | AG30: 0 | AH30: 0 | AI30: normal | AM30: 0 | AN30: normal | AR30: 0 | AS30: normal | AW30: 0 | AX30: normal | AY30: 0 | BB30: 0 | BC30: normal | BG30: 0 | BH30: normal | CC30: 0 | CF30: 0 | CG30: normal | CH30: 0 | CK30: 0 | CL30: normal | CM30: 0 | CP30: 0 | CQ30: normal | CR30: 0 | CU30: 0 | CV30: normal
A31: FP023c | B31: FP523c | D31: =VLOOKUP(Data!A31,'ID-numbers'!A$2:B$1640,2,FALSE) -> Use of K2O fertiliser | E31: =VLOOKUP(Data!A31,'ID-numbers'!A$2:C$1640,3,FALSE) -> kg/ha | F31: 199.804 | G31: 0 | H31: 250 | I31: 41.66666667 | J31: normal | K31: 199.804 | L31: 0 | M31: 250 | N31: 41.66666667 | O31: normal | U31: 0 | V31: 0 | W31: 0 | X31: 0 | Y31: normal | Z31: 150 | AA31: 0 | AB31: 180 | AC31: 30 | AD31: normal | AE31: 0 | AF31: 0 | AG31: 0 | AH31: 0 | AI31: normal | AM31: 0 | AN31: normal | AR31: 0 | AS31: normal | AW31: 0 | AX31: normal | AY31: 0 | BB31: 0 | BC31: normal | BG31: 0 | BH31: normal | CC31: 0 | CF31: 0 | CG31: normal | CH31: 0 | CK31: 0 | CL31: normal | CM31: 0 | CP31: 0 | CQ31: normal | CR31: 0 | CU31: 0 | CV31: normal
A32: FP023d | B32: FP523d | D32: =VLOOKUP(Data!A32,'ID-numbers'!A$2:B$1640,2,FALSE) -> Use of CaO fertiliser | E32: =VLOOKUP(Data!A32,'ID-numbers'!A$2:C$1640,3,FALSE) -> kg/ha | F32: 0 | G32: 0 | H32: 100 | I32: 16.66666667 | J32: normal | K32: 0 | L32: 0 | M32: 100 | N32: 16.66666667 | O32: normal | U32: 0 | V32: 0 | W32: 0 | X32: 0 | Y32: normal | Z32: 0 | AA32: 0 | AB32: 0 | AC32: 0 | AD32: normal | AE32: 0 | AF32: 0 | AG32: 0 | AH32: 0 | AI32: normal | AM32: 0 | AN32: normal | AR32: 0 | AS32: normal | AW32: 0 | AX32: normal | AY32: 0 | BB32: 0 | BC32: normal | BG32: 0 | BH32: normal | CC32: 0 | CF32: 0 | CG32: normal | CH32: 0 | CK32: 0 | CL32: normal | CM32: 0 | CP32: 0 | CQ32: normal | CR32: 0 | CU32: 0 | CV32: normal
A33: FP023e | B33: FP523e | D33: =VLOOKUP(Data!A33,'ID-numbers'!A$2:B$1640,2,FALSE) -> Use of pesticides | E33: =VLOOKUP(Data!A33,'ID-numbers'!A$2:C$1640,3,FALSE) -> kg/ha | F33: 8.36 | G33: 0 | H33: 15 | I33: 2.5 | J33: normal | K33: 8.36 | L33: 0 | M33: 15 | N33: 2.5 | O33: normal | U33: 0 | V33: 0 | W33: 0 | X33: 0 | Y33: normal | Z33: 0 | AA33: 0 | AB33: 0 | AC33: 0 | AD33: normal | AE33: 0 | AF33: 0 | AG33: 0 | AH33: 0 | AI33: normal | AM33: 0 | AN33: normal | AR33: 0 | AS33: normal | AW33: 0 | AX33: normal | AY33: 0 | BB33: 0 | BC33: normal | BG33: 0 | BH33: normal | CC33: 0 | CF33: 0 | CG33: normal | CH33: 0 | CK33: 0 | CL33: normal | CM33: 0 | CP33: 0 | CQ33: normal | CR33: 0 | CU33: 0 | CV33: normal
A34: FP034 | B34: FP534 | D34: =VLOOKUP(Data!A34,'ID-numbers'!A$2:B$1640,2,FALSE) -> Type of fuel used for agricultural machinery | E34: =VLOOKUP(Data!A34,'ID-numbers'!A$2:C$1640,3,FALSE) -> - | F34: Diesel | I34: n.a. | J34: n.a. | K34: Diesel | N34: n.a. | O34: n.a. | U34: n.a. | X34: n.a. | Y34: n.a. | Z34: Diesel | AC34: n.a. | AD34: n.a. | AE34: n.a. | AH34: n.a. | AI34: n.a. | AM34: n.a. | AN34: n.a. | AR34: n.a. | AS34: n.a. | AW34: n.a. | AX34: n.a. | AY34: n.a. | BB34: n.a. | BC34: n.a. | BG34: n.a. | BH34: n.a. | CC34: n.a. | CF34: n.a. | CG34: n.a. | CH34: n.a. | CK34: n.a. | CL34: n.a. | CM34: n.a. | CP34: n.a. | CQ34: n.a. | CR34: n.a. | CU34: n.a. | CV34: n.a.
A35: FP037 | B35: FP537 | D35: =VLOOKUP(Data!A35,'ID-numbers'!A$2:B$1640,2,FALSE) -> Amount of fuel used in agricultural machinery | E35: =VLOOKUP(Data!A35,'ID-numbers'!A$2:C$1640,3,FALSE) -> kg/ha | F35: 47.902 | G35: 40 | H35: 75 | I35: 5.833333333 | J35: normal | K35: 47.902 | L35: 40 | M35: 75 | N35: =(M35-L35)/6 -> 5.833333333 | O35: normal | U35: 0 | V35: 0 | W35: 0 | X35: =(W35-V35)/6 -> 0 | Y35: normal | Z35: 41.6 | AA35: 35 | AB35: 55 | AC35: =(AB35-AA35)/6 -> 3.333333333 | AD35: normal | AE35: 0 | AF35: 0 | AG35: 0 | AH35: =(AG35-AF35)/6 -> 0 | AI35: normal | AM35: =(AL35-AK35)/6 -> 0 | AN35: normal | AR35: =(AQ35-AP35)/6 -> 0 | AS35: normal | AW35: =(AV35-AU35)/6 -> 0 | AX35: normal | AY35: 0 | BB35: =(BA35-AZ35)/6 -> 0 | BC35: normal | BG35: =(BF35-BE35)/6 -> 0 | BH35: normal | CC35: 0 | CF35: =(CE35-CD35)/6 -> 0 | CG35: normal | CH35: 0 | CK35: =(CJ35-CI35)/6 -> 0 | CL35: normal | CM35: 0 | CP35: =(CO35-CN35)/6 -> 0 | CQ35: normal | CR35: 0 | CU35: =(CT35-CS35)/6 -> 0 | CV35: normal
A36: FP040 | B36: FP540 | D36: =VLOOKUP(Data!A36,'ID-numbers'!A$2:B$1640,2,FALSE) -> Heat energy use for drying and storage of the crop | E36: =VLOOKUP(Data!A36,'ID-numbers'!A$2:C$1640,3,FALSE) -> MJheat/kgfm | F36: 0 | G36: 0 | H36: 0 | I36: 0 | J36: normal | K36: 0 | L36: 0 | M36: 0 | N36: 0 | O36: normal | U36: 0 | V36: 0 | W36: 0 | X36: 0 | Y36: normal | Z36: 0 | AA36: 0 | AB36: 0 | AC36: 0 | AD36: normal | AE36: 0 | AF36: 0 | AG36: 0 | AH36: 0 | AI36: normal | AM36: 0 | AN36: normal | AR36: 0 | AS36: normal | AW36: 0 | AX36: normal | AY36: 0 | BB36: 0 | BC36: normal | BG36: 0 | BH36: normal | CC36: 0 | CF36: 0 | CG36: normal | CH36: 0 | CK36: 0 | CL36: normal | CM36: 0 | CP36: 0 | CQ36: normal | CR36: 0 | CU36: 0 | CV36: normal
A37: FP041 | B37: FP541 | D37: =VLOOKUP(Data!A37,'ID-numbers'!A$2:B$1640,2,FALSE) -> Heat source | E37: =VLOOKUP(Data!A37,'ID-numbers'!A$2:C$1640,3,FALSE) -> - | F37: n.a. | I37: n.a. | J37: n.a. | K37: n.a. | N37: n.a. | O37: n.a. | U37: n.a. | X37: n.a. | Y37: n.a. | Z37: n.a. | AC37: n.a. | AD37: n.a. | AE37: n.a. | AH37: n.a. | AI37: n.a. | AM37: n.a. | AN37: n.a. | AR37: n.a. | AS37: n.a. | AW37: n.a. | AX37: n.a. | AY37: n.a. | BB37: n.a. | BC37: n.a. | BG37: n.a. | BH37: n.a. | CC37: n.a. | CF37: n.a. | CG37: n.a. | CH37: n.a. | CK37: n.a. | CL37: n.a. | CM37: n.a. | CP37: n.a. | CQ37: n.a. | CR37: n.a. | CU37: n.a. | CV37: n.a.
A38: FP043 | B38: FP543 | D38: =VLOOKUP(Data!A38,'ID-numbers'!A$2:B$1640,2,FALSE) -> Electricity energy use for drying and storage of the crop | E38: =VLOOKUP(Data!A38,'ID-numbers'!A$2:C$1640,3,FALSE) -> MJe/kgfm | F38: 0 | G38: 0 | H38: 0 | I38: 0 | J38: normal | K38: 0 | L38: 0 | M38: 0 | N38: =(M38-L38)/6 -> 0 | O38: normal | U38: 0 | V38: 0 | W38: 0 | X38: =(W38-V38)/6 -> 0 | Y38: normal | Z38: 0 | AA38: 0 | AB38: 0 | AC38: =(AB38-AA38)/6 -> 0 | AD38: normal | AE38: 0 | AF38: 0 | AG38: 0 | AH38: =(AG38-AF38)/6 -> 0 | AI38: normal | AM38: =(AL38-AK38)/6 -> 0 | AN38: normal | AR38: =(AQ38-AP38)/6 -> 0 | AS38: normal | AW38: =(AV38-AU38)/6 -> 0 | AX38: normal | AY38: 0 | BB38: =(BA38-AZ38)/6 -> 0 | BC38: normal | BG38: =(BF38-BE38)/6 -> 0 | BH38: normal | CC38: 0 | CF38: =(CE38-CD38)/6 -> 0 | CG38: normal | CH38: 0 | CK38: =(CJ38-CI38)/6 -> 0 | CL38: normal | CM38: 0 | CP38: =(CO38-CN38)/6 -> 0 | CQ38: normal | CR38: 0 | CU38: =(CT38-CS38)/6 -> 0 | CV38: normal
A39: FP044 | B39: FP544 | D39: =VLOOKUP(Data!A39,'ID-numbers'!A$2:B$1640,2,FALSE) -> Electricity source | E39: =VLOOKUP(Data!A39,'ID-numbers'!A$2:C$1640,3,FALSE) -> - | F39: n.a. | I39: n.a. | J39: n.a. | K39: n.a. | N39: n.a. | O39: n.a. | U39: n.a. | X39: n.a. | Y39: n.a. | Z39: n.a. | AC39: n.a. | AD39: n.a. | AE39: n.a. | AH39: n.a. | AI39: n.a. | AM39: n.a. | AN39: n.a. | AR39: n.a. | AS39: n.a. | AW39: n.a. | AX39: n.a. | AY39: n.a. | BB39: n.a. | BC39: n.a. | BG39: n.a. | BH39: n.a. | CC39: n.a. | CF39: n.a. | CG39: n.a. | CH39: n.a. | CK39: n.a. | CL39: n.a. | CM39: n.a. | CP39: n.a. | CQ39: n.a. | CR39: n.a. | CU39: n.a. | CV39: n.a.
A40: FP047 | B40: FP547 | D40: =VLOOKUP(Data!A40,'ID-numbers'!A$2:B$1640,2,FALSE) -> Pretreated feedstock | E40: =VLOOKUP(Data!A40,'ID-numbers'!A$2:C$1640,3,FALSE) -> - | F40: Fresh palm fruit bunches (FFB) | I40: n.a. | J40: n.a. | K40: Fresh palm fruit bunches (FFB) | N40: n.a. | O40: n.a. | U40: Organic domestical waste | X40: n.a. | Y40: n.a. | Z40: Maize (corn) | AC40: n.a. | AD40: n.a. | AE40: No crop | AH40: n.a. | AI40: n.a. | AM40: n.a. | AN40: n.a. | AR40: n.a. | AS40: n.a. | AW40: n.a. | AX40: n.a. | AY40: Organic domestical waste | BB40: n.a. | BC40: n.a. | BG40: n.a. | BH40: n.a. | CC40: Harvested grass | CF40: n.a. | CG40: n.a. | CH40: Fatty residues | CK40: n.a. | CL40: n.a. | CM40: Wood waste | CP40: n.a. | CQ40: n.a. | CR40: Organic domestical waste | CU40: n.a. | CV40: n.a.
A41: FP049 | B41: FP549 | D41: =VLOOKUP(Data!A41,'ID-numbers'!A$2:B$1640,2,FALSE) -> Energy content pretreated feedstock (LHV) | E41: =VLOOKUP(Data!A41,'ID-numbers'!A$2:C$1640,3,FALSE) -> MJ/kgdm | F41: =VLOOKUP(F40,matrix_standardvalues_fuelsfeedstockcoproductssolids,14,FALSE) -> 24 | K41: =VLOOKUP(K40,matrix_standardvalues_fuelsfeedstockcoproductssolids,14,FALSE) -> 24 | U41: =VLOOKUP(U40,matrix_standardvalues_fuelsfeedstockcoproductssolids,14,FALSE) -> 10.1 | Z41: =VLOOKUP(Z40,matrix_standardvalues_fuelsfeedstockcoproductssolids,14,FALSE) -> 18.5 | AE41: =VLOOKUP(AE40,matrix_standardvalues_fuelsfeedstockcoproductssolids,14,FALSE) -> 0 | AY41: =VLOOKUP(AY40,matrix_standardvalues_fuelsfeedstockcoproductssolids,14,FALSE) -> 10.1 | CC41: =VLOOKUP(CC40,matrix_standardvalues_fuelsfeedstockcoproductssolids,14,FALSE) -> 17.2 | CH41: =VLOOKUP(CH40,matrix_standardvalues_fuelsfeedstockcoproductssolids,14,FALSE) -> 38.8 | CM41: =VLOOKUP(CM40,matrix_standardvalues_fuelsfeedstockcoproductssolids,14,FALSE) -> 17.73 | CR41: =VLOOKUP(CR40,matrix_standardvalues_fuelsfeedstockcoproductssolids,14,FALSE) -> 10.1
A42: FP054 | B42: FP554 | D42: =VLOOKUP(Data!A42,'ID-numbers'!A$2:B$1640,2,FALSE) -> Yield loss through treatment and transport of feedstock 1 | E42: =VLOOKUP(Data!A42,'ID-numbers'!A$2:C$1640,3,FALSE) -> % | F42: 2 | G42: 0 | H42: 5 | I42: 0.8333333333 | J42: normal | K42: 2 | L42: 0 | M42: 5 | N42: =(M42-L42)/6 -> 0.8333333333 | O42: normal | U42: 0 | V42: 0 | W42: 5 | X42: =(W42-V42)/6 -> 0.8333333333 | Y42: normal | Z42: 0 | AA42: 0 | AB42: 5 | AC42: =(AB42-AA42)/6 -> 0.8333333333 | AD42: normal | AE42: 0 | AF42: 0 | AG42: 0 | AH42: =(AG42-AF42)/6 -> 0 | AI42: normal | AM42: =(AL42-AK42)/6 -> 0 | AN42: normal | AR42: =(AQ42-AP42)/6 -> 0 | AS42: normal | AW42: =(AV42-AU42)/6 -> 0 | AX42: normal | AY42: 0 | BB42: =(BA42-AZ42)/6 -> 0 | BC42: normal | BG42: =(BF42-BE42)/6 -> 0 | BH42: normal | CC42: 0 | CF42: =(CE42-CD42)/6 -> 0 | CG42: normal | CH42: 0 | CK42: =(CJ42-CI42)/6 -> 0 | CL42: normal | CM42: 0 | CP42: =(CO42-CN42)/6 -> 0 | CQ42: normal | CR42: 0 | CU42: =(CT42-CS42)/6 -> 0 | CV42: normal
A43: FP070a | B43: FP570a | D43: =VLOOKUP(Data!A43,'ID-numbers'!A$2:B$1640,2,FALSE) -> Climate region | E43: =VLOOKUP(Data!A43,'ID-numbers'!A$2:C$1640,3,FALSE) -> - | F43: Tropical Wet | I43: n.a. | J43: n.a. | K43: Tropical Wet | N43: n.a. | O43: n.a. | U43: n.a. | X43: n.a. | Y43: n.a. | Z43: Cool temperate moist | AC43: n.a. | AD43: n.a. | AE43: n.a. | AH43: n.a. | AI43: n.a. | AM43: n.a. | AN43: n.a. | AR43: n.a. | AS43: n.a. | AW43: n.a. | AX43: n.a. | AY43: n.a. | BB43: n.a. | BC43: n.a. | BG43: n.a. | BH43: n.a. | CC43: n.a. | CF43: n.a. | CG43: n.a. | CH43: n.a. | CK43: n.a. | CL43: n.a. | CM43: n.a. | CP43: n.a. | CQ43: n.a. | CR43: n.a. | CU43: n.a. | CV43: n.a.
A44: FP070b | B44: FP570b | D44: =VLOOKUP(Data!A44,'ID-numbers'!A$2:B$1640,2,FALSE) -> Soil type | E44: =VLOOKUP(Data!A44,'ID-numbers'!A$2:C$1640,3,FALSE) -> - | F44: Low activity clay soils | I44: n.a. | J44: n.a. | K44: Low activity clay soils | N44: n.a. | O44: n.a. | U44: n.a. | X44: n.a. | Y44: n.a. | Z44: High activity clay soils | AC44: n.a. | AD44: n.a. | AE44: n.a. | AH44: n.a. | AI44: n.a. | AM44: n.a. | AN44: n.a. | AR44: n.a. | AS44: n.a. | AW44: n.a. | AX44: n.a. | AY44: n.a. | BB44: n.a. | BC44: n.a. | BG44: n.a. | BH44: n.a. | CC44: n.a. | CF44: n.a. | CG44: n.a. | CH44: n.a. | CK44: n.a. | CL44: n.a. | CM44: n.a. | CP44: n.a. | CQ44: n.a. | CR44: n.a. | CU44: n.a. | CV44: n.a.
A45: FP069a | B45: FP569a | D45: =VLOOKUP(Data!A45,'ID-numbers'!A$2:B$1640,2,FALSE) -> Actual land use | E45: =VLOOKUP(Data!A45,'ID-numbers'!A$2:C$1640,3,FALSE) -> - | F45: Perennial cropland | I45: n.a. | J45: n.a. | K45: Perennial cropland | N45: n.a. | O45: n.a. | U45: n.a. | X45: n.a. | Y45: n.a. | Z45: Annual cropland | AC45: n.a. | AD45: n.a. | AE45: n.a. | AH45: n.a. | AI45: n.a. | AM45: n.a. | AN45: n.a. | AR45: n.a. | AS45: n.a. | AW45: n.a. | AX45: n.a. | AY45: n.a. | BB45: n.a. | BC45: n.a. | BG45: n.a. | BH45: n.a. | CC45: n.a. | CF45: n.a. | CG45: n.a. | CH45: n.a. | CK45: n.a. | CL45: n.a. | CM45: n.a. | CP45: n.a. | CQ45: n.a. | CR45: n.a. | CU45: n.a. | CV45: n.a.
A46: FP069c | B46: FP569c | D46: =VLOOKUP(Data!A46,'ID-numbers'!A$2:B$1640,2,FALSE) -> Actual land use_specific for carbon stock veg | E46: =VLOOKUP(Data!A46,'ID-numbers'!A$2:C$1640,3,FALSE) -> - | F46: Oil palm | I46: n.a. | J46: n.a. | K46: Oil palm | N46: n.a. | O46: n.a. | U46: n.a. | X46: n.a. | Y46: n.a. | Z46: All other annual crops | AC46: n.a. | AD46: n.a. | AE46: n.a. | AH46: n.a. | AI46: n.a. | AM46: n.a. | AN46: n.a. | AR46: n.a. | AS46: n.a. | AW46: n.a. | AX46: n.a. | AY46: n.a. | BB46: n.a. | BC46: n.a. | BG46: n.a. | BH46: n.a. | CC46: n.a. | CF46: n.a. | CG46: n.a. | CH46: n.a. | CK46: n.a. | CL46: n.a. | CM46: n.a. | CP46: n.a. | CQ46: n.a. | CR46: n.a. | CU46: n.a. | CV46: n.a.
A47: FP070c | B47: FP570c | D47: =VLOOKUP(Data!A47,'ID-numbers'!A$2:B$1640,2,FALSE) -> Climate region_specific for carbon stock_actual land use | E47: =VLOOKUP(Data!A47,'ID-numbers'!A$2:C$1640,3,FALSE) -> - | F47: Tropical wet | I47: n.a. | J47: n.a. | K47: Tropical wet | N47: n.a. | O47: n.a. | U47: n.a. | X47: n.a. | Y47: n.a. | Z47: Cool temperate moist | AC47: n.a. | AD47: n.a. | AE47: n.a. | AH47: n.a. | AI47: n.a. | AM47: n.a. | AN47: n.a. | AR47: n.a. | AS47: n.a. | AW47: n.a. | AX47: n.a. | AY47: n.a. | BB47: n.a. | BC47: n.a. | BG47: n.a. | BH47: n.a. | CC47: n.a. | CF47: n.a. | CG47: n.a. | CH47: n.a. | CK47: n.a. | CL47: n.a. | CM47: n.a. | CP47: n.a. | CQ47: n.a. | CR47: n.a. | CU47: n.a. | CV47: n.a.
A48: FP093a | B48: FP593a | D48: =VLOOKUP(Data!A48,'ID-numbers'!A$2:B$1640,2,FALSE) -> Land management actual land use | E48: =VLOOKUP(Data!A48,'ID-numbers'!A$2:C$1640,3,FALSE) -> - | F48: No till | I48: n.a. | J48: n.a. | K48: No till | N48: n.a. | O48: n.a. | U48: n.a. | X48: n.a. | Y48: n.a. | Z48: Reduced tillage | AC48: n.a. | AD48: n.a. | AE48: n.a. | AH48: n.a. | AI48: n.a. | AM48: n.a. | AN48: n.a. | AR48: n.a. | AS48: n.a. | AW48: n.a. | AX48: n.a. | AY48: n.a. | BB48: n.a. | BC48: n.a. | BG48: n.a. | BH48: n.a. | CC48: n.a. | CF48: n.a. | CG48: n.a. | CH48: n.a. | CK48: n.a. | CL48: n.a. | CM48: n.a. | CP48: n.a. | CQ48: n.a. | CR48: n.a. | CU48: n.a. | CV48: n.a.
A49: FP094a | B49: FP594a | D49: =VLOOKUP(Data!A49,'ID-numbers'!A$2:B$1640,2,FALSE) -> Input actual land use | E49: =VLOOKUP(Data!A49,'ID-numbers'!A$2:C$1640,3,FALSE) -> - | F49: High without manure | I49: n.a. | J49: n.a. | K49: High without manure | N49: n.a. | O49: n.a. | U49: n.a. | X49: n.a. | Y49: n.a. | Z49: Medium | AC49: n.a. | AD49: n.a. | AE49: n.a. | AH49: n.a. | AI49: n.a. | AM49: n.a. | AN49: n.a. | AR49: n.a. | AS49: n.a. | AW49: n.a. | AX49: n.a. | AY49: n.a. | BB49: n.a. | BC49: n.a. | BG49: n.a. | BH49: n.a. | CC49: n.a. | CF49: n.a. | CG49: n.a. | CH49: n.a. | CK49: n.a. | CL49: n.a. | CM49: n.a. | CP49: n.a. | CQ49: n.a. | CR49: n.a. | CU49: n.a. | CV49: n.a.
A50: FP095a | B50: FP595a | D50: =VLOOKUP(Data!A50,'ID-numbers'!A$2:B$1640,2,FALSE) -> Domain actual land use | E50: =VLOOKUP(Data!A50,'ID-numbers'!A$2:C$1640,3,FALSE) -> - | F50: n.a. | I50: n.a. | J50: n.a. | K50: n.a. | N50: n.a. | O50: n.a. | U50: n.a. | X50: n.a. | Y50: n.a. | Z50: n.a. | AC50: n.a. | AD50: n.a. | AE50: n.a. | AH50: n.a. | AI50: n.a. | AM50: n.a. | AN50: n.a. | AR50: n.a. | AS50: n.a. | AW50: n.a. | AX50: n.a. | AY50: n.a. | BB50: n.a. | BC50: n.a. | BG50: n.a. | BH50: n.a. | CC50: n.a. | CF50: n.a. | CG50: n.a. | CH50: n.a. | CK50: n.a. | CL50: n.a. | CM50: n.a. | CP50: n.a. | CQ50: n.a. | CR50: n.a. | CU50: n.a. | CV50: n.a.
A51: FP096a | B51: FP596a | D51: =VLOOKUP(Data!A51,'ID-numbers'!A$2:B$1640,2,FALSE) -> Ecological zone actual land use | E51: =VLOOKUP(Data!A51,'ID-numbers'!A$2:C$1640,3,FALSE) -> - | F51: n.a. | I51: n.a. | J51: n.a. | K51: n.a. | N51: n.a. | O51: n.a. | U51: n.a. | X51: n.a. | Y51: n.a. | Z51: n.a. | AC51: n.a. | AD51: n.a. | AE51: n.a. | AH51: n.a. | AI51: n.a. | AM51: n.a. | AN51: n.a. | AR51: n.a. | AS51: n.a. | AW51: n.a. | AX51: n.a. | AY51: n.a. | BB51: n.a. | BC51: n.a. | BG51: n.a. | BH51: n.a. | CC51: n.a. | CF51: n.a. | CG51: n.a. | CH51: n.a. | CK51: n.a. | CL51: n.a. | CM51: n.a. | CP51: n.a. | CQ51: n.a. | CR51: n.a. | CU51: n.a. | CV51: n.a.
A52: FP097a | B52: FP597a | D52: =VLOOKUP(Data!A52,'ID-numbers'!A$2:B$1640,2,FALSE) -> Continent actual land use | E52: =VLOOKUP(Data!A52,'ID-numbers'!A$2:C$1640,3,FALSE) -> - | F52: n.a. | I52: n.a. | J52: n.a. | K52: n.a. | N52: n.a. | O52: n.a. | U52: n.a. | X52: n.a. | Y52: n.a. | Z52: n.a. | AC52: n.a. | AD52: n.a. | AE52: n.a. | AH52: n.a. | AI52: n.a. | AM52: n.a. | AN52: n.a. | AR52: n.a. | AS52: n.a. | AW52: n.a. | AX52: n.a. | AY52: n.a. | BB52: n.a. | BC52: n.a. | BG52: n.a. | BH52: n.a. | CC52: n.a. | CF52: n.a. | CG52: n.a. | CH52: n.a. | CK52: n.a. | CL52: n.a. | CM52: n.a. | CP52: n.a. | CQ52: n.a. | CR52: n.a. | CU52: n.a. | CV52: n.a.
A53: FP098a | B53: FP598a | D53: =VLOOKUP(Data!A53,'ID-numbers'!A$2:B$1640,2,FALSE) -> Type actual land use | E53: =VLOOKUP(Data!A53,'ID-numbers'!A$2:C$1640,3,FALSE) -> - | F53: n.a. | I53: n.a. | J53: n.a. | K53: n.a. | N53: n.a. | O53: n.a. | U53: n.a. | X53: n.a. | Y53: n.a. | Z53: n.a. | AC53: n.a. | AD53: n.a. | AE53: n.a. | AH53: n.a. | AI53: n.a. | AM53: n.a. | AN53: n.a. | AR53: n.a. | AS53: n.a. | AW53: n.a. | AX53: n.a. | AY53: n.a. | BB53: n.a. | BC53: n.a. | BG53: n.a. | BH53: n.a. | CC53: n.a. | CF53: n.a. | CG53: n.a. | CH53: n.a. | CK53: n.a. | CL53: n.a. | CM53: n.a. | CP53: n.a. | CQ53: n.a. | CR53: n.a. | CU53: n.a. | CV53: n.a.
A54: FP069b | B54: FP569b | D54: =VLOOKUP(Data!A54,'ID-numbers'!A$2:B$1640,2,FALSE) -> Previous land use (January 1st, 2008) | E54: =VLOOKUP(Data!A54,'ID-numbers'!A$2:C$1640,3,FALSE) -> - | F54: Perennial cropland | I54: n.a. | J54: n.a. | K54: Perennial cropland | N54: n.a. | O54: n.a. | U54: n.a. | X54: n.a. | Y54: n.a. | Z54: Grassland and savannah | AC54: n.a. | AD54: n.a. | AE54: n.a. | AH54: n.a. | AI54: n.a. | AM54: n.a. | AN54: n.a. | AR54: n.a. | AS54: n.a. | AW54: n.a. | AX54: n.a. | AY54: n.a. | BB54: n.a. | BC54: n.a. | BG54: n.a. | BH54: n.a. | CC54: n.a. | CF54: n.a. | CG54: n.a. | CH54: n.a. | CK54: n.a. | CL54: n.a. | CM54: n.a. | CP54: n.a. | CQ54: n.a. | CR54: n.a. | CU54: n.a. | CV54: n.a.
A55: FP069d | B55: FP569d | D55: =VLOOKUP(Data!A55,'ID-numbers'!A$2:B$1640,2,FALSE) -> Previous land use (January 1st, 2008)_specific for carbon stock veg | E55: =VLOOKUP(Data!A55,'ID-numbers'!A$2:C$1640,3,FALSE) -> - | F55: Oil palm | I55: n.a. | J55: n.a. | K55: Oil palm | N55: n.a. | O55: n.a. | U55: n.a. | X55: n.a. | Y55: n.a. | Z55: Grassland and savannah | AC55: n.a. | AD55: n.a. | AE55: n.a. | AH55: n.a. | AI55: n.a. | AM55: n.a. | AN55: n.a. | AR55: n.a. | AS55: n.a. | AW55: n.a. | AX55: n.a. | AY55: n.a. | BB55: n.a. | BC55: n.a. | BG55: n.a. | BH55: n.a. | CC55: n.a. | CF55: n.a. | CG55: n.a. | CH55: n.a. | CK55: n.a. | CL55: n.a. | CM55: n.a. | CP55: n.a. | CQ55: n.a. | CR55: n.a. | CU55: n.a. | CV55: n.a.
A56: FP070d | B56: FP570d | D56: =VLOOKUP(Data!A56,'ID-numbers'!A$2:B$1640,2,FALSE) -> Climate region_specific for carbon stock_previous land use | E56: =VLOOKUP(Data!A56,'ID-numbers'!A$2:C$1640,3,FALSE) -> - | F56: Tropical wet | I56: n.a. | J56: n.a. | K56: Tropical wet | N56: n.a. | O56: n.a. | U56: n.a. | X56: n.a. | Y56: n.a. | Z56: Cool temperate moist | AC56: n.a. | AD56: n.a. | AE56: n.a. | AH56: n.a. | AI56: n.a. | AM56: n.a. | AN56: n.a. | AR56: n.a. | AS56: n.a. | AW56: n.a. | AX56: n.a. | AY56: n.a. | BB56: n.a. | BC56: n.a. | BG56: n.a. | BH56: n.a. | CC56: n.a. | CF56: n.a. | CG56: n.a. | CH56: n.a. | CK56: n.a. | CL56: n.a. | CM56: n.a. | CP56: n.a. | CQ56: n.a. | CR56: n.a. | CU56: n.a. | CV56: n.a.
A57: FP093b | B57: FP593b | D57: =VLOOKUP(Data!A57,'ID-numbers'!A$2:B$1640,2,FALSE) -> Land management previous land use | E57: =VLOOKUP(Data!A57,'ID-numbers'!A$2:C$1640,3,FALSE) -> - | F57: No till | I57: n.a. | J57: n.a. | K57: No till | N57: n.a. | O57: n.a. | U57: n.a. | X57: n.a. | Y57: n.a. | Z57: Nominally managed | AC57: n.a. | AD57: n.a. | AE57: n.a. | AH57: n.a. | AI57: n.a. | AM57: n.a. | AN57: n.a. | AR57: n.a. | AS57: n.a. | AW57: n.a. | AX57: n.a. | AY57: n.a. | BB57: n.a. | BC57: n.a. | BG57: n.a. | BH57: n.a. | CC57: n.a. | CF57: n.a. | CG57: n.a. | CH57: n.a. | CK57: n.a. | CL57: n.a. | CM57: n.a. | CP57: n.a. | CQ57: n.a. | CR57: n.a. | CU57: n.a. | CV57: n.a.
A58: FP094b | B58: FP594b | D58: =VLOOKUP(Data!A58,'ID-numbers'!A$2:B$1640,2,FALSE) -> Input previous land use | E58: =VLOOKUP(Data!A58,'ID-numbers'!A$2:C$1640,3,FALSE) -> - | F58: High without manure | I58: n.a. | J58: n.a. | K58: High without manure | N58: n.a. | O58: n.a. | U58: n.a. | X58: n.a. | Y58: n.a. | Z58: Medium | AC58: n.a. | AD58: n.a. | AE58: n.a. | AH58: n.a. | AI58: n.a. | AM58: n.a. | AN58: n.a. | AR58: n.a. | AS58: n.a. | AW58: n.a. | AX58: n.a. | AY58: n.a. | BB58: n.a. | BC58: n.a. | BG58: n.a. | BH58: n.a. | CC58: n.a. | CF58: n.a. | CG58: n.a. | CH58: n.a. | CK58: n.a. | CL58: n.a. | CM58: n.a. | CP58: n.a. | CQ58: n.a. | CR58: n.a. | CU58: n.a. | CV58: n.a.
A59: FP095b | B59: FP595b | D59: =VLOOKUP(Data!A59,'ID-numbers'!A$2:B$1640,2,FALSE) -> Domain previous land use | E59: =VLOOKUP(Data!A59,'ID-numbers'!A$2:C$1640,3,FALSE) -> - | F59: n.a. | I59: n.a. | J59: n.a. | K59: n.a. | N59: n.a. | O59: n.a. | U59: n.a. | X59: n.a. | Y59: n.a. | Z59: n.a. | AC59: n.a. | AD59: n.a. | AE59: n.a. | AH59: n.a. | AI59: n.a. | AM59: n.a. | AN59: n.a. | AR59: n.a. | AS59: n.a. | AW59: n.a. | AX59: n.a. | AY59: n.a. | BB59: n.a. | BC59: n.a. | BG59: n.a. | BH59: n.a. | CC59: n.a. | CF59: n.a. | CG59: n.a. | CH59: n.a. | CK59: n.a. | CL59: n.a. | CM59: n.a. | CP59: n.a. | CQ59: n.a. | CR59: n.a. | CU59: n.a. | CV59: n.a.
A60: FP096b | B60: FP596b | D60: =VLOOKUP(Data!A60,'ID-numbers'!A$2:B$1640,2,FALSE) -> Ecological zone previous land use | E60: =VLOOKUP(Data!A60,'ID-numbers'!A$2:C$1640,3,FALSE) -> - | F60: n.a. | I60: n.a. | J60: n.a. | K60: n.a. | N60: n.a. | O60: n.a. | U60: n.a. | X60: n.a. | Y60: n.a. | Z60: n.a. | AC60: n.a. | AD60: n.a. | AE60: n.a. | AH60: n.a. | AI60: n.a. | AM60: n.a. | AN60: n.a. | AR60: n.a. | AS60: n.a. | AW60: n.a. | AX60: n.a. | AY60: n.a. | BB60: n.a. | BC60: n.a. | BG60: n.a. | BH60: n.a. | CC60: n.a. | CF60: n.a. | CG60: n.a. | CH60: n.a. | CK60: n.a. | CL60: n.a. | CM60: n.a. | CP60: n.a. | CQ60: n.a. | CR60: n.a. | CU60: n.a. | CV60: n.a.
A61: FP097b | B61: FP597b | D61: =VLOOKUP(Data!A61,'ID-numbers'!A$2:B$1640,2,FALSE) -> Continent previous land use | E61: =VLOOKUP(Data!A61,'ID-numbers'!A$2:C$1640,3,FALSE) -> - | F61: n.a. | I61: n.a. | J61: n.a. | K61: n.a. | N61: n.a. | O61: n.a. | U61: n.a. | X61: n.a. | Y61: n.a. | Z61: n.a. | AC61: n.a. | AD61: n.a. | AE61: n.a. | AH61: n.a. | AI61: n.a. | AM61: n.a. | AN61: n.a. | AR61: n.a. | AS61: n.a. | AW61: n.a. | AX61: n.a. | AY61: n.a. | BB61: n.a. | BC61: n.a. | BG61: n.a. | BH61: n.a. | CC61: n.a. | CF61: n.a. | CG61: n.a. | CH61: n.a. | CK61: n.a. | CL61: n.a. | CM61: n.a. | CP61: n.a. | CQ61: n.a. | CR61: n.a. | CU61: n.a. | CV61: n.a.
A62: FP098b | B62: FP598b | D62: =VLOOKUP(Data!A62,'ID-numbers'!A$2:B$1640,2,FALSE) -> Type previous land use | E62: =VLOOKUP(Data!A62,'ID-numbers'!A$2:C$1640,3,FALSE) -> - | F62: n.a. | I62: n.a. | J62: n.a. | K62: n.a. | N62: n.a. | O62: n.a. | U62: n.a. | X62: n.a. | Y62: n.a. | Z62: n.a. | AC62: n.a. | AD62: n.a. | AE62: n.a. | AH62: n.a. | AI62: n.a. | AM62: n.a. | AN62: n.a. | AR62: n.a. | AS62: n.a. | AW62: n.a. | AX62: n.a. | AY62: n.a. | BB62: n.a. | BC62: n.a. | BG62: n.a. | BH62: n.a. | CC62: n.a. | CF62: n.a. | CG62: n.a. | CH62: n.a. | CK62: n.a. | CL62: n.a. | CM62: n.a. | CP62: n.a. | CQ62: n.a. | CR62: n.a. | CU62: n.a. | CV62: n.a.
A63: FP092a | B63: FP592a | D63: =VLOOKUP(Data!A63,'ID-numbers'!A$2:B$1640,2,FALSE) -> Previously degraded land | E63: =VLOOKUP(Data!A63,'ID-numbers'!A$2:C$1640,3,FALSE) -> - | F63: 0 | I63: n.a. | J63: n.a. | K63: 0 | N63: n.a. | O63: n.a. | U63: 0 | X63: n.a. | Y63: n.a. | Z63: 0 | AC63: n.a. | AD63: n.a. | AE63: 0 | AH63: n.a. | AI63: n.a. | AM63: n.a. | AN63: n.a. | AR63: n.a. | AS63: n.a. | AW63: n.a. | AX63: n.a. | AY63: 0 | BB63: n.a. | BC63: n.a. | BG63: n.a. | BH63: n.a. | CC63: 0 | CF63: n.a. | CG63: n.a. | CH63: 0 | CK63: n.a. | CL63: n.a. | CM63: 0 | CP63: n.a. | CQ63: n.a. | CR63: 0 | CU63: n.a. | CV63: n.a.
A64: FP100 | B64: FP600 | D64: =VLOOKUP(Data!A64,'ID-numbers'!A$2:B$1640,2,FALSE) -> Water use for feedstock production | E64: =VLOOKUP(Data!A64,'ID-numbers'!A$2:C$1640,3,FALSE) -> m³/ha | F64: 22067.5 | G64: 6858.8 | H64: 37276.25 | I64: =(H64-G64)/6 -> 5069.575 | J64: normal | K64: 22067.5 | L64: 6858.8 | M64: 37276.25 | N64: =(M64-L64)/6 -> 5069.575 | O64: normal | U64: 0 | V64: 0 | W64: 0 | X64: =(W64-V64)/6 -> 0 | Y64: normal | Z64: 2019.6 | AA64: 0 | AB64: 2500 | AC64: =(AB64-AA64)/6 -> 416.6666667 | AD64: normal | AE64: 0 | AF64: 0 | AG64: 0 | AH64: =(AG64-AF64)/6 -> 0 | AI64: normal | AM64: =(AL64-AK64)/6 -> 0 | AN64: normal | AR64: =(AQ64-AP64)/6 -> 0 | AS64: normal | AW64: =(AV64-AU64)/6 -> 0 | AX64: normal | AY64: 0 | BB64: =(BA64-AZ64)/6 -> 0 | BC64: normal | BG64: =(BF64-BE64)/6 -> 0 | BH64: normal | CC64: 0 | CF64: =(CE64-CD64)/6 -> 0 | CG64: normal | CH64: 0 | CK64: =(CJ64-CI64)/6 -> 0 | CL64: normal | CM64: 0 | CP64: =(CO64-CN64)/6 -> 0 | CQ64: normal | CR64: 0 | CU64: =(CT64-CS64)/6 -> 0 | CV64: normal
A65: FP103a | B65: FP603a | D65: =VLOOKUP(Data!A65,'ID-numbers'!A$2:B$1640,2,FALSE) -> Water use for feedstock treatment 1 (drying and storage) | E65: =VLOOKUP(Data!A65,'ID-numbers'!A$2:C$1640,3,FALSE) -> m³/kgfm | F65: 0 | G65: 0 | H65: 0 | I65: 0 | J65: normal | K65: 0 | L65: 0 | M65: 0 | N65: 0 | O65: normal | U65: 0 | V65: 0 | W65: 0 | X65: 0 | Y65: normal | Z65: 0 | AA65: 0 | AB65: 0 | AC65: 0 | AD65: normal | AE65: 0 | AF65: 0 | AG65: 0 | AH65: 0 | AI65: normal | AM65: 0 | AN65: normal | AR65: 0 | AS65: normal | AW65: 0 | AX65: normal | AY65: 0 | BB65: 0 | BC65: normal | BG65: 0 | BH65: normal | CC65: 0 | CF65: 0 | CG65: normal | CH65: 0 | CK65: 0 | CL65: normal | CM65: 0 | CP65: 0 | CQ65: normal | CR65: 0 | CU65: 0 | CV65: normal
A66: FP109 | B66: FP609 | D66: =VLOOKUP(Data!A66,'ID-numbers'!A$2:B$1640,2,FALSE) -> Input of N-fixing crop residue to the soil | E66: =VLOOKUP(Data!A66,'ID-numbers'!A$2:C$1640,3,FALSE) -> kg/ha | F66: 45 | G66: 0 | H66: 45 | I66: 7.5 | J66: normal | K66: 45 | L66: 0 | M66: 45 | N66: 7.5 | O66: normal | U66: 0 | V66: 0 | W66: 0 | X66: 0 | Y66: normal | Z66: 0 | AA66: 0 | AB66: 60 | AC66: 10 | AD66: normal | AE66: 0 | AF66: 0 | AG66: 0 | AH66: 0 | AI66: normal | AM66: 0 | AN66: normal | AR66: 0 | AS66: normal | AW66: 0 | AX66: normal | AY66: 0 | BB66: 0 | BC66: normal | BG66: 0 | BH66: normal | CC66: 0 | CF66: 0 | CG66: normal | CH66: 0 | CK66: 0 | CL66: normal | CM66: 0 | CP66: 0 | CQ66: normal | CR66: 0 | CU66: 0 | CV66: normal
A67: FP131 | B67: FP631 | D67: =VLOOKUP(Data!A67,'ID-numbers'!A$2:B$1640,2,FALSE) -> Soil water saturation (yes=1,no=0) | E67: =VLOOKUP(Data!A67,'ID-numbers'!A$2:C$1640,3,FALSE) -> binary | F67: 1 | I67: n.a. | J67: n.a. | K67: 1 | N67: n.a. | O67: n.a. | U67: n.a. | X67: n.a. | Y67: n.a. | Z67: 1 | AC67: n.a. | AD67: n.a. | AE67: n.a. | AH67: n.a. | AI67: n.a. | AM67: n.a. | AN67: n.a. | AR67: n.a. | AS67: n.a. | AW67: n.a. | AX67: n.a. | AY67: n.a. | BB67: n.a. | BC67: n.a. | BG67: n.a. | BH67: n.a. | CC67: n.a. | CF67: n.a. | CG67: n.a. | CH67: n.a. | CK67: n.a. | CL67: n.a. | CM67: n.a. | CP67: n.a. | CQ67: n.a. | CR67: n.a. | CU67: n.a. | CV67: n.a.
A68: FP132 | B68: FP632 | D68: =VLOOKUP(Data!A68,'ID-numbers'!A$2:B$1640,2,FALSE) -> Field renewal (annual crops = 1) | E68: =VLOOKUP(Data!A68,'ID-numbers'!A$2:C$1640,3,FALSE) -> years | F68: 1 | I68: n.a. | J68: n.a. | K68: 1 | N68: n.a. | O68: n.a. | U68: 0 | X68: n.a. | Y68: n.a. | Z68: 1 | AC68: n.a. | AD68: n.a. | AE68: 0 | AH68: n.a. | AI68: n.a. | AM68: n.a. | AN68: n.a. | AR68: n.a. | AS68: n.a. | AW68: n.a. | AX68: n.a. | AY68: 0 | BB68: n.a. | BC68: n.a. | BG68: n.a. | BH68: n.a. | CC68: 0 | CF68: n.a. | CG68: n.a. | CH68: 0 | CK68: n.a. | CL68: n.a. | CM68: 0 | CP68: n.a. | CQ68: n.a. | CR68: 0 | CU68: n.a. | CV68: n.a.
A69: FP133 | B69: FP633 | D69: =VLOOKUP(Data!A69,'ID-numbers'!A$2:B$1640,2,FALSE) -> Amount of crop residue returned to the field (only for palm) | E69: =VLOOKUP(Data!A69,'ID-numbers'!A$2:C$1640,3,FALSE) -> kgdm/kgfm | F69: 0.22 | G69: 0 | H69: 0.5 | I69: =(H69-G69)/6 -> 0.08333333333 | J69: normal | K69: 0.22 | L69: 0 | M69: 0.5 | N69: =(M69-L69)/6 -> 0.08333333333 | O69: normal | U69: 0 | V69: 0 | W69: 0 | X69: =(W69-V69)/6 -> 0 | Y69: normal | Z69: 0 | AA69: 0 | AB69: 0 | AC69: =(AB69-AA69)/6 -> 0 | AD69: normal | AE69: 0 | AF69: 0 | AG69: 0 | AH69: =(AG69-AF69)/6 -> 0 | AI69: normal | AM69: =(AL69-AK69)/6 -> 0 | AN69: normal | AR69: =(AQ69-AP69)/6 -> 0 | AS69: normal | AW69: =(AV69-AU69)/6 -> 0 | AX69: normal | AY69: 0 | BB69: =(BA69-AZ69)/6 -> 0 | BC69: normal | BG69: =(BF69-BE69)/6 -> 0 | BH69: normal | CC69: 0 | CF69: =(CE69-CD69)/6 -> 0 | CG69: normal | CH69: 0 | CK69: =(CJ69-CI69)/6 -> 0 | CL69: normal | CM69: 0 | CP69: =(CO69-CN69)/6 -> 0 | CQ69: normal | CR69: 0 | CU69: =(CT69-CS69)/6 -> 0 | CV69: normal
A70: FP134 | B70: FP634 | C70: FP136 | D70: =VLOOKUP(Data!A70,'ID-numbers'!A$2:B$1640,2,FALSE) -> Organic soil (yes=1,no=0) | E70: =VLOOKUP(Data!A70,'ID-numbers'!A$2:C$1640,3,FALSE) -> binary | F70: 0 | I70: n.a. | J70: n.a. | K70: 0 | N70: n.a. | O70: n.a. | U70: 0 | X70: n.a. | Y70: n.a. | Z70: 0 | AC70: n.a. | AD70: n.a. | AE70: n.a. | AH70: n.a. | AI70: n.a. | AM70: n.a. | AN70: n.a. | AR70: n.a. | AS70: n.a. | AW70: n.a. | AX70: n.a. | AY70: 0 | BB70: n.a. | BC70: n.a. | BG70: n.a. | BH70: n.a. | CC70: 0 | CF70: n.a. | CG70: n.a. | CH70: 0 | CK70: n.a. | CL70: n.a. | CM70: 0 | CP70: n.a. | CQ70: n.a. | CR70: 0 | CU70: n.a. | CV70: n.a.
A71: FP135 | B71: FP635 | D71: =VLOOKUP(Data!A71,'ID-numbers'!A$2:B$1640,2,FALSE) -> Nutrient level (only for ORGANIC soils + temperate/boreal climate + forest (native and managed)) | E71: =VLOOKUP(Data!A71,'ID-numbers'!A$2:C$1640,3,FALSE) -> - | F71: n.a. | I71: n.a. | J71: n.a. | K71: n.a. | N71: n.a. | O71: n.a. | U71: n.a. | X71: n.a. | Y71: n.a. | Z71: n.a. | AC71: n.a. | AD71: n.a. | AE71: n.a. | AH71: n.a. | AI71: n.a. | AM71: n.a. | AN71: n.a. | AR71: n.a. | AS71: n.a. | AW71: n.a. | AX71: n.a. | AY71: n.a. | BB71: n.a. | BC71: n.a. | BG71: n.a. | BH71: n.a. | CC71: n.a. | CF71: n.a. | CG71: n.a. | CH71: n.a. | CK71: n.a. | CL71: n.a. | CM71: n.a. | CP71: n.a. | CQ71: n.a. | CR71: n.a. | CU71: n.a. | CV71: n.a.
A72: FP141a | B72: FP641a | D72: =VLOOKUP(Data!A72,'ID-numbers'!A$2:B$1640,2,FALSE) -> Amount of animal manure N applied to soil (other than by grazing animals) | E72: =VLOOKUP(Data!A72,'ID-numbers'!A$2:C$1640,3,FALSE) -> kgN/ha | F72: 0 | G72: 0 | H72: 185 | I72: =(H72-G72)/6 -> 30.83333333 | J72: normal | K72: 0 | L72: 0 | M72: 185 | N72: =(M72-L72)/6 -> 30.83333333 | O72: normal | U72: 0 | V72: 0 | W72: 0 | X72: =(W72-V72)/6 -> 0 | Y72: normal | Z72: 185 | AA72: 0 | AB72: 250 | AC72: =(AB72-AA72)/6 -> 41.66666667 | AD72: normal | AE72: 0 | AF72: 0 | AG72: 0 | AH72: =(AG72-AF72)/6 -> 0 | AI72: normal | AM72: =(AL72-AK72)/6 -> 0 | AN72: normal | AR72: =(AQ72-AP72)/6 -> 0 | AS72: normal | AW72: =(AV72-AU72)/6 -> 0 | AX72: normal | AY72: 0 | BB72: =(BA72-AZ72)/6 -> 0 | BC72: normal | BG72: =(BF72-BE72)/6 -> 0 | BH72: normal | CC72: 0 | CF72: =(CE72-CD72)/6 -> 0 | CG72: normal | CH72: 0 | CK72: =(CJ72-CI72)/6 -> 0 | CL72: normal | CM72: 0 | CP72: =(CO72-CN72)/6 -> 0 | CQ72: normal | CR72: 0 | CU72: =(CT72-CS72)/6 -> 0 | CV72: normal
A73: FP141b | B73: FP641b | D73: =VLOOKUP(Data!A73,'ID-numbers'!A$2:B$1640,2,FALSE) -> Amount of total sewage N applied to soil | E73: =VLOOKUP(Data!A73,'ID-numbers'!A$2:C$1640,3,FALSE) -> kgN/ha | F73: 0 | G73: 0 | H73: 0 | I73: 0 | J73: normal | K73: 0 | L73: 0 | M73: 0 | N73: 0 | O73: normal | U73: 0 | V73: 0 | W73: 0 | X73: 0 | Y73: normal | Z73: 0 | AA73: 0 | AB73: 0 | AC73: 0 | AD73: normal | AE73: 0 | AF73: 0 | AG73: 0 | AH73: 0 | AI73: normal | AM73: 0 | AN73: normal | AR73: 0 | AS73: normal | AW73: 0 | AX73: normal | AY73: 0 | BB73: 0 | BC73: normal | BG73: 0 | BH73: normal | CC73: 0 | CF73: 0 | CG73: normal | CH73: 0 | CK73: 0 | CL73: normal | CM73: 0 | CP73: 0 | CQ73: normal | CR73: 0 | CU73: 0 | CV73: normal
A74: FP141c | B74: FP641c | D74: =VLOOKUP(Data!A74,'ID-numbers'!A$2:B$1640,2,FALSE) -> Amount of total compost N applied to soil | E74: =VLOOKUP(Data!A74,'ID-numbers'!A$2:C$1640,3,FALSE) -> kgN/ha | F74: 0 | G74: 0 | H74: 0 | I74: 0 | J74: normal | K74: 0 | L74: 0 | M74: 0 | N74: 0 | O74: normal | U74: 0 | V74: 0 | W74: 0 | X74: 0 | Y74: normal | Z74: 0 | AA74: 0 | AB74: 0 | AC74: 0 | AD74: normal | AE74: 0 | AF74: 0 | AG74: 0 | AH74: 0 | AI74: normal | AM74: 0 | AN74: normal | AR74: 0 | AS74: normal | AW74: 0 | AX74: normal | AY74: 0 | BB74: 0 | BC74: normal | BG74: 0 | BH74: normal | CC74: 0 | CF74: 0 | CG74: normal | CH74: 0 | CK74: 0 | CL74: normal | CM74: 0 | CP74: 0 | CQ74: normal | CR74: 0 | CU74: 0 | CV74: normal
A75: FP141d | B75: FP641d | D75: =VLOOKUP(Data!A75,'ID-numbers'!A$2:B$1640,2,FALSE) -> Amount of N of other organic amendments applied to soil (used as fertiliser) | E75: =VLOOKUP(Data!A75,'ID-numbers'!A$2:C$1640,3,FALSE) -> kgN/ha | F75: 0 | G75: 0 | H75: 0 | I75: 0 | J75: normal | K75: 0 | L75: 0 | M75: 0 | N75: 0 | O75: normal | U75: 0 | V75: 0 | W75: 0 | X75: 0 | Y75: normal | Z75: 0 | AA75: 0 | AB75: 0 | AC75: 0 | AD75: normal | AE75: 0 | AF75: 0 | AG75: 0 | AH75: 0 | AI75: normal | AM75: 0 | AN75: normal | AR75: 0 | AS75: normal | AW75: 0 | AX75: normal | AY75: 0 | BB75: 0 | BC75: normal | BG75: 0 | BH75: normal | CC75: 0 | CF75: 0 | CG75: normal | CH75: 0 | CK75: 0 | CL75: normal | CM75: 0 | CP75: 0 | CQ75: normal | CR75: 0 | CU75: 0 | CV75: normal
A76: FP149 | B76: FP649 | D76: =VLOOKUP(Data!A76,'ID-numbers'!A$2:B$1640,2,FALSE) -> Fraction of above-ground residues removed | E76: =VLOOKUP(Data!A76,'ID-numbers'!A$2:C$1640,3,FALSE) -> % | F76: 0 | G76: 0 | H76: 5 | I76: 0.8333333333 | J76: normal | K76: 0 | L76: 0 | M76: 5 | N76: 0.8333333333 | O76: normal | U76: 0 | V76: 0 | W76: 0 | X76: 0 | Y76: normal | Z76: 0 | AA76: 0 | AB76: 50 | AC76: 8.333333333 | AD76: normal | AE76: 0 | AF76: 0 | AG76: 0 | AH76: 0 | AI76: normal | AM76: 0 | AN76: normal | AR76: 0 | AS76: normal | AW76: 0 | AX76: normal | AY76: 0 | BB76: 0 | BC76: normal | BG76: 0 | BH76: normal | CC76: 0 | CF76: 0 | CG76: normal | CH76: 0 | CK76: 0 | CL76: normal | CM76: 0 | CP76: 0 | CQ76: normal | CR76: 0 | CU76: 0 | CV76: normal
A77: FP161 | B77: FP661 | D77: =VLOOKUP(Data!A77,'ID-numbers'!A$2:B$1640,2,FALSE) -> Land status in or after January 2008 = undisturbed forest (yes=1,no=0) | E77: =VLOOKUP(Data!A77,'ID-numbers'!A$2:C$1640,3,FALSE) -> binary | F77: 1 | I77: n.a. | J77: n.a. | K77: 1 | N77: n.a. | O77: n.a. | U77: 0 | X77: n.a. | Y77: n.a. | Z77: 0 | AC77: n.a. | AD77: n.a. | AE77: 0 | AH77: n.a. | AI77: n.a. | AM77: n.a. | AN77: n.a. | AR77: n.a. | AS77: n.a. | AW77: n.a. | AX77: n.a. | AY77: 0 | BB77: n.a. | BC77: n.a. | BG77: n.a. | BH77: n.a. | CC77: 0 | CF77: n.a. | CG77: n.a. | CH77: 0 | CK77: n.a. | CL77: n.a. | CM77: 0 | CP77: n.a. | CQ77: n.a. | CR77: 0 | CU77: n.a. | CV77: n.a.
A78: FP162 | B78: FP662 | D78: =VLOOKUP(Data!A78,'ID-numbers'!A$2:B$1640,2,FALSE) -> Land status in or after January 2008 = nature protection area | E78: =VLOOKUP(Data!A78,'ID-numbers'!A$2:C$1640,3,FALSE) -> binary | F78: 1 | I78: n.a. | J78: n.a. | K78: 1 | N78: n.a. | O78: n.a. | U78: 0 | X78: n.a. | Y78: n.a. | Z78: 0 | AC78: n.a. | AD78: n.a. | AE78: 0 | AH78: n.a. | AI78: n.a. | AM78: n.a. | AN78: n.a. | AR78: n.a. | AS78: n.a. | AW78: n.a. | AX78: n.a. | AY78: 0 | BB78: n.a. | BC78: n.a. | BG78: n.a. | BH78: n.a. | CC78: 0 | CF78: n.a. | CG78: n.a. | CH78: 0 | CK78: n.a. | CL78: n.a. | CM78: 0 | CP78: n.a. | CQ78: n.a. | CR78: 0 | CU78: n.a. | CV78: n.a.
A79: FP163 | B79: FP663 | D79: =VLOOKUP(Data!A79,'ID-numbers'!A$2:B$1640,2,FALSE) -> Land status in or after January 2008 = highly biodiverse grassland | E79: =VLOOKUP(Data!A79,'ID-numbers'!A$2:C$1640,3,FALSE) -> binary | F79: 0 | I79: n.a. | J79: n.a. | K79: 0 | N79: n.a. | O79: n.a. | U79: 0 | X79: n.a. | Y79: n.a. | Z79: 0 | AC79: n.a. | AD79: n.a. | AE79: 0 | AH79: n.a. | AI79: n.a. | AM79: n.a. | AN79: n.a. | AR79: n.a. | AS79: n.a. | AW79: n.a. | AX79: n.a. | AY79: 0 | BB79: n.a. | BC79: n.a. | BG79: n.a. | BH79: n.a. | CC79: 0 | CF79: n.a. | CG79: n.a. | CH79: 0 | CK79: n.a. | CL79: n.a. | CM79: 0 | CP79: n.a. | CQ79: n.a. | CR79: 0 | CU79: n.a. | CV79: n.a.
A80: FP164 | B80: FP664 | D80: =VLOOKUP(Data!A80,'ID-numbers'!A$2:B$1640,2,FALSE) -> Land status in January 2008 and not longer now = wetland | E80: =VLOOKUP(Data!A80,'ID-numbers'!A$2:C$1640,3,FALSE) -> binary | F80: 0 | I80: n.a. | J80: n.a. | K80: 0 | N80: n.a. | O80: n.a. | U80: 0 | X80: n.a. | Y80: n.a. | Z80: 0 | AC80: n.a. | AD80: n.a. | AE80: 0 | AH80: n.a. | AI80: n.a. | AM80: n.a. | AN80: n.a. | AR80: n.a. | AS80: n.a. | AW80: n.a. | AX80: n.a. | AY80: 0 | BB80: n.a. | BC80: n.a. | BG80: n.a. | BH80: n.a. | CC80: 0 | CF80: n.a. | CG80: n.a. | CH80: 0 | CK80: n.a. | CL80: n.a. | CM80: 0 | CP80: n.a. | CQ80: n.a. | CR80: 0 | CU80: n.a. | CV80: n.a.
A81: FP165 | B81: FP665 | D81: =VLOOKUP(Data!A81,'ID-numbers'!A$2:B$1640,2,FALSE) -> Land status in January 2008 and not longer now = continuously forested area | E81: =VLOOKUP(Data!A81,'ID-numbers'!A$2:C$1640,3,FALSE) -> binary | F81: 1 | I81: n.a. | J81: n.a. | K81: 1 | N81: n.a. | O81: n.a. | U81: 0 | X81: n.a. | Y81: n.a. | Z81: 0 | AC81: n.a. | AD81: n.a. | AE81: 0 | AH81: n.a. | AI81: n.a. | AM81: n.a. | AN81: n.a. | AR81: n.a. | AS81: n.a. | AW81: n.a. | AX81: n.a. | AY81: 0 | BB81: n.a. | BC81: n.a. | BG81: n.a. | BH81: n.a. | CC81: 0 | CF81: n.a. | CG81: n.a. | CH81: 0 | CK81: n.a. | CL81: n.a. | CM81: 0 | CP81: n.a. | CQ81: n.a. | CR81: 0 | CU81: n.a. | CV81: n.a.
A82: FP166 | B82: FP666 | D82: =VLOOKUP(Data!A82,'ID-numbers'!A$2:B$1640,2,FALSE) -> Land status in January 2008 and not longer now = peatland | E82: =VLOOKUP(Data!A82,'ID-numbers'!A$2:C$1640,3,FALSE) -> binary | F82: 0 | I82: n.a. | J82: n.a. | K82: 0 | N82: n.a. | O82: n.a. | U82: 0 | X82: n.a. | Y82: n.a. | Z82: 0 | AC82: n.a. | AD82: n.a. | AE82: 0 | AH82: n.a. | AI82: n.a. | AM82: n.a. | AN82: n.a. | AR82: n.a. | AS82: n.a. | AW82: n.a. | AX82: n.a. | AY82: 0 | BB82: n.a. | BC82: n.a. | BG82: n.a. | BH82: n.a. | CC82: 0 | CF82: n.a. | CG82: n.a. | CH82: 0 | CK82: n.a. | CL82: n.a. | CM82: 0 | CP82: n.a. | CQ82: n.a. | CR82: 0 | CU82: n.a. | CV82: n.a.
A83: FP170a | B83: FP670a | D83: =VLOOKUP(Data!A83,'ID-numbers'!A$2:B$1640,2,FALSE) -> No forced labour | E83: =VLOOKUP(Data!A83,'ID-numbers'!A$2:C$1640,3,FALSE) -> - | F83: Not fulfilled | I83: n.a. | J83: n.a. | K83: Not fulfilled | N83: n.a. | O83: n.a. | U83: Fulfilled | X83: n.a. | Y83: n.a. | Z83: Fulfilled | AC83: n.a. | AD83: n.a. | AE83: n.a. | AH83: n.a. | AI83: n.a. | AM83: n.a. | AN83: n.a. | AR83: n.a. | AS83: n.a. | AW83: n.a. | AX83: n.a. | AY83: Fulfilled | BB83: n.a. | BC83: n.a. | BG83: n.a. | BH83: n.a. | CC83: Fulfilled | CF83: n.a. | CG83: n.a. | CH83: Fulfilled | CK83: n.a. | CL83: n.a. | CM83: Fulfilled | CP83: n.a. | CQ83: n.a. | CR83: Fulfilled | CU83: n.a. | CV83: n.a.
A84: FP170b | B84: FP670b | D84: =VLOOKUP(Data!A84,'ID-numbers'!A$2:B$1640,2,FALSE) -> No child labour | E84: =VLOOKUP(Data!A84,'ID-numbers'!A$2:C$1640,3,FALSE) -> - | F84: Not fulfilled | I84: n.a. | J84: n.a. | K84: Not fulfilled | N84: n.a. | O84: n.a. | U84: Fulfilled | X84: n.a. | Y84: n.a. | Z84: Fulfilled | AC84: n.a. | AD84: n.a. | AE84: n.a. | AH84: n.a. | AI84: n.a. | AM84: n.a. | AN84: n.a. | AR84: n.a. | AS84: n.a. | AW84: n.a. | AX84: n.a. | AY84: Fulfilled | BB84: n.a. | BC84: n.a. | BG84: n.a. | BH84: n.a. | CC84: Fulfilled | CF84: n.a. | CG84: n.a. | CH84: Fulfilled | CK84: n.a. | CL84: n.a. | CM84: Fulfilled | CP84: n.a. | CQ84: n.a. | CR84: Fulfilled | CU84: n.a. | CV84: n.a.
A85: FP170c | B85: FP670c | D85: =VLOOKUP(Data!A85,'ID-numbers'!A$2:B$1640,2,FALSE) -> Good social practices regarding human rights | E85: =VLOOKUP(Data!A85,'ID-numbers'!A$2:C$1640,3,FALSE) -> - | F85: Not fulfilled | I85: n.a. | J85: n.a. | K85: Not fulfilled | N85: n.a. | O85: n.a. | U85: Fulfilled | X85: n.a. | Y85: n.a. | Z85: Fulfilled | AC85: n.a. | AD85: n.a. | AE85: n.a. | AH85: n.a. | AI85: n.a. | AM85: n.a. | AN85: n.a. | AR85: n.a. | AS85: n.a. | AW85: n.a. | AX85: n.a. | AY85: Fulfilled | BB85: n.a. | BC85: n.a. | BG85: n.a. | BH85: n.a. | CC85: Fulfilled | CF85: n.a. | CG85: n.a. | CH85: Fulfilled | CK85: n.a. | CL85: n.a. | CM85: Fulfilled | CP85: n.a. | CQ85: n.a. | CR85: Fulfilled | CU85: n.a. | CV85: n.a.
A86: FP170d | B86: FP670d | D86: =VLOOKUP(Data!A86,'ID-numbers'!A$2:B$1640,2,FALSE) -> No discrimination | E86: =VLOOKUP(Data!A86,'ID-numbers'!A$2:C$1640,3,FALSE) -> - | F86: Not fulfilled | I86: n.a. | J86: n.a. | K86: Not fulfilled | N86: n.a. | O86: n.a. | U86: Fulfilled | X86: n.a. | Y86: n.a. | Z86: Fulfilled | AC86: n.a. | AD86: n.a. | AE86: n.a. | AH86: n.a. | AI86: n.a. | AM86: n.a. | AN86: n.a. | AR86: n.a. | AS86: n.a. | AW86: n.a. | AX86: n.a. | AY86: Fulfilled | BB86: n.a. | BC86: n.a. | BG86: n.a. | BH86: n.a. | CC86: Fulfilled | CF86: n.a. | CG86: n.a. | CH86: Fulfilled | CK86: n.a. | CL86: n.a. | CM86: Fulfilled | CP86: n.a. | CQ86: n.a. | CR86: Fulfilled | CU86: n.a. | CV86: n.a.
A87: FP170e | B87: FP670e | D87: =VLOOKUP(Data!A87,'ID-numbers'!A$2:B$1640,2,FALSE) -> Land is used legitimately / land rights have been secured | E87: =VLOOKUP(Data!A87,'ID-numbers'!A$2:C$1640,3,FALSE) -> - | F87: Not fulfilled | I87: n.a. | J87: n.a. | K87: Not fulfilled | N87: n.a. | O87: n.a. | U87: Fulfilled | X87: n.a. | Y87: n.a. | Z87: Fulfilled | AC87: n.a. | AD87: n.a. | AE87: n.a. | AH87: n.a. | AI87: n.a. | AM87: n.a. | AN87: n.a. | AR87: n.a. | AS87: n.a. | AW87: n.a. | AX87: n.a. | AY87: Fulfilled | BB87: n.a. | BC87: n.a. | BG87: n.a. | BH87: n.a. | CC87: Fulfilled | CF87: n.a. | CG87: n.a. | CH87: Fulfilled | CK87: n.a. | CL87: n.a. | CM87: Fulfilled | CP87: n.a. | CQ87: n.a. | CR87: Fulfilled | CU87: n.a. | CV87: n.a.
A88: FP170f | B88: FP670f | D88: =VLOOKUP(Data!A88,'ID-numbers'!A$2:B$1640,2,FALSE) -> Open and transparent communication with local communities and stakeholders | E88: =VLOOKUP(Data!A88,'ID-numbers'!A$2:C$1640,3,FALSE) -> - | F88: Not fulfilled | I88: n.a. | J88: n.a. | K88: Not fulfilled | N88: n.a. | O88: n.a. | U88: Fulfilled | X88: n.a. | Y88: n.a. | Z88: Fulfilled | AC88: n.a. | AD88: n.a. | AE88: n.a. | AH88: n.a. | AI88: n.a. | AM88: n.a. | AN88: n.a. | AR88: n.a. | AS88: n.a. | AW88: n.a. | AX88: n.a. | AY88: Fulfilled | BB88: n.a. | BC88: n.a. | BG88: n.a. | BH88: n.a. | CC88: Fulfilled | CF88: n.a. | CG88: n.a. | CH88: Fulfilled | CK88: n.a. | CL88: n.a. | CM88: Fulfilled | CP88: n.a. | CQ88: n.a. | CR88: Fulfilled | CU88: n.a. | CV88: n.a.
A89: FP170g | B89: FP670g | D89: =VLOOKUP(Data!A89,'ID-numbers'!A$2:B$1640,2,FALSE) -> Food security | E89: =VLOOKUP(Data!A89,'ID-numbers'!A$2:C$1640,3,FALSE) -> - | F89: Not fulfilled | I89: n.a. | J89: n.a. | K89: Not fulfilled | N89: n.a. | O89: n.a. | U89: Fulfilled | X89: n.a. | Y89: n.a. | Z89: Fulfilled | AC89: n.a. | AD89: n.a. | AE89: n.a. | AH89: n.a. | AI89: n.a. | AM89: n.a. | AN89: n.a. | AR89: n.a. | AS89: n.a. | AW89: n.a. | AX89: n.a. | AY89: Fulfilled | BB89: n.a. | BC89: n.a. | BG89: n.a. | BH89: n.a. | CC89: Fulfilled | CF89: n.a. | CG89: n.a. | CH89: Fulfilled | CK89: n.a. | CL89: n.a. | CM89: Fulfilled | CP89: n.a. | CQ89: n.a. | CR89: Fulfilled | CU89: n.a. | CV89: n.a.
A90: FP171a | B90: FP671a | D90: =VLOOKUP(Data!A90,'ID-numbers'!A$2:B$1640,2,FALSE) -> Fair legal contracts | E90: =VLOOKUP(Data!A90,'ID-numbers'!A$2:C$1640,3,FALSE) -> - | F90: Not fulfilled | I90: n.a. | J90: n.a. | K90: Not fulfilled | N90: n.a. | O90: n.a. | U90: Fulfilled | X90: n.a. | Y90: n.a. | Z90: Fulfilled | AC90: n.a. | AD90: n.a. | AE90: n.a. | AH90: n.a. | AI90: n.a. | AM90: n.a. | AN90: n.a. | AR90: n.a. | AS90: n.a. | AW90: n.a. | AX90: n.a. | AY90: Fulfilled | BB90: n.a. | BC90: n.a. | BG90: n.a. | BH90: n.a. | CC90: Fulfilled | CF90: n.a. | CG90: n.a. | CH90: Fulfilled | CK90: n.a. | CL90: n.a. | CM90: Fulfilled | CP90: n.a. | CQ90: n.a. | CR90: Fulfilled | CU90: n.a. | CV90: n.a.
A91: FP171b | B91: FP671b | D91: =VLOOKUP(Data!A91,'ID-numbers'!A$2:B$1640,2,FALSE) -> Workers rights | E91: =VLOOKUP(Data!A91,'ID-numbers'!A$2:C$1640,3,FALSE) -> - | F91: Not fulfilled | I91: n.a. | J91: n.a. | K91: Not fulfilled | N91: n.a. | O91: n.a. | U91: Fulfilled | X91: n.a. | Y91: n.a. | Z91: Fulfilled | AC91: n.a. | AD91: n.a. | AE91: n.a. | AH91: n.a. | AI91: n.a. | AM91: n.a. | AN91: n.a. | AR91: n.a. | AS91: n.a. | AW91: n.a. | AX91: n.a. | AY91: Fulfilled | BB91: n.a. | BC91: n.a. | BG91: n.a. | BH91: n.a. | CC91: Fulfilled | CF91: n.a. | CG91: n.a. | CH91: Fulfilled | CK91: n.a. | CL91: n.a. | CM91: Fulfilled | CP91: n.a. | CQ91: n.a. | CR91: Fulfilled | CU91: n.a. | CV91: n.a.
A92: FP171c | B92: FP671c | D92: =VLOOKUP(Data!A92,'ID-numbers'!A$2:B$1640,2,FALSE) -> Freedom to join labour organizations or organize themselves | E92: =VLOOKUP(Data!A92,'ID-numbers'!A$2:C$1640,3,FALSE) -> - | F92: Not fulfilled | I92: n.a. | J92: n.a. | K92: Not fulfilled | N92: n.a. | O92: n.a. | U92: Fulfilled | X92: n.a. | Y92: n.a. | Z92: Fulfilled | AC92: n.a. | AD92: n.a. | AE92: n.a. | AH92: n.a. | AI92: n.a. | AM92: n.a. | AN92: n.a. | AR92: n.a. | AS92: n.a. | AW92: n.a. | AX92: n.a. | AY92: Fulfilled | BB92: n.a. | BC92: n.a. | BG92: n.a. | BH92: n.a. | CC92: Fulfilled | CF92: n.a. | CG92: n.a. | CH92: Fulfilled | CK92: n.a. | CL92: n.a. | CM92: Fulfilled | CP92: n.a. | CQ92: n.a. | CR92: Fulfilled | CU92: n.a. | CV92: n.a.
A93: FP171d | B93: FP671d | D93: =VLOOKUP(Data!A93,'ID-numbers'!A$2:B$1640,2,FALSE) -> Fair wages and compensation rules | E93: =VLOOKUP(Data!A93,'ID-numbers'!A$2:C$1640,3,FALSE) -> - | F93: Not fulfilled | I93: n.a. | J93: n.a. | K93: Not fulfilled | N93: n.a. | O93: n.a. | U93: Fulfilled | X93: n.a. | Y93: n.a. | Z93: Fulfilled | AC93: n.a. | AD93: n.a. | AE93: n.a. | AH93: n.a. | AI93: n.a. | AM93: n.a. | AN93: n.a. | AR93: n.a. | AS93: n.a. | AW93: n.a. | AX93: n.a. | AY93: Fulfilled | BB93: n.a. | BC93: n.a. | BG93: n.a. | BH93: n.a. | CC93: Fulfilled | CF93: n.a. | CG93: n.a. | CH93: Fulfilled | CK93: n.a. | CL93: n.a. | CM93: Fulfilled | CP93: n.a. | CQ93: n.a. | CR93: Fulfilled | CU93: n.a. | CV93: n.a.
A94: FP171e | B94: FP671e | D94: =VLOOKUP(Data!A94,'ID-numbers'!A$2:B$1640,2,FALSE) -> Health, safety and hygiene policy | E94: =VLOOKUP(Data!A94,'ID-numbers'!A$2:C$1640,3,FALSE) -> - | F94: Not fulfilled | I94: n.a. | J94: n.a. | K94: Not fulfilled | N94: n.a. | O94: n.a. | U94: Fulfilled | X94: n.a. | Y94: n.a. | Z94: Fulfilled | AC94: n.a. | AD94: n.a. | AE94: n.a. | AH94: n.a. | AI94: n.a. | AM94: n.a. | AN94: n.a. | AR94: n.a. | AS94: n.a. | AW94: n.a. | AX94: n.a. | AY94: Fulfilled | BB94: n.a. | BC94: n.a. | BG94: n.a. | BH94: n.a. | CC94: Fulfilled | CF94: n.a. | CG94: n.a. | CH94: Fulfilled | CK94: n.a. | CL94: n.a. | CM94: Fulfilled | CP94: n.a. | CQ94: n.a. | CR94: Fulfilled | CU94: n.a. | CV94: n.a.
A95: FP171f | B95: FP671f | D95: =VLOOKUP(Data!A95,'ID-numbers'!A$2:B$1640,2,FALSE) -> Risk assessment for safe and healthy working conditions | E95: =VLOOKUP(Data!A95,'ID-numbers'!A$2:C$1640,3,FALSE) -> - | F95: Not fulfilled | I95: n.a. | J95: n.a. | K95: Not fulfilled | N95: n.a. | O95: n.a. | U95: Fulfilled | X95: n.a. | Y95: n.a. | Z95: Fulfilled | AC95: n.a. | AD95: n.a. | AE95: n.a. | AH95: n.a. | AI95: n.a. | AM95: n.a. | AN95: n.a. | AR95: n.a. | AS95: n.a. | AW95: n.a. | AX95: n.a. | AY95: Fulfilled | BB95: n.a. | BC95: n.a. | BG95: n.a. | BH95: n.a. | CC95: Fulfilled | CF95: n.a. | CG95: n.a. | CH95: Fulfilled | CK95: n.a. | CL95: n.a. | CM95: Fulfilled | CP95: n.a. | CQ95: n.a. | CR95: Fulfilled | CU95: n.a. | CV95: n.a.
A96: FP171g | B96: FP671g | D96: =VLOOKUP(Data!A96,'ID-numbers'!A$2:B$1640,2,FALSE) -> Health and safety training | E96: =VLOOKUP(Data!A96,'ID-numbers'!A$2:C$1640,3,FALSE) -> - | F96: Not fulfilled | I96: n.a. | J96: n.a. | K96: Not fulfilled | N96: n.a. | O96: n.a. | U96: Fulfilled | X96: n.a. | Y96: n.a. | Z96: Fulfilled | AC96: n.a. | AD96: n.a. | AE96: n.a. | AH96: n.a. | AI96: n.a. | AM96: n.a. | AN96: n.a. | AR96: n.a. | AS96: n.a. | AW96: n.a. | AX96: n.a. | AY96: Fulfilled | BB96: n.a. | BC96: n.a. | BG96: n.a. | BH96: n.a. | CC96: Fulfilled | CF96: n.a. | CG96: n.a. | CH96: Fulfilled | CK96: n.a. | CL96: n.a. | CM96: Fulfilled | CP96: n.a. | CQ96: n.a. | CR96: Fulfilled | CU96: n.a. | CV96: n.a.
A98: FT001a | B98: FT501a | D98: =VLOOKUP(Data!A98,'ID-numbers'!A$2:B$1640,2,FALSE) -> Transport mode 1 | E98: =VLOOKUP(Data!A98,'ID-numbers'!A$2:C$1640,3,FALSE) -> - | F98: Truck for FFB transport (Diesel) | I98: n.a. | J98: n.a. | K98: Truck for FFB transport (Diesel) | N98: n.a. | O98: n.a. | U98: Truck for dry product (diesel) | X98: n.a. | Y98: n.a. | Z98: Truck for dry product (diesel) | AC98: n.a. | AD98: n.a. | AE98: n.a. | AH98: n.a. | AI98: n.a. | AM98: n.a. | AN98: n.a. | AR98: n.a. | AS98: n.a. | AW98: n.a. | AX98: n.a. | AY98: Truck for dry product (diesel) | BB98: n.a. | BC98: n.a. | BG98: n.a. | BH98: n.a. | CC98: Truck for dry product (diesel) | CF98: n.a. | CG98: n.a. | CH98: Truck for liquids (diesel) | CK98: n.a. | CL98: n.a. | CM98: Truck for dry product (diesel) | CP98: n.a. | CQ98: n.a. | CR98: Truck for dry product (diesel) | CU98: n.a. | CV98: n.a.
A99: FT001b | B99: FT501b | D99: =VLOOKUP(Data!A99,'ID-numbers'!A$2:B$1640,2,FALSE) -> Transport mode 2 | E99: =VLOOKUP(Data!A99,'ID-numbers'!A$2:C$1640,3,FALSE) -> - | F99: n.a. | I99: n.a. | J99: n.a. | K99: n.a. | N99: n.a. | O99: n.a. | U99: Truck for dry product (diesel) | X99: n.a. | Y99: n.a. | Z99: n.a. | AC99: n.a. | AD99: n.a. | AE99: n.a. | AH99: n.a. | AI99: n.a. | AM99: n.a. | AN99: n.a. | AR99: n.a. | AS99: n.a. | AW99: n.a. | AX99: n.a. | AY99: Truck for dry product (diesel) | BB99: n.a. | BC99: n.a. | BG99: n.a. | BH99: n.a. | CC99: Truck for dry product (diesel) | CF99: n.a. | CG99: n.a. | CH99: Truck for liquids (diesel) | CK99: n.a. | CL99: n.a. | CM99: n.a. | CP99: n.a. | CQ99: n.a. | CR99: Truck for dry product (diesel) | CU99: n.a. | CV99: n.a.
A100: FT001c | B100: FT501c | D100: =VLOOKUP(Data!A100,'ID-numbers'!A$2:B$1640,2,FALSE) -> Transport mode 3 | E100: =VLOOKUP(Data!A100,'ID-numbers'!A$2:C$1640,3,FALSE) -> - | F100: n.a. | I100: n.a. | J100: n.a. | K100: n.a. | N100: n.a. | O100: n.a. | U100: n.a. | X100: n.a. | Y100: n.a. | Z100: n.a. | AC100: n.a. | AD100: n.a. | AE100: n.a. | AH100: n.a. | AI100: n.a. | AM100: n.a. | AN100: n.a. | AR100: n.a. | AS100: n.a. | AW100: n.a. | AX100: n.a. | AY100: n.a. | BB100: n.a. | BC100: n.a. | BG100: n.a. | BH100: n.a. | CC100: Truck for dry product (diesel) | CF100: n.a. | CG100: n.a. | CH100: Truck for liquids (diesel) | CK100: n.a. | CL100: n.a. | CM100: n.a. | CP100: n.a. | CQ100: n.a. | CR100: Truck for dry product (diesel) | CU100: n.a. | CV100: n.a.
A101: FT001d | B101: FT501d | D101: =VLOOKUP(Data!A101,'ID-numbers'!A$2:B$1640,2,FALSE) -> Transport mode 4 | E101: =VLOOKUP(Data!A101,'ID-numbers'!A$2:C$1640,3,FALSE) -> - | F101: Truck for liquids (Diesel) | I101: n.a. | J101: n.a. | K101: Truck for liquids (Diesel) | N101: n.a. | O101: n.a. | U101: n.a. | X101: n.a. | Y101: n.a. | Z101: n.a. | AC101: n.a. | AD101: n.a. | AE101: n.a. | AH101: n.a. | AI101: n.a. | AM101: n.a. | AN101: n.a. | AR101: n.a. | AS101: n.a. | AW101: n.a. | AX101: n.a. | AY101: n.a. | BB101: n.a. | BC101: n.a. | BG101: n.a. | BH101: n.a. | CC101: n.a. | CF101: n.a. | CG101: n.a. | CH101: n.a. | CK101: n.a. | CL101: n.a. | CM101: n.a. | CP101: n.a. | CQ101: n.a. | CR101: n.a. | CU101: n.a. | CV101: n.a.
A102: FT001e | B102: FT501e | D102: =VLOOKUP(Data!A102,'ID-numbers'!A$2:B$1640,2,FALSE) -> Transport mode 5 | E102: =VLOOKUP(Data!A102,'ID-numbers'!A$2:C$1640,3,FALSE) -> - | F102: Ship /product tanker 50kt (HFO maritime) | I102: n.a. | J102: n.a. | K102: Ship /product tanker 50kt (HFO maritime) | N102: n.a. | O102: n.a. | U102: n.a. | X102: n.a. | Y102: n.a. | Z102: n.a. | AC102: n.a. | AD102: n.a. | AE102: n.a. | AH102: n.a. | AI102: n.a. | AM102: n.a. | AN102: n.a. | AR102: n.a. | AS102: n.a. | AW102: n.a. | AX102: n.a. | AY102: n.a. | BB102: n.a. | BC102: n.a. | BG102: n.a. | BH102: n.a. | CC102: n.a. | CF102: n.a. | CG102: n.a. | CH102: n.a. | CK102: n.a. | CL102: n.a. | CM102: n.a. | CP102: n.a. | CQ102: n.a. | CR102: n.a. | CU102: n.a. | CV102: n.a.
A103: FT001f | B103: FT501f | D103: =VLOOKUP(Data!A103,'ID-numbers'!A$2:B$1640,2,FALSE) -> Transport mode 6 | E103: =VLOOKUP(Data!A103,'ID-numbers'!A$2:C$1640,3,FALSE) -> - | F103: n.a. | I103: n.a. | J103: n.a. | K103: n.a. | N103: n.a. | O103: n.a. | U103: n.a. | X103: n.a. | Y103: n.a. | Z103: n.a. | AC103: n.a. | AD103: n.a. | AE103: n.a. | AH103: n.a. | AI103: n.a. | AM103: n.a. | AN103: n.a. | AR103: n.a. | AS103: n.a. | AW103: n.a. | AX103: n.a. | AY103: n.a. | BB103: n.a. | BC103: n.a. | BG103: n.a. | BH103: n.a. | CC103: n.a. | CF103: n.a. | CG103: n.a. | CH103: n.a. | CK103: n.a. | CL103: n.a. | CM103: n.a. | CP103: n.a. | CQ103: n.a. | CR103: n.a. | CU103: n.a. | CV103: n.a.
A104: FT001g | B104: FT501g | D104: =VLOOKUP(Data!A104,'ID-numbers'!A$2:B$1640,2,FALSE) -> Transport mode 7 | E104: =VLOOKUP(Data!A104,'ID-numbers'!A$2:C$1640,3,FALSE) -> - | F104: Truck for liquids (Diesel) | I104: n.a. | J104: n.a. | K104: Truck for liquids (Diesel) | N104: n.a. | O104: n.a. | U104: n.a. | X104: n.a. | Y104: n.a. | Z104: n.a. | AC104: n.a. | AD104: n.a. | AE104: n.a. | AH104: n.a. | AI104: n.a. | AM104: n.a. | AN104: n.a. | AR104: n.a. | AS104: n.a. | AW104: n.a. | AX104: n.a. | AY104: n.a. | BB104: n.a. | BC104: n.a. | BG104: n.a. | BH104: n.a. | CC104: n.a. | CF104: n.a. | CG104: n.a. | CH104: n.a. | CK104: n.a. | CL104: n.a. | CM104: n.a. | CP104: n.a. | CQ104: n.a. | CR104: n.a. | CU104: n.a. | CV104: n.a.
A105: FT001h | B105: FT501h | D105: =VLOOKUP(Data!A105,'ID-numbers'!A$2:B$1640,2,FALSE) -> Transport mode 8 | E105: =VLOOKUP(Data!A105,'ID-numbers'!A$2:C$1640,3,FALSE) -> - | F105: n.a. | I105: n.a. | J105: n.a. | K105: n.a. | N105: n.a. | O105: n.a. | U105: n.a. | X105: n.a. | Y105: n.a. | Z105: n.a. | AC105: n.a. | AD105: n.a. | AE105: n.a. | AH105: n.a. | AI105: n.a. | AM105: n.a. | AN105: n.a. | AR105: n.a. | AS105: n.a. | AW105: n.a. | AX105: n.a. | AY105: n.a. | BB105: n.a. | BC105: n.a. | BG105: n.a. | BH105: n.a. | CC105: n.a. | CF105: n.a. | CG105: n.a. | CH105: n.a. | CK105: n.a. | CL105: n.a. | CM105: n.a. | CP105: n.a. | CQ105: n.a. | CR105: n.a. | CU105: n.a. | CV105: n.a.
A106: FT001i | B106: FT501i | D106: =VLOOKUP(Data!A106,'ID-numbers'!A$2:B$1640,2,FALSE) -> Transport mode 9 | E106: =VLOOKUP(Data!A106,'ID-numbers'!A$2:C$1640,3,FALSE) -> - | F106: n.a. | I106: n.a. | J106: n.a. | K106: n.a. | N106: n.a. | O106: n.a. | U106: n.a. | X106: n.a. | Y106: n.a. | Z106: n.a. | AC106: n.a. | AD106: n.a. | AE106: n.a. | AH106: n.a. | AI106: n.a. | AM106: n.a. | AN106: n.a. | AR106: n.a. | AS106: n.a. | AW106: n.a. | AX106: n.a. | AY106: n.a. | BB106: n.a. | BC106: n.a. | BG106: n.a. | BH106: n.a. | CC106: n.a. | CF106: n.a. | CG106: n.a. | CH106: n.a. | CK106: n.a. | CL106: n.a. | CM106: n.a. | CP106: n.a. | CQ106: n.a. | CR106: n.a. | CU106: n.a. | CV106: n.a.
A107: FT003a | B107: FT503a | D107: =VLOOKUP(Data!A107,'ID-numbers'!A$2:B$1640,2,FALSE) -> Distance of transport mode 1 | E107: =VLOOKUP(Data!A107,'ID-numbers'!A$2:C$1640,3,FALSE) -> km | F107: 50 | G107: 20 | H107: 100 | I107: =(H107-G107)/6 -> 13.33333333 | J107: normal | K107: 50 | L107: 20 | M107: 100 | N107: =(M107-L107)/6 -> 13.33333333 | O107: normal | U107: 40 | V107: 0 | W107: 0 | X107: =(W107-V107)/6 -> 0 | Y107: normal | Z107: 20 | AA107: 10 | AB107: 50 | AC107: 5 | AD107: normal | AE107: 0 | AF107: 0 | AG107: 0 | AH107: =(AG107-AF107)/6 -> 0 | AI107: normal | AM107: =(AL107-AK107)/6 -> 0 | AN107: normal | AR107: =(AQ107-AP107)/6 -> 0 | AS107: normal | AW107: =(AV107-AU107)/6 -> 0 | AX107: normal | AY107: 40 | BB107: =(BA107-AZ107)/6 -> 0 | BC107: normal | BG107: =(BF107-BE107)/6 -> 0 | BH107: normal | CC107: 40 | CF107: =(CE107-CD107)/6 -> 0 | CG107: normal | CH107: 40 | CK107: =(CJ107-CI107)/6 -> 0 | CL107: normal | CM107: 40 | CP107: =(CO107-CN107)/6 -> 0 | CQ107: normal | CR107: 40 | CU107: =(CT107-CS107)/6 -> 0 | CV107: normal
A108: FT003b | B108: FT503b | D108: =VLOOKUP(Data!A108,'ID-numbers'!A$2:B$1640,2,FALSE) -> Distance of transport mode 2 | E108: =VLOOKUP(Data!A108,'ID-numbers'!A$2:C$1640,3,FALSE) -> km | F108: 0 | G108: 0 | H108: 0 | I108: 0 | J108: normal | K108: 0 | L108: 0 | M108: 0 | N108: 0 | O108: normal | U108: 40 | V108: 0 | W108: 0 | X108: 0 | Y108: normal | Z108: 0 | AA108: 0 | AB108: 0 | AC108: 0 | AD108: normal | AE108: 0 | AF108: 0 | AG108: 0 | AH108: 0 | AI108: normal | AM108: 0 | AN108: normal | AR108: 0 | AS108: normal | AW108: 0 | AX108: normal | AY108: 40 | BB108: 0 | BC108: normal | BG108: 0 | BH108: normal | CC108: 40 | CF108: 0 | CG108: normal | CH108: 40 | CK108: 0 | CL108: normal | CM108: 0 | CP108: 0 | CQ108: normal | CR108: 40 | CU108: 0 | CV108: normal
A109: FT003c | B109: FT503c | D109: =VLOOKUP(Data!A109,'ID-numbers'!A$2:B$1640,2,FALSE) -> Distance of transport mode 3 | E109: =VLOOKUP(Data!A109,'ID-numbers'!A$2:C$1640,3,FALSE) -> km | F109: 0 | G109: 0 | H109: 0 | I109: 0 | J109: normal | K109: 0 | L109: 0 | M109: 0 | N109: 0 | O109: normal | U109: 0 | V109: 0 | W109: 0 | X109: 0 | Y109: normal | Z109: 0 | AA109: 0 | AB109: 0 | AC109: 0 | AD109: normal | AE109: 0 | AF109: 0 | AG109: 0 | AH109: 0 | AI109: normal | AM109: 0 | AN109: normal | AR109: 0 | AS109: normal | AW109: 0 | AX109: normal | AY109: 0 | BB109: 0 | BC109: normal | BG109: 0 | BH109: normal | CC109: 40 | CF109: 0 | CG109: normal | CH109: 40 | CK109: 0 | CL109: normal | CM109: 0 | CP109: 0 | CQ109: normal | CR109: 40 | CU109: 0 | CV109: normal
A110: FT003d | B110: FT503d | D110: =VLOOKUP(Data!A110,'ID-numbers'!A$2:B$1640,2,FALSE) -> Distance of transport mode 4 | E110: =VLOOKUP(Data!A110,'ID-numbers'!A$2:C$1640,3,FALSE) -> km | F110: 150 | G110: 100 | H110: 200 | I110: 16.66666667 | J110: normal | K110: 150 | L110: 100 | M110: 200 | N110: 16.66666667 | O110: normal | U110: 0 | V110: 0 | W110: 0 | X110: 0 | Y110: normal | Z110: 0 | AA110: 0 | AB110: 0 | AC110: 0 | AD110: normal | AE110: 0 | AF110: 0 | AG110: 0 | AH110: 0 | AI110: normal | AM110: 0 | AN110: normal | AR110: 0 | AS110: normal | AW110: 0 | AX110: normal | AY110: 0 | BB110: 0 | BC110: normal | BG110: 0 | BH110: normal | CC110: 0 | CF110: 0 | CG110: normal | CH110: 0 | CK110: 0 | CL110: normal | CM110: 0 | CP110: 0 | CQ110: normal | CR110: 0 | CU110: 0 | CV110: normal
A111: FT003e | B111: FT503e | D111: =VLOOKUP(Data!A111,'ID-numbers'!A$2:B$1640,2,FALSE) -> Distance of transport mode 5 | E111: =VLOOKUP(Data!A111,'ID-numbers'!A$2:C$1640,3,FALSE) -> km | F111: 10186 | G111: 10000 | H111: 11000 | I111: 166.6666667 | J111: normal | K111: 10186 | L111: 10000 | M111: 11000 | N111: 166.6666667 | O111: normal | U111: 0 | V111: 0 | W111: 0 | X111: 0 | Y111: normal | Z111: 0 | AA111: 0 | AB111: 0 | AC111: 0 | AD111: normal | AE111: 0 | AF111: 0 | AG111: 0 | AH111: 0 | AI111: normal | AM111: 0 | AN111: normal | AR111: 0 | AS111: normal | AW111: 0 | AX111: normal | AY111: 0 | BB111: 0 | BC111: normal | BG111: 0 | BH111: normal | CC111: 0 | CF111: 0 | CG111: normal | CH111: 0 | CK111: 0 | CL111: normal | CM111: 0 | CP111: 0 | CQ111: normal | CR111: 0 | CU111: 0 | CV111: normal
A112: FT003f | B112: FT503f | D112: =VLOOKUP(Data!A112,'ID-numbers'!A$2:B$1640,2,FALSE) -> Distance of transport mode 6 | E112: =VLOOKUP(Data!A112,'ID-numbers'!A$2:C$1640,3,FALSE) -> km | F112: 0 | G112: 0 | H112: 0 | I112: 0 | J112: normal | K112: 0 | L112: 0 | M112: 0 | N112: 0 | O112: normal | U112: 0 | V112: 0 | W112: 0 | X112: 0 | Y112: normal | Z112: 0 | AA112: 0 | AB112: 0 | AC112: 0 | AD112: normal | AE112: 0 | AF112: 0 | AG112: 0 | AH112: 0 | AI112: normal | AM112: 0 | AN112: normal | AR112: 0 | AS112: normal | AW112: 0 | AX112: normal | AY112: 0 | BB112: 0 | BC112: normal | BG112: 0 | BH112: normal | CC112: 0 | CF112: 0 | CG112: normal | CH112: 0 | CK112: 0 | CL112: normal | CM112: 0 | CP112: 0 | CQ112: normal | CR112: 0 | CU112: 0 | CV112: normal
A113: FT003g | B113: FT503g | D113: =VLOOKUP(Data!A113,'ID-numbers'!A$2:B$1640,2,FALSE) -> Distance of transport mode 7 | E113: =VLOOKUP(Data!A113,'ID-numbers'!A$2:C$1640,3,FALSE) -> km | F113: 100 | G113: 20 | H113: 200 | I113: 30 | J113: normal | K113: 100 | L113: 20 | M113: 200 | N113: 30 | O113: normal | U113: 0 | V113: 0 | W113: 0 | X113: 0 | Y113: normal | Z113: 0 | AA113: 0 | AB113: 0 | AC113: 0 | AD113: normal | AE113: 0 | AF113: 0 | AG113: 0 | AH113: 0 | AI113: normal | AM113: 0 | AN113: normal | AR113: 0 | AS113: normal | AW113: 0 | AX113: normal | AY113: 0 | BB113: 0 | BC113: normal | BG113: 0 | BH113: normal | CC113: 0 | CF113: 0 | CG113: normal | CH113: 0 | CK113: 0 | CL113: normal | CM113: 0 | CP113: 0 | CQ113: normal | CR113: 0 | CU113: 0 | CV113: normal
A114: FT003h | B114: FT503h | D114: =VLOOKUP(Data!A114,'ID-numbers'!A$2:B$1640,2,FALSE) -> Distance of transport mode 8 | E114: =VLOOKUP(Data!A114,'ID-numbers'!A$2:C$1640,3,FALSE) -> km | F114: 0 | G114: 0 | H114: 0 | I114: 0 | J114: normal | K114: 0 | L114: 0 | M114: 0 | N114: 0 | O114: normal | U114: 0 | V114: 0 | W114: 0 | X114: 0 | Y114: normal | Z114: 0 | AA114: 0 | AB114: 0 | AC114: 0 | AD114: normal | AE114: 0 | AF114: 0 | AG114: 0 | AH114: 0 | AI114: normal | AM114: 0 | AN114: normal | AR114: 0 | AS114: normal | AW114: 0 | AX114: normal | AY114: 0 | BB114: 0 | BC114: normal | BG114: 0 | BH114: normal | CC114: 0 | CF114: 0 | CG114: normal | CH114: 0 | CK114: 0 | CL114: normal | CM114: 0 | CP114: 0 | CQ114: normal | CR114: 0 | CU114: 0 | CV114: normal
A115: FT003i | B115: FT503i | D115: =VLOOKUP(Data!A115,'ID-numbers'!A$2:B$1640,2,FALSE) -> Distance of transport mode 9 | E115: =VLOOKUP(Data!A115,'ID-numbers'!A$2:C$1640,3,FALSE) -> km | F115: 0 | G115: 0 | H115: 0 | I115: 0 | J115: normal | K115: 0 | L115: 0 | M115: 0 | N115: 0 | O115: normal | U115: 0 | V115: 0 | W115: 0 | X115: 0 | Y115: normal | Z115: 0 | AA115: 0 | AB115: 0 | AC115: 0 | AD115: normal | AE115: 0 | AF115: 0 | AG115: 0 | AH115: 0 | AI115: normal | AM115: 0 | AN115: normal | AR115: 0 | AS115: normal | AW115: 0 | AX115: normal | AY115: 0 | BB115: 0 | BC115: normal | BG115: 0 | BH115: normal | CC115: 0 | CF115: 0 | CG115: normal | CH115: 0 | CK115: 0 | CL115: normal | CM115: 0 | CP115: 0 | CQ115: normal | CR115: 0 | CU115: 0 | CV115: normal
A116: FT004a | B116: FT504a | D116: =VLOOKUP(Data!A116,'ID-numbers'!A$2:B$1640,2,FALSE) -> Type of fuel used for transport mode 1 | E116: =VLOOKUP(Data!A116,'ID-numbers'!A$2:C$1640,3,FALSE) -> - | F116: Diesel | I116: n.a. | J116: n.a. | K116: Diesel | N116: n.a. | O116: n.a. | U116: Diesel | X116: n.a. | Y116: n.a. | Z116: Diesel | AC116: n.a. | AD116: n.a. | AE116: n.a. | AH116: n.a. | AI116: n.a. | AM116: n.a. | AN116: n.a. | AR116: n.a. | AS116: n.a. | AW116: n.a. | AX116: n.a. | AY116: Diesel | BB116: n.a. | BC116: n.a. | BG116: n.a. | BH116: n.a. | CC116: Diesel | CF116: n.a. | CG116: n.a. | CH116: Diesel | CK116: n.a. | CL116: n.a. | CM116: Diesel | CP116: n.a. | CQ116: n.a. | CR116: Diesel | CU116: n.a. | CV116: n.a.
A117: FT004b | B117: FT504b | D117: =VLOOKUP(Data!A117,'ID-numbers'!A$2:B$1640,2,FALSE) -> Type of fuel used for transport mode 2 | E117: =VLOOKUP(Data!A117,'ID-numbers'!A$2:C$1640,3,FALSE) -> - | F117: n.a. | I117: n.a. | J117: n.a. | K117: n.a. | N117: n.a. | O117: n.a. | U117: Diesel | X117: n.a. | Y117: n.a. | Z117: n.a. | AC117: n.a. | AD117: n.a. | AE117: n.a. | AH117: n.a. | AI117: n.a. | AM117: n.a. | AN117: n.a. | AR117: n.a. | AS117: n.a. | AW117: n.a. | AX117: n.a. | AY117: Diesel | BB117: n.a. | BC117: n.a. | BG117: n.a. | BH117: n.a. | CC117: Diesel | CF117: n.a. | CG117: n.a. | CH117: Diesel | CK117: n.a. | CL117: n.a. | CM117: n.a. | CP117: n.a. | CQ117: n.a. | CR117: Diesel | CU117: n.a. | CV117: n.a.
A118: FT004c | B118: FT504c | D118: =VLOOKUP(Data!A118,'ID-numbers'!A$2:B$1640,2,FALSE) -> Type of fuel used for transport mode 3 | E118: =VLOOKUP(Data!A118,'ID-numbers'!A$2:C$1640,3,FALSE) -> - | F118: n.a. | I118: n.a. | J118: n.a. | K118: n.a. | N118: n.a. | O118: n.a. | U118: n.a. | X118: n.a. | Y118: n.a. | Z118: n.a. | AC118: n.a. | AD118: n.a. | AE118: n.a. | AH118: n.a. | AI118: n.a. | AM118: n.a. | AN118: n.a. | AR118: n.a. | AS118: n.a. | AW118: n.a. | AX118: n.a. | AY118: n.a. | BB118: n.a. | BC118: n.a. | BG118: n.a. | BH118: n.a. | CC118: Diesel | CF118: n.a. | CG118: n.a. | CH118: Diesel | CK118: n.a. | CL118: n.a. | CM118: n.a. | CP118: n.a. | CQ118: n.a. | CR118: Diesel | CU118: n.a. | CV118: n.a.
A119: FT004d | B119: FT504d | D119: =VLOOKUP(Data!A119,'ID-numbers'!A$2:B$1640,2,FALSE) -> Type of fuel used for transport mode 4 | E119: =VLOOKUP(Data!A119,'ID-numbers'!A$2:C$1640,3,FALSE) -> - | F119: Diesel | I119: n.a. | J119: n.a. | K119: Diesel | N119: n.a. | O119: n.a. | U119: n.a. | X119: n.a. | Y119: n.a. | Z119: n.a. | AC119: n.a. | AD119: n.a. | AE119: n.a. | AH119: n.a. | AI119: n.a. | AM119: n.a. | AN119: n.a. | AR119: n.a. | AS119: n.a. | AW119: n.a. | AX119: n.a. | AY119: n.a. | BB119: n.a. | BC119: n.a. | BG119: n.a. | BH119: n.a. | CC119: n.a. | CF119: n.a. | CG119: n.a. | CH119: n.a. | CK119: n.a. | CL119: n.a. | CM119: n.a. | CP119: n.a. | CQ119: n.a. | CR119: n.a. | CU119: n.a. | CV119: n.a.
A120: FT004e | B120: FT504e | D120: =VLOOKUP(Data!A120,'ID-numbers'!A$2:B$1640,2,FALSE) -> Type of fuel used for transport mode 5 | E120: =VLOOKUP(Data!A120,'ID-numbers'!A$2:C$1640,3,FALSE) -> - | F120: HFO for maritime transport | I120: n.a. | J120: n.a. | K120: HFO for maritime transport | N120: n.a. | O120: n.a. | U120: n.a. | X120: n.a. | Y120: n.a. | Z120: n.a. | AC120: n.a. | AD120: n.a. | AE120: n.a. | AH120: n.a. | AI120: n.a. | AM120: n.a. | AN120: n.a. | AR120: n.a. | AS120: n.a. | AW120: n.a. | AX120: n.a. | AY120: n.a. | BB120: n.a. | BC120: n.a. | BG120: n.a. | BH120: n.a. | CC120: n.a. | CF120: n.a. | CG120: n.a. | CH120: n.a. | CK120: n.a. | CL120: n.a. | CM120: n.a. | CP120: n.a. | CQ120: n.a. | CR120: n.a. | CU120: n.a. | CV120: n.a.
A121: FT004f | B121: FT504f | D121: =VLOOKUP(Data!A121,'ID-numbers'!A$2:B$1640,2,FALSE) -> Type of fuel used for transport mode 6 | E121: =VLOOKUP(Data!A121,'ID-numbers'!A$2:C$1640,3,FALSE) -> - | F121: n.a. | I121: n.a. | J121: n.a. | K121: n.a. | N121: n.a. | O121: n.a. | U121: n.a. | X121: n.a. | Y121: n.a. | Z121: n.a. | AC121: n.a. | AD121: n.a. | AE121: n.a. | AH121: n.a. | AI121: n.a. | AM121: n.a. | AN121: n.a. | AR121: n.a. | AS121: n.a. | AW121: n.a. | AX121: n.a. | AY121: n.a. | BB121: n.a. | BC121: n.a. | BG121: n.a. | BH121: n.a. | CC121: n.a. | CF121: n.a. | CG121: n.a. | CH121: n.a. | CK121: n.a. | CL121: n.a. | CM121: n.a. | CP121: n.a. | CQ121: n.a. | CR121: n.a. | CU121: n.a. | CV121: n.a.
A122: FT004g | B122: FT504g | D122: =VLOOKUP(Data!A122,'ID-numbers'!A$2:B$1640,2,FALSE) -> Type of fuel used for transport mode 7 | E122: =VLOOKUP(Data!A122,'ID-numbers'!A$2:C$1640,3,FALSE) -> - | F122: Diesel | I122: n.a. | J122: n.a. | K122: Diesel | N122: n.a. | O122: n.a. | U122: n.a. | X122: n.a. | Y122: n.a. | Z122: n.a. | AC122: n.a. | AD122: n.a. | AE122: n.a. | AH122: n.a. | AI122: n.a. | AM122: n.a. | AN122: n.a. | AR122: n.a. | AS122: n.a. | AW122: n.a. | AX122: n.a. | AY122: n.a. | BB122: n.a. | BC122: n.a. | BG122: n.a. | BH122: n.a. | CC122: n.a. | CF122: n.a. | CG122: n.a. | CH122: n.a. | CK122: n.a. | CL122: n.a. | CM122: n.a. | CP122: n.a. | CQ122: n.a. | CR122: n.a. | CU122: n.a. | CV122: n.a.
A123: FT004h | B123: FT504h | D123: =VLOOKUP(Data!A123,'ID-numbers'!A$2:B$1640,2,FALSE) -> Type of fuel used for transport mode 8 | E123: =VLOOKUP(Data!A123,'ID-numbers'!A$2:C$1640,3,FALSE) -> - | F123: n.a. | I123: n.a. | J123: n.a. | K123: n.a. | N123: n.a. | O123: n.a. | U123: n.a. | X123: n.a. | Y123: n.a. | Z123: n.a. | AC123: n.a. | AD123: n.a. | AE123: n.a. | AH123: n.a. | AI123: n.a. | AM123: n.a. | AN123: n.a. | AR123: n.a. | AS123: n.a. | AW123: n.a. | AX123: n.a. | AY123: n.a. | BB123: n.a. | BC123: n.a. | BG123: n.a. | BH123: n.a. | CC123: n.a. | CF123: n.a. | CG123: n.a. | CH123: n.a. | CK123: n.a. | CL123: n.a. | CM123: n.a. | CP123: n.a. | CQ123: n.a. | CR123: n.a. | CU123: n.a. | CV123: n.a.
A124: FT004i | B124: FT504i | D124: =VLOOKUP(Data!A124,'ID-numbers'!A$2:B$1640,2,FALSE) -> Type of fuel used for transport mode 9 | E124: =VLOOKUP(Data!A124,'ID-numbers'!A$2:C$1640,3,FALSE) -> - | F124: n.a. | I124: n.a. | J124: n.a. | K124: n.a. | N124: n.a. | O124: n.a. | U124: n.a. | X124: n.a. | Y124: n.a. | Z124: n.a. | AC124: n.a. | AD124: n.a. | AE124: n.a. | AH124: n.a. | AI124: n.a. | AM124: n.a. | AN124: n.a. | AR124: n.a. | AS124: n.a. | AW124: n.a. | AX124: n.a. | AY124: n.a. | BB124: n.a. | BC124: n.a. | BG124: n.a. | BH124: n.a. | CC124: n.a. | CF124: n.a. | CG124: n.a. | CH124: n.a. | CK124: n.a. | CL124: n.a. | CM124: n.a. | CP124: n.a. | CQ124: n.a. | CR124: n.a. | CU124: n.a. | CV124: n.a.
A125: FT025a | B125: FT525a | D125: Source of additional GHG emissions | E125: =VLOOKUP(Data!A125,'ID-numbers'!A$2:C$1640,3,FALSE) -> MJfossil/MJFU | F125: Depot | I125: n.a. | J125: n.a. | K125: Depot | N125: n.a. | O125: n.a. | U125: Depot | X125: n.a. | Y125: n.a. | Z125: Depot | AC125: n.a. | AD125: n.a. | AE125: Depot | AH125: n.a. | AI125: n.a. | AM125: n.a. | AN125: n.a. | AR125: n.a. | AS125: n.a. | AW125: n.a. | AX125: n.a. | AY125: Depot | BB125: n.a. | BC125: n.a. | BG125: n.a. | BH125: n.a. | CC125: Depot | CF125: n.a. | CG125: n.a. | CH125: Depot | CK125: n.a. | CL125: n.a. | CM125: Depot | CP125: n.a. | CQ125: n.a. | CR125: Depot | CU125: n.a. | CV125: n.a.
A126: FT025b | B126: FT525b | D126: Amount of additional GHG emissions | E126: =VLOOKUP(Data!A126,'ID-numbers'!A$2:C$1640,3,FALSE) -> MJprim/MJFU | F126: 0.2 | G126: 0 | H126: 0.5 | I126: =(H126-G126)/6 -> 0.08333333333 | J126: normal | K126: 0.2 | L126: 0 | M126: 0.5 | N126: =(M126-L126)/6 -> 0.08333333333 | O126: normal | U126: 0 | X126: =(W126-V126)/6 -> 0 | Y126: normal | Z126: 0 | AC126: 0 | AD126: normal | AE126: 0 | AH126: =(AG126-AF126)/6 -> 0 | AI126: normal | AM126: =(AL126-AK126)/6 -> 0 | AN126: normal | AR126: =(AQ126-AP126)/6 -> 0 | AS126: normal | AW126: =(AV126-AU126)/6 -> 0 | AX126: normal | AY126: 0 | BB126: =(BA126-AZ126)/6 -> 0 | BC126: normal | BG126: =(BF126-BE126)/6 -> 0 | BH126: normal | CC126: 0 | CF126: =(CE126-CD126)/6 -> 0 | CG126: normal | CH126: 0 | CK126: =(CJ126-CI126)/6 -> 0 | CL126: normal | CM126: 0 | CP126: =(CO126-CN126)/6 -> 0 | CQ126: normal | CR126: 0 | CU126: =(CT126-CS126)/6 -> 0 | CV126: normal
A128: BC000a | B128: BC500a | D128: =VLOOKUP(Data!A128,'ID-numbers'!A$2:B$1640,2,FALSE) -> Process 1 description | E128: =VLOOKUP(Data!A128,'ID-numbers'!A$2:C$1640,3,FALSE) -> - | F128: Oil extraction | I128: n.a. | J128: n.a. | K128: Oil extraction | N128: n.a. | O128: n.a. | U128: Anaerobic digestion+post-composting | X128: n.a. | Y128: n.a. | Z128: Anaerobic digestion | AC128: n.a. | AD128: n.a. | AE128: n.a. | AH128: n.a. | AI128: n.a. | AM128: n.a. | AN128: n.a. | AR128: n.a. | AS128: n.a. | AW128: n.a. | AX128: n.a. | AY128: Anaerobic digestion+post-composting | BB128: n.a. | BC128: n.a. | BG128: n.a. | BH128: n.a. | CC128: Anaerobic digestion | CF128: n.a. | CG128: n.a. | CH128: Esterification | CK128: n.a. | CL128: n.a. | CM128: Pyrolysis | CP128: n.a. | CQ128: n.a. | CR128: Anaerobic digestion+post-composting | CU128: n.a. | CV128: n.a.
A129: BC000b | B129: BC500b | D129: =VLOOKUP(Data!A129,'ID-numbers'!A$2:B$1640,2,FALSE) -> Process 2 description | E129: =VLOOKUP(Data!A129,'ID-numbers'!A$2:C$1640,3,FALSE) -> - | F129: Refining | I129: n.a. | J129: n.a. | K129: Refining | N129: n.a. | O129: n.a. | U129: Purification | X129: n.a. | Y129: n.a. | Z129: Purification | AC129: n.a. | AD129: n.a. | AE129: n.a. | AH129: n.a. | AI129: n.a. | AM129: n.a. | AN129: n.a. | AR129: n.a. | AS129: n.a. | AW129: n.a. | AX129: n.a. | AY129: Purification | BB129: n.a. | BC129: n.a. | BG129: n.a. | BH129: n.a. | CC129: Purification | CF129: n.a. | CG129: n.a. | CH129: n.a. | CK129: n.a. | CL129: n.a. | CM129: n.a. | CP129: n.a. | CQ129: n.a. | CR129: Purification | CU129: n.a. | CV129: n.a.
A130: BC001a | B130: BC501a | D130: =VLOOKUP(Data!A130,'ID-numbers'!A$2:B$1640,2,FALSE) -> Type of main output flow, process 1 | E130: =VLOOKUP(Data!A130,'ID-numbers'!A$2:C$1640,3,FALSE) -> - | F130: Crude palm oil | I130: n.a. | J130: n.a. | K130: Crude palm oil | N130: n.a. | O130: n.a. | U130: Biogas (55% CH4) | X130: n.a. | Y130: n.a. | Z130: Biogas (55% CH4) | AC130: n.a. | AD130: n.a. | AE130: n.a. | AH130: n.a. | AI130: n.a. | AM130: n.a. | AN130: n.a. | AR130: n.a. | AS130: n.a. | AW130: n.a. | AX130: n.a. | AY130: Biogas (55% CH4) | BB130: n.a. | BC130: n.a. | BG130: n.a. | BH130: n.a. | CC130: Biogas (55% CH4) | CF130: n.a. | CG130: n.a. | CH130: Biodiesel | CK130: n.a. | CL130: n.a. | CM130: Fast pyrolysis bio-oil | CP130: n.a. | CQ130: n.a. | CR130: Biogas (55% CH4) | CU130: n.a. | CV130: n.a.
A131: BC001b | B131: BC501b | D131: =VLOOKUP(Data!A131,'ID-numbers'!A$2:B$1640,2,FALSE) -> Type of main output flow, process 2 | E131: =VLOOKUP(Data!A131,'ID-numbers'!A$2:C$1640,3,FALSE) -> - | F131: Palm stearin | I131: n.a. | J131: n.a. | K131: Palm olein | N131: n.a. | O131: n.a. | U131: Purified biogas (55% CH4) | X131: n.a. | Y131: n.a. | Z131: Purified biogas (55% CH4) | AC131: n.a. | AD131: n.a. | AE131: n.a. | AH131: n.a. | AI131: n.a. | AM131: n.a. | AN131: n.a. | AR131: n.a. | AS131: n.a. | AW131: n.a. | AX131: n.a. | AY131: Liquid biomethane (LBM) | BB131: n.a. | BC131: n.a. | BG131: n.a. | BH131: n.a. | CC131: Liquid biomethane (LBM) | CF131: n.a. | CG131: n.a. | CH131: n.a. | CK131: n.a. | CL131: n.a. | CM131: n.a. | CP131: n.a. | CQ131: n.a. | CR131: Liquid biomethane (LBM) | CU131: n.a. | CV131: n.a.
A132: BC012a | B132: BC512a | D132: =VLOOKUP(Data!A132,'ID-numbers'!A$2:B$1640,2,FALSE) -> Moisture content of main output flow, process 1 | E132: =VLOOKUP(Data!A132,'ID-numbers'!A$2:C$1640,3,FALSE) -> % | F132: 0 | G132: 0 | H132: 0 | I132: =(H132-G132)/6 -> 0 | J132: normal | K132: 0 | L132: 0 | M132: 0 | N132: =(M132-L132)/6 -> 0 | O132: normal | U132: 0 | V132: 0 | W132: 0 | X132: =(W132-V132)/6 -> 0 | Y132: normal | Z132: 0 | AA132: 0 | AB132: 0 | AC132: =(AB132-AA132)/6 -> 0 | AD132: normal | AE132: 0 | AF132: 0 | AG132: 0 | AH132: =(AG132-AF132)/6 -> 0 | AI132: normal | AM132: =(AL132-AK132)/6 -> 0 | AN132: normal | AR132: =(AQ132-AP132)/6 -> 0 | AS132: normal | AW132: =(AV132-AU132)/6 -> 0 | AX132: normal | AY132: 0 | BB132: =(BA132-AZ132)/6 -> 0 | BC132: normal | BG132: =(BF132-BE132)/6 -> 0 | BH132: normal | CC132: 0 | CF132: =(CE132-CD132)/6 -> 0 | CG132: normal | CH132: 0 | CK132: =(CJ132-CI132)/6 -> 0 | CL132: normal | CM132: 0 | CP132: =(CO132-CN132)/6 -> 0 | CQ132: normal | CR132: 0 | CU132: =(CT132-CS132)/6 -> 0 | CV132: normal
A133: BC012b | B133: BC512b | D133: =VLOOKUP(Data!A133,'ID-numbers'!A$2:B$1640,2,FALSE) -> Moisture content of main output flow, process 2 | E133: =VLOOKUP(Data!A133,'ID-numbers'!A$2:C$1640,3,FALSE) -> % | F133: 0 | G133: 0 | H133: 0 | I133: 0 | J133: normal | K133: 0 | L133: 0 | M133: 0 | N133: 0 | O133: normal | U133: 0 | V133: 0 | W133: 0 | X133: 0 | Y133: normal | Z133: 0 | AA133: 0 | AB133: 0 | AC133: 0 | AD133: normal | AE133: 0 | AF133: 0 | AG133: 0 | AH133: 0 | AI133: normal | AM133: 0 | AN133: normal | AR133: 0 | AS133: normal | AW133: 0 | AX133: normal | AY133: 0 | BB133: 0 | BC133: normal | BG133: 0 | BH133: normal | CC133: 0 | CF133: 0 | CG133: normal | CH133: 0 | CK133: 0 | CL133: normal | CM133: 0 | CP133: 0 | CQ133: normal | CR133: 0 | CU133: 0 | CV133: normal
A134: BC002a1 | B134: BC502a1 | D134: =VLOOKUP(Data!A134,'ID-numbers'!A$2:B$1640,2,FALSE) -> Type of by-product 1, process 1 | E134: =VLOOKUP(Data!A134,'ID-numbers'!A$2:C$1640,3,FALSE) -> - | F134: Palm kernel meal | I134: n.a. | J134: n.a. | K134: Palm kernel meal | N134: n.a. | O134: n.a. | U134: Compost Breda - tunnel | X134: n.a. | Y134: n.a. | Z134: Digestate breda | AC134: n.a. | AD134: n.a. | AE134: n.a. | AH134: n.a. | AI134: n.a. | AM134: n.a. | AN134: n.a. | AR134: n.a. | AS134: n.a. | AW134: n.a. | AX134: n.a. | AY134: Compost Breda - tunnel | BB134: n.a. | BC134: n.a. | BG134: n.a. | BH134: n.a. | CC134: Digestate moerdijk | CF134: n.a. | CG134: n.a. | CH134: Glycerol | CK134: n.a. | CL134: n.a. | CM134: Wood ash | CP134: n.a. | CQ134: n.a. | CR134: Compost Breda - tunnel | CU134: n.a. | CV134: n.a.
A135: BC002a10 | B135: BC502a10 | D135: =VLOOKUP(Data!A135,'ID-numbers'!A$2:B$1640,2,FALSE) -> Moisture content of by-product 1, process 1 | E135: =VLOOKUP(Data!A135,'ID-numbers'!A$2:C$1640,3,FALSE) -> % | F135: 8.2 | K135: 8.2 | U135: 49.2 | Z135: 65.7 | AE135: 0 | AY135: 49.2 | CC135: 67.3 | CH135: 15 | CM135: 0 | CR135: 49.2
A136: BC002a11 | B136: BC502a11 | D136: =VLOOKUP(Data!A136,'ID-numbers'!A$2:B$1640,2,FALSE) -> By-product flow 1, process 1 | E136: =VLOOKUP(Data!A136,'ID-numbers'!A$2:C$1640,3,FALSE) -> kg/year | F136: 462.83 | I136: n.a. | J136: n.a. | K136: 462.83 | N136: n.a. | O136: n.a. | U136: 17920000 | X136: n.a. | Y136: n.a. | Z136: 0 | AC136: n.a. | AD136: n.a. | AE136: 0 | AH136: n.a. | AI136: n.a. | AY136: 17920000 | BB136: n.a. | BC136: n.a. | CC136: 90274000 | CF136: n.a. | CG136: n.a. | CH136: 1000000 | CK136: n.a. | CL136: n.a. | CM136: 9012000 | CP136: n.a. | CQ136: n.a. | CR136: 17920000 | CU136: n.a. | CV136: n.a.
A137: BC002a2 | B137: BC502a2 | D137: =VLOOKUP(Data!A137,'ID-numbers'!A$2:B$1640,2,FALSE) -> Type of by-product 2, process 1 | E137: =VLOOKUP(Data!A137,'ID-numbers'!A$2:C$1640,3,FALSE) -> - | F137: n.a. | I137: n.a. | J137: n.a. | K137: n.a. | N137: n.a. | O137: n.a. | U137: n.a. | X137: n.a. | Y137: n.a. | Z137: n.a. | AC137: n.a. | AD137: n.a. | AE137: n.a. | AH137: n.a. | AI137: n.a. | AM137: n.a. | AN137: n.a. | AR137: n.a. | AS137: n.a. | AW137: n.a. | AX137: n.a. | AY137: n.a. | BB137: n.a. | BC137: n.a. | BG137: n.a. | BH137: n.a. | CC137: n.a. | CF137: n.a. | CG137: n.a. | CH137: n.a. | CK137: n.a. | CL137: n.a. | CM137: n.a. | CP137: n.a. | CQ137: n.a. | CR137: n.a. | CU137: n.a. | CV137: n.a.
A138: BC002a20 | B138: BC502a20 | D138: =VLOOKUP(Data!A138,'ID-numbers'!A$2:B$1640,2,FALSE) -> Moisture content of by-product 2, process 1 | E138: =VLOOKUP(Data!A138,'ID-numbers'!A$2:C$1640,3,FALSE) -> % | F138: 0 | K138: 0 | U138: 0 | Z138: 0 | AE138: 0 | AT138: n.a. | AY138: 0 | CC138: 0 | CH138: 0 | CM138: 0 | CR138: 0
A139: BC002a21 | B139: BC502a21 | D139: =VLOOKUP(Data!A139,'ID-numbers'!A$2:B$1640,2,FALSE) -> By-product flow 2, process 1 | E139: =VLOOKUP(Data!A139,'ID-numbers'!A$2:C$1640,3,FALSE) -> kg/year | F139: 0 | K139: 0 | U139: 0 | Z139: 0 | AE139: 0 | AY139: 0 | CC139: 0 | CH139: 0 | CM139: 0 | CR139: 0
A140: BC002a3 | B140: BC502a3 | D140: =VLOOKUP(Data!A140,'ID-numbers'!A$2:B$1640,2,FALSE) -> Type of by-product 3, process 1 | E140: =VLOOKUP(Data!A140,'ID-numbers'!A$2:C$1640,3,FALSE) -> - | F140: n.a. | K140: n.a. | U140: n.a. | Z140: n.a. | AE140: n.a. | AJ140: n.a. | AO140: n.a. | AT140: n.a. | AY140: n.a. | CC140: n.a. | CH140: n.a. | CM140: n.a. | CR140: n.a.
A141: BC002a30 | B141: BC502a30 | D141: =VLOOKUP(Data!A141,'ID-numbers'!A$2:B$1640,2,FALSE) -> Moisture content of by-product 3, process 1 | E141: =VLOOKUP(Data!A141,'ID-numbers'!A$2:C$1640,3,FALSE) -> % | F141: 0 | K141: 0 | U141: 0 | Z141: 0 | AE141: 0 | AT141: n.a. | AY141: 0 | CC141: 0 | CH141: 0 | CM141: 0 | CR141: 0
A142: BC002a31 | B142: BC502a31 | D142: =VLOOKUP(Data!A142,'ID-numbers'!A$2:B$1640,2,FALSE) -> By-product flow 3, process 1 | E142: =VLOOKUP(Data!A142,'ID-numbers'!A$2:C$1640,3,FALSE) -> kg/year | F142: 0 | K142: 0 | U142: 0 | Z142: 0 | AE142: 0 | AY142: 0 | CC142: 0 | CH142: 0 | CM142: 0 | CR142: 0
A143: BC002a41 | B143: BC502a41 | D143: =VLOOKUP(Data!A143,'ID-numbers'!A$2:B$1640,2,FALSE) -> Electricity by-product, process 1 | E143: =VLOOKUP(Data!A143,'ID-numbers'!A$2:C$1640,3,FALSE) -> MWh/year | F143: 0 | K143: 0 | U143: 0 | Z143: 0 | AE143: 0 | AY143: 0 | CC143: 0 | CH143: 0 | CM143: 15108 | CR143: 0
A144: BC002a51 | B144: BC502a51 | D144: =VLOOKUP(Data!A144,'ID-numbers'!A$2:B$1640,2,FALSE) -> Heat by-product, process 1 | E144: =VLOOKUP(Data!A144,'ID-numbers'!A$2:C$1640,3,FALSE) -> MJ/year | F144: 0 | K144: 0 | U144: 0 | Z144: 0 | AE144: 0 | AY144: 0 | CC144: 0 | CH144: 0 | CM144: 333719000 | CR144: 0
A145: BC002b1 | B145: BC502b1 | D145: =VLOOKUP(Data!A145,'ID-numbers'!A$2:B$1640,2,FALSE) -> Type of by-product 1, process 2 | E145: =VLOOKUP(Data!A145,'ID-numbers'!A$2:C$1640,3,FALSE) -> - | F145: Palm olein | I145: n.a. | J145: n.a. | K145: Palm olein | N145: n.a. | O145: n.a. | U145: n.a. | X145: n.a. | Y145: n.a. | Z145: n.a. | AC145: n.a. | AD145: n.a. | AE145: n.a. | AH145: n.a. | AI145: n.a. | AM145: n.a. | AN145: n.a. | AR145: n.a. | AS145: n.a. | AW145: n.a. | AX145: n.a. | AY145: n.a. | BB145: n.a. | BC145: n.a. | BG145: n.a. | BH145: n.a. | CC145: n.a. | CF145: n.a. | CG145: n.a. | CH145: n.a. | CK145: n.a. | CL145: n.a. | CM145: n.a. | CP145: n.a. | CQ145: n.a. | CR145: n.a. | CU145: n.a. | CV145: n.a.
